{"text_format":"2","workbook":"xlsx","n_sheets":5,"sheets":["practices","lectures and seminars","opinions","practice data, grafik","lectures data, grafik"],"not_rendered":{"charts":11,"images":0,"macros":0,"external_links":0,"defined_names":0,"comments":0,"pivot_tables":11},"unopened":[],"bounds":{"document_bytes":16777216,"sheet_cells":100000,"run_cost":"one","rows_first":2000,"rows_last":500,"rows_between":2000,"halvings":0,"cell_chars":16384,"cell_head_chars":4096},"cells_cut":0,"cells_raw":0,"read":"whole","date_system":"1900"}

{"sheet":"practices","index":0,"n_rows":19,"n_cols":81,"rows_kept":19,"cut":false,"hidden":false,"merged":[[1,73,17,73],[18,74,18,79],[18,26,18,31],[18,34,18,39],[18,42,18,47],[18,50,18,55],[18,58,18,63],[1,33,17,33],[1,41,17,41],[18,66,18,71],[1,65,17,65],[1,57,17,57],[1,49,17,49],[18,2,18,7],[1,1,17,1],[1,9,17,9],[1,17,17,17],[1,25,17,25],[18,10,18,15],[18,18,18,23]]}
["STUDENTS","Zebrafish","Theme selection","Organization","Active participation","Teacher readiness","Practice value","Syllabus","COMMENTS","Restraint","Theme selection","Organization","Active participation","Teacher readiness","Practice value","Syllabus","COMMENTS","Behaviour","Theme selection","Organization","Active participation","Teacher readiness","Practice value","Syllabus","COMMENTS","Housing","Theme selection","Organization","Active participation","Teacher readiness","Practice value","Syllabus","COMMENTS","Infusion on phantoms","Theme selection","Organization","Active participation","Teacher readiness","Practice value","Syllabus","COMMENTS","Anaesthesia","Theme selection","Organization","Active participation","Teacher readiness","Practice value","Syllabus","COMMENTS","Aseptic techniques","Theme selection","Organization","Active participation","Teacher readiness","Practice value","Syllabus","COMMENTS","Suturing","Theme selection","Organization","Active participation","Teacher readiness","Practice value","Syllabus","COMMENTS","Surgical procedures","Theme selection","Organization","Active participation","Teacher readiness","Practice value","Syllabus","COMMENTS","Alternatives","Theme selection","Organization","Active participation","Teacher readiness","Practice value","Syllabus","COMMENTS"]
["Student 1","Biology and experimental practice of zebrafish \nRita Emilia Szabó, Dr. Tünde Tőkés, Dr. Marietta Poles",4,3,3,5,3,4,"Practice not so useful. Small space for too many participants.","Handling, sexing and restraint of laboratory animals. \nDr. Gabriella Varga, Dr. Dániel Érces, Dr. Marietta Poles, Dr. József Kaszaki ",5,5,5,5,5,5,null,"Methods of investigating laboratory animals behaviour in practice.\nDiána Martos, Dr. Tünde Tőkés, Eleonóra Spekker ",5,5,5,5,5,5,"Very interesting.","Care and housing of laboratory animals in practice: nutrition, cleaning and bedding.\nDr. Gabriella Varga, Dr. Dániel Érces, Ágnes Szilágyi",5,5,5,5,5,5,null,"Minimally invasive procedures without anaesthesia: injections. Intravenous access with Braun catheters, infusions on phantoms. \nDr. Eszter Tuboly, Dr. Marietta Poles, Dr. László Juhász, Dr. Szabolcs Tallósy",5,5,5,5,5,5,null,"Minimally invasive procedures without anaesthesia: oral and parenteral drug administration to rodents in practice. Calculation of the dose of anaesthetic drugs for different species; Anaesthesia of rodents, recognition and control of pain.\nAdvanced anaesthesia in practice: inhalation anaesthesia of rodents. Sampling methods under anaesthesia (urine, blood, tissue biopsies)\nAnaesthesia, instrumentation and non-invasive procedures on minipig.\nScoring system to evaluate humane endpoint.\nDr. Gabriella Varga, Dr. Dániel Érces, Dr. Eszter Tuboly, Dr. Marietta Poles, Dr. László Juhász, Attila Rutai, Ágnes Szilágyi",5,5,5,5,5,5,"Excellent! I appeciated the efforts of all teachers and trainers!","Practice in operating theatre I: aseptic techniques, working under sterile circumstances on dummies and phantoms\nDr. Dániel Érces, Dr. Eszter Tuboly, Dr. Marietta Poles, Dr. László Juhász, Dr. Szabolcs Tallósy",5,5,5,5,5,5,"Very useful!","Practice in operating theatre II: basic surgical procedures, suturing, wound management on dummies and phantoms\nDr. Dániel Érces , Dr. Eszter Tuboly, Dr. Marietta Poles, Dr. László Juhász, Dr. Szabolcs Tallósy ",5,5,5,5,5,5,"Very useful!","Basic surgical procedures on anaesthetised rodents:\nPreparation of trachea – mechanical ventilation;\nPreparation of carotid artery - in vivo monitoring of vital signs;\nPreparation of jugular vein – infusion;\nMedian laparotomy, anatomy of abdominal cavity;\nSuturing in two layers; Microsurgery (on mice)\nDr. Andrea Szabó, Dr. Gabriella Varga, Dr. Dániel Érces, Dr. Eszter Tuboly,  Dr. Marietta Poles, Dr. Szabolcs Tallósy, Ágnes Szilágyi, Attila Rutai",5,3,5,5,4,5,"Crowded tables. Rats were not well sedated, anesthetized.","Alternatives to animal use 2. In vitro and ex vivo experimental techniques; tissue cultures and the Langendorff method\nDr. Tamás Csont, Dr. Csaba Csonka, Renáta Gáspár "]
["Student 2"]
["Student 3",null,5,5,5,5,5,5,null,null,5,5,5,5,5,5,null,null,5,5,5,5,5,5,null,null,5,5,5,5,4,5,null,null,5,5,5,5,5,5,null,null,2,2,2,3,3,null,"Lectures were not translated into practice, e.g. no eye ointment, no warming plates, no pain medication, no disinfection, retroorbital bleeding should not be performed without general anaesthesia, retroorbital injection should only be done by experienced staff, not by participants. It's okay to take more time for certain practice part. We don't mind waiting, it's better than rushing through the practice.",null,5,5,5,5,5,5,null,null,5,5,5,5,5,5,null,null,5,5,5,5,5,5,null,null,5,5,5,5,5,5]
["Student 4",null,5,2,2,5,3,3,"To improve. Different groups in one lesson, didn't allow a good practice.",null,4,3,5,5,4,4,"To improve the organization. I think it's been to divide the participant according to experiences and knowledge.",null,4,3,3,5,4,4,null,null,2,1,4,4,3,4,"Rats and mice in the same keeping room!!!!",null,4,2,3,5,3,4,"How I already wrote, I think that the participants should be separate according their knowledge. I think that you should use more personnel because some procedures were performed without supervision.",null,5,3,5,5,4,5,"Mice and rats should not be in the same room!!! You should give more time for other species such as mini-pig. The blood collection from retro-orbital plexus in mice needs the sedation!!!",null,4,3,5,5,4,5,"It should be better the practice on animal. Separate the participnats according their knowledge.",null,4,3,5,5,4,5,null,null,5,5,5,5,5,5,"Rats and mice in the same room!!!! No skin disinfection prior the incision!!!",null,4,4,4,4,4,4,"Nothing to suggest."]
["Student 5",null,5,5,5,5,5,5,null,null,5,5,5,5,5,5,null,null,5,5,5,5,5,5,null,null,5,5,5,5,5,5,null,null,5,5,5,5,5,5,null,null,5,5,5,5,5,5,"The procedures need more practice time.",null,5,5,5,5,5,5,null,null,5,5,5,5,5,5,null,null,5,5,5,5,5,5]
["Student 6",null,5,5,5,5,5,5,null,null,5,5,5,5,5,5,null,null,5,5,5,4,5,4,null,null,5,5,5,5,5,5,null,null,5,4,4,5,5,5,null,null,5,3,5,4,4,4,null,null,5,5,5,5,5,4,null,null,5,5,5,5,5,4,null,null,5,5,5,5,5,5,null,null,5,5,5,5,4,5]
["Student 7",null,5,5,5,5,5,5,null,null,5,5,5,5,5,5,null,null,5,5,5,5,5,5,null,null,5,5,5,5,5,5,null,null,5,5,5,5,5,5,null,null,5,5,5,5,5,5,null,null,5,5,5,5,5,5,"It's better that the practice right agter the lecture.",null,5,5,5,5,5,5,null,null,5,5,5,5,5,5,"The elective courses are really useful for certain people.",null,5,5,5,5,5,5]
["Student 8",null,5,5,5,5,5,null,null,null,5,5,5,5,5,null,null,null,5,5,5,5,5,null,null,null,5,5,5,5,5,null,null,null,5,5,5,5,5,null,null,null,5,5,5,5,5,null,null,null,5,5,5,5,5,null,null,null,5,5,5,5,5,null,null,null,5,5,5,5,5,null,null,null,5,5,5,5,5]
["Student 9",null,5,5,5,5,5,5,null,null,5,5,5,5,5,5,null,null,5,5,5,5,5,5,null,null,5,5,5,5,5,5,null,null,5,5,5,5,5,5,null,null,5,5,5,5,5,5,null,null,5,5,5,5,5,5,null,null,5,5,5,5,5,5,null,null,5,5,5,5,5,5,null,null,5,5,5,5,5,5]
["Student 10",null,5,5,5,5,5,4,null,null,5,5,5,5,5,null,null,null,5,5,5,5,5,null,null,null,4,5,5,5,4,5,null,null,5,4,5,5,5,5,null,null,5,5,5,5,5,null,null,null,5,4,5,4,5,4,null,null,5,4,4,5,4,5,null,null,5,5,5,5,5,5,null,null,5,5,5,5,5,5]
["Student 11",null,5,5,5,2,5,5,null,null,5,5,5,5,5,5,null,null,5,5,5,5,5,5,null,null,5,5,5,5,5,5,null,null,5,5,5,5,5,5,null,null,5,5,5,5,5,5,null,null,5,5,5,5,5,5,null,null,5,5,5,5,5,5,{"$nulls":10},5,5,5,5,5,5]
["Student 12",null,5,5,5,5,5,5,null,null,5,5,5,5,5,5,null,null,5,5,5,5,5,5,null,null,5,5,5,5,5,5,null,null,5,5,5,5,5,5,null,null,5,5,5,5,5,5,null,null,5,5,5,5,5,5,null,null,5,5,5,5,5,5,null,null,5,5,5,5,5,5]
["Student 13",null,5,5,5,5,5,5,null,null,5,5,5,5,5,5,null,null,5,5,5,5,5,5,null,null,5,5,5,5,5,5,null,null,5,5,5,5,5,5,null,null,5,5,5,5,5,5,null,null,5,5,5,5,5,5,null,null,5,5,5,5,5,5,null,null,5,5,5,5,5,5,null,null,5,5,5,5,5,5]
["Student 14",null,5,5,5,5,5,5,null,null,5,5,5,5,5,5,null,null,5,5,5,5,5,5,null,null,5,5,5,5,5,5,null,null,5,5,5,5,5,5,null,null,5,5,5,5,5,5,null,null,5,5,5,5,5,5,null,null,5,5,5,5,5,5,null,null,5,5,5,5,5,5,null,null,5,5,5,5,5,5]
["Student 15",null,5,5,5,5,5,5,null,null,5,5,5,5,5,5,null,null,5,5,5,5,5,5,null,null,5,5,5,5,5,5,null,null,5,4,5,5,5,5,null,null,5,5,5,5,5,5,null,null,5,5,5,5,5,5,null,null,5,5,5,5,5,5,null,null,5,5,5,5,5,5,null,null,5,5,5,5,5,5]
["Student 16"]
["AVERAGE",null,{"$f":"AVERAGE(C2:C17)","v":4.9285714285714288},4.6428571428571432,4.6428571428571432,4.7857142857142856,4.7142857142857144,4.6923076923076925,null,null,{"$f":"AVERAGE(K2:K17)","v":4.9285714285714288},4.8571428571428568,5,5,4.9285714285714288,4.916666666666667,null,null,{"$f":"AVERAGE(S2:S17)","v":4.9285714285714288},4.8571428571428568,4.8571428571428568,4.9285714285714288,4.9285714285714288,4.833333333333333,null,null,{"$f":"AVERAGE(AA2:AA17)","v":4.7142857142857144},4.7142857142857144,4.9285714285714288,4.9285714285714288,4.7142857142857144,4.9230769230769234,null,null,{"$f":"AVERAGE(AI2:AI17)","v":4.9285714285714288},4.5714285714285712,4.7857142857142856,5,4.8571428571428568,4.9230769230769234,null,null,{"$f":"AVERAGE(AQ2:AQ17)","v":4.7857142857142856},4.5,4.7857142857142856,4.7857142857142856,4.7142857142857144,4.9090909090909092,null,null,{"$f":"AVERAGE(AY2:AY17)","v":4.9285714285714288},4.7857142857142856,5,4.9285714285714288,4.9285714285714288,4.8461538461538458,null,null,{"$f":"AVERAGE(BG2:BG17)","v":4.9285714285714288},4.7857142857142856,4.9285714285714288,5,4.8571428571428568,4.9230769230769234,null,null,{"$f":"AVERAGE(BO2:BO17)","v":5},4.8461538461538458,5,5,4.9230769230769234,5,null,null,{"$f":"AVERAGE(BW2:BW17)","v":4.9090909090909092},4.9090909090909092,4.9090909090909092,4.9090909090909092,4.8181818181818183,4.9000000000000004]
[null,null,{"$f":"AVERAGE(C2:H17)","v":4.7349397590361448},{"$nulls":7},{"$f":"AVERAGE(K2:P17)","v":4.9390243902439028},{"$nulls":7},{"$f":"AVERAGE(S2:X17)","v":4.8902439024390247},{"$nulls":7},{"$f":"AVERAGE(AA2:AF17)","v":4.8192771084337354},{"$nulls":7},{"$f":"AVERAGE(AI2:AN17)","v":4.8433734939759034},{"$nulls":7},{"$f":"AVERAGE(AQ2:AV17)","v":4.7407407407407405},{"$nulls":7},{"$f":"AVERAGE(AY2:BD17)","v":4.903614457831325},{"$nulls":7},{"$f":"AVERAGE(BG2:BL17)","v":4.903614457831325},{"$nulls":7},{"$f":"AVERAGE(BO2:BT17)","v":4.9610389610389607},{"$nulls":7},{"$f":"AVERAGE(BW2:CB17)","v":4.8923076923076927}]

{"sheet":"lectures and seminars","index":1,"n_rows":19,"n_cols":182,"rows_kept":19,"cut":false,"hidden":false,"merged":[[1,175,17,175],[18,176,18,179],[1,163,17,163],[18,164,18,167],[1,169,17,169],[18,170,18,173],[18,146,18,149],[1,151,17,151],[1,157,17,157],[18,152,18,155],[18,158,18,161],[18,122,18,125],[1,127,17,127],[1,133,17,133],[1,139,17,139],[1,145,17,145],[18,128,18,131],[18,134,18,137],[18,140,18,143],[18,98,18,101],[1,103,17,103],[1,109,17,109],[1,115,17,115],[1,121,17,121],[18,104,18,107],[18,110,18,113],[18,116,18,119],[18,74,18,77],[1,79,17,79],[1,85,17,85],[1,91,17,91],[1,97,17,97],[18,80,18,83],[18,86,18,89],[18,92,18,95],[1,73,17,73],[18,56,18,59],[18,62,18,65],[18,68,18,71],[1,37,17,37],[1,43,17,43],[1,49,17,49],[18,44,18,47],[18,50,18,53],[1,55,17,55],[1,61,17,61],[1,67,17,67],[18,32,18,35],[18,38,18,41],[1,1,17,1],[1,7,17,7],[1,13,17,13],[1,19,17,19],[1,25,17,25],[1,31,17,31],[18,2,18,5],[18,8,18,11],[18,14,18,17],[18,20,18,23],[18,26,18,29]]}
["STUDENTS","History","Subject-specific expertise","Style of performance","Choice of subject","Handouts","COMMENTS","Law and 3 Rs","Subject-specific expertise","Style of performance","Choice of subject","Handouts","COMMENTS","Ethics","Subject-specific expertise","Style of performance","Choice of subject","Handouts","COMMENTS","Extrapolation","Subject-specific expertise","Style of performance","Choice of subject","Handouts","COMMENTS","3 Rs","Subject-specific expertise","Style of performance","Choice of subject","Handouts","COMMENTS","Licensing","Subject-specific expertise","Style of performance","Choice of subject","Handouts","COMMENTS","Basics of statistics","Subject-specific expertise","Style of performance","Choice of subject","Handouts","COMMENTS","Small animal biology","Subject-specific expertise","Style of performance","Choice of subject","Handouts","COMMENTS","Large animal biology","Subject-specific expertise","Style of performance","Choice of subject","Handouts","COMMENTS","Behaviour","Subject-specific expertise","Style of performance","Choice of subject","Handouts","COMMENTS","Inbred, outbred","Subject-specific expertise","Style of performance","Choice of subject","Handouts","COMMENTS","Restraint","Subject-specific expertise","Style of performance","Choice of subject","Handouts","COMMENTS","Zebrafish","Subject-specific expertise","Style of performance","Choice of subject","Handouts","COMMENTS","Microbiology","Subject-specific expertise","Style of performance","Choice of subject","Handouts","COMMENTS","Environmental enrichment","Subject-specific expertise","Style of performance","Choice of subject","Handouts","COMMENTS","Housing","Subject-specific expertise","Style of performance","Choice of subject","Handouts","COMMENTS","Min. inv.","Subject-specific expertise","Style of performance","Choice of subject","Handouts","COMMENTS","Pain, suffering","Subject-specific expertise","Style of performance","Choice of subject","Handouts","COMMENTS","Anaesthesia","Subject-specific expertise","Style of performance","Choice of subject","Handouts","COMMENTS","Advanced anaesthesia","Subject-specific expertise","Style of performance","Choice of subject","Handouts","COMMENTS","Safety","Subject-specific expertise","Style of performance","Choice of subject","Handouts","COMMENTS","Basic surgical procedures","Subject-specific expertise","Style of performance","Choice of subject","Handouts","COMMENTS","Monitoring","Subject-specific expertise","Style of performance","Choice of subject","Handouts","COMMENTS","Alternatives","Subject-specific expertise","Style of performance","Choice of subject","Handouts","COMMENTS","Protocol design","Subject-specific expertise","Style of performance","Choice of subject","Handouts","COMMENTS","Licensing in practice","Subject-specific expertise","Style of performance","Choice of subject","Handouts","COMMENTS","Sample size","Subject-specific expertise","Style of performance","Choice of subject","Handouts","COMMENTS","Bibliometrics","Subject-specific expertise","Style of performance","Choice of subject","Handouts","COMMENTS","Translation","Subject-specific expertise","Style of performance","Choice of subject","Handouts","COMMENTS","In vitro, ex vivo","Subject-specific expertise","Style of performance","Choice of subject","Handouts","COMMENTS","OTHER COMMENTS"]
["Student 1","Introduction to the science of laboratory animals, use of animals for different areas of research. The procedure of modelling. History of animal experimentation\nProf. Dr. Mihály Boros\n",5,5,5,5,"Excellent knowledge of the field/subject. Clear explanation, message, handouts.","European and Hungarian law, legislation and the Three Rs (Reduction, Replacement, Refinement), ethical permission & license.\nDr. József Kaszaki",5,5,5,5,"Very well explained situation in EU countries. We changed law systems hroughout EUROPE. Clear slide.","Ethical aspects and animal welfare (historical background, arguments for and against the use of animals for scientific purposes, moral aspects, ethical committees)\nProf. Dr Mihály Boros ",5,5,5,5,"Overview of historical philosophy about animal experimentation was excellent. ","Extrapolation of animal data to human. Model examples: from inflammation to circulatory shock\nProf. Dr. Zoltán Rakonczay ",5,3,3,5,"Unfortunately the lecture was in the afternoon and we were tired and the speaker had a low-volume voice. Therefore we only partially understood the subject.","Legislation in practice 1: animal welfare and the 3 Rs\nDr. József Kaszaki ",5,5,5,5,"Very helpful and confirms what I already know about.","Legislation in practice 2: licensing of animal experiments\nDr. József Kaszaki",5,5,5,5,"Very useful.","Basics of statistics. Introduction of sample size estimation\nDr. Ferenc Rárósi",5,5,5,5,"Very clear and practical examples were ","Biology of laboratory animals I. Species-specific biology of small laboratory animals. Rodent anatomy, physiology, behaviour.\nDr. Tünde Tőkés",5,4,5,4,"The subject was interesting. Unfortunately the low-volume voice of the speaker did not help us to fully understand all the explanations.","Biology of laboratory animals II. Species-specific biology of large laboratory animals. Anatomy, physiology, behaviour, care and housing.\nDr. Gabriella Varga ",5,4,5,3,"Some as above. Handouts with lot of typing / grammar errors.","Examination of animal behaviour \nDiána Martos",3,3,5,4,"Low-volume voice. Hardly to follow. The subject was very interesting and there were a lot of quetions.","Outbred, inbred and transgenic animals, genetic characterization, standardization, genetic quality control.\nDr. Tamás Jánossy ",4,5,5,4,"Basic learning on mouse strains, nomenclature. Techniques to produce Tg/KO/KI were clearly explained but in my opinion should be little bit UPDATED (CRISPR/Cas9 techniques, microsatellite DNA techniques)","Animal care, husbandry and management: appropriate, safe and humane handling, sexing and restraint\nDr. Gabriella Varga ",5,5,5,5,"Useful.","Significance of zebrafish in animal research\nRita Emilia Szabó ",5,5,5,5,"Very interesting.","The concept of gnotobiology. Important zoonotic diseases of laboratory animals.\nDr. Tünde Vezér ",4,3,4,3,"Too much detailed slides. Too much informations.","Care and housing of laboratory animals I. The grading of hygiene of animals and animal houses, environmental enrichment.\nDr. Dániel Érces ",5,5,5,5,"Very good.","Care and housing of laboratory animals II. Reproduction and breeding. Nutrition. Quarantine, hygiene and disinfection, health hazards and safe practices in animal houses. \nDr. Tamás Jánossy ",5,4,5,4,"Very good.","Minimally invasive procedures without anaesthesia.\nDr. Dániel Érces ",5,5,5,5,"Very well explained and interesting.","Species-specific recognition of pain, suffering and distress; monitoring of animal wellbeing.\nDr. Patrícia Farkas ",5,4,5,5,null,"Anaesthesia and analgesia of laboratory animals. General rules of anaesthesia.\nPost-experimental management: humane endpoints, methods of euthanasia.\nDr. Dániel Érces ",5,5,5,5,null,"Advanced anaesthesia for surgical or prolonged procedures. Applied drugs, doses and side effects.\nDr. Dániel Érces ",5,5,5,5,"Very useful!","Safety in working with animals carrying infectious diseases/agents.\nDr. Szabolcs Tallósy ",5,5,5,5,"Excellent!","Principles of surgical procedures, the rules of asepsis. Basic surgical procedures. Wound management.\nDr. Petra Hartmann ",5,5,5,5,"Super excellent!","Design of procedures and projects I. Experimental techniques in practice. Monitoring of vital signs.\nDr. József Kaszaki ",5,5,5,5,"Excellent!","Alternatives to animal use 1. Possibilities and limitations of alternatives\nDr. Eszter Tuboly",5,5,5,5,"Excellent english.","Design of procedures and projects II. Experimental design: the protocol of animal experiments; \nDr. József Kaszaki ",5,5,5,5,null,"Licensing of animal experiments in practice - recapitulation\nDr. József Kaszaki ",5,5,5,5,null,"Sample size estimation. Interpretation of results - complex statistical analysis\nDr. Ferenc Rárósi ",5,5,5,5,"Excellent!","Basics of bibliometrics. Analysis of scientific literature; Publication of results.\nDr. Andrea Szabó ",5,5,5,5,"Excellent lecture & english language.","Dilemmas of translating animal experiments to clinical practice. Lost of translation? \nDr. László Juhász ",5,5,5,5,null,"Alternatives to animal use 2. In vitro and ex vivo experimental techniques; tissue cultures, Langendorff method\nDr. Tamás Csont, Dr. Csaba Csonka",5,5,5,5,"Pity I was little bit tired I did not follow the entire seminar."]
["Student 2",null,5,5,5,5,null,null,5,5,5,5,null,null,5,5,5,5,null,null,5,5,5,5,null,null,5,5,5,5,null,null,5,5,5,5,null,null,5,5,5,5,null,null,5,5,5,5,null,null,5,5,5,5,{"$nulls":127},"In my opinion, in general, the content of the lectures is adequate and very interesting. However, some of them are too long, they have many information for one lecture and is questionable if this information is really necessary, like for example \"Microbiology and disease\" lecture and \"Anaesthesia (description of anaesthetics)\".  On the other hand, a few lectures lacked of enthusiasm and dinamic of theirs teachers, like for example Diana Martos lecture. The english level of all the teachers was really good, even for the ones that were really conscious about it, I think they just need to be more confident. The course should be more days, to the students have more time to integrate the information they are receiving. The opinion pole, should somehow  to be shorten or more direct, otherwise you are not going to have a real opinion. And finally, thank you so much for everything, the course is really well organized, and all the students had a really good reception. Everybody will be missed, everyone was really nice and friendly. Thank you. :)"]
["Student 3",null,5,5,5,5,null,null,4,5,4,4,null,null,5,4,4,4,null,null,4,3,3,3,"Too many diseases, too much info / slide.",null,4,4,5,5,null,null,5,5,5,5,null,null,5,5,5,5,null,null,4,4,5,4,"More specific housing recommendations for scientific purposes would be useful.",null,5,4,4,4,"More specific housing recommendations for scientific purposes would be useful.",null,3,3,5,4,"Speaker should dare to speak more English, it was obvious that she had the kowledge but didn't dare to speak.",null,4,3,5,2,"Slides are too full with text, should be restructured a bit. Presentation was understandable though.",null,5,4,4,4,null,null,5,5,5,4,null,null,5,3,4,4,"Lecture was a bit too fast.",null,5,5,5,5,null,null,5,5,5,5,null,null,5,5,5,5,null,null,5,5,5,5,null,null,5,5,5,5,null,null,5,5,5,5,null,null,5,5,5,5,null,null,5,5,5,5,null,null,5,5,4,5,null,null,4,5,5,5,null,null,5,5,5,5,null,null,5,5,5,5,"Maybe better earlier during the course.",null,5,5,5,5,null,null,5,5,3,5,null,null,5,5,5,5,null,null,5,5,4,5]
["Student 4",null,4,4,4,4,"Good lessons. Nothing to say.",null,5,5,5,5,"Excellent explanation.",null,5,5,5,5,"Grat!!!",null,4,2,3,3,"Not very clear, boring.",null,4,3,4,4,"Nothing to suggest.",null,4,3,4,4,"Tonthing to suggest.",null,5,5,5,5,"Great lecture, very clear!!",null,3,2,3,3,"I suggest to improve the lecture, english is not be clear.",null,4,3,3,3,"English is not be clear.",null,2,2,2,2,"Very boring lecture. English is not be clear.",null,4,4,4,4,"Nothing to say.",null,4,4,4,4,"Nothing to say.",null,4,4,4,4,"Nothing to say.",null,2,2,3,3,"To improve the lecture.",null,5,5,5,5,"Nothing to say.",null,4,4,4,4,"Nothing to say.",null,5,5,5,5,"Nothing to say.",null,4,4,4,4,"Nothing to say.",null,5,5,5,5,"Nothing to say.",null,5,5,5,5,"Nothing to say.",null,5,5,5,5,"Nothing to say.",null,4,4,4,4,"Nothing to say.",null,5,5,5,5,"Nothing to say.",null,4,5,4,4,"Nothing to suggest.",null,4,5,4,4,"Nothing to suggest.",null,4,5,4,4,"Nothing to suggest.",null,5,5,5,5,"Nothing to suggest.",null,5,5,5,5,"Nothing to suggest.",null,5,5,5,5,"Nothing to suggest.",null,4,4,4,4,"Nothing to suggest."]
["Student 5",null,5,5,5,5,"The lecture was clear and understandable.",null,5,5,5,5,"The lecture was very detailed.",null,5,5,5,5,null,null,5,5,5,5,null,null,5,5,5,5,null,null,5,5,5,5,null,null,5,5,5,5,null,null,5,5,5,5,null,null,5,5,5,5,null,null,5,5,5,5,null,null,5,5,5,5,null,null,5,5,5,5,null,null,5,5,5,5,null,null,5,5,5,5,null,null,5,5,5,5,null,null,5,5,5,5,null,null,5,5,5,5,null,null,5,5,5,5,null,null,5,5,5,5,null,null,5,5,5,5,null,null,5,5,5,5,null,null,5,5,5,5,null,null,5,5,5,5,null,null,5,5,5,5,{"$nulls":14},5,5,5,5,null,null,5,5,5,5,null,null,5,5,5,5]
["Student 6",null,5,5,5,5,null,null,5,5,5,5,null,null,5,5,5,5,null,null,5,5,5,5,null,null,5,5,5,5,null,null,5,5,5,5,null,null,5,4,5,4,null,null,5,5,5,5,null,null,5,5,5,5,null,null,5,3,5,5,null,null,5,5,5,5,null,null,5,5,5,5,null,null,5,5,5,5,null,null,4,3,4,3,"It is a very broad topic; it may help in the future to organize it in a more interactive way.",null,5,5,5,5,null,null,5,5,5,5,null,null,5,5,5,5,null,null,5,4,5,5,null,null,5,5,5,5,null,null,5,5,5,5,null,null,5,5,5,5,null,null,5,5,5,5,null,null,5,5,4,4,null,null,5,5,5,5,null,null,5,5,5,5,null,null,5,4,5,5,null,null,5,4,4,4,null,null,5,5,3,3,null,null,5,5,5,5,null,null,5,5,3,4,null,"It is an excellent course, intense but the level of teaching was very high. It may be helpful for future non experienced participants to suggest to undertake FELASA course B prior this one."]
["Student 7",null,5,5,5,5,null,null,5,4,5,5,null,null,5,5,5,5,null,null,5,5,5,5,null,null,5,5,5,5,null,null,5,5,5,5,null,null,5,5,5,5,null,null,5,5,5,5,null,null,5,2,4,3,null,null,4,3,5,3,null,null,5,5,5,5,null,null,5,3,5,3,null,null,4,4,4,4,null,null,5,4,4,4,null,null,5,5,5,5,null,null,5,5,5,5,null,null,5,5,5,5,null,null,5,5,5,5,null,null,5,5,5,5,null,null,5,5,5,5,null,null,5,5,5,5,"It's better if it was in morning.",null,5,5,5,5,null,null,5,5,5,5,null,null,4,5,5,5,"Some information should be updated and new techniques also should be introduced.",null,5,5,5,5,null,null,5,5,5,5,null,null,4,5,5,5,null,null,5,5,5,5,null,null,5,5,5,5,null,null,5,5,5,5]
["Student 8",null,5,5,5,5,null,null,5,5,5,5,null,null,5,5,5,5,null,null,5,5,5,5,null,null,5,5,5,5,null,null,5,5,5,5,null,null,5,5,5,5,null,null,5,5,5,5,null,null,5,5,5,5,null,null,5,5,5,5,null,null,5,5,5,5,null,null,5,5,5,5,null,null,5,5,5,5,null,null,5,5,5,null,null,null,5,5,5,null,null,null,5,5,5,null,null,null,5,5,5,null,null,null,5,5,5,null,null,null,5,5,5,null,null,null,5,5,5,null,null,null,5,5,5,null,null,null,5,5,5,null,null,null,5,5,5,null,null,null,5,5,5,5,null,null,5,5,5,null,null,null,5,5,5,null,null,null,5,5,5,5,null,null,5,5,5,5,null,null,5,5,5,5,null,null,5,5,5,5]
["Student 9",null,5,5,5,5,null,null,5,5,5,5,null,null,5,5,5,5,null,null,5,5,5,5,null,null,5,5,5,5,null,null,5,5,5,5,null,null,5,5,5,5,null,null,5,5,5,5,null,null,5,5,5,5,null,null,5,5,5,5,null,null,5,5,5,5,null,null,5,5,5,5,null,null,5,5,5,5,null,null,5,5,5,5,null,null,5,5,5,5,null,null,5,5,5,5,null,null,5,5,5,5,null,null,5,5,5,5,null,null,5,5,5,5,null,null,5,5,5,5,null,null,5,5,5,5,null,null,5,5,5,5,null,null,5,5,5,5,null,null,5,5,5,5,null,null,5,5,5,5,null,null,5,5,5,5,null,null,5,5,5,5,null,null,5,5,5,5,null,null,5,5,5,5,null,null,5,5,5,5]
["Student 10",null,5,5,5,5,null,null,5,4,5,5,null,null,5,5,5,5,null,null,5,4,5,5,null,null,5,5,5,5,null,null,5,4,5,4,null,null,5,5,5,5,null,null,5,5,5,5,null,null,5,5,5,5,null,null,4,5,5,5,null,null,5,5,4,5,null,null,5,5,5,5,null,null,5,5,5,5,null,null,4,4,5,5,null,null,5,5,5,5,null,null,5,5,5,5,null,null,4,5,5,5,null,null,5,5,5,5,null,null,5,5,5,5,null,null,5,5,5,5,null,null,5,4,5,4,null,null,5,5,5,5,null,null,5,5,5,4,null,null,4,5,5,4,null,null,5,5,5,4,null,null,5,5,5,4,null,null,5,5,5,5,null,null,5,5,5,5,null,null,5,5,5,5,null,null,5,5,5,5]
["Student 11",null,5,5,5,5,null,null,5,5,5,5,null,null,5,5,5,5,null,null,5,5,5,5,null,null,5,5,5,5,null,null,5,5,5,5,null,null,5,5,5,5,null,null,5,2,5,5,null,null,5,5,5,5,null,null,5,5,5,5,null,null,5,5,5,5,null,null,5,5,5,5,null,null,5,2,5,5,null,null,5,5,5,5,null,null,5,5,5,5,null,null,5,5,5,5,null,null,5,5,5,5,null,null,5,5,5,5,null,null,5,5,5,5,null,null,5,5,5,5,null,null,5,5,5,5,null,null,5,5,5,5,null,null,5,5,5,5,{"$nulls":20},5,5,5,5,null,null,5,5,5,5,null,null,5,5,5,5,null,null,5,5,5,5]
["Student 12",null,5,5,5,5,null,null,5,5,5,5,null,null,5,5,5,5,null,null,5,5,5,5,null,null,5,5,5,5,null,null,5,5,5,5,null,null,5,5,5,5,null,null,5,4,5,4,null,null,5,4,5,4,null,null,5,4,5,4,null,null,5,5,5,5,"Needs more figures, but amazing lecture.",null,5,5,5,5,null,null,5,4,5,4,null,null,3,2,1,2,null,null,5,5,5,4,null,null,5,5,5,5,"Needs more figures.",null,4,4,4,4,null,null,5,5,5,5,null,null,4,4,4,4,null,null,4,4,4,4,null,null,5,5,5,5,null,null,5,5,5,5,null,null,5,5,5,5,null,null,5,5,5,4,null,null,5,4,5,5,null,null,5,5,5,5,null,null,5,5,5,5,null,null,5,5,5,5,null,null,5,5,5,5]
["Student 13",null,4,5,4,4,null,null,4,4,4,4,null,null,5,5,5,5,null,null,5,4,4,5,null,null,5,4,4,5,null,null,5,5,5,5,null,null,5,5,5,5,null,null,5,5,5,4,null,null,5,5,5,5,null,null,5,5,5,5,null,null,5,5,5,5,null,null,5,5,5,4,null,null,5,5,5,5,null,null,5,5,5,5,null,null,5,5,5,5,null,null,5,5,5,5,null,null,5,5,5,5,null,null,5,5,5,5,null,null,5,5,5,5,null,null,5,5,5,5,null,null,5,5,5,5,null,null,5,5,5,5,null,null,5,5,5,5,null,null,5,5,5,5,null,null,5,5,5,5,null,null,5,5,5,5,null,null,5,5,5,5,null,null,5,5,5,5,null,null,5,5,5,5,null,null,5,5,5,5]
["Student 14",null,5,5,5,5,null,null,5,5,5,5,null,null,5,5,5,5,null,null,5,5,5,5,null,null,5,5,5,5,null,null,5,5,5,5,null,null,5,5,5,5,null,null,5,5,5,5,null,null,5,5,5,5,null,null,5,5,5,5,null,null,5,5,5,5,null,null,5,5,5,5,null,null,5,5,5,5,null,null,5,5,5,5,null,null,5,5,5,5,null,null,5,5,5,5,null,null,5,5,5,5,null,null,5,5,5,5,null,null,5,5,5,5,null,null,5,5,5,5,null,null,5,5,5,5,null,null,5,5,5,5,null,null,5,5,5,5,null,null,5,5,5,5,null,null,5,5,5,5,null,null,5,5,5,5,null,null,5,5,5,5,null,null,5,5,5,5,null,null,5,5,5,5,null,null,5,5,5,5]
["Student 15",null,5,5,5,5,null,null,5,5,5,5,null,null,5,5,5,5,null,null,5,5,5,5,null,null,5,5,5,5,null,null,5,5,5,5,null,null,5,5,5,5,null,null,5,5,5,5,null,null,5,5,5,5,null,null,5,5,5,5,null,null,5,5,5,5,null,null,5,5,5,5,null,null,5,5,4,5,null,null,5,4,5,5,null,null,5,5,4,5,null,null,5,5,5,5,{"$nulls":8},5,5,5,5,null,null,5,5,5,5,null,null,5,5,5,5,null,null,5,5,5,5,null,null,5,5,5,5,null,null,5,5,5,5,null,null,5,5,5,5,null,null,5,5,5,5,null,null,5,5,5,5,null,null,5,5,5,5,null,null,5,5,5,5,null,null,5,5,5,5,null,null,5,5,5,5]
["Student 16"]
["AVERAGE",null,{"$f":"AVERAGE(C2:C17)","v":4.8666666666666663},{"$f":"AVERAGE(D2:D17)","v":4.9333333333333336},{"$f":"AVERAGE(E2:E17)","v":4.8666666666666663},{"$f":"AVERAGE(F2:F17)","v":4.8666666666666663},null,null,{"$f":"AVERAGE(I2:I17)","v":4.8666666666666663},{"$f":"AVERAGE(J2:J17)","v":4.8},{"$f":"AVERAGE(K2:K17)","v":4.8666666666666663},{"$f":"AVERAGE(L2:L17)","v":4.8666666666666663},null,null,{"$f":"AVERAGE(O2:O17)","v":5},{"$f":"AVERAGE(P2:P17)","v":4.9333333333333336},{"$f":"AVERAGE(Q2:Q17)","v":4.9333333333333336},{"$f":"AVERAGE(R2:R17)","v":4.9333333333333336},null,null,{"$f":"AVERAGE(U2:U17)","v":4.8666666666666663},{"$f":"AVERAGE(V2:V17)","v":4.4000000000000004},{"$f":"AVERAGE(W2:W17)","v":4.5333333333333332},{"$f":"AVERAGE(X2:X17)","v":4.7333333333333334},null,null,{"$f":"AVERAGE(AA2:AA17)","v":4.8666666666666663},{"$f":"AVERAGE(AB2:AB17)","v":4.7333333333333334},{"$f":"AVERAGE(AC2:AC17)","v":4.8666666666666663},{"$f":"AVERAGE(AD2:AD17)","v":4.9333333333333336},null,null,{"$f":"AVERAGE(AG2:AG17)","v":4.9333333333333336},{"$f":"AVERAGE(AH2:AH17)","v":4.8},{"$f":"AVERAGE(AI2:AI17)","v":4.9333333333333336},{"$f":"AVERAGE(AJ2:AJ17)","v":4.8666666666666663},null,null,{"$f":"AVERAGE(AM2:AM17)","v":5},{"$f":"AVERAGE(AN2:AN17)","v":4.9333333333333336},{"$f":"AVERAGE(AO2:AO17)","v":5},{"$f":"AVERAGE(AP2:AP17)","v":4.9333333333333336},null,null,{"$f":"AVERAGE(AS2:AS17)","v":4.8},{"$f":"AVERAGE(AT2:AT17)","v":4.4000000000000004},{"$f":"AVERAGE(AU2:AU17)","v":4.8666666666666663},{"$f":"AVERAGE(AV2:AV17)","v":4.5999999999999996},null,null,{"$f":"AVERAGE(AY2:AY17)","v":4.9333333333333336},{"$f":"AVERAGE(AZ2:AZ17)","v":4.4666666666666668},{"$f":"AVERAGE(BA2:BA17)","v":4.7333333333333334},{"$f":"AVERAGE(BB2:BB17)","v":4.4666666666666668},null,null,{"$f":"AVERAGE(BE2:BE17)","v":4.3571428571428568},{"$f":"AVERAGE(BF2:BF17)","v":4.1428571428571432},{"$f":"AVERAGE(BG2:BG17)","v":4.7857142857142856},{"$f":"AVERAGE(BH2:BH17)","v":4.4285714285714288},null,null,{"$f":"AVERAGE(BK2:BK17)","v":4.7857142857142856},{"$f":"AVERAGE(BL2:BL17)","v":4.7857142857142856},{"$f":"AVERAGE(BM2:BM17)","v":4.8571428571428568},{"$f":"AVERAGE(BN2:BN17)","v":4.6428571428571432},null,null,{"$f":"AVERAGE(BQ2:BQ17)","v":4.9285714285714288},{"$f":"AVERAGE(BR2:BR17)","v":4.7142857142857144},{"$f":"AVERAGE(BS2:BS17)","v":4.8571428571428568},{"$f":"AVERAGE(BT2:BT17)","v":4.6428571428571432},null,null,{"$f":"AVERAGE(BW2:BW17)","v":4.8571428571428568},{"$f":"AVERAGE(BX2:BX17)","v":4.5714285714285712},{"$f":"AVERAGE(BY2:BY17)","v":4.7857142857142856},{"$f":"AVERAGE(BZ2:BZ17)","v":4.7142857142857144},null,null,{"$f":"AVERAGE(CC2:CC17)","v":4.4285714285714288},{"$f":"AVERAGE(CD2:CD17)","v":3.9285714285714284},{"$f":"AVERAGE(CE2:CE17)","v":4.2857142857142856},{"$f":"AVERAGE(CF2:CF17)","v":4.1538461538461542},null,null,{"$f":"AVERAGE(CI2:CI17)","v":5},{"$f":"AVERAGE(CJ2:CJ17)","v":5},{"$f":"AVERAGE(CK2:CK17)","v":4.9285714285714288},{"$f":"AVERAGE(CL2:CL17)","v":4.9230769230769234},null,null,{"$f":"AVERAGE(CO2:CO17)","v":4.9285714285714288},{"$f":"AVERAGE(CP2:CP17)","v":4.8571428571428568},{"$f":"AVERAGE(CQ2:CQ17)","v":4.9285714285714288},{"$f":"AVERAGE(CR2:CR17)","v":4.8461538461538458},null,null,{"$f":"AVERAGE(CU2:CU17)","v":4.8461538461538458},{"$f":"AVERAGE(CV2:CV17)","v":4.9230769230769234},{"$f":"AVERAGE(CW2:CW17)","v":4.9230769230769234},{"$f":"AVERAGE(CX2:CX17)","v":4.916666666666667},null,null,{"$f":"AVERAGE(DA2:DA17)","v":4.9285714285714288},{"$f":"AVERAGE(DB2:DB17)","v":4.7857142857142856},{"$f":"AVERAGE(DC2:DC17)","v":4.9285714285714288},{"$f":"AVERAGE(DD2:DD17)","v":4.9230769230769234},null,null,{"$f":"AVERAGE(DG2:DG17)","v":4.9285714285714288},{"$f":"AVERAGE(DH2:DH17)","v":4.9285714285714288},{"$f":"AVERAGE(DI2:DI17)","v":4.9285714285714288},{"$f":"AVERAGE(DJ2:DJ17)","v":4.9230769230769234},null,null,{"$f":"AVERAGE(DM2:DM17)","v":4.9285714285714288},{"$f":"AVERAGE(DN2:DN17)","v":4.9285714285714288},{"$f":"AVERAGE(DO2:DO17)","v":4.9285714285714288},{"$f":"AVERAGE(DP2:DP17)","v":4.9230769230769234},null,null,{"$f":"AVERAGE(DS2:DS17)","v":5},{"$f":"AVERAGE(DT2:DT17)","v":4.9285714285714288},{"$f":"AVERAGE(DU2:DU17)","v":5},{"$f":"AVERAGE(DV2:DV17)","v":4.9230769230769234},null,null,{"$f":"AVERAGE(DY2:DY17)","v":4.9285714285714288},{"$f":"AVERAGE(DZ2:DZ17)","v":4.9285714285714288},{"$f":"AVERAGE(EA2:EA17)","v":4.9285714285714288},{"$f":"AVERAGE(EB2:EB17)","v":4.9230769230769234},null,null,{"$f":"AVERAGE(EE2:EE17)","v":5},{"$f":"AVERAGE(EF2:EF17)","v":5},{"$f":"AVERAGE(EG2:EG17)","v":4.8571428571428568},{"$f":"AVERAGE(EH2:EH17)","v":4.8461538461538458},null,null,{"$f":"AVERAGE(EK2:EK17)","v":4.6923076923076925},{"$f":"AVERAGE(EL2:EL17)","v":5},{"$f":"AVERAGE(EM2:EM17)","v":4.9230769230769234},{"$f":"AVERAGE(EN2:EN17)","v":4.7692307692307692},null,null,{"$f":"AVERAGE(EQ2:EQ17)","v":4.916666666666667},{"$f":"AVERAGE(ER2:ER17)","v":4.916666666666667},{"$f":"AVERAGE(ES2:ES17)","v":4.916666666666667},{"$f":"AVERAGE(ET2:ET17)","v":4.8181818181818183},null,null,{"$f":"AVERAGE(EW2:EW17)","v":4.916666666666667},{"$f":"AVERAGE(EX2:EX17)","v":4.916666666666667},{"$f":"AVERAGE(EY2:EY17)","v":4.916666666666667},{"$f":"AVERAGE(EZ2:EZ17)","v":4.8181818181818183},null,null,{"$f":"AVERAGE(FC2:FC17)","v":4.9285714285714288},{"$f":"AVERAGE(FD2:FD17)","v":4.9285714285714288},{"$f":"AVERAGE(FE2:FE17)","v":4.9285714285714288},{"$f":"AVERAGE(FF2:FF17)","v":4.9285714285714288},null,null,{"$f":"AVERAGE(FI2:FI17)","v":5},{"$f":"AVERAGE(FJ2:FJ17)","v":5},{"$f":"AVERAGE(FK2:FK17)","v":4.7142857142857144},{"$f":"AVERAGE(FL2:FL17)","v":4.8571428571428568},null,null,{"$f":"AVERAGE(FO2:FO17)","v":5},{"$f":"AVERAGE(FP2:FP17)","v":5},{"$f":"AVERAGE(FQ2:FQ17)","v":5},{"$f":"AVERAGE(FR2:FR17)","v":5},null,null,{"$f":"AVERAGE(FU2:FU17)","v":4.916666666666667},{"$f":"AVERAGE(FV2:FV17)","v":4.916666666666667},{"$f":"AVERAGE(FW2:FW17)","v":4.666666666666667},{"$f":"AVERAGE(FX2:FX17)","v":4.833333333333333}]
[null,null,{"$f":"AVERAGE(C2:F17)","v":4.8833333333333337},{"$nulls":5},{"$f":"AVERAGE(I2:L17)","v":4.8499999999999996},{"$nulls":5},{"$f":"AVERAGE(O2:R17)","v":4.95},{"$nulls":5},{"$f":"AVERAGE(U2:X17)","v":4.6333333333333337},{"$nulls":5},{"$f":"AVERAGE(AA2:AD17)","v":4.8499999999999996},{"$nulls":5},{"$f":"AVERAGE(AG2:AJ17)","v":4.8833333333333337},{"$nulls":5},{"$f":"AVERAGE(AM2:AP17)","v":4.9666666666666668},{"$nulls":5},{"$f":"AVERAGE(AS2:AV17)","v":4.666666666666667},{"$nulls":5},{"$f":"AVERAGE(AY2:BB17)","v":4.6500000000000004},{"$nulls":5},{"$f":"AVERAGE(BE2:BH17)","v":4.4285714285714288},{"$nulls":5},{"$f":"AVERAGE(BK2:BN17)","v":4.7678571428571432},{"$nulls":5},{"$f":"AVERAGE(BQ2:BT17)","v":4.7857142857142856},{"$nulls":5},{"$f":"AVERAGE(BW2:BZ17)","v":4.7321428571428568},{"$nulls":5},{"$f":"AVERAGE(CC2:CF17)","v":4.2},{"$nulls":5},{"$f":"AVERAGE(CI2:CL17)","v":4.9636363636363638},{"$nulls":5},{"$f":"AVERAGE(CO2:CR17)","v":4.8909090909090907},{"$nulls":5},{"$f":"AVERAGE(CU2:CX17)","v":4.9019607843137258},{"$nulls":5},{"$f":"AVERAGE(DA2:DD17)","v":4.8909090909090907},{"$nulls":5},{"$f":"AVERAGE(DG2:DJ17)","v":4.9272727272727277},{"$nulls":5},{"$f":"AVERAGE(DM2:DP17)","v":4.9272727272727277},{"$nulls":5},{"$f":"AVERAGE(DS2:DV17)","v":4.9636363636363638},{"$nulls":5},{"$f":"AVERAGE(DY2:EB17)","v":4.9272727272727277},{"$nulls":5},{"$f":"AVERAGE(EE2:EH17)","v":4.9272727272727277},{"$nulls":5},{"$f":"AVERAGE(EK2:EN17)","v":4.8461538461538458},{"$nulls":5},{"$f":"AVERAGE(EQ2:ET17)","v":4.8936170212765955},{"$nulls":5},{"$f":"AVERAGE(EW2:EZ17)","v":4.8936170212765955},{"$nulls":5},{"$f":"AVERAGE(FC2:FF17)","v":4.9285714285714288},{"$nulls":5},{"$f":"AVERAGE(FI2:FL17)","v":4.8928571428571432},{"$nulls":5},{"$f":"AVERAGE(FO2:FR17)","v":5},{"$nulls":5},{"$f":"AVERAGE(FU2:FX17)","v":4.833333333333333}]

{"sheet":"opinions","index":2,"n_rows":71,"n_cols":11,"rows_kept":71,"cut":false,"hidden":false,"merged":[]}
["Introduction to the science of laboratory animals, use of animals for different areas of research. The procedure of modelling. History of animal experimentation","European and Hungarian law, legislation and the Three Rs (Reduction, Replacement, Refinement), ethical permission & license.","Ethical aspects and animal welfare (historical background, arguments for and against the use of animals for scientific purposes, moral aspects, ethical committees)","Extrapolation of animal data to human. Model examples: from inflammation to circulatory shock","Legislation in practice 1: animal welfare and the 3 Rs","Legislation in practice 2: licensing of animal experiments","Basics of statistics. Introduction of sample size estimation","Biology of laboratory animals I. Species-specific biology of small laboratory animals. Rodent anatomy, physiology, behaviour.","Biology of laboratory animals II. Species-specific biology of large laboratory animals. Anatomy, physiology, behaviour, care and housing.","Examination of animal behaviour "]
[{"$f":"IF('lectures and seminars'!G2=\"\",\"\",'lectures and seminars'!G2)","v":"Excellent knowledge of the field/subject. Clear explanation, message, handouts."},{"$f":"IF('lectures and seminars'!M2=\"\",\"\",'lectures and seminars'!M2)","v":"Very well explained situation in EU countries. We changed law systems hroughout EUROPE. Clear slide."},{"$f":"IF('lectures and seminars'!S2=\"\",\"\",'lectures and seminars'!S2)","v":"Overview of historical philosophy about animal experimentation was excellent. "},{"$f":"IF('lectures and seminars'!Y2=\"\",\"\",'lectures and seminars'!Y2)","v":"Unfortunately the lecture was in the afternoon and we were tired and the speaker had a low-volume voice. Therefore we only partially understood the subject."},{"$f":"IF('lectures and seminars'!AE2=\"\",\"\",'lectures and seminars'!AE2)","v":"Very helpful and confirms what I already know about."},{"$f":"IF('lectures and seminars'!AK2=\"\",\"\",'lectures and seminars'!AK2)","v":"Very useful."},{"$f":"IF('lectures and seminars'!AQ2=\"\",\"\",'lectures and seminars'!AQ2)","v":"Very clear and practical examples were "},{"$f":"IF('lectures and seminars'!AW2=\"\",\"\",'lectures and seminars'!AW2)","v":"The subject was interesting. Unfortunately the low-volume voice of the speaker did not help us to fully understand all the explanations."},{"$f":"IF('lectures and seminars'!BC2=\"\",\"\",'lectures and seminars'!BC2)","v":"Some as above. Handouts with lot of typing / grammar errors."},{"$f":"IF('lectures and seminars'!BI2=\"\",\"\",'lectures and seminars'!BI2)","v":"Low-volume voice. Hardly to follow. The subject was very interesting and there were a lot of quetions."}]
[{"$f":"IF('lectures and seminars'!G3=\"\",\"\",'lectures and seminars'!G3)","v":""},{"$f":"IF('lectures and seminars'!M3=\"\",\"\",'lectures and seminars'!M3)","v":""},{"$f":"IF('lectures and seminars'!S3=\"\",\"\",'lectures and seminars'!S3)","v":""},{"$f":"IF('lectures and seminars'!Y3=\"\",\"\",'lectures and seminars'!Y3)","v":""},{"$f":"IF('lectures and seminars'!AE3=\"\",\"\",'lectures and seminars'!AE3)","v":""},{"$f":"IF('lectures and seminars'!AK3=\"\",\"\",'lectures and seminars'!AK3)","v":""},{"$f":"IF('lectures and seminars'!AQ3=\"\",\"\",'lectures and seminars'!AQ3)","v":""},{"$f":"IF('lectures and seminars'!AW3=\"\",\"\",'lectures and seminars'!AW3)","v":""},{"$f":"IF('lectures and seminars'!BC3=\"\",\"\",'lectures and seminars'!BC3)","v":""},{"$f":"IF('lectures and seminars'!BI3=\"\",\"\",'lectures and seminars'!BI3)","v":""}]
[{"$f":"IF('lectures and seminars'!G4=\"\",\"\",'lectures and seminars'!G4)","v":""},{"$f":"IF('lectures and seminars'!M4=\"\",\"\",'lectures and seminars'!M4)","v":""},{"$f":"IF('lectures and seminars'!S4=\"\",\"\",'lectures and seminars'!S4)","v":""},{"$f":"IF('lectures and seminars'!Y4=\"\",\"\",'lectures and seminars'!Y4)","v":"Too many diseases, too much info / slide."},{"$f":"IF('lectures and seminars'!AE4=\"\",\"\",'lectures and seminars'!AE4)","v":""},{"$f":"IF('lectures and seminars'!AK4=\"\",\"\",'lectures and seminars'!AK4)","v":""},{"$f":"IF('lectures and seminars'!AQ4=\"\",\"\",'lectures and seminars'!AQ4)","v":""},{"$f":"IF('lectures and seminars'!AW4=\"\",\"\",'lectures and seminars'!AW4)","v":"More specific housing recommendations for scientific purposes would be useful."},{"$f":"IF('lectures and seminars'!BC4=\"\",\"\",'lectures and seminars'!BC4)","v":"More specific housing recommendations for scientific purposes would be useful."},{"$f":"IF('lectures and seminars'!BI4=\"\",\"\",'lectures and seminars'!BI4)","v":"Speaker should dare to speak more English, it was obvious that she had the kowledge but didn't dare to speak."}]
[{"$f":"IF('lectures and seminars'!G5=\"\",\"\",'lectures and seminars'!G5)","v":"Good lessons. Nothing to say."},{"$f":"IF('lectures and seminars'!M5=\"\",\"\",'lectures and seminars'!M5)","v":"Excellent explanation."},{"$f":"IF('lectures and seminars'!S5=\"\",\"\",'lectures and seminars'!S5)","v":"Grat!!!"},{"$f":"IF('lectures and seminars'!Y5=\"\",\"\",'lectures and seminars'!Y5)","v":"Not very clear, boring."},{"$f":"IF('lectures and seminars'!AE5=\"\",\"\",'lectures and seminars'!AE5)","v":"Nothing to suggest."},{"$f":"IF('lectures and seminars'!AK5=\"\",\"\",'lectures and seminars'!AK5)","v":"Tonthing to suggest."},{"$f":"IF('lectures and seminars'!AQ5=\"\",\"\",'lectures and seminars'!AQ5)","v":"Great lecture, very clear!!"},{"$f":"IF('lectures and seminars'!AW5=\"\",\"\",'lectures and seminars'!AW5)","v":"I suggest to improve the lecture, english is not be clear."},{"$f":"IF('lectures and seminars'!BC5=\"\",\"\",'lectures and seminars'!BC5)","v":"English is not be clear."},{"$f":"IF('lectures and seminars'!BI5=\"\",\"\",'lectures and seminars'!BI5)","v":"Very boring lecture. English is not be clear."}]
[{"$f":"IF('lectures and seminars'!G6=\"\",\"\",'lectures and seminars'!G6)","v":"The lecture was clear and understandable."},{"$f":"IF('lectures and seminars'!M6=\"\",\"\",'lectures and seminars'!M6)","v":"The lecture was very detailed."},{"$f":"IF('lectures and seminars'!S6=\"\",\"\",'lectures and seminars'!S6)","v":""},{"$f":"IF('lectures and seminars'!Y6=\"\",\"\",'lectures and seminars'!Y6)","v":""},{"$f":"IF('lectures and seminars'!AE6=\"\",\"\",'lectures and seminars'!AE6)","v":""},{"$f":"IF('lectures and seminars'!AK6=\"\",\"\",'lectures and seminars'!AK6)","v":""},{"$f":"IF('lectures and seminars'!AQ6=\"\",\"\",'lectures and seminars'!AQ6)","v":""},{"$f":"IF('lectures and seminars'!AW6=\"\",\"\",'lectures and seminars'!AW6)","v":""},{"$f":"IF('lectures and seminars'!BC6=\"\",\"\",'lectures and seminars'!BC6)","v":""},{"$f":"IF('lectures and seminars'!BI6=\"\",\"\",'lectures and seminars'!BI6)","v":""}]
[{"$f":"IF('lectures and seminars'!G7=\"\",\"\",'lectures and seminars'!G7)","v":""},{"$f":"IF('lectures and seminars'!M7=\"\",\"\",'lectures and seminars'!M7)","v":""},{"$f":"IF('lectures and seminars'!S7=\"\",\"\",'lectures and seminars'!S7)","v":""},{"$f":"IF('lectures and seminars'!Y7=\"\",\"\",'lectures and seminars'!Y7)","v":""},{"$f":"IF('lectures and seminars'!AE7=\"\",\"\",'lectures and seminars'!AE7)","v":""},{"$f":"IF('lectures and seminars'!AK7=\"\",\"\",'lectures and seminars'!AK7)","v":""},{"$f":"IF('lectures and seminars'!AQ7=\"\",\"\",'lectures and seminars'!AQ7)","v":""},{"$f":"IF('lectures and seminars'!AW7=\"\",\"\",'lectures and seminars'!AW7)","v":""},{"$f":"IF('lectures and seminars'!BC7=\"\",\"\",'lectures and seminars'!BC7)","v":""},{"$f":"IF('lectures and seminars'!BI7=\"\",\"\",'lectures and seminars'!BI7)","v":""}]
[{"$f":"IF('lectures and seminars'!G8=\"\",\"\",'lectures and seminars'!G8)","v":""},{"$f":"IF('lectures and seminars'!M8=\"\",\"\",'lectures and seminars'!M8)","v":""},{"$f":"IF('lectures and seminars'!S8=\"\",\"\",'lectures and seminars'!S8)","v":""},{"$f":"IF('lectures and seminars'!Y8=\"\",\"\",'lectures and seminars'!Y8)","v":""},{"$f":"IF('lectures and seminars'!AE8=\"\",\"\",'lectures and seminars'!AE8)","v":""},{"$f":"IF('lectures and seminars'!AK8=\"\",\"\",'lectures and seminars'!AK8)","v":""},{"$f":"IF('lectures and seminars'!AQ8=\"\",\"\",'lectures and seminars'!AQ8)","v":""},{"$f":"IF('lectures and seminars'!AW8=\"\",\"\",'lectures and seminars'!AW8)","v":""},{"$f":"IF('lectures and seminars'!BC8=\"\",\"\",'lectures and seminars'!BC8)","v":""},{"$f":"IF('lectures and seminars'!BI8=\"\",\"\",'lectures and seminars'!BI8)","v":""}]
[{"$f":"IF('lectures and seminars'!G9=\"\",\"\",'lectures and seminars'!G9)","v":""},{"$f":"IF('lectures and seminars'!M9=\"\",\"\",'lectures and seminars'!M9)","v":""},{"$f":"IF('lectures and seminars'!S9=\"\",\"\",'lectures and seminars'!S9)","v":""},{"$f":"IF('lectures and seminars'!Y9=\"\",\"\",'lectures and seminars'!Y9)","v":""},{"$f":"IF('lectures and seminars'!AE9=\"\",\"\",'lectures and seminars'!AE9)","v":""},{"$f":"IF('lectures and seminars'!AK9=\"\",\"\",'lectures and seminars'!AK9)","v":""},{"$f":"IF('lectures and seminars'!AQ9=\"\",\"\",'lectures and seminars'!AQ9)","v":""},{"$f":"IF('lectures and seminars'!AW9=\"\",\"\",'lectures and seminars'!AW9)","v":""},{"$f":"IF('lectures and seminars'!BC9=\"\",\"\",'lectures and seminars'!BC9)","v":""},{"$f":"IF('lectures and seminars'!BI9=\"\",\"\",'lectures and seminars'!BI9)","v":""}]
[{"$f":"IF('lectures and seminars'!G10=\"\",\"\",'lectures and seminars'!G10)","v":""},{"$f":"IF('lectures and seminars'!M10=\"\",\"\",'lectures and seminars'!M10)","v":""},{"$f":"IF('lectures and seminars'!S10=\"\",\"\",'lectures and seminars'!S10)","v":""},{"$f":"IF('lectures and seminars'!Y10=\"\",\"\",'lectures and seminars'!Y10)","v":""},{"$f":"IF('lectures and seminars'!AE10=\"\",\"\",'lectures and seminars'!AE10)","v":""},{"$f":"IF('lectures and seminars'!AK10=\"\",\"\",'lectures and seminars'!AK10)","v":""},{"$f":"IF('lectures and seminars'!AQ10=\"\",\"\",'lectures and seminars'!AQ10)","v":""},{"$f":"IF('lectures and seminars'!AW10=\"\",\"\",'lectures and seminars'!AW10)","v":""},{"$f":"IF('lectures and seminars'!BC10=\"\",\"\",'lectures and seminars'!BC10)","v":""},{"$f":"IF('lectures and seminars'!BI10=\"\",\"\",'lectures and seminars'!BI10)","v":""}]
[{"$f":"IF('lectures and seminars'!G11=\"\",\"\",'lectures and seminars'!G11)","v":""},{"$f":"IF('lectures and seminars'!M11=\"\",\"\",'lectures and seminars'!M11)","v":""},{"$f":"IF('lectures and seminars'!S11=\"\",\"\",'lectures and seminars'!S11)","v":""},{"$f":"IF('lectures and seminars'!Y11=\"\",\"\",'lectures and seminars'!Y11)","v":""},{"$f":"IF('lectures and seminars'!AE11=\"\",\"\",'lectures and seminars'!AE11)","v":""},{"$f":"IF('lectures and seminars'!AK11=\"\",\"\",'lectures and seminars'!AK11)","v":""},{"$f":"IF('lectures and seminars'!AQ11=\"\",\"\",'lectures and seminars'!AQ11)","v":""},{"$f":"IF('lectures and seminars'!AW11=\"\",\"\",'lectures and seminars'!AW11)","v":""},{"$f":"IF('lectures and seminars'!BC11=\"\",\"\",'lectures and seminars'!BC11)","v":""},{"$f":"IF('lectures and seminars'!BI11=\"\",\"\",'lectures and seminars'!BI11)","v":""}]
[{"$f":"IF('lectures and seminars'!G12=\"\",\"\",'lectures and seminars'!G12)","v":""},{"$f":"IF('lectures and seminars'!M12=\"\",\"\",'lectures and seminars'!M12)","v":""},{"$f":"IF('lectures and seminars'!S12=\"\",\"\",'lectures and seminars'!S12)","v":""},{"$f":"IF('lectures and seminars'!Y12=\"\",\"\",'lectures and seminars'!Y12)","v":""},{"$f":"IF('lectures and seminars'!AE12=\"\",\"\",'lectures and seminars'!AE12)","v":""},{"$f":"IF('lectures and seminars'!AK12=\"\",\"\",'lectures and seminars'!AK12)","v":""},{"$f":"IF('lectures and seminars'!AQ12=\"\",\"\",'lectures and seminars'!AQ12)","v":""},{"$f":"IF('lectures and seminars'!AW12=\"\",\"\",'lectures and seminars'!AW12)","v":""},{"$f":"IF('lectures and seminars'!BC12=\"\",\"\",'lectures and seminars'!BC12)","v":""},{"$f":"IF('lectures and seminars'!BI12=\"\",\"\",'lectures and seminars'!BI12)","v":""}]
[{"$f":"IF('lectures and seminars'!G13=\"\",\"\",'lectures and seminars'!G13)","v":""},{"$f":"IF('lectures and seminars'!M13=\"\",\"\",'lectures and seminars'!M13)","v":""},{"$f":"IF('lectures and seminars'!S13=\"\",\"\",'lectures and seminars'!S13)","v":""},{"$f":"IF('lectures and seminars'!Y13=\"\",\"\",'lectures and seminars'!Y13)","v":""},{"$f":"IF('lectures and seminars'!AE13=\"\",\"\",'lectures and seminars'!AE13)","v":""},{"$f":"IF('lectures and seminars'!AK13=\"\",\"\",'lectures and seminars'!AK13)","v":""},{"$f":"IF('lectures and seminars'!AQ13=\"\",\"\",'lectures and seminars'!AQ13)","v":""},{"$f":"IF('lectures and seminars'!AW13=\"\",\"\",'lectures and seminars'!AW13)","v":""},{"$f":"IF('lectures and seminars'!BC13=\"\",\"\",'lectures and seminars'!BC13)","v":""},{"$f":"IF('lectures and seminars'!BI13=\"\",\"\",'lectures and seminars'!BI13)","v":""}]
[{"$f":"IF('lectures and seminars'!G14=\"\",\"\",'lectures and seminars'!G14)","v":""},{"$f":"IF('lectures and seminars'!M14=\"\",\"\",'lectures and seminars'!M14)","v":""},{"$f":"IF('lectures and seminars'!S14=\"\",\"\",'lectures and seminars'!S14)","v":""},{"$f":"IF('lectures and seminars'!Y14=\"\",\"\",'lectures and seminars'!Y14)","v":""},{"$f":"IF('lectures and seminars'!AE14=\"\",\"\",'lectures and seminars'!AE14)","v":""},{"$f":"IF('lectures and seminars'!AK14=\"\",\"\",'lectures and seminars'!AK14)","v":""},{"$f":"IF('lectures and seminars'!AQ14=\"\",\"\",'lectures and seminars'!AQ14)","v":""},{"$f":"IF('lectures and seminars'!AW14=\"\",\"\",'lectures and seminars'!AW14)","v":""},{"$f":"IF('lectures and seminars'!BC14=\"\",\"\",'lectures and seminars'!BC14)","v":""},{"$f":"IF('lectures and seminars'!BI14=\"\",\"\",'lectures and seminars'!BI14)","v":""}]
[{"$f":"IF('lectures and seminars'!G15=\"\",\"\",'lectures and seminars'!G15)","v":""},{"$f":"IF('lectures and seminars'!M15=\"\",\"\",'lectures and seminars'!M15)","v":""},{"$f":"IF('lectures and seminars'!S15=\"\",\"\",'lectures and seminars'!S15)","v":""},{"$f":"IF('lectures and seminars'!Y15=\"\",\"\",'lectures and seminars'!Y15)","v":""},{"$f":"IF('lectures and seminars'!AE15=\"\",\"\",'lectures and seminars'!AE15)","v":""},{"$f":"IF('lectures and seminars'!AK15=\"\",\"\",'lectures and seminars'!AK15)","v":""},{"$f":"IF('lectures and seminars'!AQ15=\"\",\"\",'lectures and seminars'!AQ15)","v":""},{"$f":"IF('lectures and seminars'!AW15=\"\",\"\",'lectures and seminars'!AW15)","v":""},{"$f":"IF('lectures and seminars'!BC15=\"\",\"\",'lectures and seminars'!BC15)","v":""},{"$f":"IF('lectures and seminars'!BI15=\"\",\"\",'lectures and seminars'!BI15)","v":""}]
[{"$f":"IF('lectures and seminars'!G16=\"\",\"\",'lectures and seminars'!G16)","v":""},{"$f":"IF('lectures and seminars'!M16=\"\",\"\",'lectures and seminars'!M16)","v":""},{"$f":"IF('lectures and seminars'!S16=\"\",\"\",'lectures and seminars'!S16)","v":""},{"$f":"IF('lectures and seminars'!Y16=\"\",\"\",'lectures and seminars'!Y16)","v":""},{"$f":"IF('lectures and seminars'!AE16=\"\",\"\",'lectures and seminars'!AE16)","v":""},{"$f":"IF('lectures and seminars'!AK16=\"\",\"\",'lectures and seminars'!AK16)","v":""},{"$f":"IF('lectures and seminars'!AQ16=\"\",\"\",'lectures and seminars'!AQ16)","v":""},{"$f":"IF('lectures and seminars'!AW16=\"\",\"\",'lectures and seminars'!AW16)","v":""},{"$f":"IF('lectures and seminars'!BC16=\"\",\"\",'lectures and seminars'!BC16)","v":""},{"$f":"IF('lectures and seminars'!BI16=\"\",\"\",'lectures and seminars'!BI16)","v":""}]
[{"$f":"IF('lectures and seminars'!G17=\"\",\"\",'lectures and seminars'!G17)","v":""},{"$f":"IF('lectures and seminars'!M17=\"\",\"\",'lectures and seminars'!M17)","v":""},{"$f":"IF('lectures and seminars'!S17=\"\",\"\",'lectures and seminars'!S17)","v":""},{"$f":"IF('lectures and seminars'!Y17=\"\",\"\",'lectures and seminars'!Y17)","v":""},{"$f":"IF('lectures and seminars'!AE17=\"\",\"\",'lectures and seminars'!AE17)","v":""},{"$f":"IF('lectures and seminars'!AK17=\"\",\"\",'lectures and seminars'!AK17)","v":""},{"$f":"IF('lectures and seminars'!AQ17=\"\",\"\",'lectures and seminars'!AQ17)","v":""},{"$f":"IF('lectures and seminars'!AW17=\"\",\"\",'lectures and seminars'!AW17)","v":""},{"$f":"IF('lectures and seminars'!BC17=\"\",\"\",'lectures and seminars'!BC17)","v":""},{"$f":"IF('lectures and seminars'!BI17=\"\",\"\",'lectures and seminars'!BI17)","v":""}]
[{"$f":"IF('lectures and seminars'!G18=\"\",\"\",'lectures and seminars'!G18)","v":""},{"$f":"IF('lectures and seminars'!M18=\"\",\"\",'lectures and seminars'!M18)","v":""},{"$f":"IF('lectures and seminars'!S18=\"\",\"\",'lectures and seminars'!S18)","v":""},{"$f":"IF('lectures and seminars'!Y18=\"\",\"\",'lectures and seminars'!Y18)","v":""},{"$f":"IF('lectures and seminars'!AE18=\"\",\"\",'lectures and seminars'!AE18)","v":""},{"$f":"IF('lectures and seminars'!AK18=\"\",\"\",'lectures and seminars'!AK18)","v":""},{"$f":"IF('lectures and seminars'!AQ18=\"\",\"\",'lectures and seminars'!AQ18)","v":""},{"$f":"IF('lectures and seminars'!AW18=\"\",\"\",'lectures and seminars'!AW18)","v":""},{"$f":"IF('lectures and seminars'!BC18=\"\",\"\",'lectures and seminars'!BC18)","v":""},{"$f":"IF('lectures and seminars'!BI18=\"\",\"\",'lectures and seminars'!BI18)","v":""}]
["Outbred, inbred and transgenic animals, genetic characterization, standardization, genetic quality control.","Animal care, husbandry and management: appropriate, safe and humane handling, sexing and restraint","Significance of zebrafish in animal research","The concept of gnotobiology. Important zoonotic diseases of laboratory animals.","Care and housing of laboratory animals I. The grading of hygiene of animals and animal houses, environmental enrichment.","Care and housing of laboratory animals II. Reproduction and breeding. Nutrition. Quarantine, hygiene and disinfection, health hazards and safe practices in animal houses. ","Minimally invasive procedures without anaesthesia.","Species-specific recognition of pain, suffering and distress; monitoring of animal wellbeing.","Anaesthesia and analgesia of laboratory animals. General rules of anaesthesia.\nPost-experimental management: humane endpoints, methods of euthanasia.\n","Advanced anaesthesia for surgical or prolonged procedures. Applied drugs, doses and side effects."]
[{"$f":"IF('lectures and seminars'!BO2=\"\",\"\",'lectures and seminars'!BO2)","v":"Basic learning on mouse strains, nomenclature. Techniques to produce Tg/KO/KI were clearly explained but in my opinion should be little bit UPDATED (CRISPR/Cas9 techniques, microsatellite DNA techniques)"},{"$f":"IF('lectures and seminars'!BU2=\"\",\"\",'lectures and seminars'!BU2)","v":"Useful."},{"$f":"IF('lectures and seminars'!CA2=\"\",\"\",'lectures and seminars'!CA2)","v":"Very interesting."},{"$f":"IF('lectures and seminars'!CG2=\"\",\"\",'lectures and seminars'!CG2)","v":"Too much detailed slides. Too much informations."},{"$f":"IF('lectures and seminars'!CM2=\"\",\"\",'lectures and seminars'!CM2)","v":"Very good."},{"$f":"IF('lectures and seminars'!CS2=\"\",\"\",'lectures and seminars'!CS2)","v":"Very good."},{"$f":"IF('lectures and seminars'!CY2=\"\",\"\",'lectures and seminars'!CY2)","v":"Very well explained and interesting."},{"$f":"IF('lectures and seminars'!DE2=\"\",\"\",'lectures and seminars'!DE2)","v":""},{"$f":"IF('lectures and seminars'!DK2=\"\",\"\",'lectures and seminars'!DK2)","v":""},{"$f":"IF('lectures and seminars'!DQ2=\"\",\"\",'lectures and seminars'!DQ2)","v":"Very useful!"}]
[{"$f":"IF('lectures and seminars'!BO3=\"\",\"\",'lectures and seminars'!BO3)","v":""},{"$f":"IF('lectures and seminars'!BU3=\"\",\"\",'lectures and seminars'!BU3)","v":""},{"$f":"IF('lectures and seminars'!CA3=\"\",\"\",'lectures and seminars'!CA3)","v":""},{"$f":"IF('lectures and seminars'!CG3=\"\",\"\",'lectures and seminars'!CG3)","v":""},{"$f":"IF('lectures and seminars'!CM3=\"\",\"\",'lectures and seminars'!CM3)","v":""},{"$f":"IF('lectures and seminars'!CS3=\"\",\"\",'lectures and seminars'!CS3)","v":""},{"$f":"IF('lectures and seminars'!CY3=\"\",\"\",'lectures and seminars'!CY3)","v":""},{"$f":"IF('lectures and seminars'!DE3=\"\",\"\",'lectures and seminars'!DE3)","v":""},{"$f":"IF('lectures and seminars'!DK3=\"\",\"\",'lectures and seminars'!DK3)","v":""},{"$f":"IF('lectures and seminars'!DQ3=\"\",\"\",'lectures and seminars'!DQ3)","v":""}]
[{"$f":"IF('lectures and seminars'!BO4=\"\",\"\",'lectures and seminars'!BO4)","v":"Slides are too full with text, should be restructured a bit. Presentation was understandable though."},{"$f":"IF('lectures and seminars'!BU4=\"\",\"\",'lectures and seminars'!BU4)","v":""},{"$f":"IF('lectures and seminars'!CA4=\"\",\"\",'lectures and seminars'!CA4)","v":""},{"$f":"IF('lectures and seminars'!CG4=\"\",\"\",'lectures and seminars'!CG4)","v":"Lecture was a bit too fast."},{"$f":"IF('lectures and seminars'!CM4=\"\",\"\",'lectures and seminars'!CM4)","v":""},{"$f":"IF('lectures and seminars'!CS4=\"\",\"\",'lectures and seminars'!CS4)","v":""},{"$f":"IF('lectures and seminars'!CY4=\"\",\"\",'lectures and seminars'!CY4)","v":""},{"$f":"IF('lectures and seminars'!DE4=\"\",\"\",'lectures and seminars'!DE4)","v":""},{"$f":"IF('lectures and seminars'!DK4=\"\",\"\",'lectures and seminars'!DK4)","v":""},{"$f":"IF('lectures and seminars'!DQ4=\"\",\"\",'lectures and seminars'!DQ4)","v":""}]
[{"$f":"IF('lectures and seminars'!BO5=\"\",\"\",'lectures and seminars'!BO5)","v":"Nothing to say."},{"$f":"IF('lectures and seminars'!BU5=\"\",\"\",'lectures and seminars'!BU5)","v":"Nothing to say."},{"$f":"IF('lectures and seminars'!CA5=\"\",\"\",'lectures and seminars'!CA5)","v":"Nothing to say."},{"$f":"IF('lectures and seminars'!CG5=\"\",\"\",'lectures and seminars'!CG5)","v":"To improve the lecture."},{"$f":"IF('lectures and seminars'!CM5=\"\",\"\",'lectures and seminars'!CM5)","v":"Nothing to say."},{"$f":"IF('lectures and seminars'!CS5=\"\",\"\",'lectures and seminars'!CS5)","v":"Nothing to say."},{"$f":"IF('lectures and seminars'!CY5=\"\",\"\",'lectures and seminars'!CY5)","v":"Nothing to say."},{"$f":"IF('lectures and seminars'!DE5=\"\",\"\",'lectures and seminars'!DE5)","v":"Nothing to say."},{"$f":"IF('lectures and seminars'!DK5=\"\",\"\",'lectures and seminars'!DK5)","v":"Nothing to say."},{"$f":"IF('lectures and seminars'!DQ5=\"\",\"\",'lectures and seminars'!DQ5)","v":"Nothing to say."}]
[{"$f":"IF('lectures and seminars'!BO6=\"\",\"\",'lectures and seminars'!BO6)","v":""},{"$f":"IF('lectures and seminars'!BU6=\"\",\"\",'lectures and seminars'!BU6)","v":""},{"$f":"IF('lectures and seminars'!CA6=\"\",\"\",'lectures and seminars'!CA6)","v":""},{"$f":"IF('lectures and seminars'!CG6=\"\",\"\",'lectures and seminars'!CG6)","v":""},{"$f":"IF('lectures and seminars'!CM6=\"\",\"\",'lectures and seminars'!CM6)","v":""},{"$f":"IF('lectures and seminars'!CS6=\"\",\"\",'lectures and seminars'!CS6)","v":""},{"$f":"IF('lectures and seminars'!CY6=\"\",\"\",'lectures and seminars'!CY6)","v":""},{"$f":"IF('lectures and seminars'!DE6=\"\",\"\",'lectures and seminars'!DE6)","v":""},{"$f":"IF('lectures and seminars'!DK6=\"\",\"\",'lectures and seminars'!DK6)","v":""},{"$f":"IF('lectures and seminars'!DQ6=\"\",\"\",'lectures and seminars'!DQ6)","v":""}]
[{"$f":"IF('lectures and seminars'!BO7=\"\",\"\",'lectures and seminars'!BO7)","v":""},{"$f":"IF('lectures and seminars'!BU7=\"\",\"\",'lectures and seminars'!BU7)","v":""},{"$f":"IF('lectures and seminars'!CA7=\"\",\"\",'lectures and seminars'!CA7)","v":""},{"$f":"IF('lectures and seminars'!CG7=\"\",\"\",'lectures and seminars'!CG7)","v":"It is a very broad topic; it may help in the future to organize it in a more interactive way."},{"$f":"IF('lectures and seminars'!CM7=\"\",\"\",'lectures and seminars'!CM7)","v":""},{"$f":"IF('lectures and seminars'!CS7=\"\",\"\",'lectures and seminars'!CS7)","v":""},{"$f":"IF('lectures and seminars'!CY7=\"\",\"\",'lectures and seminars'!CY7)","v":""},{"$f":"IF('lectures and seminars'!DE7=\"\",\"\",'lectures and seminars'!DE7)","v":""},{"$f":"IF('lectures and seminars'!DK7=\"\",\"\",'lectures and seminars'!DK7)","v":""},{"$f":"IF('lectures and seminars'!DQ7=\"\",\"\",'lectures and seminars'!DQ7)","v":""}]
[{"$f":"IF('lectures and seminars'!BO8=\"\",\"\",'lectures and seminars'!BO8)","v":""},{"$f":"IF('lectures and seminars'!BU8=\"\",\"\",'lectures and seminars'!BU8)","v":""},{"$f":"IF('lectures and seminars'!CA8=\"\",\"\",'lectures and seminars'!CA8)","v":""},{"$f":"IF('lectures and seminars'!CG8=\"\",\"\",'lectures and seminars'!CG8)","v":""},{"$f":"IF('lectures and seminars'!CM8=\"\",\"\",'lectures and seminars'!CM8)","v":""},{"$f":"IF('lectures and seminars'!CS8=\"\",\"\",'lectures and seminars'!CS8)","v":""},{"$f":"IF('lectures and seminars'!CY8=\"\",\"\",'lectures and seminars'!CY8)","v":""},{"$f":"IF('lectures and seminars'!DE8=\"\",\"\",'lectures and seminars'!DE8)","v":""},{"$f":"IF('lectures and seminars'!DK8=\"\",\"\",'lectures and seminars'!DK8)","v":""},{"$f":"IF('lectures and seminars'!DQ8=\"\",\"\",'lectures and seminars'!DQ8)","v":""}]
[{"$f":"IF('lectures and seminars'!BO9=\"\",\"\",'lectures and seminars'!BO9)","v":""},{"$f":"IF('lectures and seminars'!BU9=\"\",\"\",'lectures and seminars'!BU9)","v":""},{"$f":"IF('lectures and seminars'!CA9=\"\",\"\",'lectures and seminars'!CA9)","v":""},{"$f":"IF('lectures and seminars'!CG9=\"\",\"\",'lectures and seminars'!CG9)","v":""},{"$f":"IF('lectures and seminars'!CM9=\"\",\"\",'lectures and seminars'!CM9)","v":""},{"$f":"IF('lectures and seminars'!CS9=\"\",\"\",'lectures and seminars'!CS9)","v":""},{"$f":"IF('lectures and seminars'!CY9=\"\",\"\",'lectures and seminars'!CY9)","v":""},{"$f":"IF('lectures and seminars'!DE9=\"\",\"\",'lectures and seminars'!DE9)","v":""},{"$f":"IF('lectures and seminars'!DK9=\"\",\"\",'lectures and seminars'!DK9)","v":""},{"$f":"IF('lectures and seminars'!DQ9=\"\",\"\",'lectures and seminars'!DQ9)","v":""}]
[{"$f":"IF('lectures and seminars'!BO10=\"\",\"\",'lectures and seminars'!BO10)","v":""},{"$f":"IF('lectures and seminars'!BU10=\"\",\"\",'lectures and seminars'!BU10)","v":""},{"$f":"IF('lectures and seminars'!CA10=\"\",\"\",'lectures and seminars'!CA10)","v":""},{"$f":"IF('lectures and seminars'!CG10=\"\",\"\",'lectures and seminars'!CG10)","v":""},{"$f":"IF('lectures and seminars'!CM10=\"\",\"\",'lectures and seminars'!CM10)","v":""},{"$f":"IF('lectures and seminars'!CS10=\"\",\"\",'lectures and seminars'!CS10)","v":""},{"$f":"IF('lectures and seminars'!CY10=\"\",\"\",'lectures and seminars'!CY10)","v":""},{"$f":"IF('lectures and seminars'!DE10=\"\",\"\",'lectures and seminars'!DE10)","v":""},{"$f":"IF('lectures and seminars'!DK10=\"\",\"\",'lectures and seminars'!DK10)","v":""},{"$f":"IF('lectures and seminars'!DQ10=\"\",\"\",'lectures and seminars'!DQ10)","v":""}]
[{"$f":"IF('lectures and seminars'!BO11=\"\",\"\",'lectures and seminars'!BO11)","v":""},{"$f":"IF('lectures and seminars'!BU11=\"\",\"\",'lectures and seminars'!BU11)","v":""},{"$f":"IF('lectures and seminars'!CA11=\"\",\"\",'lectures and seminars'!CA11)","v":""},{"$f":"IF('lectures and seminars'!CG11=\"\",\"\",'lectures and seminars'!CG11)","v":""},{"$f":"IF('lectures and seminars'!CM11=\"\",\"\",'lectures and seminars'!CM11)","v":""},{"$f":"IF('lectures and seminars'!CS11=\"\",\"\",'lectures and seminars'!CS11)","v":""},{"$f":"IF('lectures and seminars'!CY11=\"\",\"\",'lectures and seminars'!CY11)","v":""},{"$f":"IF('lectures and seminars'!DE11=\"\",\"\",'lectures and seminars'!DE11)","v":""},{"$f":"IF('lectures and seminars'!DK11=\"\",\"\",'lectures and seminars'!DK11)","v":""},{"$f":"IF('lectures and seminars'!DQ11=\"\",\"\",'lectures and seminars'!DQ11)","v":""}]
[{"$f":"IF('lectures and seminars'!BO12=\"\",\"\",'lectures and seminars'!BO12)","v":""},{"$f":"IF('lectures and seminars'!BU12=\"\",\"\",'lectures and seminars'!BU12)","v":""},{"$f":"IF('lectures and seminars'!CA12=\"\",\"\",'lectures and seminars'!CA12)","v":""},{"$f":"IF('lectures and seminars'!CG12=\"\",\"\",'lectures and seminars'!CG12)","v":""},{"$f":"IF('lectures and seminars'!CM12=\"\",\"\",'lectures and seminars'!CM12)","v":""},{"$f":"IF('lectures and seminars'!CS12=\"\",\"\",'lectures and seminars'!CS12)","v":""},{"$f":"IF('lectures and seminars'!CY12=\"\",\"\",'lectures and seminars'!CY12)","v":""},{"$f":"IF('lectures and seminars'!DE12=\"\",\"\",'lectures and seminars'!DE12)","v":""},{"$f":"IF('lectures and seminars'!DK12=\"\",\"\",'lectures and seminars'!DK12)","v":""},{"$f":"IF('lectures and seminars'!DQ12=\"\",\"\",'lectures and seminars'!DQ12)","v":""}]
[{"$f":"IF('lectures and seminars'!BO13=\"\",\"\",'lectures and seminars'!BO13)","v":"Needs more figures, but amazing lecture."},{"$f":"IF('lectures and seminars'!BU13=\"\",\"\",'lectures and seminars'!BU13)","v":""},{"$f":"IF('lectures and seminars'!CA13=\"\",\"\",'lectures and seminars'!CA13)","v":""},{"$f":"IF('lectures and seminars'!CG13=\"\",\"\",'lectures and seminars'!CG13)","v":""},{"$f":"IF('lectures and seminars'!CM13=\"\",\"\",'lectures and seminars'!CM13)","v":""},{"$f":"IF('lectures and seminars'!CS13=\"\",\"\",'lectures and seminars'!CS13)","v":"Needs more figures."},{"$f":"IF('lectures and seminars'!CY13=\"\",\"\",'lectures and seminars'!CY13)","v":""},{"$f":"IF('lectures and seminars'!DE13=\"\",\"\",'lectures and seminars'!DE13)","v":""},{"$f":"IF('lectures and seminars'!DK13=\"\",\"\",'lectures and seminars'!DK13)","v":""},{"$f":"IF('lectures and seminars'!DQ13=\"\",\"\",'lectures and seminars'!DQ13)","v":""}]
[{"$f":"IF('lectures and seminars'!BO14=\"\",\"\",'lectures and seminars'!BO14)","v":""},{"$f":"IF('lectures and seminars'!BU14=\"\",\"\",'lectures and seminars'!BU14)","v":""},{"$f":"IF('lectures and seminars'!CA14=\"\",\"\",'lectures and seminars'!CA14)","v":""},{"$f":"IF('lectures and seminars'!CG14=\"\",\"\",'lectures and seminars'!CG14)","v":""},{"$f":"IF('lectures and seminars'!CM14=\"\",\"\",'lectures and seminars'!CM14)","v":""},{"$f":"IF('lectures and seminars'!CS14=\"\",\"\",'lectures and seminars'!CS14)","v":""},{"$f":"IF('lectures and seminars'!CY14=\"\",\"\",'lectures and seminars'!CY14)","v":""},{"$f":"IF('lectures and seminars'!DE14=\"\",\"\",'lectures and seminars'!DE14)","v":""},{"$f":"IF('lectures and seminars'!DK14=\"\",\"\",'lectures and seminars'!DK14)","v":""},{"$f":"IF('lectures and seminars'!DQ14=\"\",\"\",'lectures and seminars'!DQ14)","v":""}]
[{"$f":"IF('lectures and seminars'!BO15=\"\",\"\",'lectures and seminars'!BO15)","v":""},{"$f":"IF('lectures and seminars'!BU15=\"\",\"\",'lectures and seminars'!BU15)","v":""},{"$f":"IF('lectures and seminars'!CA15=\"\",\"\",'lectures and seminars'!CA15)","v":""},{"$f":"IF('lectures and seminars'!CG15=\"\",\"\",'lectures and seminars'!CG15)","v":""},{"$f":"IF('lectures and seminars'!CM15=\"\",\"\",'lectures and seminars'!CM15)","v":""},{"$f":"IF('lectures and seminars'!CS15=\"\",\"\",'lectures and seminars'!CS15)","v":""},{"$f":"IF('lectures and seminars'!CY15=\"\",\"\",'lectures and seminars'!CY15)","v":""},{"$f":"IF('lectures and seminars'!DE15=\"\",\"\",'lectures and seminars'!DE15)","v":""},{"$f":"IF('lectures and seminars'!DK15=\"\",\"\",'lectures and seminars'!DK15)","v":""},{"$f":"IF('lectures and seminars'!DQ15=\"\",\"\",'lectures and seminars'!DQ15)","v":""}]
[{"$f":"IF('lectures and seminars'!BO16=\"\",\"\",'lectures and seminars'!BO16)","v":""},{"$f":"IF('lectures and seminars'!BU16=\"\",\"\",'lectures and seminars'!BU16)","v":""},{"$f":"IF('lectures and seminars'!CA16=\"\",\"\",'lectures and seminars'!CA16)","v":""},{"$f":"IF('lectures and seminars'!CG16=\"\",\"\",'lectures and seminars'!CG16)","v":""},{"$f":"IF('lectures and seminars'!CM16=\"\",\"\",'lectures and seminars'!CM16)","v":""},{"$f":"IF('lectures and seminars'!CS16=\"\",\"\",'lectures and seminars'!CS16)","v":""},{"$f":"IF('lectures and seminars'!CY16=\"\",\"\",'lectures and seminars'!CY16)","v":""},{"$f":"IF('lectures and seminars'!DE16=\"\",\"\",'lectures and seminars'!DE16)","v":""},{"$f":"IF('lectures and seminars'!DK16=\"\",\"\",'lectures and seminars'!DK16)","v":""},{"$f":"IF('lectures and seminars'!DQ16=\"\",\"\",'lectures and seminars'!DQ16)","v":""}]
[{"$f":"IF('lectures and seminars'!BO17=\"\",\"\",'lectures and seminars'!BO17)","v":""},{"$f":"IF('lectures and seminars'!BU17=\"\",\"\",'lectures and seminars'!BU17)","v":""},{"$f":"IF('lectures and seminars'!CA17=\"\",\"\",'lectures and seminars'!CA17)","v":""},{"$f":"IF('lectures and seminars'!CG17=\"\",\"\",'lectures and seminars'!CG17)","v":""},{"$f":"IF('lectures and seminars'!CM17=\"\",\"\",'lectures and seminars'!CM17)","v":""},{"$f":"IF('lectures and seminars'!CS17=\"\",\"\",'lectures and seminars'!CS17)","v":""},{"$f":"IF('lectures and seminars'!CY17=\"\",\"\",'lectures and seminars'!CY17)","v":""},{"$f":"IF('lectures and seminars'!DE17=\"\",\"\",'lectures and seminars'!DE17)","v":""},{"$f":"IF('lectures and seminars'!DK17=\"\",\"\",'lectures and seminars'!DK17)","v":""},{"$f":"IF('lectures and seminars'!DQ17=\"\",\"\",'lectures and seminars'!DQ17)","v":""}]
[{"$f":"IF('lectures and seminars'!BO18=\"\",\"\",'lectures and seminars'!BO18)","v":""},{"$f":"IF('lectures and seminars'!BU18=\"\",\"\",'lectures and seminars'!BU18)","v":""},{"$f":"IF('lectures and seminars'!CA18=\"\",\"\",'lectures and seminars'!CA18)","v":""},{"$f":"IF('lectures and seminars'!CG18=\"\",\"\",'lectures and seminars'!CG18)","v":""},{"$f":"IF('lectures and seminars'!CM18=\"\",\"\",'lectures and seminars'!CM18)","v":""},{"$f":"IF('lectures and seminars'!CS18=\"\",\"\",'lectures and seminars'!CS18)","v":""},{"$f":"IF('lectures and seminars'!CY18=\"\",\"\",'lectures and seminars'!CY18)","v":""},{"$f":"IF('lectures and seminars'!DE18=\"\",\"\",'lectures and seminars'!DE18)","v":""},{"$f":"IF('lectures and seminars'!DK18=\"\",\"\",'lectures and seminars'!DK18)","v":""},{"$f":"IF('lectures and seminars'!DQ18=\"\",\"\",'lectures and seminars'!DQ18)","v":""}]
["Safety in working with animals carrying infectious diseases/agents.","Principles of surgical procedures, the rules of asepsis. Basic surgical procedures. Wound management.","Design of procedures and projects I. Experimental techniques in practice. Monitoring of vital signs.","Alternatives to animal use 1. Possibilities and limitations of alternatives","Design of procedures and projects II. Experimental design: the protocol of animal experiments","Licensing of animal experiments in practice - recapitulation","Sample size estimation. Interpretation of results - complex statistical analysis","Basics of bibliometrics. Analysis of scientific literature; Publication of results.","Dilemmas of translating animal experiments to clinical practice. Lost of translation?","Alternatives to animal use 2. In vitro and ex vivo experimental techniques; tissue cultures, Langendorff method","OTHER COMMENTS"]
[{"$f":"IF('lectures and seminars'!DW2=\"\",\"\",'lectures and seminars'!DW2)","v":"Excellent!"},{"$f":"IF('lectures and seminars'!EC2=\"\",\"\",'lectures and seminars'!EC2)","v":"Super excellent!"},{"$f":"IF('lectures and seminars'!EI2=\"\",\"\",'lectures and seminars'!EI2)","v":"Excellent!"},{"$f":"IF('lectures and seminars'!EO2=\"\",\"\",'lectures and seminars'!EO2)","v":"Excellent english."},{"$f":"IF('lectures and seminars'!EU2=\"\",\"\",'lectures and seminars'!EU2)","v":""},{"$f":"IF('lectures and seminars'!FA2=\"\",\"\",'lectures and seminars'!FA2)","v":""},{"$f":"IF('lectures and seminars'!FG2=\"\",\"\",'lectures and seminars'!FG2)","v":"Excellent!"},{"$f":"IF('lectures and seminars'!FM2=\"\",\"\",'lectures and seminars'!FM2)","v":"Excellent lecture & english language."},{"$f":"IF('lectures and seminars'!FS2=\"\",\"\",'lectures and seminars'!FS2)","v":""},{"$f":"IF('lectures and seminars'!FY2=\"\",\"\",'lectures and seminars'!FY2)","v":"Pity I was little bit tired I did not follow the entire seminar."},{"$f":"IF('lectures and seminars'!FZ2=\"\",\"\",'lectures and seminars'!FZ2)","v":""}]
[{"$f":"IF('lectures and seminars'!DW3=\"\",\"\",'lectures and seminars'!DW3)","v":""},{"$f":"IF('lectures and seminars'!EC3=\"\",\"\",'lectures and seminars'!EC3)","v":""},{"$f":"IF('lectures and seminars'!EI3=\"\",\"\",'lectures and seminars'!EI3)","v":""},{"$f":"IF('lectures and seminars'!EO3=\"\",\"\",'lectures and seminars'!EO3)","v":""},{"$f":"IF('lectures and seminars'!EU3=\"\",\"\",'lectures and seminars'!EU3)","v":""},{"$f":"IF('lectures and seminars'!FA3=\"\",\"\",'lectures and seminars'!FA3)","v":""},{"$f":"IF('lectures and seminars'!FG3=\"\",\"\",'lectures and seminars'!FG3)","v":""},{"$f":"IF('lectures and seminars'!FM3=\"\",\"\",'lectures and seminars'!FM3)","v":""},{"$f":"IF('lectures and seminars'!FS3=\"\",\"\",'lectures and seminars'!FS3)","v":""},{"$f":"IF('lectures and seminars'!FY3=\"\",\"\",'lectures and seminars'!FY3)","v":""},{"$f":"IF('lectures and seminars'!FZ3=\"\",\"\",'lectures and seminars'!FZ3)","v":"In my opinion, in general, the content of the lectures is adequate and very interesting. However, some of them are too long, they have many information for one lecture and is questionable if this information is really necessary, like for example \"Microbiology and disease\" lecture and \"Anaesthesia (description of anaesthetics)\".  On the other hand, a few lectures lacked of enthusiasm and dinamic of theirs teachers, like for example Diana Martos lecture. The english level of all the teachers was really good, even for the ones that were really conscious about it, I think they just need to be more confident. The course should be more days, to the students have more time to integrate the information they are receiving. The opinion pole, should somehow  to be shorten or more direct, otherwise you are not going to have a real opinion. And finally, thank you so much for everything, the course is really well organized, and all the students had a really good reception. Everybody will be missed, everyone was really nice and friendly. Thank you. :)"}]
[{"$f":"IF('lectures and seminars'!DW4=\"\",\"\",'lectures and seminars'!DW4)","v":""},{"$f":"IF('lectures and seminars'!EC4=\"\",\"\",'lectures and seminars'!EC4)","v":""},{"$f":"IF('lectures and seminars'!EI4=\"\",\"\",'lectures and seminars'!EI4)","v":""},{"$f":"IF('lectures and seminars'!EO4=\"\",\"\",'lectures and seminars'!EO4)","v":""},{"$f":"IF('lectures and seminars'!EU4=\"\",\"\",'lectures and seminars'!EU4)","v":""},{"$f":"IF('lectures and seminars'!FA4=\"\",\"\",'lectures and seminars'!FA4)","v":"Maybe better earlier during the course."},{"$f":"IF('lectures and seminars'!FG4=\"\",\"\",'lectures and seminars'!FG4)","v":""},{"$f":"IF('lectures and seminars'!FM4=\"\",\"\",'lectures and seminars'!FM4)","v":""},{"$f":"IF('lectures and seminars'!FS4=\"\",\"\",'lectures and seminars'!FS4)","v":""},{"$f":"IF('lectures and seminars'!FY4=\"\",\"\",'lectures and seminars'!FY4)","v":""},{"$f":"IF('lectures and seminars'!FZ4=\"\",\"\",'lectures and seminars'!FZ4)","v":""}]
[{"$f":"IF('lectures and seminars'!DW5=\"\",\"\",'lectures and seminars'!DW5)","v":"Nothing to say."},{"$f":"IF('lectures and seminars'!EC5=\"\",\"\",'lectures and seminars'!EC5)","v":"Nothing to say."},{"$f":"IF('lectures and seminars'!EI5=\"\",\"\",'lectures and seminars'!EI5)","v":"Nothing to say."},{"$f":"IF('lectures and seminars'!EO5=\"\",\"\",'lectures and seminars'!EO5)","v":"Nothing to suggest."},{"$f":"IF('lectures and seminars'!EU5=\"\",\"\",'lectures and seminars'!EU5)","v":"Nothing to suggest."},{"$f":"IF('lectures and seminars'!FA5=\"\",\"\",'lectures and seminars'!FA5)","v":"Nothing to suggest."},{"$f":"IF('lectures and seminars'!FG5=\"\",\"\",'lectures and seminars'!FG5)","v":"Nothing to suggest."},{"$f":"IF('lectures and seminars'!FM5=\"\",\"\",'lectures and seminars'!FM5)","v":"Nothing to suggest."},{"$f":"IF('lectures and seminars'!FS5=\"\",\"\",'lectures and seminars'!FS5)","v":"Nothing to suggest."},{"$f":"IF('lectures and seminars'!FY5=\"\",\"\",'lectures and seminars'!FY5)","v":"Nothing to suggest."},{"$f":"IF('lectures and seminars'!FZ5=\"\",\"\",'lectures and seminars'!FZ5)","v":""}]
[{"$f":"IF('lectures and seminars'!DW6=\"\",\"\",'lectures and seminars'!DW6)","v":""},{"$f":"IF('lectures and seminars'!EC6=\"\",\"\",'lectures and seminars'!EC6)","v":""},{"$f":"IF('lectures and seminars'!EI6=\"\",\"\",'lectures and seminars'!EI6)","v":""},{"$f":"IF('lectures and seminars'!EO6=\"\",\"\",'lectures and seminars'!EO6)","v":""},{"$f":"IF('lectures and seminars'!EU6=\"\",\"\",'lectures and seminars'!EU6)","v":""},{"$f":"IF('lectures and seminars'!FA6=\"\",\"\",'lectures and seminars'!FA6)","v":""},{"$f":"IF('lectures and seminars'!FG6=\"\",\"\",'lectures and seminars'!FG6)","v":""},{"$f":"IF('lectures and seminars'!FM6=\"\",\"\",'lectures and seminars'!FM6)","v":""},{"$f":"IF('lectures and seminars'!FS6=\"\",\"\",'lectures and seminars'!FS6)","v":""},{"$f":"IF('lectures and seminars'!FY6=\"\",\"\",'lectures and seminars'!FY6)","v":""},{"$f":"IF('lectures and seminars'!FZ6=\"\",\"\",'lectures and seminars'!FZ6)","v":""}]
[{"$f":"IF('lectures and seminars'!DW7=\"\",\"\",'lectures and seminars'!DW7)","v":""},{"$f":"IF('lectures and seminars'!EC7=\"\",\"\",'lectures and seminars'!EC7)","v":""},{"$f":"IF('lectures and seminars'!EI7=\"\",\"\",'lectures and seminars'!EI7)","v":""},{"$f":"IF('lectures and seminars'!EO7=\"\",\"\",'lectures and seminars'!EO7)","v":""},{"$f":"IF('lectures and seminars'!EU7=\"\",\"\",'lectures and seminars'!EU7)","v":""},{"$f":"IF('lectures and seminars'!FA7=\"\",\"\",'lectures and seminars'!FA7)","v":""},{"$f":"IF('lectures and seminars'!FG7=\"\",\"\",'lectures and seminars'!FG7)","v":""},{"$f":"IF('lectures and seminars'!FM7=\"\",\"\",'lectures and seminars'!FM7)","v":""},{"$f":"IF('lectures and seminars'!FS7=\"\",\"\",'lectures and seminars'!FS7)","v":""},{"$f":"IF('lectures and seminars'!FY7=\"\",\"\",'lectures and seminars'!FY7)","v":""},{"$f":"IF('lectures and seminars'!FZ7=\"\",\"\",'lectures and seminars'!FZ7)","v":"It is an excellent course, intense but the level of teaching was very high. It may be helpful for future non experienced participants to suggest to undertake FELASA course B prior this one."}]
[{"$f":"IF('lectures and seminars'!DW8=\"\",\"\",'lectures and seminars'!DW8)","v":"It's better if it was in morning."},{"$f":"IF('lectures and seminars'!EC8=\"\",\"\",'lectures and seminars'!EC8)","v":""},{"$f":"IF('lectures and seminars'!EI8=\"\",\"\",'lectures and seminars'!EI8)","v":""},{"$f":"IF('lectures and seminars'!EO8=\"\",\"\",'lectures and seminars'!EO8)","v":"Some information should be updated and new techniques also should be introduced."},{"$f":"IF('lectures and seminars'!EU8=\"\",\"\",'lectures and seminars'!EU8)","v":""},{"$f":"IF('lectures and seminars'!FA8=\"\",\"\",'lectures and seminars'!FA8)","v":""},{"$f":"IF('lectures and seminars'!FG8=\"\",\"\",'lectures and seminars'!FG8)","v":""},{"$f":"IF('lectures and seminars'!FM8=\"\",\"\",'lectures and seminars'!FM8)","v":""},{"$f":"IF('lectures and seminars'!FS8=\"\",\"\",'lectures and seminars'!FS8)","v":""},{"$f":"IF('lectures and seminars'!FY8=\"\",\"\",'lectures and seminars'!FY8)","v":""},{"$f":"IF('lectures and seminars'!FZ8=\"\",\"\",'lectures and seminars'!FZ8)","v":""}]
[{"$f":"IF('lectures and seminars'!DW9=\"\",\"\",'lectures and seminars'!DW9)","v":""},{"$f":"IF('lectures and seminars'!EC9=\"\",\"\",'lectures and seminars'!EC9)","v":""},{"$f":"IF('lectures and seminars'!EI9=\"\",\"\",'lectures and seminars'!EI9)","v":""},{"$f":"IF('lectures and seminars'!EO9=\"\",\"\",'lectures and seminars'!EO9)","v":""},{"$f":"IF('lectures and seminars'!EU9=\"\",\"\",'lectures and seminars'!EU9)","v":""},{"$f":"IF('lectures and seminars'!FA9=\"\",\"\",'lectures and seminars'!FA9)","v":""},{"$f":"IF('lectures and seminars'!FG9=\"\",\"\",'lectures and seminars'!FG9)","v":""},{"$f":"IF('lectures and seminars'!FM9=\"\",\"\",'lectures and seminars'!FM9)","v":""},{"$f":"IF('lectures and seminars'!FS9=\"\",\"\",'lectures and seminars'!FS9)","v":""},{"$f":"IF('lectures and seminars'!FY9=\"\",\"\",'lectures and seminars'!FY9)","v":""},{"$f":"IF('lectures and seminars'!FZ9=\"\",\"\",'lectures and seminars'!FZ9)","v":""}]
[{"$f":"IF('lectures and seminars'!DW10=\"\",\"\",'lectures and seminars'!DW10)","v":""},{"$f":"IF('lectures and seminars'!EC10=\"\",\"\",'lectures and seminars'!EC10)","v":""},{"$f":"IF('lectures and seminars'!EI10=\"\",\"\",'lectures and seminars'!EI10)","v":""},{"$f":"IF('lectures and seminars'!EO10=\"\",\"\",'lectures and seminars'!EO10)","v":""},{"$f":"IF('lectures and seminars'!EU10=\"\",\"\",'lectures and seminars'!EU10)","v":""},{"$f":"IF('lectures and seminars'!FA10=\"\",\"\",'lectures and seminars'!FA10)","v":""},{"$f":"IF('lectures and seminars'!FG10=\"\",\"\",'lectures and seminars'!FG10)","v":""},{"$f":"IF('lectures and seminars'!FM10=\"\",\"\",'lectures and seminars'!FM10)","v":""},{"$f":"IF('lectures and seminars'!FS10=\"\",\"\",'lectures and seminars'!FS10)","v":""},{"$f":"IF('lectures and seminars'!FY10=\"\",\"\",'lectures and seminars'!FY10)","v":""},{"$f":"IF('lectures and seminars'!FZ10=\"\",\"\",'lectures and seminars'!FZ10)","v":""}]
[{"$f":"IF('lectures and seminars'!DW11=\"\",\"\",'lectures and seminars'!DW11)","v":""},{"$f":"IF('lectures and seminars'!EC11=\"\",\"\",'lectures and seminars'!EC11)","v":""},{"$f":"IF('lectures and seminars'!EI11=\"\",\"\",'lectures and seminars'!EI11)","v":""},{"$f":"IF('lectures and seminars'!EO11=\"\",\"\",'lectures and seminars'!EO11)","v":""},{"$f":"IF('lectures and seminars'!EU11=\"\",\"\",'lectures and seminars'!EU11)","v":""},{"$f":"IF('lectures and seminars'!FA11=\"\",\"\",'lectures and seminars'!FA11)","v":""},{"$f":"IF('lectures and seminars'!FG11=\"\",\"\",'lectures and seminars'!FG11)","v":""},{"$f":"IF('lectures and seminars'!FM11=\"\",\"\",'lectures and seminars'!FM11)","v":""},{"$f":"IF('lectures and seminars'!FS11=\"\",\"\",'lectures and seminars'!FS11)","v":""},{"$f":"IF('lectures and seminars'!FY11=\"\",\"\",'lectures and seminars'!FY11)","v":""},{"$f":"IF('lectures and seminars'!FZ11=\"\",\"\",'lectures and seminars'!FZ11)","v":""}]
[{"$f":"IF('lectures and seminars'!DW12=\"\",\"\",'lectures and seminars'!DW12)","v":""},{"$f":"IF('lectures and seminars'!EC12=\"\",\"\",'lectures and seminars'!EC12)","v":""},{"$f":"IF('lectures and seminars'!EI12=\"\",\"\",'lectures and seminars'!EI12)","v":""},{"$f":"IF('lectures and seminars'!EO12=\"\",\"\",'lectures and seminars'!EO12)","v":""},{"$f":"IF('lectures and seminars'!EU12=\"\",\"\",'lectures and seminars'!EU12)","v":""},{"$f":"IF('lectures and seminars'!FA12=\"\",\"\",'lectures and seminars'!FA12)","v":""},{"$f":"IF('lectures and seminars'!FG12=\"\",\"\",'lectures and seminars'!FG12)","v":""},{"$f":"IF('lectures and seminars'!FM12=\"\",\"\",'lectures and seminars'!FM12)","v":""},{"$f":"IF('lectures and seminars'!FS12=\"\",\"\",'lectures and seminars'!FS12)","v":""},{"$f":"IF('lectures and seminars'!FY12=\"\",\"\",'lectures and seminars'!FY12)","v":""},{"$f":"IF('lectures and seminars'!FZ12=\"\",\"\",'lectures and seminars'!FZ12)","v":""}]
[{"$f":"IF('lectures and seminars'!DW13=\"\",\"\",'lectures and seminars'!DW13)","v":""},{"$f":"IF('lectures and seminars'!EC13=\"\",\"\",'lectures and seminars'!EC13)","v":""},{"$f":"IF('lectures and seminars'!EI13=\"\",\"\",'lectures and seminars'!EI13)","v":""},{"$f":"IF('lectures and seminars'!EO13=\"\",\"\",'lectures and seminars'!EO13)","v":""},{"$f":"IF('lectures and seminars'!EU13=\"\",\"\",'lectures and seminars'!EU13)","v":""},{"$f":"IF('lectures and seminars'!FA13=\"\",\"\",'lectures and seminars'!FA13)","v":""},{"$f":"IF('lectures and seminars'!FG13=\"\",\"\",'lectures and seminars'!FG13)","v":""},{"$f":"IF('lectures and seminars'!FM13=\"\",\"\",'lectures and seminars'!FM13)","v":""},{"$f":"IF('lectures and seminars'!FS13=\"\",\"\",'lectures and seminars'!FS13)","v":""},{"$f":"IF('lectures and seminars'!FY13=\"\",\"\",'lectures and seminars'!FY13)","v":""},{"$f":"IF('lectures and seminars'!FZ13=\"\",\"\",'lectures and seminars'!FZ13)","v":""}]
[{"$f":"IF('lectures and seminars'!DW14=\"\",\"\",'lectures and seminars'!DW14)","v":""},{"$f":"IF('lectures and seminars'!EC14=\"\",\"\",'lectures and seminars'!EC14)","v":""},{"$f":"IF('lectures and seminars'!EI14=\"\",\"\",'lectures and seminars'!EI14)","v":""},{"$f":"IF('lectures and seminars'!EO14=\"\",\"\",'lectures and seminars'!EO14)","v":""},{"$f":"IF('lectures and seminars'!EU14=\"\",\"\",'lectures and seminars'!EU14)","v":""},{"$f":"IF('lectures and seminars'!FA14=\"\",\"\",'lectures and seminars'!FA14)","v":""},{"$f":"IF('lectures and seminars'!FG14=\"\",\"\",'lectures and seminars'!FG14)","v":""},{"$f":"IF('lectures and seminars'!FM14=\"\",\"\",'lectures and seminars'!FM14)","v":""},{"$f":"IF('lectures and seminars'!FS14=\"\",\"\",'lectures and seminars'!FS14)","v":""},{"$f":"IF('lectures and seminars'!FY14=\"\",\"\",'lectures and seminars'!FY14)","v":""},{"$f":"IF('lectures and seminars'!FZ14=\"\",\"\",'lectures and seminars'!FZ14)","v":""}]
[{"$f":"IF('lectures and seminars'!DW15=\"\",\"\",'lectures and seminars'!DW15)","v":""},{"$f":"IF('lectures and seminars'!EC15=\"\",\"\",'lectures and seminars'!EC15)","v":""},{"$f":"IF('lectures and seminars'!EI15=\"\",\"\",'lectures and seminars'!EI15)","v":""},{"$f":"IF('lectures and seminars'!EO15=\"\",\"\",'lectures and seminars'!EO15)","v":""},{"$f":"IF('lectures and seminars'!EU15=\"\",\"\",'lectures and seminars'!EU15)","v":""},{"$f":"IF('lectures and seminars'!FA15=\"\",\"\",'lectures and seminars'!FA15)","v":""},{"$f":"IF('lectures and seminars'!FG15=\"\",\"\",'lectures and seminars'!FG15)","v":""},{"$f":"IF('lectures and seminars'!FM15=\"\",\"\",'lectures and seminars'!FM15)","v":""},{"$f":"IF('lectures and seminars'!FS15=\"\",\"\",'lectures and seminars'!FS15)","v":""},{"$f":"IF('lectures and seminars'!FY15=\"\",\"\",'lectures and seminars'!FY15)","v":""},{"$f":"IF('lectures and seminars'!FZ15=\"\",\"\",'lectures and seminars'!FZ15)","v":""}]
[{"$f":"IF('lectures and seminars'!DW16=\"\",\"\",'lectures and seminars'!DW16)","v":""},{"$f":"IF('lectures and seminars'!EC16=\"\",\"\",'lectures and seminars'!EC16)","v":""},{"$f":"IF('lectures and seminars'!EI16=\"\",\"\",'lectures and seminars'!EI16)","v":""},{"$f":"IF('lectures and seminars'!EO16=\"\",\"\",'lectures and seminars'!EO16)","v":""},{"$f":"IF('lectures and seminars'!EU16=\"\",\"\",'lectures and seminars'!EU16)","v":""},{"$f":"IF('lectures and seminars'!FA16=\"\",\"\",'lectures and seminars'!FA16)","v":""},{"$f":"IF('lectures and seminars'!FG16=\"\",\"\",'lectures and seminars'!FG16)","v":""},{"$f":"IF('lectures and seminars'!FM16=\"\",\"\",'lectures and seminars'!FM16)","v":""},{"$f":"IF('lectures and seminars'!FS16=\"\",\"\",'lectures and seminars'!FS16)","v":""},{"$f":"IF('lectures and seminars'!FY16=\"\",\"\",'lectures and seminars'!FY16)","v":""},{"$f":"IF('lectures and seminars'!FZ16=\"\",\"\",'lectures and seminars'!FZ16)","v":""}]
[{"$f":"IF('lectures and seminars'!DW17=\"\",\"\",'lectures and seminars'!DW17)","v":""},{"$f":"IF('lectures and seminars'!EC17=\"\",\"\",'lectures and seminars'!EC17)","v":""},{"$f":"IF('lectures and seminars'!EI17=\"\",\"\",'lectures and seminars'!EI17)","v":""},{"$f":"IF('lectures and seminars'!EO17=\"\",\"\",'lectures and seminars'!EO17)","v":""},{"$f":"IF('lectures and seminars'!EU17=\"\",\"\",'lectures and seminars'!EU17)","v":""},{"$f":"IF('lectures and seminars'!FA17=\"\",\"\",'lectures and seminars'!FA17)","v":""},{"$f":"IF('lectures and seminars'!FG17=\"\",\"\",'lectures and seminars'!FG17)","v":""},{"$f":"IF('lectures and seminars'!FM17=\"\",\"\",'lectures and seminars'!FM17)","v":""},{"$f":"IF('lectures and seminars'!FS17=\"\",\"\",'lectures and seminars'!FS17)","v":""},{"$f":"IF('lectures and seminars'!FY17=\"\",\"\",'lectures and seminars'!FY17)","v":""},{"$f":"IF('lectures and seminars'!FZ17=\"\",\"\",'lectures and seminars'!FZ17)","v":""}]
[{"$f":"IF('lectures and seminars'!DW18=\"\",\"\",'lectures and seminars'!DW18)","v":""},{"$f":"IF('lectures and seminars'!EC18=\"\",\"\",'lectures and seminars'!EC18)","v":""},{"$f":"IF('lectures and seminars'!EI18=\"\",\"\",'lectures and seminars'!EI18)","v":""},{"$f":"IF('lectures and seminars'!EO18=\"\",\"\",'lectures and seminars'!EO18)","v":""},{"$f":"IF('lectures and seminars'!EU18=\"\",\"\",'lectures and seminars'!EU18)","v":""},{"$f":"IF('lectures and seminars'!FA18=\"\",\"\",'lectures and seminars'!FA18)","v":""},{"$f":"IF('lectures and seminars'!FG18=\"\",\"\",'lectures and seminars'!FG18)","v":""},{"$f":"IF('lectures and seminars'!FM18=\"\",\"\",'lectures and seminars'!FM18)","v":""},{"$f":"IF('lectures and seminars'!FS18=\"\",\"\",'lectures and seminars'!FS18)","v":""},{"$f":"IF('lectures and seminars'!FY18=\"\",\"\",'lectures and seminars'!FY18)","v":""},{"$f":"IF('lectures and seminars'!FZ18=\"\",\"\",'lectures and seminars'!FZ18)","v":""}]
["Biology and experimental practice of zebrafish","Handling, sexing and restraint of laboratory animals.","Methods of investigating laboratory animals behaviour in practice.","Care and housing of laboratory animals in practice: nutrition, cleaning and bedding.","Minimally invasive procedures without anaesthesia: injections. Intravenous access with Braun catheters, infusions on phantoms","Minimally invasive procedures without anaesthesia: oral and parenteral drug administration to rodents in practice.\nCalculation of the dose of anaesthetic drugs for different species; Anaesthesia of rodents, recognition and control of pain.\nAdvanced anaesthesia in practice: inhalation anaesthesia of rodents. Sampling methods under anaesthesia (urine, blood, tissue biopsies)\nAnaesthesia, instrumentation and non-invasive procedures on minipig.\nScoring system to evaluate humane endpoint.","Practice in operating theatre I: aseptic techniques, working under sterile circumstances on dummies and phantoms","Practice in operating theatre II: basic surgical procedures, suturing, wound management on dummies and phantoms","Basic surgical procedures on anaesthetised rodents:\nPreparation of trachea – mechanical ventilation;\nPreparation of carotid artery - in vivo monitoring of vital signs;\nPreparation of jugular vein – infusion;\nMedian laparotomy, anatomy of abdominal cavity;\nSuturing in two layers; Microsurgery (on mice)","Alternatives to animal use 2. In vitro and ex vivo experimental techniques; tissue cultures and the Langendorff method"]
[{"$f":"IF(practices!I2=\"\",\"\",practices!I2)","v":"Practice not so useful. Small space for too many participants."},{"$f":"IF(practices!Q2=\"\",\"\",practices!Q2)","v":""},{"$f":"IF(practices!Y2=\"\",\"\",practices!Y2)","v":"Very interesting."},{"$f":"IF(practices!AG2=\"\",\"\",practices!AG2)","v":""},{"$f":"IF(practices!AO2=\"\",\"\",practices!AO2)","v":""},{"$f":"IF(practices!AW2=\"\",\"\",practices!AW2)","v":"Excellent! I appeciated the efforts of all teachers and trainers!"},{"$f":"IF(practices!BE2=\"\",\"\",practices!BE2)","v":"Very useful!"},{"$f":"IF(practices!BM2=\"\",\"\",practices!BM2)","v":"Very useful!"},{"$f":"IF(practices!BU2=\"\",\"\",practices!BU2)","v":"Crowded tables. Rats were not well sedated, anesthetized."},{"$f":"IF(practices!CC2=\"\",\"\",practices!CC2)","v":""}]
[{"$f":"IF(practices!I3=\"\",\"\",practices!I3)","v":""},{"$f":"IF(practices!Q3=\"\",\"\",practices!Q3)","v":""},{"$f":"IF(practices!Y3=\"\",\"\",practices!Y3)","v":""},{"$f":"IF(practices!AG3=\"\",\"\",practices!AG3)","v":""},{"$f":"IF(practices!AO3=\"\",\"\",practices!AO3)","v":""},{"$f":"IF(practices!AW3=\"\",\"\",practices!AW3)","v":""},{"$f":"IF(practices!BE3=\"\",\"\",practices!BE3)","v":""},{"$f":"IF(practices!BM3=\"\",\"\",practices!BM3)","v":""},{"$f":"IF(practices!BU3=\"\",\"\",practices!BU3)","v":""},{"$f":"IF(practices!CC3=\"\",\"\",practices!CC3)","v":""}]
[{"$f":"IF(practices!I4=\"\",\"\",practices!I4)","v":""},{"$f":"IF(practices!Q4=\"\",\"\",practices!Q4)","v":""},{"$f":"IF(practices!Y4=\"\",\"\",practices!Y4)","v":""},{"$f":"IF(practices!AG4=\"\",\"\",practices!AG4)","v":""},{"$f":"IF(practices!AO4=\"\",\"\",practices!AO4)","v":""},{"$f":"IF(practices!AW4=\"\",\"\",practices!AW4)","v":"Lectures were not translated into practice, e.g. no eye ointment, no warming plates, no pain medication, no disinfection, retroorbital bleeding should not be performed without general anaesthesia, retroorbital injection should only be done by experienced staff, not by participants. It's okay to take more time for certain practice part. We don't mind waiting, it's better than rushing through the practice."},{"$f":"IF(practices!BE4=\"\",\"\",practices!BE4)","v":""},{"$f":"IF(practices!BM4=\"\",\"\",practices!BM4)","v":""},{"$f":"IF(practices!BU4=\"\",\"\",practices!BU4)","v":""},{"$f":"IF(practices!CC4=\"\",\"\",practices!CC4)","v":""}]
[{"$f":"IF(practices!I5=\"\",\"\",practices!I5)","v":"To improve. Different groups in one lesson, didn't allow a good practice."},{"$f":"IF(practices!Q5=\"\",\"\",practices!Q5)","v":"To improve the organization. I think it's been to divide the participant according to experiences and knowledge."},{"$f":"IF(practices!Y5=\"\",\"\",practices!Y5)","v":""},{"$f":"IF(practices!AG5=\"\",\"\",practices!AG5)","v":"Rats and mice in the same keeping room!!!!"},{"$f":"IF(practices!AO5=\"\",\"\",practices!AO5)","v":"How I already wrote, I think that the participants should be separate according their knowledge. I think that you should use more personnel because some procedures were performed without supervision."},{"$f":"IF(practices!AW5=\"\",\"\",practices!AW5)","v":"Mice and rats should not be in the same room!!! You should give more time for other species such as mini-pig. The blood collection from retro-orbital plexus in mice needs the sedation!!!"},{"$f":"IF(practices!BE5=\"\",\"\",practices!BE5)","v":"It should be better the practice on animal. Separate the participnats according their knowledge."},{"$f":"IF(practices!BM5=\"\",\"\",practices!BM5)","v":""},{"$f":"IF(practices!BU5=\"\",\"\",practices!BU5)","v":"Rats and mice in the same room!!!! No skin disinfection prior the incision!!!"},{"$f":"IF(practices!CC5=\"\",\"\",practices!CC5)","v":"Nothing to suggest."}]
[{"$f":"IF(practices!I6=\"\",\"\",practices!I6)","v":""},{"$f":"IF(practices!Q6=\"\",\"\",practices!Q6)","v":""},{"$f":"IF(practices!Y6=\"\",\"\",practices!Y6)","v":""},{"$f":"IF(practices!AG6=\"\",\"\",practices!AG6)","v":""},{"$f":"IF(practices!AO6=\"\",\"\",practices!AO6)","v":""},{"$f":"IF(practices!AW6=\"\",\"\",practices!AW6)","v":"The procedures need more practice time."},{"$f":"IF(practices!BE6=\"\",\"\",practices!BE6)","v":""},{"$f":"IF(practices!BM6=\"\",\"\",practices!BM6)","v":""},{"$f":"IF(practices!BU6=\"\",\"\",practices!BU6)","v":""},{"$f":"IF(practices!CC6=\"\",\"\",practices!CC6)","v":""}]
[{"$f":"IF(practices!I7=\"\",\"\",practices!I7)","v":""},{"$f":"IF(practices!Q7=\"\",\"\",practices!Q7)","v":""},{"$f":"IF(practices!Y7=\"\",\"\",practices!Y7)","v":""},{"$f":"IF(practices!AG7=\"\",\"\",practices!AG7)","v":""},{"$f":"IF(practices!AO7=\"\",\"\",practices!AO7)","v":""},{"$f":"IF(practices!AW7=\"\",\"\",practices!AW7)","v":""},{"$f":"IF(practices!BE7=\"\",\"\",practices!BE7)","v":""},{"$f":"IF(practices!BM7=\"\",\"\",practices!BM7)","v":""},{"$f":"IF(practices!BU7=\"\",\"\",practices!BU7)","v":""},{"$f":"IF(practices!CC7=\"\",\"\",practices!CC7)","v":""}]
[{"$f":"IF(practices!I8=\"\",\"\",practices!I8)","v":""},{"$f":"IF(practices!Q8=\"\",\"\",practices!Q8)","v":""},{"$f":"IF(practices!Y8=\"\",\"\",practices!Y8)","v":""},{"$f":"IF(practices!AG8=\"\",\"\",practices!AG8)","v":""},{"$f":"IF(practices!AO8=\"\",\"\",practices!AO8)","v":""},{"$f":"IF(practices!AW8=\"\",\"\",practices!AW8)","v":""},{"$f":"IF(practices!BE8=\"\",\"\",practices!BE8)","v":"It's better that the practice right agter the lecture."},{"$f":"IF(practices!BM8=\"\",\"\",practices!BM8)","v":""},{"$f":"IF(practices!BU8=\"\",\"\",practices!BU8)","v":"The elective courses are really useful for certain people."},{"$f":"IF(practices!CC8=\"\",\"\",practices!CC8)","v":""}]
[{"$f":"IF(practices!I9=\"\",\"\",practices!I9)","v":""},{"$f":"IF(practices!Q9=\"\",\"\",practices!Q9)","v":""},{"$f":"IF(practices!Y9=\"\",\"\",practices!Y9)","v":""},{"$f":"IF(practices!AG9=\"\",\"\",practices!AG9)","v":""},{"$f":"IF(practices!AO9=\"\",\"\",practices!AO9)","v":""},{"$f":"IF(practices!AW9=\"\",\"\",practices!AW9)","v":""},{"$f":"IF(practices!BE9=\"\",\"\",practices!BE9)","v":""},{"$f":"IF(practices!BM9=\"\",\"\",practices!BM9)","v":""},{"$f":"IF(practices!BU9=\"\",\"\",practices!BU9)","v":""},{"$f":"IF(practices!CC9=\"\",\"\",practices!CC9)","v":""}]
[{"$f":"IF(practices!I10=\"\",\"\",practices!I10)","v":""},{"$f":"IF(practices!Q10=\"\",\"\",practices!Q10)","v":""},{"$f":"IF(practices!Y10=\"\",\"\",practices!Y10)","v":""},{"$f":"IF(practices!AG10=\"\",\"\",practices!AG10)","v":""},{"$f":"IF(practices!AO10=\"\",\"\",practices!AO10)","v":""},{"$f":"IF(practices!AW10=\"\",\"\",practices!AW10)","v":""},{"$f":"IF(practices!BE10=\"\",\"\",practices!BE10)","v":""},{"$f":"IF(practices!BM10=\"\",\"\",practices!BM10)","v":""},{"$f":"IF(practices!BU10=\"\",\"\",practices!BU10)","v":""},{"$f":"IF(practices!CC10=\"\",\"\",practices!CC10)","v":""}]
[{"$f":"IF(practices!I11=\"\",\"\",practices!I11)","v":""},{"$f":"IF(practices!Q11=\"\",\"\",practices!Q11)","v":""},{"$f":"IF(practices!Y11=\"\",\"\",practices!Y11)","v":""},{"$f":"IF(practices!AG11=\"\",\"\",practices!AG11)","v":""},{"$f":"IF(practices!AO11=\"\",\"\",practices!AO11)","v":""},{"$f":"IF(practices!AW11=\"\",\"\",practices!AW11)","v":""},{"$f":"IF(practices!BE11=\"\",\"\",practices!BE11)","v":""},{"$f":"IF(practices!BM11=\"\",\"\",practices!BM11)","v":""},{"$f":"IF(practices!BU11=\"\",\"\",practices!BU11)","v":""},{"$f":"IF(practices!CC11=\"\",\"\",practices!CC11)","v":""}]
[{"$f":"IF(practices!I12=\"\",\"\",practices!I12)","v":""},{"$f":"IF(practices!Q12=\"\",\"\",practices!Q12)","v":""},{"$f":"IF(practices!Y12=\"\",\"\",practices!Y12)","v":""},{"$f":"IF(practices!AG12=\"\",\"\",practices!AG12)","v":""},{"$f":"IF(practices!AO12=\"\",\"\",practices!AO12)","v":""},{"$f":"IF(practices!AW12=\"\",\"\",practices!AW12)","v":""},{"$f":"IF(practices!BE12=\"\",\"\",practices!BE12)","v":""},{"$f":"IF(practices!BM12=\"\",\"\",practices!BM12)","v":""},{"$f":"IF(practices!BU12=\"\",\"\",practices!BU12)","v":""},{"$f":"IF(practices!CC12=\"\",\"\",practices!CC12)","v":""}]
[{"$f":"IF(practices!I13=\"\",\"\",practices!I13)","v":""},{"$f":"IF(practices!Q13=\"\",\"\",practices!Q13)","v":""},{"$f":"IF(practices!Y13=\"\",\"\",practices!Y13)","v":""},{"$f":"IF(practices!AG13=\"\",\"\",practices!AG13)","v":""},{"$f":"IF(practices!AO13=\"\",\"\",practices!AO13)","v":""},{"$f":"IF(practices!AW13=\"\",\"\",practices!AW13)","v":""},{"$f":"IF(practices!BE13=\"\",\"\",practices!BE13)","v":""},{"$f":"IF(practices!BM13=\"\",\"\",practices!BM13)","v":""},{"$f":"IF(practices!BU13=\"\",\"\",practices!BU13)","v":""},{"$f":"IF(practices!CC13=\"\",\"\",practices!CC13)","v":""}]
[{"$f":"IF(practices!I14=\"\",\"\",practices!I14)","v":""},{"$f":"IF(practices!Q14=\"\",\"\",practices!Q14)","v":""},{"$f":"IF(practices!Y14=\"\",\"\",practices!Y14)","v":""},{"$f":"IF(practices!AG14=\"\",\"\",practices!AG14)","v":""},{"$f":"IF(practices!AO14=\"\",\"\",practices!AO14)","v":""},{"$f":"IF(practices!AW14=\"\",\"\",practices!AW14)","v":""},{"$f":"IF(practices!BE14=\"\",\"\",practices!BE14)","v":""},{"$f":"IF(practices!BM14=\"\",\"\",practices!BM14)","v":""},{"$f":"IF(practices!BU14=\"\",\"\",practices!BU14)","v":""},{"$f":"IF(practices!CC14=\"\",\"\",practices!CC14)","v":""}]
[{"$f":"IF(practices!I15=\"\",\"\",practices!I15)","v":""},{"$f":"IF(practices!Q15=\"\",\"\",practices!Q15)","v":""},{"$f":"IF(practices!Y15=\"\",\"\",practices!Y15)","v":""},{"$f":"IF(practices!AG15=\"\",\"\",practices!AG15)","v":""},{"$f":"IF(practices!AO15=\"\",\"\",practices!AO15)","v":""},{"$f":"IF(practices!AW15=\"\",\"\",practices!AW15)","v":""},{"$f":"IF(practices!BE15=\"\",\"\",practices!BE15)","v":""},{"$f":"IF(practices!BM15=\"\",\"\",practices!BM15)","v":""},{"$f":"IF(practices!BU15=\"\",\"\",practices!BU15)","v":""},{"$f":"IF(practices!CC15=\"\",\"\",practices!CC15)","v":""}]
[{"$f":"IF(practices!I16=\"\",\"\",practices!I16)","v":""},{"$f":"IF(practices!Q16=\"\",\"\",practices!Q16)","v":""},{"$f":"IF(practices!Y16=\"\",\"\",practices!Y16)","v":""},{"$f":"IF(practices!AG16=\"\",\"\",practices!AG16)","v":""},{"$f":"IF(practices!AO16=\"\",\"\",practices!AO16)","v":""},{"$f":"IF(practices!AW16=\"\",\"\",practices!AW16)","v":""},{"$f":"IF(practices!BE16=\"\",\"\",practices!BE16)","v":""},{"$f":"IF(practices!BM16=\"\",\"\",practices!BM16)","v":""},{"$f":"IF(practices!BU16=\"\",\"\",practices!BU16)","v":""},{"$f":"IF(practices!CC16=\"\",\"\",practices!CC16)","v":""}]
[{"$f":"IF(practices!I17=\"\",\"\",practices!I17)","v":""},{"$f":"IF(practices!Q17=\"\",\"\",practices!Q17)","v":""},{"$f":"IF(practices!Y17=\"\",\"\",practices!Y17)","v":""},{"$f":"IF(practices!AG17=\"\",\"\",practices!AG17)","v":""},{"$f":"IF(practices!AO17=\"\",\"\",practices!AO17)","v":""},{"$f":"IF(practices!AW17=\"\",\"\",practices!AW17)","v":""},{"$f":"IF(practices!BE17=\"\",\"\",practices!BE17)","v":""},{"$f":"IF(practices!BM17=\"\",\"\",practices!BM17)","v":""},{"$f":"IF(practices!BU17=\"\",\"\",practices!BU17)","v":""},{"$f":"IF(practices!CC17=\"\",\"\",practices!CC17)","v":""}]

{"sheet":"practice data, grafik","index":3,"n_rows":151,"n_cols":11,"rows_kept":151,"cut":false,"hidden":false,"merged":[]}
["PRACTICES","Theme selection","Organization","Active participation","Teacher readiness","Practice value","Syllabus"]
["Zebrafish",{"$f":"IF(practices!C2=\"\",\"\",practices!C2)","v":4},{"$f":"IF(practices!D2=\"\",\"\",practices!D2)","v":3},{"$f":"IF(practices!E2=\"\",\"\",practices!E2)","v":3},{"$f":"IF(practices!F2=\"\",\"\",practices!F2)","v":5},{"$f":"IF(practices!G2=\"\",\"\",practices!G2)","v":3},{"$f":"IF(practices!H2=\"\",\"\",practices!H2)","v":4},null,null,"Sorcímkék","Átlag / Theme selection"]
["Zebrafish",{"$f":"IF(practices!C3=\"\",\"\",practices!C3)","v":""},{"$f":"IF(practices!D3=\"\",\"\",practices!D3)","v":""},{"$f":"IF(practices!E3=\"\",\"\",practices!E3)","v":""},{"$f":"IF(practices!F3=\"\",\"\",practices!F3)","v":""},{"$f":"IF(practices!G3=\"\",\"\",practices!G3)","v":""},{"$f":"IF(practices!H3=\"\",\"\",practices!H3)","v":""},null,null,"Alternatives",4.9090909090909092]
["Zebrafish",{"$f":"IF(practices!C4=\"\",\"\",practices!C4)","v":5},{"$f":"IF(practices!D4=\"\",\"\",practices!D4)","v":5},{"$f":"IF(practices!E4=\"\",\"\",practices!E4)","v":5},{"$f":"IF(practices!F4=\"\",\"\",practices!F4)","v":5},{"$f":"IF(practices!G4=\"\",\"\",practices!G4)","v":5},{"$f":"IF(practices!H4=\"\",\"\",practices!H4)","v":5},null,null,"Anaesthesia",4.7857142857142856]
["Zebrafish",{"$f":"IF(practices!C5=\"\",\"\",practices!C5)","v":5},{"$f":"IF(practices!D5=\"\",\"\",practices!D5)","v":2},{"$f":"IF(practices!E5=\"\",\"\",practices!E5)","v":2},{"$f":"IF(practices!F5=\"\",\"\",practices!F5)","v":5},{"$f":"IF(practices!G5=\"\",\"\",practices!G5)","v":3},{"$f":"IF(practices!H5=\"\",\"\",practices!H5)","v":3},null,null,"Aseptic techniques",4.9285714285714288]
["Zebrafish",{"$f":"IF(practices!C6=\"\",\"\",practices!C6)","v":5},{"$f":"IF(practices!D6=\"\",\"\",practices!D6)","v":5},{"$f":"IF(practices!E6=\"\",\"\",practices!E6)","v":5},{"$f":"IF(practices!F6=\"\",\"\",practices!F6)","v":5},{"$f":"IF(practices!G6=\"\",\"\",practices!G6)","v":5},{"$f":"IF(practices!H6=\"\",\"\",practices!H6)","v":5},null,null,"Behaviour",4.9285714285714288]
["Zebrafish",{"$f":"IF(practices!C7=\"\",\"\",practices!C7)","v":5},{"$f":"IF(practices!D7=\"\",\"\",practices!D7)","v":5},{"$f":"IF(practices!E7=\"\",\"\",practices!E7)","v":5},{"$f":"IF(practices!F7=\"\",\"\",practices!F7)","v":5},{"$f":"IF(practices!G7=\"\",\"\",practices!G7)","v":5},{"$f":"IF(practices!H7=\"\",\"\",practices!H7)","v":5},null,null,"Housing",4.7142857142857144]
["Zebrafish",{"$f":"IF(practices!C8=\"\",\"\",practices!C8)","v":5},{"$f":"IF(practices!D8=\"\",\"\",practices!D8)","v":5},{"$f":"IF(practices!E8=\"\",\"\",practices!E8)","v":5},{"$f":"IF(practices!F8=\"\",\"\",practices!F8)","v":5},{"$f":"IF(practices!G8=\"\",\"\",practices!G8)","v":5},{"$f":"IF(practices!H8=\"\",\"\",practices!H8)","v":5},null,null,"Infusion on phantoms",4.9285714285714288]
["Zebrafish",{"$f":"IF(practices!C9=\"\",\"\",practices!C9)","v":5},{"$f":"IF(practices!D9=\"\",\"\",practices!D9)","v":5},{"$f":"IF(practices!E9=\"\",\"\",practices!E9)","v":5},{"$f":"IF(practices!F9=\"\",\"\",practices!F9)","v":5},{"$f":"IF(practices!G9=\"\",\"\",practices!G9)","v":5},{"$f":"IF(practices!H9=\"\",\"\",practices!H9)","v":""},null,null,"Restraint",4.9285714285714288]
["Zebrafish",{"$f":"IF(practices!C10=\"\",\"\",practices!C10)","v":5},{"$f":"IF(practices!D10=\"\",\"\",practices!D10)","v":5},{"$f":"IF(practices!E10=\"\",\"\",practices!E10)","v":5},{"$f":"IF(practices!F10=\"\",\"\",practices!F10)","v":5},{"$f":"IF(practices!G10=\"\",\"\",practices!G10)","v":5},{"$f":"IF(practices!H10=\"\",\"\",practices!H10)","v":5},null,null,"Surgical procedures",5]
["Zebrafish",{"$f":"IF(practices!C11=\"\",\"\",practices!C11)","v":5},{"$f":"IF(practices!D11=\"\",\"\",practices!D11)","v":5},{"$f":"IF(practices!E11=\"\",\"\",practices!E11)","v":5},{"$f":"IF(practices!F11=\"\",\"\",practices!F11)","v":5},{"$f":"IF(practices!G11=\"\",\"\",practices!G11)","v":5},{"$f":"IF(practices!H11=\"\",\"\",practices!H11)","v":4},null,null,"Suturing",4.9285714285714288]
["Zebrafish",{"$f":"IF(practices!C12=\"\",\"\",practices!C12)","v":5},{"$f":"IF(practices!D12=\"\",\"\",practices!D12)","v":5},{"$f":"IF(practices!E12=\"\",\"\",practices!E12)","v":5},{"$f":"IF(practices!F12=\"\",\"\",practices!F12)","v":2},{"$f":"IF(practices!G12=\"\",\"\",practices!G12)","v":5},{"$f":"IF(practices!H12=\"\",\"\",practices!H12)","v":5},null,null,"Zebrafish",4.9285714285714288]
["Zebrafish",{"$f":"IF(practices!C13=\"\",\"\",practices!C13)","v":5},{"$f":"IF(practices!D13=\"\",\"\",practices!D13)","v":5},{"$f":"IF(practices!E13=\"\",\"\",practices!E13)","v":5},{"$f":"IF(practices!F13=\"\",\"\",practices!F13)","v":5},{"$f":"IF(practices!G13=\"\",\"\",practices!G13)","v":5},{"$f":"IF(practices!H13=\"\",\"\",practices!H13)","v":5},null,null,"Végösszeg",4.8970588235294121]
["Zebrafish",{"$f":"IF(practices!C14=\"\",\"\",practices!C14)","v":5},{"$f":"IF(practices!D14=\"\",\"\",practices!D14)","v":5},{"$f":"IF(practices!E14=\"\",\"\",practices!E14)","v":5},{"$f":"IF(practices!F14=\"\",\"\",practices!F14)","v":5},{"$f":"IF(practices!G14=\"\",\"\",practices!G14)","v":5},{"$f":"IF(practices!H14=\"\",\"\",practices!H14)","v":5}]
["Zebrafish",{"$f":"IF(practices!C15=\"\",\"\",practices!C15)","v":5},{"$f":"IF(practices!D15=\"\",\"\",practices!D15)","v":5},{"$f":"IF(practices!E15=\"\",\"\",practices!E15)","v":5},{"$f":"IF(practices!F15=\"\",\"\",practices!F15)","v":5},{"$f":"IF(practices!G15=\"\",\"\",practices!G15)","v":5},{"$f":"IF(practices!H15=\"\",\"\",practices!H15)","v":5}]
["Zebrafish",{"$f":"IF(practices!C16=\"\",\"\",practices!C16)","v":5},{"$f":"IF(practices!D16=\"\",\"\",practices!D16)","v":5},{"$f":"IF(practices!E16=\"\",\"\",practices!E16)","v":5},{"$f":"IF(practices!F16=\"\",\"\",practices!F16)","v":5},{"$f":"IF(practices!G16=\"\",\"\",practices!G16)","v":5},{"$f":"IF(practices!H16=\"\",\"\",practices!H16)","v":5}]
["Restraint",{"$f":"IF(practices!K2=\"\",\"\",practices!K2)","v":5},{"$f":"IF(practices!L2=\"\",\"\",practices!L2)","v":5},{"$f":"IF(practices!M2=\"\",\"\",practices!M2)","v":5},{"$f":"IF(practices!N2=\"\",\"\",practices!N2)","v":5},{"$f":"IF(practices!O2=\"\",\"\",practices!O2)","v":5},{"$f":"IF(practices!P2=\"\",\"\",practices!P2)","v":5}]
["Restraint",{"$f":"IF(practices!K3=\"\",\"\",practices!K3)","v":""},{"$f":"IF(practices!L3=\"\",\"\",practices!L3)","v":""},{"$f":"IF(practices!M3=\"\",\"\",practices!M3)","v":""},{"$f":"IF(practices!N3=\"\",\"\",practices!N3)","v":""},{"$f":"IF(practices!O3=\"\",\"\",practices!O3)","v":""},{"$f":"IF(practices!P3=\"\",\"\",practices!P3)","v":""}]
["Restraint",{"$f":"IF(practices!K4=\"\",\"\",practices!K4)","v":5},{"$f":"IF(practices!L4=\"\",\"\",practices!L4)","v":5},{"$f":"IF(practices!M4=\"\",\"\",practices!M4)","v":5},{"$f":"IF(practices!N4=\"\",\"\",practices!N4)","v":5},{"$f":"IF(practices!O4=\"\",\"\",practices!O4)","v":5},{"$f":"IF(practices!P4=\"\",\"\",practices!P4)","v":5},null,null,"Sorcímkék","Átlag / Organization"]
["Restraint",{"$f":"IF(practices!K5=\"\",\"\",practices!K5)","v":4},{"$f":"IF(practices!L5=\"\",\"\",practices!L5)","v":3},{"$f":"IF(practices!M5=\"\",\"\",practices!M5)","v":5},{"$f":"IF(practices!N5=\"\",\"\",practices!N5)","v":5},{"$f":"IF(practices!O5=\"\",\"\",practices!O5)","v":4},{"$f":"IF(practices!P5=\"\",\"\",practices!P5)","v":4},null,null,"Alternatives",4.9090909090909092]
["Restraint",{"$f":"IF(practices!K6=\"\",\"\",practices!K6)","v":5},{"$f":"IF(practices!L6=\"\",\"\",practices!L6)","v":5},{"$f":"IF(practices!M6=\"\",\"\",practices!M6)","v":5},{"$f":"IF(practices!N6=\"\",\"\",practices!N6)","v":5},{"$f":"IF(practices!O6=\"\",\"\",practices!O6)","v":5},{"$f":"IF(practices!P6=\"\",\"\",practices!P6)","v":5},null,null,"Anaesthesia",4.5]
["Restraint",{"$f":"IF(practices!K7=\"\",\"\",practices!K7)","v":5},{"$f":"IF(practices!L7=\"\",\"\",practices!L7)","v":5},{"$f":"IF(practices!M7=\"\",\"\",practices!M7)","v":5},{"$f":"IF(practices!N7=\"\",\"\",practices!N7)","v":5},{"$f":"IF(practices!O7=\"\",\"\",practices!O7)","v":5},{"$f":"IF(practices!P7=\"\",\"\",practices!P7)","v":5},null,null,"Aseptic techniques",4.7857142857142856]
["Restraint",{"$f":"IF(practices!K8=\"\",\"\",practices!K8)","v":5},{"$f":"IF(practices!L8=\"\",\"\",practices!L8)","v":5},{"$f":"IF(practices!M8=\"\",\"\",practices!M8)","v":5},{"$f":"IF(practices!N8=\"\",\"\",practices!N8)","v":5},{"$f":"IF(practices!O8=\"\",\"\",practices!O8)","v":5},{"$f":"IF(practices!P8=\"\",\"\",practices!P8)","v":5},null,null,"Behaviour",4.8571428571428568]
["Restraint",{"$f":"IF(practices!K9=\"\",\"\",practices!K9)","v":5},{"$f":"IF(practices!L9=\"\",\"\",practices!L9)","v":5},{"$f":"IF(practices!M9=\"\",\"\",practices!M9)","v":5},{"$f":"IF(practices!N9=\"\",\"\",practices!N9)","v":5},{"$f":"IF(practices!O9=\"\",\"\",practices!O9)","v":5},{"$f":"IF(practices!P9=\"\",\"\",practices!P9)","v":""},null,null,"Housing",4.7142857142857144]
["Restraint",{"$f":"IF(practices!K10=\"\",\"\",practices!K10)","v":5},{"$f":"IF(practices!L10=\"\",\"\",practices!L10)","v":5},{"$f":"IF(practices!M10=\"\",\"\",practices!M10)","v":5},{"$f":"IF(practices!N10=\"\",\"\",practices!N10)","v":5},{"$f":"IF(practices!O10=\"\",\"\",practices!O10)","v":5},{"$f":"IF(practices!P10=\"\",\"\",practices!P10)","v":5},null,null,"Infusion on phantoms",4.5714285714285712]
["Restraint",{"$f":"IF(practices!K11=\"\",\"\",practices!K11)","v":5},{"$f":"IF(practices!L11=\"\",\"\",practices!L11)","v":5},{"$f":"IF(practices!M11=\"\",\"\",practices!M11)","v":5},{"$f":"IF(practices!N11=\"\",\"\",practices!N11)","v":5},{"$f":"IF(practices!O11=\"\",\"\",practices!O11)","v":5},{"$f":"IF(practices!P11=\"\",\"\",practices!P11)","v":""},null,null,"Restraint",4.8571428571428568]
["Restraint",{"$f":"IF(practices!K12=\"\",\"\",practices!K12)","v":5},{"$f":"IF(practices!L12=\"\",\"\",practices!L12)","v":5},{"$f":"IF(practices!M12=\"\",\"\",practices!M12)","v":5},{"$f":"IF(practices!N12=\"\",\"\",practices!N12)","v":5},{"$f":"IF(practices!O12=\"\",\"\",practices!O12)","v":5},{"$f":"IF(practices!P12=\"\",\"\",practices!P12)","v":5},null,null,"Surgical procedures",4.8461538461538458]
["Restraint",{"$f":"IF(practices!K13=\"\",\"\",practices!K13)","v":5},{"$f":"IF(practices!L13=\"\",\"\",practices!L13)","v":5},{"$f":"IF(practices!M13=\"\",\"\",practices!M13)","v":5},{"$f":"IF(practices!N13=\"\",\"\",practices!N13)","v":5},{"$f":"IF(practices!O13=\"\",\"\",practices!O13)","v":5},{"$f":"IF(practices!P13=\"\",\"\",practices!P13)","v":5},null,null,"Suturing",4.7857142857142856]
["Restraint",{"$f":"IF(practices!K14=\"\",\"\",practices!K14)","v":5},{"$f":"IF(practices!L14=\"\",\"\",practices!L14)","v":5},{"$f":"IF(practices!M14=\"\",\"\",practices!M14)","v":5},{"$f":"IF(practices!N14=\"\",\"\",practices!N14)","v":5},{"$f":"IF(practices!O14=\"\",\"\",practices!O14)","v":5},{"$f":"IF(practices!P14=\"\",\"\",practices!P14)","v":5},null,null,"Zebrafish",4.6428571428571432]
["Restraint",{"$f":"IF(practices!K15=\"\",\"\",practices!K15)","v":5},{"$f":"IF(practices!L15=\"\",\"\",practices!L15)","v":5},{"$f":"IF(practices!M15=\"\",\"\",practices!M15)","v":5},{"$f":"IF(practices!N15=\"\",\"\",practices!N15)","v":5},{"$f":"IF(practices!O15=\"\",\"\",practices!O15)","v":5},{"$f":"IF(practices!P15=\"\",\"\",practices!P15)","v":5},null,null,"Végösszeg",4.742647058823529]
["Restraint",{"$f":"IF(practices!K16=\"\",\"\",practices!K16)","v":5},{"$f":"IF(practices!L16=\"\",\"\",practices!L16)","v":5},{"$f":"IF(practices!M16=\"\",\"\",practices!M16)","v":5},{"$f":"IF(practices!N16=\"\",\"\",practices!N16)","v":5},{"$f":"IF(practices!O16=\"\",\"\",practices!O16)","v":5},{"$f":"IF(practices!P16=\"\",\"\",practices!P16)","v":5}]
["Behaviour",{"$f":"IF(practices!S2=\"\",\"\",practices!S2)","v":5},{"$f":"IF(practices!T2=\"\",\"\",practices!T2)","v":5},{"$f":"IF(practices!U2=\"\",\"\",practices!U2)","v":5},{"$f":"IF(practices!V2=\"\",\"\",practices!V2)","v":5},{"$f":"IF(practices!W2=\"\",\"\",practices!W2)","v":5},{"$f":"IF(practices!X2=\"\",\"\",practices!X2)","v":5}]
["Behaviour",{"$f":"IF(practices!S3=\"\",\"\",practices!S3)","v":""},{"$f":"IF(practices!T3=\"\",\"\",practices!T3)","v":""},{"$f":"IF(practices!U3=\"\",\"\",practices!U3)","v":""},{"$f":"IF(practices!V3=\"\",\"\",practices!V3)","v":""},{"$f":"IF(practices!W3=\"\",\"\",practices!W3)","v":""},{"$f":"IF(practices!X3=\"\",\"\",practices!X3)","v":""}]
["Behaviour",{"$f":"IF(practices!S4=\"\",\"\",practices!S4)","v":5},{"$f":"IF(practices!T4=\"\",\"\",practices!T4)","v":5},{"$f":"IF(practices!U4=\"\",\"\",practices!U4)","v":5},{"$f":"IF(practices!V4=\"\",\"\",practices!V4)","v":5},{"$f":"IF(practices!W4=\"\",\"\",practices!W4)","v":5},{"$f":"IF(practices!X4=\"\",\"\",practices!X4)","v":5},null,null,"Sorcímkék","Átlag / Active participation"]
["Behaviour",{"$f":"IF(practices!S5=\"\",\"\",practices!S5)","v":4},{"$f":"IF(practices!T5=\"\",\"\",practices!T5)","v":3},{"$f":"IF(practices!U5=\"\",\"\",practices!U5)","v":3},{"$f":"IF(practices!V5=\"\",\"\",practices!V5)","v":5},{"$f":"IF(practices!W5=\"\",\"\",practices!W5)","v":4},{"$f":"IF(practices!X5=\"\",\"\",practices!X5)","v":4},null,null,"Alternatives",4.9090909090909092]
["Behaviour",{"$f":"IF(practices!S6=\"\",\"\",practices!S6)","v":5},{"$f":"IF(practices!T6=\"\",\"\",practices!T6)","v":5},{"$f":"IF(practices!U6=\"\",\"\",practices!U6)","v":5},{"$f":"IF(practices!V6=\"\",\"\",practices!V6)","v":5},{"$f":"IF(practices!W6=\"\",\"\",practices!W6)","v":5},{"$f":"IF(practices!X6=\"\",\"\",practices!X6)","v":5},null,null,"Anaesthesia",4.7857142857142856]
["Behaviour",{"$f":"IF(practices!S7=\"\",\"\",practices!S7)","v":5},{"$f":"IF(practices!T7=\"\",\"\",practices!T7)","v":5},{"$f":"IF(practices!U7=\"\",\"\",practices!U7)","v":5},{"$f":"IF(practices!V7=\"\",\"\",practices!V7)","v":4},{"$f":"IF(practices!W7=\"\",\"\",practices!W7)","v":5},{"$f":"IF(practices!X7=\"\",\"\",practices!X7)","v":4},null,null,"Aseptic techniques",5]
["Behaviour",{"$f":"IF(practices!S8=\"\",\"\",practices!S8)","v":5},{"$f":"IF(practices!T8=\"\",\"\",practices!T8)","v":5},{"$f":"IF(practices!U8=\"\",\"\",practices!U8)","v":5},{"$f":"IF(practices!V8=\"\",\"\",practices!V8)","v":5},{"$f":"IF(practices!W8=\"\",\"\",practices!W8)","v":5},{"$f":"IF(practices!X8=\"\",\"\",practices!X8)","v":5},null,null,"Behaviour",4.8571428571428568]
["Behaviour",{"$f":"IF(practices!S9=\"\",\"\",practices!S9)","v":5},{"$f":"IF(practices!T9=\"\",\"\",practices!T9)","v":5},{"$f":"IF(practices!U9=\"\",\"\",practices!U9)","v":5},{"$f":"IF(practices!V9=\"\",\"\",practices!V9)","v":5},{"$f":"IF(practices!W9=\"\",\"\",practices!W9)","v":5},{"$f":"IF(practices!X9=\"\",\"\",practices!X9)","v":""},null,null,"Housing",4.9285714285714288]
["Behaviour",{"$f":"IF(practices!S10=\"\",\"\",practices!S10)","v":5},{"$f":"IF(practices!T10=\"\",\"\",practices!T10)","v":5},{"$f":"IF(practices!U10=\"\",\"\",practices!U10)","v":5},{"$f":"IF(practices!V10=\"\",\"\",practices!V10)","v":5},{"$f":"IF(practices!W10=\"\",\"\",practices!W10)","v":5},{"$f":"IF(practices!X10=\"\",\"\",practices!X10)","v":5},null,null,"Infusion on phantoms",4.7857142857142856]
["Behaviour",{"$f":"IF(practices!S11=\"\",\"\",practices!S11)","v":5},{"$f":"IF(practices!T11=\"\",\"\",practices!T11)","v":5},{"$f":"IF(practices!U11=\"\",\"\",practices!U11)","v":5},{"$f":"IF(practices!V11=\"\",\"\",practices!V11)","v":5},{"$f":"IF(practices!W11=\"\",\"\",practices!W11)","v":5},{"$f":"IF(practices!X11=\"\",\"\",practices!X11)","v":""},null,null,"Restraint",5]
["Behaviour",{"$f":"IF(practices!S12=\"\",\"\",practices!S12)","v":5},{"$f":"IF(practices!T12=\"\",\"\",practices!T12)","v":5},{"$f":"IF(practices!U12=\"\",\"\",practices!U12)","v":5},{"$f":"IF(practices!V12=\"\",\"\",practices!V12)","v":5},{"$f":"IF(practices!W12=\"\",\"\",practices!W12)","v":5},{"$f":"IF(practices!X12=\"\",\"\",practices!X12)","v":5},null,null,"Surgical procedures",5]
["Behaviour",{"$f":"IF(practices!S13=\"\",\"\",practices!S13)","v":5},{"$f":"IF(practices!T13=\"\",\"\",practices!T13)","v":5},{"$f":"IF(practices!U13=\"\",\"\",practices!U13)","v":5},{"$f":"IF(practices!V13=\"\",\"\",practices!V13)","v":5},{"$f":"IF(practices!W13=\"\",\"\",practices!W13)","v":5},{"$f":"IF(practices!X13=\"\",\"\",practices!X13)","v":5},null,null,"Suturing",4.9285714285714288]
["Behaviour",{"$f":"IF(practices!S14=\"\",\"\",practices!S14)","v":5},{"$f":"IF(practices!T14=\"\",\"\",practices!T14)","v":5},{"$f":"IF(practices!U14=\"\",\"\",practices!U14)","v":5},{"$f":"IF(practices!V14=\"\",\"\",practices!V14)","v":5},{"$f":"IF(practices!W14=\"\",\"\",practices!W14)","v":5},{"$f":"IF(practices!X14=\"\",\"\",practices!X14)","v":5},null,null,"Zebrafish",4.6428571428571432]
["Behaviour",{"$f":"IF(practices!S15=\"\",\"\",practices!S15)","v":5},{"$f":"IF(practices!T15=\"\",\"\",practices!T15)","v":5},{"$f":"IF(practices!U15=\"\",\"\",practices!U15)","v":5},{"$f":"IF(practices!V15=\"\",\"\",practices!V15)","v":5},{"$f":"IF(practices!W15=\"\",\"\",practices!W15)","v":5},{"$f":"IF(practices!X15=\"\",\"\",practices!X15)","v":5},null,null,"Végösszeg",4.882352941176471]
["Behaviour",{"$f":"IF(practices!S16=\"\",\"\",practices!S16)","v":5},{"$f":"IF(practices!T16=\"\",\"\",practices!T16)","v":5},{"$f":"IF(practices!U16=\"\",\"\",practices!U16)","v":5},{"$f":"IF(practices!V16=\"\",\"\",practices!V16)","v":5},{"$f":"IF(practices!W16=\"\",\"\",practices!W16)","v":5},{"$f":"IF(practices!X16=\"\",\"\",practices!X16)","v":5}]
["Housing",{"$f":"IF(practices!AA2=\"\",\"\",practices!AA2)","v":5},{"$f":"IF(practices!AB2=\"\",\"\",practices!AB2)","v":5},{"$f":"IF(practices!AC2=\"\",\"\",practices!AC2)","v":5},{"$f":"IF(practices!AD2=\"\",\"\",practices!AD2)","v":5},{"$f":"IF(practices!AE2=\"\",\"\",practices!AE2)","v":5},{"$f":"IF(practices!AF2=\"\",\"\",practices!AF2)","v":5}]
["Housing",{"$f":"IF(practices!AA3=\"\",\"\",practices!AA3)","v":""},{"$f":"IF(practices!AB3=\"\",\"\",practices!AB3)","v":""},{"$f":"IF(practices!AC3=\"\",\"\",practices!AC3)","v":""},{"$f":"IF(practices!AD3=\"\",\"\",practices!AD3)","v":""},{"$f":"IF(practices!AE3=\"\",\"\",practices!AE3)","v":""},{"$f":"IF(practices!AF3=\"\",\"\",practices!AF3)","v":""}]
["Housing",{"$f":"IF(practices!AA4=\"\",\"\",practices!AA4)","v":5},{"$f":"IF(practices!AB4=\"\",\"\",practices!AB4)","v":5},{"$f":"IF(practices!AC4=\"\",\"\",practices!AC4)","v":5},{"$f":"IF(practices!AD4=\"\",\"\",practices!AD4)","v":5},{"$f":"IF(practices!AE4=\"\",\"\",practices!AE4)","v":4},{"$f":"IF(practices!AF4=\"\",\"\",practices!AF4)","v":5}]
["Housing",{"$f":"IF(practices!AA5=\"\",\"\",practices!AA5)","v":2},{"$f":"IF(practices!AB5=\"\",\"\",practices!AB5)","v":1},{"$f":"IF(practices!AC5=\"\",\"\",practices!AC5)","v":4},{"$f":"IF(practices!AD5=\"\",\"\",practices!AD5)","v":4},{"$f":"IF(practices!AE5=\"\",\"\",practices!AE5)","v":3},{"$f":"IF(practices!AF5=\"\",\"\",practices!AF5)","v":4}]
["Housing",{"$f":"IF(practices!AA6=\"\",\"\",practices!AA6)","v":5},{"$f":"IF(practices!AB6=\"\",\"\",practices!AB6)","v":5},{"$f":"IF(practices!AC6=\"\",\"\",practices!AC6)","v":5},{"$f":"IF(practices!AD6=\"\",\"\",practices!AD6)","v":5},{"$f":"IF(practices!AE6=\"\",\"\",practices!AE6)","v":5},{"$f":"IF(practices!AF6=\"\",\"\",practices!AF6)","v":5}]
["Housing",{"$f":"IF(practices!AA7=\"\",\"\",practices!AA7)","v":5},{"$f":"IF(practices!AB7=\"\",\"\",practices!AB7)","v":5},{"$f":"IF(practices!AC7=\"\",\"\",practices!AC7)","v":5},{"$f":"IF(practices!AD7=\"\",\"\",practices!AD7)","v":5},{"$f":"IF(practices!AE7=\"\",\"\",practices!AE7)","v":5},{"$f":"IF(practices!AF7=\"\",\"\",practices!AF7)","v":5},null,null,"Sorcímkék","Átlag / Teacher readiness"]
["Housing",{"$f":"IF(practices!AA8=\"\",\"\",practices!AA8)","v":5},{"$f":"IF(practices!AB8=\"\",\"\",practices!AB8)","v":5},{"$f":"IF(practices!AC8=\"\",\"\",practices!AC8)","v":5},{"$f":"IF(practices!AD8=\"\",\"\",practices!AD8)","v":5},{"$f":"IF(practices!AE8=\"\",\"\",practices!AE8)","v":5},{"$f":"IF(practices!AF8=\"\",\"\",practices!AF8)","v":5},null,null,"Alternatives",4.9090909090909092]
["Housing",{"$f":"IF(practices!AA9=\"\",\"\",practices!AA9)","v":5},{"$f":"IF(practices!AB9=\"\",\"\",practices!AB9)","v":5},{"$f":"IF(practices!AC9=\"\",\"\",practices!AC9)","v":5},{"$f":"IF(practices!AD9=\"\",\"\",practices!AD9)","v":5},{"$f":"IF(practices!AE9=\"\",\"\",practices!AE9)","v":5},{"$f":"IF(practices!AF9=\"\",\"\",practices!AF9)","v":""},null,null,"Anaesthesia",4.7857142857142856]
["Housing",{"$f":"IF(practices!AA10=\"\",\"\",practices!AA10)","v":5},{"$f":"IF(practices!AB10=\"\",\"\",practices!AB10)","v":5},{"$f":"IF(practices!AC10=\"\",\"\",practices!AC10)","v":5},{"$f":"IF(practices!AD10=\"\",\"\",practices!AD10)","v":5},{"$f":"IF(practices!AE10=\"\",\"\",practices!AE10)","v":5},{"$f":"IF(practices!AF10=\"\",\"\",practices!AF10)","v":5},null,null,"Aseptic techniques",4.9285714285714288]
["Housing",{"$f":"IF(practices!AA11=\"\",\"\",practices!AA11)","v":4},{"$f":"IF(practices!AB11=\"\",\"\",practices!AB11)","v":5},{"$f":"IF(practices!AC11=\"\",\"\",practices!AC11)","v":5},{"$f":"IF(practices!AD11=\"\",\"\",practices!AD11)","v":5},{"$f":"IF(practices!AE11=\"\",\"\",practices!AE11)","v":4},{"$f":"IF(practices!AF11=\"\",\"\",practices!AF11)","v":5},null,null,"Behaviour",4.9285714285714288]
["Housing",{"$f":"IF(practices!AA12=\"\",\"\",practices!AA12)","v":5},{"$f":"IF(practices!AB12=\"\",\"\",practices!AB12)","v":5},{"$f":"IF(practices!AC12=\"\",\"\",practices!AC12)","v":5},{"$f":"IF(practices!AD12=\"\",\"\",practices!AD12)","v":5},{"$f":"IF(practices!AE12=\"\",\"\",practices!AE12)","v":5},{"$f":"IF(practices!AF12=\"\",\"\",practices!AF12)","v":5},null,null,"Housing",4.9285714285714288]
["Housing",{"$f":"IF(practices!AA13=\"\",\"\",practices!AA13)","v":5},{"$f":"IF(practices!AB13=\"\",\"\",practices!AB13)","v":5},{"$f":"IF(practices!AC13=\"\",\"\",practices!AC13)","v":5},{"$f":"IF(practices!AD13=\"\",\"\",practices!AD13)","v":5},{"$f":"IF(practices!AE13=\"\",\"\",practices!AE13)","v":5},{"$f":"IF(practices!AF13=\"\",\"\",practices!AF13)","v":5},null,null,"Infusion on phantoms",5]
["Housing",{"$f":"IF(practices!AA14=\"\",\"\",practices!AA14)","v":5},{"$f":"IF(practices!AB14=\"\",\"\",practices!AB14)","v":5},{"$f":"IF(practices!AC14=\"\",\"\",practices!AC14)","v":5},{"$f":"IF(practices!AD14=\"\",\"\",practices!AD14)","v":5},{"$f":"IF(practices!AE14=\"\",\"\",practices!AE14)","v":5},{"$f":"IF(practices!AF14=\"\",\"\",practices!AF14)","v":5},null,null,"Restraint",5]
["Housing",{"$f":"IF(practices!AA15=\"\",\"\",practices!AA15)","v":5},{"$f":"IF(practices!AB15=\"\",\"\",practices!AB15)","v":5},{"$f":"IF(practices!AC15=\"\",\"\",practices!AC15)","v":5},{"$f":"IF(practices!AD15=\"\",\"\",practices!AD15)","v":5},{"$f":"IF(practices!AE15=\"\",\"\",practices!AE15)","v":5},{"$f":"IF(practices!AF15=\"\",\"\",practices!AF15)","v":5},null,null,"Surgical procedures",5]
["Housing",{"$f":"IF(practices!AA16=\"\",\"\",practices!AA16)","v":5},{"$f":"IF(practices!AB16=\"\",\"\",practices!AB16)","v":5},{"$f":"IF(practices!AC16=\"\",\"\",practices!AC16)","v":5},{"$f":"IF(practices!AD16=\"\",\"\",practices!AD16)","v":5},{"$f":"IF(practices!AE16=\"\",\"\",practices!AE16)","v":5},{"$f":"IF(practices!AF16=\"\",\"\",practices!AF16)","v":5},null,null,"Suturing",5]
["Infusion on phantoms",{"$f":"IF(practices!AI2=\"\",\"\",practices!AI2)","v":5},{"$f":"IF(practices!AJ2=\"\",\"\",practices!AJ2)","v":5},{"$f":"IF(practices!AK2=\"\",\"\",practices!AK2)","v":5},{"$f":"IF(practices!AL2=\"\",\"\",practices!AL2)","v":5},{"$f":"IF(practices!AM2=\"\",\"\",practices!AM2)","v":5},{"$f":"IF(practices!AN2=\"\",\"\",practices!AN2)","v":5},null,null,"Zebrafish",4.7857142857142856]
["Infusion on phantoms",{"$f":"IF(practices!AI3=\"\",\"\",practices!AI3)","v":""},{"$f":"IF(practices!AJ3=\"\",\"\",practices!AJ3)","v":""},{"$f":"IF(practices!AK3=\"\",\"\",practices!AK3)","v":""},{"$f":"IF(practices!AL3=\"\",\"\",practices!AL3)","v":""},{"$f":"IF(practices!AM3=\"\",\"\",practices!AM3)","v":""},{"$f":"IF(practices!AN3=\"\",\"\",practices!AN3)","v":""},null,null,"Végösszeg",4.9264705882352944]
["Infusion on phantoms",{"$f":"IF(practices!AI4=\"\",\"\",practices!AI4)","v":5},{"$f":"IF(practices!AJ4=\"\",\"\",practices!AJ4)","v":5},{"$f":"IF(practices!AK4=\"\",\"\",practices!AK4)","v":5},{"$f":"IF(practices!AL4=\"\",\"\",practices!AL4)","v":5},{"$f":"IF(practices!AM4=\"\",\"\",practices!AM4)","v":5},{"$f":"IF(practices!AN4=\"\",\"\",practices!AN4)","v":5}]
["Infusion on phantoms",{"$f":"IF(practices!AI5=\"\",\"\",practices!AI5)","v":4},{"$f":"IF(practices!AJ5=\"\",\"\",practices!AJ5)","v":2},{"$f":"IF(practices!AK5=\"\",\"\",practices!AK5)","v":3},{"$f":"IF(practices!AL5=\"\",\"\",practices!AL5)","v":5},{"$f":"IF(practices!AM5=\"\",\"\",practices!AM5)","v":3},{"$f":"IF(practices!AN5=\"\",\"\",practices!AN5)","v":4}]
["Infusion on phantoms",{"$f":"IF(practices!AI6=\"\",\"\",practices!AI6)","v":5},{"$f":"IF(practices!AJ6=\"\",\"\",practices!AJ6)","v":5},{"$f":"IF(practices!AK6=\"\",\"\",practices!AK6)","v":5},{"$f":"IF(practices!AL6=\"\",\"\",practices!AL6)","v":5},{"$f":"IF(practices!AM6=\"\",\"\",practices!AM6)","v":5},{"$f":"IF(practices!AN6=\"\",\"\",practices!AN6)","v":5}]
["Infusion on phantoms",{"$f":"IF(practices!AI7=\"\",\"\",practices!AI7)","v":5},{"$f":"IF(practices!AJ7=\"\",\"\",practices!AJ7)","v":4},{"$f":"IF(practices!AK7=\"\",\"\",practices!AK7)","v":4},{"$f":"IF(practices!AL7=\"\",\"\",practices!AL7)","v":5},{"$f":"IF(practices!AM7=\"\",\"\",practices!AM7)","v":5},{"$f":"IF(practices!AN7=\"\",\"\",practices!AN7)","v":5}]
["Infusion on phantoms",{"$f":"IF(practices!AI8=\"\",\"\",practices!AI8)","v":5},{"$f":"IF(practices!AJ8=\"\",\"\",practices!AJ8)","v":5},{"$f":"IF(practices!AK8=\"\",\"\",practices!AK8)","v":5},{"$f":"IF(practices!AL8=\"\",\"\",practices!AL8)","v":5},{"$f":"IF(practices!AM8=\"\",\"\",practices!AM8)","v":5},{"$f":"IF(practices!AN8=\"\",\"\",practices!AN8)","v":5}]
["Infusion on phantoms",{"$f":"IF(practices!AI9=\"\",\"\",practices!AI9)","v":5},{"$f":"IF(practices!AJ9=\"\",\"\",practices!AJ9)","v":5},{"$f":"IF(practices!AK9=\"\",\"\",practices!AK9)","v":5},{"$f":"IF(practices!AL9=\"\",\"\",practices!AL9)","v":5},{"$f":"IF(practices!AM9=\"\",\"\",practices!AM9)","v":5},{"$f":"IF(practices!AN9=\"\",\"\",practices!AN9)","v":""},null,null,"Sorcímkék","Átlag / Practice value"]
["Infusion on phantoms",{"$f":"IF(practices!AI10=\"\",\"\",practices!AI10)","v":5},{"$f":"IF(practices!AJ10=\"\",\"\",practices!AJ10)","v":5},{"$f":"IF(practices!AK10=\"\",\"\",practices!AK10)","v":5},{"$f":"IF(practices!AL10=\"\",\"\",practices!AL10)","v":5},{"$f":"IF(practices!AM10=\"\",\"\",practices!AM10)","v":5},{"$f":"IF(practices!AN10=\"\",\"\",practices!AN10)","v":5},null,null,"Alternatives",4.8181818181818183]
["Infusion on phantoms",{"$f":"IF(practices!AI11=\"\",\"\",practices!AI11)","v":5},{"$f":"IF(practices!AJ11=\"\",\"\",practices!AJ11)","v":4},{"$f":"IF(practices!AK11=\"\",\"\",practices!AK11)","v":5},{"$f":"IF(practices!AL11=\"\",\"\",practices!AL11)","v":5},{"$f":"IF(practices!AM11=\"\",\"\",practices!AM11)","v":5},{"$f":"IF(practices!AN11=\"\",\"\",practices!AN11)","v":5},null,null,"Anaesthesia",4.7142857142857144]
["Infusion on phantoms",{"$f":"IF(practices!AI12=\"\",\"\",practices!AI12)","v":5},{"$f":"IF(practices!AJ12=\"\",\"\",practices!AJ12)","v":5},{"$f":"IF(practices!AK12=\"\",\"\",practices!AK12)","v":5},{"$f":"IF(practices!AL12=\"\",\"\",practices!AL12)","v":5},{"$f":"IF(practices!AM12=\"\",\"\",practices!AM12)","v":5},{"$f":"IF(practices!AN12=\"\",\"\",practices!AN12)","v":5},null,null,"Aseptic techniques",4.9285714285714288]
["Infusion on phantoms",{"$f":"IF(practices!AI13=\"\",\"\",practices!AI13)","v":5},{"$f":"IF(practices!AJ13=\"\",\"\",practices!AJ13)","v":5},{"$f":"IF(practices!AK13=\"\",\"\",practices!AK13)","v":5},{"$f":"IF(practices!AL13=\"\",\"\",practices!AL13)","v":5},{"$f":"IF(practices!AM13=\"\",\"\",practices!AM13)","v":5},{"$f":"IF(practices!AN13=\"\",\"\",practices!AN13)","v":5},null,null,"Behaviour",4.9285714285714288]
["Infusion on phantoms",{"$f":"IF(practices!AI14=\"\",\"\",practices!AI14)","v":5},{"$f":"IF(practices!AJ14=\"\",\"\",practices!AJ14)","v":5},{"$f":"IF(practices!AK14=\"\",\"\",practices!AK14)","v":5},{"$f":"IF(practices!AL14=\"\",\"\",practices!AL14)","v":5},{"$f":"IF(practices!AM14=\"\",\"\",practices!AM14)","v":5},{"$f":"IF(practices!AN14=\"\",\"\",practices!AN14)","v":5},null,null,"Housing",4.7142857142857144]
["Infusion on phantoms",{"$f":"IF(practices!AI15=\"\",\"\",practices!AI15)","v":5},{"$f":"IF(practices!AJ15=\"\",\"\",practices!AJ15)","v":5},{"$f":"IF(practices!AK15=\"\",\"\",practices!AK15)","v":5},{"$f":"IF(practices!AL15=\"\",\"\",practices!AL15)","v":5},{"$f":"IF(practices!AM15=\"\",\"\",practices!AM15)","v":5},{"$f":"IF(practices!AN15=\"\",\"\",practices!AN15)","v":5},null,null,"Infusion on phantoms",4.8571428571428568]
["Infusion on phantoms",{"$f":"IF(practices!AI16=\"\",\"\",practices!AI16)","v":5},{"$f":"IF(practices!AJ16=\"\",\"\",practices!AJ16)","v":4},{"$f":"IF(practices!AK16=\"\",\"\",practices!AK16)","v":5},{"$f":"IF(practices!AL16=\"\",\"\",practices!AL16)","v":5},{"$f":"IF(practices!AM16=\"\",\"\",practices!AM16)","v":5},{"$f":"IF(practices!AN16=\"\",\"\",practices!AN16)","v":5},null,null,"Restraint",4.9285714285714288]
["Anaesthesia",{"$f":"IF(practices!AQ2=\"\",\"\",practices!AQ2)","v":5},{"$f":"IF(practices!AR2=\"\",\"\",practices!AR2)","v":5},{"$f":"IF(practices!AS2=\"\",\"\",practices!AS2)","v":5},{"$f":"IF(practices!AT2=\"\",\"\",practices!AT2)","v":5},{"$f":"IF(practices!AU2=\"\",\"\",practices!AU2)","v":5},{"$f":"IF(practices!AV2=\"\",\"\",practices!AV2)","v":5},null,null,"Surgical procedures",4.9230769230769234]
["Anaesthesia",{"$f":"IF(practices!AQ3=\"\",\"\",practices!AQ3)","v":""},{"$f":"IF(practices!AR3=\"\",\"\",practices!AR3)","v":""},{"$f":"IF(practices!AS3=\"\",\"\",practices!AS3)","v":""},{"$f":"IF(practices!AT3=\"\",\"\",practices!AT3)","v":""},{"$f":"IF(practices!AU3=\"\",\"\",practices!AU3)","v":""},{"$f":"IF(practices!AV3=\"\",\"\",practices!AV3)","v":""},null,null,"Suturing",4.8571428571428568]
["Anaesthesia",{"$f":"IF(practices!AQ4=\"\",\"\",practices!AQ4)","v":2},{"$f":"IF(practices!AR4=\"\",\"\",practices!AR4)","v":2},{"$f":"IF(practices!AS4=\"\",\"\",practices!AS4)","v":2},{"$f":"IF(practices!AT4=\"\",\"\",practices!AT4)","v":3},{"$f":"IF(practices!AU4=\"\",\"\",practices!AU4)","v":3},{"$f":"IF(practices!AV4=\"\",\"\",practices!AV4)","v":""},null,null,"Zebrafish",4.7142857142857144]
["Anaesthesia",{"$f":"IF(practices!AQ5=\"\",\"\",practices!AQ5)","v":5},{"$f":"IF(practices!AR5=\"\",\"\",practices!AR5)","v":3},{"$f":"IF(practices!AS5=\"\",\"\",practices!AS5)","v":5},{"$f":"IF(practices!AT5=\"\",\"\",practices!AT5)","v":5},{"$f":"IF(practices!AU5=\"\",\"\",practices!AU5)","v":4},{"$f":"IF(practices!AV5=\"\",\"\",practices!AV5)","v":5},null,null,"Végösszeg",4.8382352941176467]
["Anaesthesia",{"$f":"IF(practices!AQ6=\"\",\"\",practices!AQ6)","v":5},{"$f":"IF(practices!AR6=\"\",\"\",practices!AR6)","v":5},{"$f":"IF(practices!AS6=\"\",\"\",practices!AS6)","v":5},{"$f":"IF(practices!AT6=\"\",\"\",practices!AT6)","v":5},{"$f":"IF(practices!AU6=\"\",\"\",practices!AU6)","v":5},{"$f":"IF(practices!AV6=\"\",\"\",practices!AV6)","v":5}]
["Anaesthesia",{"$f":"IF(practices!AQ7=\"\",\"\",practices!AQ7)","v":5},{"$f":"IF(practices!AR7=\"\",\"\",practices!AR7)","v":3},{"$f":"IF(practices!AS7=\"\",\"\",practices!AS7)","v":5},{"$f":"IF(practices!AT7=\"\",\"\",practices!AT7)","v":4},{"$f":"IF(practices!AU7=\"\",\"\",practices!AU7)","v":4},{"$f":"IF(practices!AV7=\"\",\"\",practices!AV7)","v":4}]
["Anaesthesia",{"$f":"IF(practices!AQ8=\"\",\"\",practices!AQ8)","v":5},{"$f":"IF(practices!AR8=\"\",\"\",practices!AR8)","v":5},{"$f":"IF(practices!AS8=\"\",\"\",practices!AS8)","v":5},{"$f":"IF(practices!AT8=\"\",\"\",practices!AT8)","v":5},{"$f":"IF(practices!AU8=\"\",\"\",practices!AU8)","v":5},{"$f":"IF(practices!AV8=\"\",\"\",practices!AV8)","v":5}]
["Anaesthesia",{"$f":"IF(practices!AQ9=\"\",\"\",practices!AQ9)","v":5},{"$f":"IF(practices!AR9=\"\",\"\",practices!AR9)","v":5},{"$f":"IF(practices!AS9=\"\",\"\",practices!AS9)","v":5},{"$f":"IF(practices!AT9=\"\",\"\",practices!AT9)","v":5},{"$f":"IF(practices!AU9=\"\",\"\",practices!AU9)","v":5},{"$f":"IF(practices!AV9=\"\",\"\",practices!AV9)","v":""}]
["Anaesthesia",{"$f":"IF(practices!AQ10=\"\",\"\",practices!AQ10)","v":5},{"$f":"IF(practices!AR10=\"\",\"\",practices!AR10)","v":5},{"$f":"IF(practices!AS10=\"\",\"\",practices!AS10)","v":5},{"$f":"IF(practices!AT10=\"\",\"\",practices!AT10)","v":5},{"$f":"IF(practices!AU10=\"\",\"\",practices!AU10)","v":5},{"$f":"IF(practices!AV10=\"\",\"\",practices!AV10)","v":5}]
["Anaesthesia",{"$f":"IF(practices!AQ11=\"\",\"\",practices!AQ11)","v":5},{"$f":"IF(practices!AR11=\"\",\"\",practices!AR11)","v":5},{"$f":"IF(practices!AS11=\"\",\"\",practices!AS11)","v":5},{"$f":"IF(practices!AT11=\"\",\"\",practices!AT11)","v":5},{"$f":"IF(practices!AU11=\"\",\"\",practices!AU11)","v":5},{"$f":"IF(practices!AV11=\"\",\"\",practices!AV11)","v":""}]
["Anaesthesia",{"$f":"IF(practices!AQ12=\"\",\"\",practices!AQ12)","v":5},{"$f":"IF(practices!AR12=\"\",\"\",practices!AR12)","v":5},{"$f":"IF(practices!AS12=\"\",\"\",practices!AS12)","v":5},{"$f":"IF(practices!AT12=\"\",\"\",practices!AT12)","v":5},{"$f":"IF(practices!AU12=\"\",\"\",practices!AU12)","v":5},{"$f":"IF(practices!AV12=\"\",\"\",practices!AV12)","v":5},null,null,"Sorcímkék","Átlag / Syllabus"]
["Anaesthesia",{"$f":"IF(practices!AQ13=\"\",\"\",practices!AQ13)","v":5},{"$f":"IF(practices!AR13=\"\",\"\",practices!AR13)","v":5},{"$f":"IF(practices!AS13=\"\",\"\",practices!AS13)","v":5},{"$f":"IF(practices!AT13=\"\",\"\",practices!AT13)","v":5},{"$f":"IF(practices!AU13=\"\",\"\",practices!AU13)","v":5},{"$f":"IF(practices!AV13=\"\",\"\",practices!AV13)","v":5},null,null,"Alternatives",4.9000000000000004]
["Anaesthesia",{"$f":"IF(practices!AQ14=\"\",\"\",practices!AQ14)","v":5},{"$f":"IF(practices!AR14=\"\",\"\",practices!AR14)","v":5},{"$f":"IF(practices!AS14=\"\",\"\",practices!AS14)","v":5},{"$f":"IF(practices!AT14=\"\",\"\",practices!AT14)","v":5},{"$f":"IF(practices!AU14=\"\",\"\",practices!AU14)","v":5},{"$f":"IF(practices!AV14=\"\",\"\",practices!AV14)","v":5},null,null,"Anaesthesia",4.9090909090909092]
["Anaesthesia",{"$f":"IF(practices!AQ15=\"\",\"\",practices!AQ15)","v":5},{"$f":"IF(practices!AR15=\"\",\"\",practices!AR15)","v":5},{"$f":"IF(practices!AS15=\"\",\"\",practices!AS15)","v":5},{"$f":"IF(practices!AT15=\"\",\"\",practices!AT15)","v":5},{"$f":"IF(practices!AU15=\"\",\"\",practices!AU15)","v":5},{"$f":"IF(practices!AV15=\"\",\"\",practices!AV15)","v":5},null,null,"Aseptic techniques",4.8461538461538458]
["Anaesthesia",{"$f":"IF(practices!AQ16=\"\",\"\",practices!AQ16)","v":5},{"$f":"IF(practices!AR16=\"\",\"\",practices!AR16)","v":5},{"$f":"IF(practices!AS16=\"\",\"\",practices!AS16)","v":5},{"$f":"IF(practices!AT16=\"\",\"\",practices!AT16)","v":5},{"$f":"IF(practices!AU16=\"\",\"\",practices!AU16)","v":5},{"$f":"IF(practices!AV16=\"\",\"\",practices!AV16)","v":5},null,null,"Behaviour",4.833333333333333]
["Aseptic techniques",{"$f":"IF(practices!AY2=\"\",\"\",practices!AY2)","v":5},{"$f":"IF(practices!AZ2=\"\",\"\",practices!AZ2)","v":5},{"$f":"IF(practices!BA2=\"\",\"\",practices!BA2)","v":5},{"$f":"IF(practices!BB2=\"\",\"\",practices!BB2)","v":5},{"$f":"IF(practices!BC2=\"\",\"\",practices!BC2)","v":5},{"$f":"IF(practices!BD2=\"\",\"\",practices!BD2)","v":5},null,null,"Housing",4.9230769230769234]
["Aseptic techniques",{"$f":"IF(practices!AY3=\"\",\"\",practices!AY3)","v":""},{"$f":"IF(practices!AZ3=\"\",\"\",practices!AZ3)","v":""},{"$f":"IF(practices!BA3=\"\",\"\",practices!BA3)","v":""},{"$f":"IF(practices!BB3=\"\",\"\",practices!BB3)","v":""},{"$f":"IF(practices!BC3=\"\",\"\",practices!BC3)","v":""},{"$f":"IF(practices!BD3=\"\",\"\",practices!BD3)","v":""},null,null,"Infusion on phantoms",4.9230769230769234]
["Aseptic techniques",{"$f":"IF(practices!AY4=\"\",\"\",practices!AY4)","v":5},{"$f":"IF(practices!AZ4=\"\",\"\",practices!AZ4)","v":5},{"$f":"IF(practices!BA4=\"\",\"\",practices!BA4)","v":5},{"$f":"IF(practices!BB4=\"\",\"\",practices!BB4)","v":5},{"$f":"IF(practices!BC4=\"\",\"\",practices!BC4)","v":5},{"$f":"IF(practices!BD4=\"\",\"\",practices!BD4)","v":5},null,null,"Restraint",4.916666666666667]
["Aseptic techniques",{"$f":"IF(practices!AY5=\"\",\"\",practices!AY5)","v":4},{"$f":"IF(practices!AZ5=\"\",\"\",practices!AZ5)","v":3},{"$f":"IF(practices!BA5=\"\",\"\",practices!BA5)","v":5},{"$f":"IF(practices!BB5=\"\",\"\",practices!BB5)","v":5},{"$f":"IF(practices!BC5=\"\",\"\",practices!BC5)","v":4},{"$f":"IF(practices!BD5=\"\",\"\",practices!BD5)","v":5},null,null,"Surgical procedures",5]
["Aseptic techniques",{"$f":"IF(practices!AY6=\"\",\"\",practices!AY6)","v":5},{"$f":"IF(practices!AZ6=\"\",\"\",practices!AZ6)","v":5},{"$f":"IF(practices!BA6=\"\",\"\",practices!BA6)","v":5},{"$f":"IF(practices!BB6=\"\",\"\",practices!BB6)","v":5},{"$f":"IF(practices!BC6=\"\",\"\",practices!BC6)","v":5},{"$f":"IF(practices!BD6=\"\",\"\",practices!BD6)","v":5},null,null,"Suturing",4.9230769230769234]
["Aseptic techniques",{"$f":"IF(practices!AY7=\"\",\"\",practices!AY7)","v":5},{"$f":"IF(practices!AZ7=\"\",\"\",practices!AZ7)","v":5},{"$f":"IF(practices!BA7=\"\",\"\",practices!BA7)","v":5},{"$f":"IF(practices!BB7=\"\",\"\",practices!BB7)","v":5},{"$f":"IF(practices!BC7=\"\",\"\",practices!BC7)","v":5},{"$f":"IF(practices!BD7=\"\",\"\",practices!BD7)","v":4},null,null,"Zebrafish",4.6923076923076925]
["Aseptic techniques",{"$f":"IF(practices!AY8=\"\",\"\",practices!AY8)","v":5},{"$f":"IF(practices!AZ8=\"\",\"\",practices!AZ8)","v":5},{"$f":"IF(practices!BA8=\"\",\"\",practices!BA8)","v":5},{"$f":"IF(practices!BB8=\"\",\"\",practices!BB8)","v":5},{"$f":"IF(practices!BC8=\"\",\"\",practices!BC8)","v":5},{"$f":"IF(practices!BD8=\"\",\"\",practices!BD8)","v":5},null,null,"Végösszeg",4.8852459016393439]
["Aseptic techniques",{"$f":"IF(practices!AY9=\"\",\"\",practices!AY9)","v":5},{"$f":"IF(practices!AZ9=\"\",\"\",practices!AZ9)","v":5},{"$f":"IF(practices!BA9=\"\",\"\",practices!BA9)","v":5},{"$f":"IF(practices!BB9=\"\",\"\",practices!BB9)","v":5},{"$f":"IF(practices!BC9=\"\",\"\",practices!BC9)","v":5},{"$f":"IF(practices!BD9=\"\",\"\",practices!BD9)","v":""}]
["Aseptic techniques",{"$f":"IF(practices!AY10=\"\",\"\",practices!AY10)","v":5},{"$f":"IF(practices!AZ10=\"\",\"\",practices!AZ10)","v":5},{"$f":"IF(practices!BA10=\"\",\"\",practices!BA10)","v":5},{"$f":"IF(practices!BB10=\"\",\"\",practices!BB10)","v":5},{"$f":"IF(practices!BC10=\"\",\"\",practices!BC10)","v":5},{"$f":"IF(practices!BD10=\"\",\"\",practices!BD10)","v":5}]
["Aseptic techniques",{"$f":"IF(practices!AY11=\"\",\"\",practices!AY11)","v":5},{"$f":"IF(practices!AZ11=\"\",\"\",practices!AZ11)","v":4},{"$f":"IF(practices!BA11=\"\",\"\",practices!BA11)","v":5},{"$f":"IF(practices!BB11=\"\",\"\",practices!BB11)","v":4},{"$f":"IF(practices!BC11=\"\",\"\",practices!BC11)","v":5},{"$f":"IF(practices!BD11=\"\",\"\",practices!BD11)","v":4}]
["Aseptic techniques",{"$f":"IF(practices!AY12=\"\",\"\",practices!AY12)","v":5},{"$f":"IF(practices!AZ12=\"\",\"\",practices!AZ12)","v":5},{"$f":"IF(practices!BA12=\"\",\"\",practices!BA12)","v":5},{"$f":"IF(practices!BB12=\"\",\"\",practices!BB12)","v":5},{"$f":"IF(practices!BC12=\"\",\"\",practices!BC12)","v":5},{"$f":"IF(practices!BD12=\"\",\"\",practices!BD12)","v":5}]
["Aseptic techniques",{"$f":"IF(practices!AY13=\"\",\"\",practices!AY13)","v":5},{"$f":"IF(practices!AZ13=\"\",\"\",practices!AZ13)","v":5},{"$f":"IF(practices!BA13=\"\",\"\",practices!BA13)","v":5},{"$f":"IF(practices!BB13=\"\",\"\",practices!BB13)","v":5},{"$f":"IF(practices!BC13=\"\",\"\",practices!BC13)","v":5},{"$f":"IF(practices!BD13=\"\",\"\",practices!BD13)","v":5}]
["Aseptic techniques",{"$f":"IF(practices!AY14=\"\",\"\",practices!AY14)","v":5},{"$f":"IF(practices!AZ14=\"\",\"\",practices!AZ14)","v":5},{"$f":"IF(practices!BA14=\"\",\"\",practices!BA14)","v":5},{"$f":"IF(practices!BB14=\"\",\"\",practices!BB14)","v":5},{"$f":"IF(practices!BC14=\"\",\"\",practices!BC14)","v":5},{"$f":"IF(practices!BD14=\"\",\"\",practices!BD14)","v":5}]
["Aseptic techniques",{"$f":"IF(practices!AY15=\"\",\"\",practices!AY15)","v":5},{"$f":"IF(practices!AZ15=\"\",\"\",practices!AZ15)","v":5},{"$f":"IF(practices!BA15=\"\",\"\",practices!BA15)","v":5},{"$f":"IF(practices!BB15=\"\",\"\",practices!BB15)","v":5},{"$f":"IF(practices!BC15=\"\",\"\",practices!BC15)","v":5},{"$f":"IF(practices!BD15=\"\",\"\",practices!BD15)","v":5}]
["Aseptic techniques",{"$f":"IF(practices!AY16=\"\",\"\",practices!AY16)","v":5},{"$f":"IF(practices!AZ16=\"\",\"\",practices!AZ16)","v":5},{"$f":"IF(practices!BA16=\"\",\"\",practices!BA16)","v":5},{"$f":"IF(practices!BB16=\"\",\"\",practices!BB16)","v":5},{"$f":"IF(practices!BC16=\"\",\"\",practices!BC16)","v":5},{"$f":"IF(practices!BD16=\"\",\"\",practices!BD16)","v":5}]
["Suturing",{"$f":"IF(practices!BG2=\"\",\"\",practices!BG2)","v":5},{"$f":"IF(practices!BH2=\"\",\"\",practices!BH2)","v":5},{"$f":"IF(practices!BI2=\"\",\"\",practices!BI2)","v":5},{"$f":"IF(practices!BJ2=\"\",\"\",practices!BJ2)","v":5},{"$f":"IF(practices!BK2=\"\",\"\",practices!BK2)","v":5},{"$f":"IF(practices!BL2=\"\",\"\",practices!BL2)","v":5}]
["Suturing",{"$f":"IF(practices!BG3=\"\",\"\",practices!BG3)","v":""},{"$f":"IF(practices!BH3=\"\",\"\",practices!BH3)","v":""},{"$f":"IF(practices!BI3=\"\",\"\",practices!BI3)","v":""},{"$f":"IF(practices!BJ3=\"\",\"\",practices!BJ3)","v":""},{"$f":"IF(practices!BK3=\"\",\"\",practices!BK3)","v":""},{"$f":"IF(practices!BL3=\"\",\"\",practices!BL3)","v":""}]
["Suturing",{"$f":"IF(practices!BG4=\"\",\"\",practices!BG4)","v":5},{"$f":"IF(practices!BH4=\"\",\"\",practices!BH4)","v":5},{"$f":"IF(practices!BI4=\"\",\"\",practices!BI4)","v":5},{"$f":"IF(practices!BJ4=\"\",\"\",practices!BJ4)","v":5},{"$f":"IF(practices!BK4=\"\",\"\",practices!BK4)","v":5},{"$f":"IF(practices!BL4=\"\",\"\",practices!BL4)","v":5}]
["Suturing",{"$f":"IF(practices!BG5=\"\",\"\",practices!BG5)","v":4},{"$f":"IF(practices!BH5=\"\",\"\",practices!BH5)","v":3},{"$f":"IF(practices!BI5=\"\",\"\",practices!BI5)","v":5},{"$f":"IF(practices!BJ5=\"\",\"\",practices!BJ5)","v":5},{"$f":"IF(practices!BK5=\"\",\"\",practices!BK5)","v":4},{"$f":"IF(practices!BL5=\"\",\"\",practices!BL5)","v":5}]
["Suturing",{"$f":"IF(practices!BG6=\"\",\"\",practices!BG6)","v":5},{"$f":"IF(practices!BH6=\"\",\"\",practices!BH6)","v":5},{"$f":"IF(practices!BI6=\"\",\"\",practices!BI6)","v":5},{"$f":"IF(practices!BJ6=\"\",\"\",practices!BJ6)","v":5},{"$f":"IF(practices!BK6=\"\",\"\",practices!BK6)","v":5},{"$f":"IF(practices!BL6=\"\",\"\",practices!BL6)","v":5}]
["Suturing",{"$f":"IF(practices!BG7=\"\",\"\",practices!BG7)","v":5},{"$f":"IF(practices!BH7=\"\",\"\",practices!BH7)","v":5},{"$f":"IF(practices!BI7=\"\",\"\",practices!BI7)","v":5},{"$f":"IF(practices!BJ7=\"\",\"\",practices!BJ7)","v":5},{"$f":"IF(practices!BK7=\"\",\"\",practices!BK7)","v":5},{"$f":"IF(practices!BL7=\"\",\"\",practices!BL7)","v":4}]
["Suturing",{"$f":"IF(practices!BG8=\"\",\"\",practices!BG8)","v":5},{"$f":"IF(practices!BH8=\"\",\"\",practices!BH8)","v":5},{"$f":"IF(practices!BI8=\"\",\"\",practices!BI8)","v":5},{"$f":"IF(practices!BJ8=\"\",\"\",practices!BJ8)","v":5},{"$f":"IF(practices!BK8=\"\",\"\",practices!BK8)","v":5},{"$f":"IF(practices!BL8=\"\",\"\",practices!BL8)","v":5}]
["Suturing",{"$f":"IF(practices!BG9=\"\",\"\",practices!BG9)","v":5},{"$f":"IF(practices!BH9=\"\",\"\",practices!BH9)","v":5},{"$f":"IF(practices!BI9=\"\",\"\",practices!BI9)","v":5},{"$f":"IF(practices!BJ9=\"\",\"\",practices!BJ9)","v":5},{"$f":"IF(practices!BK9=\"\",\"\",practices!BK9)","v":5},{"$f":"IF(practices!BL9=\"\",\"\",practices!BL9)","v":""}]
["Suturing",{"$f":"IF(practices!BG10=\"\",\"\",practices!BG10)","v":5},{"$f":"IF(practices!BH10=\"\",\"\",practices!BH10)","v":5},{"$f":"IF(practices!BI10=\"\",\"\",practices!BI10)","v":5},{"$f":"IF(practices!BJ10=\"\",\"\",practices!BJ10)","v":5},{"$f":"IF(practices!BK10=\"\",\"\",practices!BK10)","v":5},{"$f":"IF(practices!BL10=\"\",\"\",practices!BL10)","v":5}]
["Suturing",{"$f":"IF(practices!BG11=\"\",\"\",practices!BG11)","v":5},{"$f":"IF(practices!BH11=\"\",\"\",practices!BH11)","v":4},{"$f":"IF(practices!BI11=\"\",\"\",practices!BI11)","v":4},{"$f":"IF(practices!BJ11=\"\",\"\",practices!BJ11)","v":5},{"$f":"IF(practices!BK11=\"\",\"\",practices!BK11)","v":4},{"$f":"IF(practices!BL11=\"\",\"\",practices!BL11)","v":5}]
["Suturing",{"$f":"IF(practices!BG12=\"\",\"\",practices!BG12)","v":5},{"$f":"IF(practices!BH12=\"\",\"\",practices!BH12)","v":5},{"$f":"IF(practices!BI12=\"\",\"\",practices!BI12)","v":5},{"$f":"IF(practices!BJ12=\"\",\"\",practices!BJ12)","v":5},{"$f":"IF(practices!BK12=\"\",\"\",practices!BK12)","v":5},{"$f":"IF(practices!BL12=\"\",\"\",practices!BL12)","v":5}]
["Suturing",{"$f":"IF(practices!BG13=\"\",\"\",practices!BG13)","v":5},{"$f":"IF(practices!BH13=\"\",\"\",practices!BH13)","v":5},{"$f":"IF(practices!BI13=\"\",\"\",practices!BI13)","v":5},{"$f":"IF(practices!BJ13=\"\",\"\",practices!BJ13)","v":5},{"$f":"IF(practices!BK13=\"\",\"\",practices!BK13)","v":5},{"$f":"IF(practices!BL13=\"\",\"\",practices!BL13)","v":5}]
["Suturing",{"$f":"IF(practices!BG14=\"\",\"\",practices!BG14)","v":5},{"$f":"IF(practices!BH14=\"\",\"\",practices!BH14)","v":5},{"$f":"IF(practices!BI14=\"\",\"\",practices!BI14)","v":5},{"$f":"IF(practices!BJ14=\"\",\"\",practices!BJ14)","v":5},{"$f":"IF(practices!BK14=\"\",\"\",practices!BK14)","v":5},{"$f":"IF(practices!BL14=\"\",\"\",practices!BL14)","v":5}]
["Suturing",{"$f":"IF(practices!BG15=\"\",\"\",practices!BG15)","v":5},{"$f":"IF(practices!BH15=\"\",\"\",practices!BH15)","v":5},{"$f":"IF(practices!BI15=\"\",\"\",practices!BI15)","v":5},{"$f":"IF(practices!BJ15=\"\",\"\",practices!BJ15)","v":5},{"$f":"IF(practices!BK15=\"\",\"\",practices!BK15)","v":5},{"$f":"IF(practices!BL15=\"\",\"\",practices!BL15)","v":5}]
["Suturing",{"$f":"IF(practices!BG16=\"\",\"\",practices!BG16)","v":5},{"$f":"IF(practices!BH16=\"\",\"\",practices!BH16)","v":5},{"$f":"IF(practices!BI16=\"\",\"\",practices!BI16)","v":5},{"$f":"IF(practices!BJ16=\"\",\"\",practices!BJ16)","v":5},{"$f":"IF(practices!BK16=\"\",\"\",practices!BK16)","v":5},{"$f":"IF(practices!BL16=\"\",\"\",practices!BL16)","v":5}]
["Surgical procedures",{"$f":"IF(practices!BO2=\"\",\"\",practices!BO2)","v":5},{"$f":"IF(practices!BP2=\"\",\"\",practices!BP2)","v":3},{"$f":"IF(practices!BQ2=\"\",\"\",practices!BQ2)","v":5},{"$f":"IF(practices!BR2=\"\",\"\",practices!BR2)","v":5},{"$f":"IF(practices!BS2=\"\",\"\",practices!BS2)","v":4},{"$f":"IF(practices!BT2=\"\",\"\",practices!BT2)","v":5}]
["Surgical procedures",{"$f":"IF(practices!BO3=\"\",\"\",practices!BO3)","v":""},{"$f":"IF(practices!BP3=\"\",\"\",practices!BP3)","v":""},{"$f":"IF(practices!BQ3=\"\",\"\",practices!BQ3)","v":""},{"$f":"IF(practices!BR3=\"\",\"\",practices!BR3)","v":""},{"$f":"IF(practices!BS3=\"\",\"\",practices!BS3)","v":""},{"$f":"IF(practices!BT3=\"\",\"\",practices!BT3)","v":""}]
["Surgical procedures",{"$f":"IF(practices!BO4=\"\",\"\",practices!BO4)","v":5},{"$f":"IF(practices!BP4=\"\",\"\",practices!BP4)","v":5},{"$f":"IF(practices!BQ4=\"\",\"\",practices!BQ4)","v":5},{"$f":"IF(practices!BR4=\"\",\"\",practices!BR4)","v":5},{"$f":"IF(practices!BS4=\"\",\"\",practices!BS4)","v":5},{"$f":"IF(practices!BT4=\"\",\"\",practices!BT4)","v":5}]
["Surgical procedures",{"$f":"IF(practices!BO5=\"\",\"\",practices!BO5)","v":5},{"$f":"IF(practices!BP5=\"\",\"\",practices!BP5)","v":5},{"$f":"IF(practices!BQ5=\"\",\"\",practices!BQ5)","v":5},{"$f":"IF(practices!BR5=\"\",\"\",practices!BR5)","v":5},{"$f":"IF(practices!BS5=\"\",\"\",practices!BS5)","v":5},{"$f":"IF(practices!BT5=\"\",\"\",practices!BT5)","v":5}]
["Surgical procedures",{"$f":"IF(practices!BO6=\"\",\"\",practices!BO6)","v":5},{"$f":"IF(practices!BP6=\"\",\"\",practices!BP6)","v":5},{"$f":"IF(practices!BQ6=\"\",\"\",practices!BQ6)","v":5},{"$f":"IF(practices!BR6=\"\",\"\",practices!BR6)","v":5},{"$f":"IF(practices!BS6=\"\",\"\",practices!BS6)","v":5},{"$f":"IF(practices!BT6=\"\",\"\",practices!BT6)","v":5}]
["Surgical procedures",{"$f":"IF(practices!BO7=\"\",\"\",practices!BO7)","v":5},{"$f":"IF(practices!BP7=\"\",\"\",practices!BP7)","v":5},{"$f":"IF(practices!BQ7=\"\",\"\",practices!BQ7)","v":5},{"$f":"IF(practices!BR7=\"\",\"\",practices!BR7)","v":5},{"$f":"IF(practices!BS7=\"\",\"\",practices!BS7)","v":5},{"$f":"IF(practices!BT7=\"\",\"\",practices!BT7)","v":5}]
["Surgical procedures",{"$f":"IF(practices!BO8=\"\",\"\",practices!BO8)","v":5},{"$f":"IF(practices!BP8=\"\",\"\",practices!BP8)","v":5},{"$f":"IF(practices!BQ8=\"\",\"\",practices!BQ8)","v":5},{"$f":"IF(practices!BR8=\"\",\"\",practices!BR8)","v":5},{"$f":"IF(practices!BS8=\"\",\"\",practices!BS8)","v":5},{"$f":"IF(practices!BT8=\"\",\"\",practices!BT8)","v":5}]
["Surgical procedures",{"$f":"IF(practices!BO9=\"\",\"\",practices!BO9)","v":5},{"$f":"IF(practices!BP9=\"\",\"\",practices!BP9)","v":5},{"$f":"IF(practices!BQ9=\"\",\"\",practices!BQ9)","v":5},{"$f":"IF(practices!BR9=\"\",\"\",practices!BR9)","v":5},{"$f":"IF(practices!BS9=\"\",\"\",practices!BS9)","v":5},{"$f":"IF(practices!BT9=\"\",\"\",practices!BT9)","v":""}]
["Surgical procedures",{"$f":"IF(practices!BO10=\"\",\"\",practices!BO10)","v":5},{"$f":"IF(practices!BP10=\"\",\"\",practices!BP10)","v":5},{"$f":"IF(practices!BQ10=\"\",\"\",practices!BQ10)","v":5},{"$f":"IF(practices!BR10=\"\",\"\",practices!BR10)","v":5},{"$f":"IF(practices!BS10=\"\",\"\",practices!BS10)","v":5},{"$f":"IF(practices!BT10=\"\",\"\",practices!BT10)","v":5}]
["Surgical procedures",{"$f":"IF(practices!BO11=\"\",\"\",practices!BO11)","v":5},{"$f":"IF(practices!BP11=\"\",\"\",practices!BP11)","v":5},{"$f":"IF(practices!BQ11=\"\",\"\",practices!BQ11)","v":5},{"$f":"IF(practices!BR11=\"\",\"\",practices!BR11)","v":5},{"$f":"IF(practices!BS11=\"\",\"\",practices!BS11)","v":5},{"$f":"IF(practices!BT11=\"\",\"\",practices!BT11)","v":5}]
["Surgical procedures",{"$f":"IF(practices!BO12=\"\",\"\",practices!BO12)","v":""},{"$f":"IF(practices!BP12=\"\",\"\",practices!BP12)","v":""},{"$f":"IF(practices!BQ12=\"\",\"\",practices!BQ12)","v":""},{"$f":"IF(practices!BR12=\"\",\"\",practices!BR12)","v":""},{"$f":"IF(practices!BS12=\"\",\"\",practices!BS12)","v":""},{"$f":"IF(practices!BT12=\"\",\"\",practices!BT12)","v":""}]
["Surgical procedures",{"$f":"IF(practices!BO13=\"\",\"\",practices!BO13)","v":5},{"$f":"IF(practices!BP13=\"\",\"\",practices!BP13)","v":5},{"$f":"IF(practices!BQ13=\"\",\"\",practices!BQ13)","v":5},{"$f":"IF(practices!BR13=\"\",\"\",practices!BR13)","v":5},{"$f":"IF(practices!BS13=\"\",\"\",practices!BS13)","v":5},{"$f":"IF(practices!BT13=\"\",\"\",practices!BT13)","v":5}]
["Surgical procedures",{"$f":"IF(practices!BO14=\"\",\"\",practices!BO14)","v":5},{"$f":"IF(practices!BP14=\"\",\"\",practices!BP14)","v":5},{"$f":"IF(practices!BQ14=\"\",\"\",practices!BQ14)","v":5},{"$f":"IF(practices!BR14=\"\",\"\",practices!BR14)","v":5},{"$f":"IF(practices!BS14=\"\",\"\",practices!BS14)","v":5},{"$f":"IF(practices!BT14=\"\",\"\",practices!BT14)","v":5}]
["Surgical procedures",{"$f":"IF(practices!BO15=\"\",\"\",practices!BO15)","v":5},{"$f":"IF(practices!BP15=\"\",\"\",practices!BP15)","v":5},{"$f":"IF(practices!BQ15=\"\",\"\",practices!BQ15)","v":5},{"$f":"IF(practices!BR15=\"\",\"\",practices!BR15)","v":5},{"$f":"IF(practices!BS15=\"\",\"\",practices!BS15)","v":5},{"$f":"IF(practices!BT15=\"\",\"\",practices!BT15)","v":5}]
["Surgical procedures",{"$f":"IF(practices!BO16=\"\",\"\",practices!BO16)","v":5},{"$f":"IF(practices!BP16=\"\",\"\",practices!BP16)","v":5},{"$f":"IF(practices!BQ16=\"\",\"\",practices!BQ16)","v":5},{"$f":"IF(practices!BR16=\"\",\"\",practices!BR16)","v":5},{"$f":"IF(practices!BS16=\"\",\"\",practices!BS16)","v":5},{"$f":"IF(practices!BT16=\"\",\"\",practices!BT16)","v":5}]
["Alternatives",{"$f":"IF(practices!BW2=\"\",\"\",practices!BW2)","v":""},{"$f":"IF(practices!BX2=\"\",\"\",practices!BX2)","v":""},{"$f":"IF(practices!BY2=\"\",\"\",practices!BY2)","v":""},{"$f":"IF(practices!BZ2=\"\",\"\",practices!BZ2)","v":""},{"$f":"IF(practices!CA2=\"\",\"\",practices!CA2)","v":""},{"$f":"IF(practices!CB2=\"\",\"\",practices!CB2)","v":""}]
["Alternatives",{"$f":"IF(practices!BW3=\"\",\"\",practices!BW3)","v":""},{"$f":"IF(practices!BX3=\"\",\"\",practices!BX3)","v":""},{"$f":"IF(practices!BY3=\"\",\"\",practices!BY3)","v":""},{"$f":"IF(practices!BZ3=\"\",\"\",practices!BZ3)","v":""},{"$f":"IF(practices!CA3=\"\",\"\",practices!CA3)","v":""},{"$f":"IF(practices!CB3=\"\",\"\",practices!CB3)","v":""}]
["Alternatives",{"$f":"IF(practices!BW4=\"\",\"\",practices!BW4)","v":5},{"$f":"IF(practices!BX4=\"\",\"\",practices!BX4)","v":5},{"$f":"IF(practices!BY4=\"\",\"\",practices!BY4)","v":5},{"$f":"IF(practices!BZ4=\"\",\"\",practices!BZ4)","v":5},{"$f":"IF(practices!CA4=\"\",\"\",practices!CA4)","v":5},{"$f":"IF(practices!CB4=\"\",\"\",practices!CB4)","v":5}]
["Alternatives",{"$f":"IF(practices!BW5=\"\",\"\",practices!BW5)","v":4},{"$f":"IF(practices!BX5=\"\",\"\",practices!BX5)","v":4},{"$f":"IF(practices!BY5=\"\",\"\",practices!BY5)","v":4},{"$f":"IF(practices!BZ5=\"\",\"\",practices!BZ5)","v":4},{"$f":"IF(practices!CA5=\"\",\"\",practices!CA5)","v":4},{"$f":"IF(practices!CB5=\"\",\"\",practices!CB5)","v":4}]
["Alternatives",{"$f":"IF(practices!BW6=\"\",\"\",practices!BW6)","v":""},{"$f":"IF(practices!BX6=\"\",\"\",practices!BX6)","v":""},{"$f":"IF(practices!BY6=\"\",\"\",practices!BY6)","v":""},{"$f":"IF(practices!BZ6=\"\",\"\",practices!BZ6)","v":""},{"$f":"IF(practices!CA6=\"\",\"\",practices!CA6)","v":""},{"$f":"IF(practices!CB6=\"\",\"\",practices!CB6)","v":""}]
["Alternatives",{"$f":"IF(practices!BW7=\"\",\"\",practices!BW7)","v":5},{"$f":"IF(practices!BX7=\"\",\"\",practices!BX7)","v":5},{"$f":"IF(practices!BY7=\"\",\"\",practices!BY7)","v":5},{"$f":"IF(practices!BZ7=\"\",\"\",practices!BZ7)","v":5},{"$f":"IF(practices!CA7=\"\",\"\",practices!CA7)","v":4},{"$f":"IF(practices!CB7=\"\",\"\",practices!CB7)","v":5}]
["Alternatives",{"$f":"IF(practices!BW8=\"\",\"\",practices!BW8)","v":5},{"$f":"IF(practices!BX8=\"\",\"\",practices!BX8)","v":5},{"$f":"IF(practices!BY8=\"\",\"\",practices!BY8)","v":5},{"$f":"IF(practices!BZ8=\"\",\"\",practices!BZ8)","v":5},{"$f":"IF(practices!CA8=\"\",\"\",practices!CA8)","v":5},{"$f":"IF(practices!CB8=\"\",\"\",practices!CB8)","v":5}]
["Alternatives",{"$f":"IF(practices!BW9=\"\",\"\",practices!BW9)","v":5},{"$f":"IF(practices!BX9=\"\",\"\",practices!BX9)","v":5},{"$f":"IF(practices!BY9=\"\",\"\",practices!BY9)","v":5},{"$f":"IF(practices!BZ9=\"\",\"\",practices!BZ9)","v":5},{"$f":"IF(practices!CA9=\"\",\"\",practices!CA9)","v":5},{"$f":"IF(practices!CB9=\"\",\"\",practices!CB9)","v":""}]
["Alternatives",{"$f":"IF(practices!BW10=\"\",\"\",practices!BW10)","v":5},{"$f":"IF(practices!BX10=\"\",\"\",practices!BX10)","v":5},{"$f":"IF(practices!BY10=\"\",\"\",practices!BY10)","v":5},{"$f":"IF(practices!BZ10=\"\",\"\",practices!BZ10)","v":5},{"$f":"IF(practices!CA10=\"\",\"\",practices!CA10)","v":5},{"$f":"IF(practices!CB10=\"\",\"\",practices!CB10)","v":5}]
["Alternatives",{"$f":"IF(practices!BW11=\"\",\"\",practices!BW11)","v":5},{"$f":"IF(practices!BX11=\"\",\"\",practices!BX11)","v":5},{"$f":"IF(practices!BY11=\"\",\"\",practices!BY11)","v":5},{"$f":"IF(practices!BZ11=\"\",\"\",practices!BZ11)","v":5},{"$f":"IF(practices!CA11=\"\",\"\",practices!CA11)","v":5},{"$f":"IF(practices!CB11=\"\",\"\",practices!CB11)","v":5}]
["Alternatives",{"$f":"IF(practices!BW12=\"\",\"\",practices!BW12)","v":5},{"$f":"IF(practices!BX12=\"\",\"\",practices!BX12)","v":5},{"$f":"IF(practices!BY12=\"\",\"\",practices!BY12)","v":5},{"$f":"IF(practices!BZ12=\"\",\"\",practices!BZ12)","v":5},{"$f":"IF(practices!CA12=\"\",\"\",practices!CA12)","v":5},{"$f":"IF(practices!CB12=\"\",\"\",practices!CB12)","v":5}]
["Alternatives",{"$f":"IF(practices!BW13=\"\",\"\",practices!BW13)","v":""},{"$f":"IF(practices!BX13=\"\",\"\",practices!BX13)","v":""},{"$f":"IF(practices!BY13=\"\",\"\",practices!BY13)","v":""},{"$f":"IF(practices!BZ13=\"\",\"\",practices!BZ13)","v":""},{"$f":"IF(practices!CA13=\"\",\"\",practices!CA13)","v":""},{"$f":"IF(practices!CB13=\"\",\"\",practices!CB13)","v":""}]
["Alternatives",{"$f":"IF(practices!BW14=\"\",\"\",practices!BW14)","v":5},{"$f":"IF(practices!BX14=\"\",\"\",practices!BX14)","v":5},{"$f":"IF(practices!BY14=\"\",\"\",practices!BY14)","v":5},{"$f":"IF(practices!BZ14=\"\",\"\",practices!BZ14)","v":5},{"$f":"IF(practices!CA14=\"\",\"\",practices!CA14)","v":5},{"$f":"IF(practices!CB14=\"\",\"\",practices!CB14)","v":5}]
["Alternatives",{"$f":"IF(practices!BW15=\"\",\"\",practices!BW15)","v":5},{"$f":"IF(practices!BX15=\"\",\"\",practices!BX15)","v":5},{"$f":"IF(practices!BY15=\"\",\"\",practices!BY15)","v":5},{"$f":"IF(practices!BZ15=\"\",\"\",practices!BZ15)","v":5},{"$f":"IF(practices!CA15=\"\",\"\",practices!CA15)","v":5},{"$f":"IF(practices!CB15=\"\",\"\",practices!CB15)","v":5}]
["Alternatives",{"$f":"IF(practices!BW16=\"\",\"\",practices!BW16)","v":5},{"$f":"IF(practices!BX16=\"\",\"\",practices!BX16)","v":5},{"$f":"IF(practices!BY16=\"\",\"\",practices!BY16)","v":5},{"$f":"IF(practices!BZ16=\"\",\"\",practices!BZ16)","v":5},{"$f":"IF(practices!CA16=\"\",\"\",practices!CA16)","v":5},{"$f":"IF(practices!CB16=\"\",\"\",practices!CB16)","v":5}]

{"sheet":"lectures data, grafik","index":4,"n_rows":451,"n_cols":12,"rows_kept":451,"cut":false,"hidden":false,"merged":[]}
["LECTURES","Subject-specific expertise","Style of performance","Choice of subject","Handouts"]
["History",{"$f":"IF('lectures and seminars'!C2=\"\",\"\",'lectures and seminars'!C2)","v":5},{"$f":"IF('lectures and seminars'!D2=\"\",\"\",'lectures and seminars'!D2)","v":5},{"$f":"IF('lectures and seminars'!E2=\"\",\"\",'lectures and seminars'!E2)","v":5},{"$f":"IF('lectures and seminars'!F2=\"\",\"\",'lectures and seminars'!F2)","v":5},null,null,"Sorcímkék","Átlag / Subject-specific expertise"]
["History",{"$f":"IF('lectures and seminars'!C3=\"\",\"\",'lectures and seminars'!C3)","v":5},{"$f":"IF('lectures and seminars'!D3=\"\",\"\",'lectures and seminars'!D3)","v":5},{"$f":"IF('lectures and seminars'!E3=\"\",\"\",'lectures and seminars'!E3)","v":5},{"$f":"IF('lectures and seminars'!F3=\"\",\"\",'lectures and seminars'!F3)","v":5},null,null,"3 Rs",4.8666666666666663]
["History",{"$f":"IF('lectures and seminars'!C4=\"\",\"\",'lectures and seminars'!C4)","v":5},{"$f":"IF('lectures and seminars'!D4=\"\",\"\",'lectures and seminars'!D4)","v":5},{"$f":"IF('lectures and seminars'!E4=\"\",\"\",'lectures and seminars'!E4)","v":5},{"$f":"IF('lectures and seminars'!F4=\"\",\"\",'lectures and seminars'!F4)","v":5},null,null,"Advanced anaesthesia",4.9285714285714288]
["History",{"$f":"IF('lectures and seminars'!C5=\"\",\"\",'lectures and seminars'!C5)","v":4},{"$f":"IF('lectures and seminars'!D5=\"\",\"\",'lectures and seminars'!D5)","v":4},{"$f":"IF('lectures and seminars'!E5=\"\",\"\",'lectures and seminars'!E5)","v":4},{"$f":"IF('lectures and seminars'!F5=\"\",\"\",'lectures and seminars'!F5)","v":4},null,null,"Alternatives",4.6923076923076925]
["History",{"$f":"IF('lectures and seminars'!C6=\"\",\"\",'lectures and seminars'!C6)","v":5},{"$f":"IF('lectures and seminars'!D6=\"\",\"\",'lectures and seminars'!D6)","v":5},{"$f":"IF('lectures and seminars'!E6=\"\",\"\",'lectures and seminars'!E6)","v":5},{"$f":"IF('lectures and seminars'!F6=\"\",\"\",'lectures and seminars'!F6)","v":5},null,null,"Anaesthesia",4.9285714285714288]
["History",{"$f":"IF('lectures and seminars'!C7=\"\",\"\",'lectures and seminars'!C7)","v":5},{"$f":"IF('lectures and seminars'!D7=\"\",\"\",'lectures and seminars'!D7)","v":5},{"$f":"IF('lectures and seminars'!E7=\"\",\"\",'lectures and seminars'!E7)","v":5},{"$f":"IF('lectures and seminars'!F7=\"\",\"\",'lectures and seminars'!F7)","v":5},null,null,"Basic surgical procedures",4.9285714285714288]
["History",{"$f":"IF('lectures and seminars'!C8=\"\",\"\",'lectures and seminars'!C8)","v":5},{"$f":"IF('lectures and seminars'!D8=\"\",\"\",'lectures and seminars'!D8)","v":5},{"$f":"IF('lectures and seminars'!E8=\"\",\"\",'lectures and seminars'!E8)","v":5},{"$f":"IF('lectures and seminars'!F8=\"\",\"\",'lectures and seminars'!F8)","v":5},null,null,"Basics of statistics",5]
["History",{"$f":"IF('lectures and seminars'!C9=\"\",\"\",'lectures and seminars'!C9)","v":5},{"$f":"IF('lectures and seminars'!D9=\"\",\"\",'lectures and seminars'!D9)","v":5},{"$f":"IF('lectures and seminars'!E9=\"\",\"\",'lectures and seminars'!E9)","v":5},{"$f":"IF('lectures and seminars'!F9=\"\",\"\",'lectures and seminars'!F9)","v":5},null,null,"Behaviour",4.3571428571428568]
["History",{"$f":"IF('lectures and seminars'!C10=\"\",\"\",'lectures and seminars'!C10)","v":5},{"$f":"IF('lectures and seminars'!D10=\"\",\"\",'lectures and seminars'!D10)","v":5},{"$f":"IF('lectures and seminars'!E10=\"\",\"\",'lectures and seminars'!E10)","v":5},{"$f":"IF('lectures and seminars'!F10=\"\",\"\",'lectures and seminars'!F10)","v":5},null,null,"Bibliometrics",5]
["History",{"$f":"IF('lectures and seminars'!C11=\"\",\"\",'lectures and seminars'!C11)","v":5},{"$f":"IF('lectures and seminars'!D11=\"\",\"\",'lectures and seminars'!D11)","v":5},{"$f":"IF('lectures and seminars'!E11=\"\",\"\",'lectures and seminars'!E11)","v":5},{"$f":"IF('lectures and seminars'!F11=\"\",\"\",'lectures and seminars'!F11)","v":5},null,null,"Environmental enrichment",5]
["History",{"$f":"IF('lectures and seminars'!C12=\"\",\"\",'lectures and seminars'!C12)","v":5},{"$f":"IF('lectures and seminars'!D12=\"\",\"\",'lectures and seminars'!D12)","v":5},{"$f":"IF('lectures and seminars'!E12=\"\",\"\",'lectures and seminars'!E12)","v":5},{"$f":"IF('lectures and seminars'!F12=\"\",\"\",'lectures and seminars'!F12)","v":5},null,null,"Ethics",5]
["History",{"$f":"IF('lectures and seminars'!C13=\"\",\"\",'lectures and seminars'!C13)","v":5},{"$f":"IF('lectures and seminars'!D13=\"\",\"\",'lectures and seminars'!D13)","v":5},{"$f":"IF('lectures and seminars'!E13=\"\",\"\",'lectures and seminars'!E13)","v":5},{"$f":"IF('lectures and seminars'!F13=\"\",\"\",'lectures and seminars'!F13)","v":5},null,null,"Extrapolation",4.8666666666666663]
["History",{"$f":"IF('lectures and seminars'!C14=\"\",\"\",'lectures and seminars'!C14)","v":4},{"$f":"IF('lectures and seminars'!D14=\"\",\"\",'lectures and seminars'!D14)","v":5},{"$f":"IF('lectures and seminars'!E14=\"\",\"\",'lectures and seminars'!E14)","v":4},{"$f":"IF('lectures and seminars'!F14=\"\",\"\",'lectures and seminars'!F14)","v":4},null,null,"History",4.8666666666666663]
["History",{"$f":"IF('lectures and seminars'!C15=\"\",\"\",'lectures and seminars'!C15)","v":5},{"$f":"IF('lectures and seminars'!D15=\"\",\"\",'lectures and seminars'!D15)","v":5},{"$f":"IF('lectures and seminars'!E15=\"\",\"\",'lectures and seminars'!E15)","v":5},{"$f":"IF('lectures and seminars'!F15=\"\",\"\",'lectures and seminars'!F15)","v":5},null,null,"Housing",4.9285714285714288]
["History",{"$f":"IF('lectures and seminars'!C16=\"\",\"\",'lectures and seminars'!C16)","v":5},{"$f":"IF('lectures and seminars'!D16=\"\",\"\",'lectures and seminars'!D16)","v":5},{"$f":"IF('lectures and seminars'!E16=\"\",\"\",'lectures and seminars'!E16)","v":5},{"$f":"IF('lectures and seminars'!F16=\"\",\"\",'lectures and seminars'!F16)","v":5},null,null,"In vitro, ex vivo",4.916666666666667]
["Law and 3 Rs",{"$f":"IF('lectures and seminars'!I2=\"\",\"\",'lectures and seminars'!I2)","v":5},{"$f":"IF('lectures and seminars'!J2=\"\",\"\",'lectures and seminars'!J2)","v":5},{"$f":"IF('lectures and seminars'!K2=\"\",\"\",'lectures and seminars'!K2)","v":5},{"$f":"IF('lectures and seminars'!L2=\"\",\"\",'lectures and seminars'!L2)","v":5},null,null,"Inbred, outbred",4.7857142857142856]
["Law and 3 Rs",{"$f":"IF('lectures and seminars'!I3=\"\",\"\",'lectures and seminars'!I3)","v":5},{"$f":"IF('lectures and seminars'!J3=\"\",\"\",'lectures and seminars'!J3)","v":5},{"$f":"IF('lectures and seminars'!K3=\"\",\"\",'lectures and seminars'!K3)","v":5},{"$f":"IF('lectures and seminars'!L3=\"\",\"\",'lectures and seminars'!L3)","v":5},null,null,"Large animal biology",4.9333333333333336]
["Law and 3 Rs",{"$f":"IF('lectures and seminars'!I4=\"\",\"\",'lectures and seminars'!I4)","v":4},{"$f":"IF('lectures and seminars'!J4=\"\",\"\",'lectures and seminars'!J4)","v":5},{"$f":"IF('lectures and seminars'!K4=\"\",\"\",'lectures and seminars'!K4)","v":4},{"$f":"IF('lectures and seminars'!L4=\"\",\"\",'lectures and seminars'!L4)","v":4},null,null,"Law and 3 Rs",4.8666666666666663]
["Law and 3 Rs",{"$f":"IF('lectures and seminars'!I5=\"\",\"\",'lectures and seminars'!I5)","v":5},{"$f":"IF('lectures and seminars'!J5=\"\",\"\",'lectures and seminars'!J5)","v":5},{"$f":"IF('lectures and seminars'!K5=\"\",\"\",'lectures and seminars'!K5)","v":5},{"$f":"IF('lectures and seminars'!L5=\"\",\"\",'lectures and seminars'!L5)","v":5},null,null,"Licensing",4.9333333333333336]
["Law and 3 Rs",{"$f":"IF('lectures and seminars'!I6=\"\",\"\",'lectures and seminars'!I6)","v":5},{"$f":"IF('lectures and seminars'!J6=\"\",\"\",'lectures and seminars'!J6)","v":5},{"$f":"IF('lectures and seminars'!K6=\"\",\"\",'lectures and seminars'!K6)","v":5},{"$f":"IF('lectures and seminars'!L6=\"\",\"\",'lectures and seminars'!L6)","v":5},null,null,"Licensing in practice",4.916666666666667]
["Law and 3 Rs",{"$f":"IF('lectures and seminars'!I7=\"\",\"\",'lectures and seminars'!I7)","v":5},{"$f":"IF('lectures and seminars'!J7=\"\",\"\",'lectures and seminars'!J7)","v":5},{"$f":"IF('lectures and seminars'!K7=\"\",\"\",'lectures and seminars'!K7)","v":5},{"$f":"IF('lectures and seminars'!L7=\"\",\"\",'lectures and seminars'!L7)","v":5},null,null,"Microbiology",4.4285714285714288]
["Law and 3 Rs",{"$f":"IF('lectures and seminars'!I8=\"\",\"\",'lectures and seminars'!I8)","v":5},{"$f":"IF('lectures and seminars'!J8=\"\",\"\",'lectures and seminars'!J8)","v":4},{"$f":"IF('lectures and seminars'!K8=\"\",\"\",'lectures and seminars'!K8)","v":5},{"$f":"IF('lectures and seminars'!L8=\"\",\"\",'lectures and seminars'!L8)","v":5},null,null,"Min. inv.",4.8461538461538458]
["Law and 3 Rs",{"$f":"IF('lectures and seminars'!I9=\"\",\"\",'lectures and seminars'!I9)","v":5},{"$f":"IF('lectures and seminars'!J9=\"\",\"\",'lectures and seminars'!J9)","v":5},{"$f":"IF('lectures and seminars'!K9=\"\",\"\",'lectures and seminars'!K9)","v":5},{"$f":"IF('lectures and seminars'!L9=\"\",\"\",'lectures and seminars'!L9)","v":5},null,null,"Monitoring",5]
["Law and 3 Rs",{"$f":"IF('lectures and seminars'!I10=\"\",\"\",'lectures and seminars'!I10)","v":5},{"$f":"IF('lectures and seminars'!J10=\"\",\"\",'lectures and seminars'!J10)","v":5},{"$f":"IF('lectures and seminars'!K10=\"\",\"\",'lectures and seminars'!K10)","v":5},{"$f":"IF('lectures and seminars'!L10=\"\",\"\",'lectures and seminars'!L10)","v":5},null,null,"Pain, suffering",4.9285714285714288]
["Law and 3 Rs",{"$f":"IF('lectures and seminars'!I11=\"\",\"\",'lectures and seminars'!I11)","v":5},{"$f":"IF('lectures and seminars'!J11=\"\",\"\",'lectures and seminars'!J11)","v":4},{"$f":"IF('lectures and seminars'!K11=\"\",\"\",'lectures and seminars'!K11)","v":5},{"$f":"IF('lectures and seminars'!L11=\"\",\"\",'lectures and seminars'!L11)","v":5},null,null,"Protocol design",4.916666666666667]
["Law and 3 Rs",{"$f":"IF('lectures and seminars'!I12=\"\",\"\",'lectures and seminars'!I12)","v":5},{"$f":"IF('lectures and seminars'!J12=\"\",\"\",'lectures and seminars'!J12)","v":5},{"$f":"IF('lectures and seminars'!K12=\"\",\"\",'lectures and seminars'!K12)","v":5},{"$f":"IF('lectures and seminars'!L12=\"\",\"\",'lectures and seminars'!L12)","v":5},null,null,"Restraint",4.9285714285714288]
["Law and 3 Rs",{"$f":"IF('lectures and seminars'!I13=\"\",\"\",'lectures and seminars'!I13)","v":5},{"$f":"IF('lectures and seminars'!J13=\"\",\"\",'lectures and seminars'!J13)","v":5},{"$f":"IF('lectures and seminars'!K13=\"\",\"\",'lectures and seminars'!K13)","v":5},{"$f":"IF('lectures and seminars'!L13=\"\",\"\",'lectures and seminars'!L13)","v":5},null,null,"Safety",5]
["Law and 3 Rs",{"$f":"IF('lectures and seminars'!I14=\"\",\"\",'lectures and seminars'!I14)","v":4},{"$f":"IF('lectures and seminars'!J14=\"\",\"\",'lectures and seminars'!J14)","v":4},{"$f":"IF('lectures and seminars'!K14=\"\",\"\",'lectures and seminars'!K14)","v":4},{"$f":"IF('lectures and seminars'!L14=\"\",\"\",'lectures and seminars'!L14)","v":4},null,null,"Sample size",4.9285714285714288]
["Law and 3 Rs",{"$f":"IF('lectures and seminars'!I15=\"\",\"\",'lectures and seminars'!I15)","v":5},{"$f":"IF('lectures and seminars'!J15=\"\",\"\",'lectures and seminars'!J15)","v":5},{"$f":"IF('lectures and seminars'!K15=\"\",\"\",'lectures and seminars'!K15)","v":5},{"$f":"IF('lectures and seminars'!L15=\"\",\"\",'lectures and seminars'!L15)","v":5},null,null,"Small animal biology",4.8]
["Law and 3 Rs",{"$f":"IF('lectures and seminars'!I16=\"\",\"\",'lectures and seminars'!I16)","v":5},{"$f":"IF('lectures and seminars'!J16=\"\",\"\",'lectures and seminars'!J16)","v":5},{"$f":"IF('lectures and seminars'!K16=\"\",\"\",'lectures and seminars'!K16)","v":5},{"$f":"IF('lectures and seminars'!L16=\"\",\"\",'lectures and seminars'!L16)","v":5},null,null,"Translation",5]
["Ethics",{"$f":"IF('lectures and seminars'!O2=\"\",\"\",'lectures and seminars'!O2)","v":5},{"$f":"IF('lectures and seminars'!P2=\"\",\"\",'lectures and seminars'!P2)","v":5},{"$f":"IF('lectures and seminars'!Q2=\"\",\"\",'lectures and seminars'!Q2)","v":5},{"$f":"IF('lectures and seminars'!R2=\"\",\"\",'lectures and seminars'!R2)","v":5},null,null,"Zebrafish",4.8571428571428568]
["Ethics",{"$f":"IF('lectures and seminars'!O3=\"\",\"\",'lectures and seminars'!O3)","v":5},{"$f":"IF('lectures and seminars'!P3=\"\",\"\",'lectures and seminars'!P3)","v":5},{"$f":"IF('lectures and seminars'!Q3=\"\",\"\",'lectures and seminars'!Q3)","v":5},{"$f":"IF('lectures and seminars'!R3=\"\",\"\",'lectures and seminars'!R3)","v":5},null,null,"Végösszeg",4.8788598574821851]
["Ethics",{"$f":"IF('lectures and seminars'!O4=\"\",\"\",'lectures and seminars'!O4)","v":5},{"$f":"IF('lectures and seminars'!P4=\"\",\"\",'lectures and seminars'!P4)","v":4},{"$f":"IF('lectures and seminars'!Q4=\"\",\"\",'lectures and seminars'!Q4)","v":4},{"$f":"IF('lectures and seminars'!R4=\"\",\"\",'lectures and seminars'!R4)","v":4}]
["Ethics",{"$f":"IF('lectures and seminars'!O5=\"\",\"\",'lectures and seminars'!O5)","v":5},{"$f":"IF('lectures and seminars'!P5=\"\",\"\",'lectures and seminars'!P5)","v":5},{"$f":"IF('lectures and seminars'!Q5=\"\",\"\",'lectures and seminars'!Q5)","v":5},{"$f":"IF('lectures and seminars'!R5=\"\",\"\",'lectures and seminars'!R5)","v":5}]
["Ethics",{"$f":"IF('lectures and seminars'!O6=\"\",\"\",'lectures and seminars'!O6)","v":5},{"$f":"IF('lectures and seminars'!P6=\"\",\"\",'lectures and seminars'!P6)","v":5},{"$f":"IF('lectures and seminars'!Q6=\"\",\"\",'lectures and seminars'!Q6)","v":5},{"$f":"IF('lectures and seminars'!R6=\"\",\"\",'lectures and seminars'!R6)","v":5}]
["Ethics",{"$f":"IF('lectures and seminars'!O7=\"\",\"\",'lectures and seminars'!O7)","v":5},{"$f":"IF('lectures and seminars'!P7=\"\",\"\",'lectures and seminars'!P7)","v":5},{"$f":"IF('lectures and seminars'!Q7=\"\",\"\",'lectures and seminars'!Q7)","v":5},{"$f":"IF('lectures and seminars'!R7=\"\",\"\",'lectures and seminars'!R7)","v":5}]
["Ethics",{"$f":"IF('lectures and seminars'!O8=\"\",\"\",'lectures and seminars'!O8)","v":5},{"$f":"IF('lectures and seminars'!P8=\"\",\"\",'lectures and seminars'!P8)","v":5},{"$f":"IF('lectures and seminars'!Q8=\"\",\"\",'lectures and seminars'!Q8)","v":5},{"$f":"IF('lectures and seminars'!R8=\"\",\"\",'lectures and seminars'!R8)","v":5},null,null,"Sorcímkék","Átlag / Style of performance"]
["Ethics",{"$f":"IF('lectures and seminars'!O9=\"\",\"\",'lectures and seminars'!O9)","v":5},{"$f":"IF('lectures and seminars'!P9=\"\",\"\",'lectures and seminars'!P9)","v":5},{"$f":"IF('lectures and seminars'!Q9=\"\",\"\",'lectures and seminars'!Q9)","v":5},{"$f":"IF('lectures and seminars'!R9=\"\",\"\",'lectures and seminars'!R9)","v":5},null,null,"3 Rs",4.7333333333333334]
["Ethics",{"$f":"IF('lectures and seminars'!O10=\"\",\"\",'lectures and seminars'!O10)","v":5},{"$f":"IF('lectures and seminars'!P10=\"\",\"\",'lectures and seminars'!P10)","v":5},{"$f":"IF('lectures and seminars'!Q10=\"\",\"\",'lectures and seminars'!Q10)","v":5},{"$f":"IF('lectures and seminars'!R10=\"\",\"\",'lectures and seminars'!R10)","v":5},null,null,"Advanced anaesthesia",4.9285714285714288]
["Ethics",{"$f":"IF('lectures and seminars'!O11=\"\",\"\",'lectures and seminars'!O11)","v":5},{"$f":"IF('lectures and seminars'!P11=\"\",\"\",'lectures and seminars'!P11)","v":5},{"$f":"IF('lectures and seminars'!Q11=\"\",\"\",'lectures and seminars'!Q11)","v":5},{"$f":"IF('lectures and seminars'!R11=\"\",\"\",'lectures and seminars'!R11)","v":5},null,null,"Alternatives",5]
["Ethics",{"$f":"IF('lectures and seminars'!O12=\"\",\"\",'lectures and seminars'!O12)","v":5},{"$f":"IF('lectures and seminars'!P12=\"\",\"\",'lectures and seminars'!P12)","v":5},{"$f":"IF('lectures and seminars'!Q12=\"\",\"\",'lectures and seminars'!Q12)","v":5},{"$f":"IF('lectures and seminars'!R12=\"\",\"\",'lectures and seminars'!R12)","v":5},null,null,"Anaesthesia",4.9285714285714288]
["Ethics",{"$f":"IF('lectures and seminars'!O13=\"\",\"\",'lectures and seminars'!O13)","v":5},{"$f":"IF('lectures and seminars'!P13=\"\",\"\",'lectures and seminars'!P13)","v":5},{"$f":"IF('lectures and seminars'!Q13=\"\",\"\",'lectures and seminars'!Q13)","v":5},{"$f":"IF('lectures and seminars'!R13=\"\",\"\",'lectures and seminars'!R13)","v":5},null,null,"Basic surgical procedures",4.9285714285714288]
["Ethics",{"$f":"IF('lectures and seminars'!O14=\"\",\"\",'lectures and seminars'!O14)","v":5},{"$f":"IF('lectures and seminars'!P14=\"\",\"\",'lectures and seminars'!P14)","v":5},{"$f":"IF('lectures and seminars'!Q14=\"\",\"\",'lectures and seminars'!Q14)","v":5},{"$f":"IF('lectures and seminars'!R14=\"\",\"\",'lectures and seminars'!R14)","v":5},null,null,"Basics of statistics",4.9333333333333336]
["Ethics",{"$f":"IF('lectures and seminars'!O15=\"\",\"\",'lectures and seminars'!O15)","v":5},{"$f":"IF('lectures and seminars'!P15=\"\",\"\",'lectures and seminars'!P15)","v":5},{"$f":"IF('lectures and seminars'!Q15=\"\",\"\",'lectures and seminars'!Q15)","v":5},{"$f":"IF('lectures and seminars'!R15=\"\",\"\",'lectures and seminars'!R15)","v":5},null,null,"Behaviour",4.1428571428571432]
["Ethics",{"$f":"IF('lectures and seminars'!O16=\"\",\"\",'lectures and seminars'!O16)","v":5},{"$f":"IF('lectures and seminars'!P16=\"\",\"\",'lectures and seminars'!P16)","v":5},{"$f":"IF('lectures and seminars'!Q16=\"\",\"\",'lectures and seminars'!Q16)","v":5},{"$f":"IF('lectures and seminars'!R16=\"\",\"\",'lectures and seminars'!R16)","v":5},null,null,"Bibliometrics",5]
["Extrapolation",{"$f":"IF('lectures and seminars'!U2=\"\",\"\",'lectures and seminars'!U2)","v":5},{"$f":"IF('lectures and seminars'!V2=\"\",\"\",'lectures and seminars'!V2)","v":3},{"$f":"IF('lectures and seminars'!W2=\"\",\"\",'lectures and seminars'!W2)","v":3},{"$f":"IF('lectures and seminars'!X2=\"\",\"\",'lectures and seminars'!X2)","v":5},null,null,"Environmental enrichment",5]
["Extrapolation",{"$f":"IF('lectures and seminars'!U3=\"\",\"\",'lectures and seminars'!U3)","v":5},{"$f":"IF('lectures and seminars'!V3=\"\",\"\",'lectures and seminars'!V3)","v":5},{"$f":"IF('lectures and seminars'!W3=\"\",\"\",'lectures and seminars'!W3)","v":5},{"$f":"IF('lectures and seminars'!X3=\"\",\"\",'lectures and seminars'!X3)","v":5},null,null,"Ethics",4.9333333333333336]
["Extrapolation",{"$f":"IF('lectures and seminars'!U4=\"\",\"\",'lectures and seminars'!U4)","v":4},{"$f":"IF('lectures and seminars'!V4=\"\",\"\",'lectures and seminars'!V4)","v":3},{"$f":"IF('lectures and seminars'!W4=\"\",\"\",'lectures and seminars'!W4)","v":3},{"$f":"IF('lectures and seminars'!X4=\"\",\"\",'lectures and seminars'!X4)","v":3},null,null,"Extrapolation",4.4000000000000004]
["Extrapolation",{"$f":"IF('lectures and seminars'!U5=\"\",\"\",'lectures and seminars'!U5)","v":4},{"$f":"IF('lectures and seminars'!V5=\"\",\"\",'lectures and seminars'!V5)","v":2},{"$f":"IF('lectures and seminars'!W5=\"\",\"\",'lectures and seminars'!W5)","v":3},{"$f":"IF('lectures and seminars'!X5=\"\",\"\",'lectures and seminars'!X5)","v":3},null,null,"History",4.9333333333333336]
["Extrapolation",{"$f":"IF('lectures and seminars'!U6=\"\",\"\",'lectures and seminars'!U6)","v":5},{"$f":"IF('lectures and seminars'!V6=\"\",\"\",'lectures and seminars'!V6)","v":5},{"$f":"IF('lectures and seminars'!W6=\"\",\"\",'lectures and seminars'!W6)","v":5},{"$f":"IF('lectures and seminars'!X6=\"\",\"\",'lectures and seminars'!X6)","v":5},null,null,"Housing",4.8571428571428568]
["Extrapolation",{"$f":"IF('lectures and seminars'!U7=\"\",\"\",'lectures and seminars'!U7)","v":5},{"$f":"IF('lectures and seminars'!V7=\"\",\"\",'lectures and seminars'!V7)","v":5},{"$f":"IF('lectures and seminars'!W7=\"\",\"\",'lectures and seminars'!W7)","v":5},{"$f":"IF('lectures and seminars'!X7=\"\",\"\",'lectures and seminars'!X7)","v":5},null,null,"In vitro, ex vivo",4.916666666666667]
["Extrapolation",{"$f":"IF('lectures and seminars'!U8=\"\",\"\",'lectures and seminars'!U8)","v":5},{"$f":"IF('lectures and seminars'!V8=\"\",\"\",'lectures and seminars'!V8)","v":5},{"$f":"IF('lectures and seminars'!W8=\"\",\"\",'lectures and seminars'!W8)","v":5},{"$f":"IF('lectures and seminars'!X8=\"\",\"\",'lectures and seminars'!X8)","v":5},null,null,"Inbred, outbred",4.7857142857142856]
["Extrapolation",{"$f":"IF('lectures and seminars'!U9=\"\",\"\",'lectures and seminars'!U9)","v":5},{"$f":"IF('lectures and seminars'!V9=\"\",\"\",'lectures and seminars'!V9)","v":5},{"$f":"IF('lectures and seminars'!W9=\"\",\"\",'lectures and seminars'!W9)","v":5},{"$f":"IF('lectures and seminars'!X9=\"\",\"\",'lectures and seminars'!X9)","v":5},null,null,"Large animal biology",4.4666666666666668]
["Extrapolation",{"$f":"IF('lectures and seminars'!U10=\"\",\"\",'lectures and seminars'!U10)","v":5},{"$f":"IF('lectures and seminars'!V10=\"\",\"\",'lectures and seminars'!V10)","v":5},{"$f":"IF('lectures and seminars'!W10=\"\",\"\",'lectures and seminars'!W10)","v":5},{"$f":"IF('lectures and seminars'!X10=\"\",\"\",'lectures and seminars'!X10)","v":5},null,null,"Law and 3 Rs",4.8]
["Extrapolation",{"$f":"IF('lectures and seminars'!U11=\"\",\"\",'lectures and seminars'!U11)","v":5},{"$f":"IF('lectures and seminars'!V11=\"\",\"\",'lectures and seminars'!V11)","v":4},{"$f":"IF('lectures and seminars'!W11=\"\",\"\",'lectures and seminars'!W11)","v":5},{"$f":"IF('lectures and seminars'!X11=\"\",\"\",'lectures and seminars'!X11)","v":5},null,null,"Licensing",4.8]
["Extrapolation",{"$f":"IF('lectures and seminars'!U12=\"\",\"\",'lectures and seminars'!U12)","v":5},{"$f":"IF('lectures and seminars'!V12=\"\",\"\",'lectures and seminars'!V12)","v":5},{"$f":"IF('lectures and seminars'!W12=\"\",\"\",'lectures and seminars'!W12)","v":5},{"$f":"IF('lectures and seminars'!X12=\"\",\"\",'lectures and seminars'!X12)","v":5},null,null,"Licensing in practice",4.916666666666667]
["Extrapolation",{"$f":"IF('lectures and seminars'!U13=\"\",\"\",'lectures and seminars'!U13)","v":5},{"$f":"IF('lectures and seminars'!V13=\"\",\"\",'lectures and seminars'!V13)","v":5},{"$f":"IF('lectures and seminars'!W13=\"\",\"\",'lectures and seminars'!W13)","v":5},{"$f":"IF('lectures and seminars'!X13=\"\",\"\",'lectures and seminars'!X13)","v":5},null,null,"Microbiology",3.9285714285714284]
["Extrapolation",{"$f":"IF('lectures and seminars'!U14=\"\",\"\",'lectures and seminars'!U14)","v":5},{"$f":"IF('lectures and seminars'!V14=\"\",\"\",'lectures and seminars'!V14)","v":4},{"$f":"IF('lectures and seminars'!W14=\"\",\"\",'lectures and seminars'!W14)","v":4},{"$f":"IF('lectures and seminars'!X14=\"\",\"\",'lectures and seminars'!X14)","v":5},null,null,"Min. inv.",4.9230769230769234]
["Extrapolation",{"$f":"IF('lectures and seminars'!U15=\"\",\"\",'lectures and seminars'!U15)","v":5},{"$f":"IF('lectures and seminars'!V15=\"\",\"\",'lectures and seminars'!V15)","v":5},{"$f":"IF('lectures and seminars'!W15=\"\",\"\",'lectures and seminars'!W15)","v":5},{"$f":"IF('lectures and seminars'!X15=\"\",\"\",'lectures and seminars'!X15)","v":5},null,null,"Monitoring",5]
["Extrapolation",{"$f":"IF('lectures and seminars'!U16=\"\",\"\",'lectures and seminars'!U16)","v":5},{"$f":"IF('lectures and seminars'!V16=\"\",\"\",'lectures and seminars'!V16)","v":5},{"$f":"IF('lectures and seminars'!W16=\"\",\"\",'lectures and seminars'!W16)","v":5},{"$f":"IF('lectures and seminars'!X16=\"\",\"\",'lectures and seminars'!X16)","v":5},null,null,"Pain, suffering",4.7857142857142856]
["3 Rs",{"$f":"IF('lectures and seminars'!AA2=\"\",\"\",'lectures and seminars'!AA2)","v":5},{"$f":"IF('lectures and seminars'!AB2=\"\",\"\",'lectures and seminars'!AB2)","v":5},{"$f":"IF('lectures and seminars'!AC2=\"\",\"\",'lectures and seminars'!AC2)","v":5},{"$f":"IF('lectures and seminars'!AD2=\"\",\"\",'lectures and seminars'!AD2)","v":5},null,null,"Protocol design",4.916666666666667]
["3 Rs",{"$f":"IF('lectures and seminars'!AA3=\"\",\"\",'lectures and seminars'!AA3)","v":5},{"$f":"IF('lectures and seminars'!AB3=\"\",\"\",'lectures and seminars'!AB3)","v":5},{"$f":"IF('lectures and seminars'!AC3=\"\",\"\",'lectures and seminars'!AC3)","v":5},{"$f":"IF('lectures and seminars'!AD3=\"\",\"\",'lectures and seminars'!AD3)","v":5},null,null,"Restraint",4.7142857142857144]
["3 Rs",{"$f":"IF('lectures and seminars'!AA4=\"\",\"\",'lectures and seminars'!AA4)","v":4},{"$f":"IF('lectures and seminars'!AB4=\"\",\"\",'lectures and seminars'!AB4)","v":4},{"$f":"IF('lectures and seminars'!AC4=\"\",\"\",'lectures and seminars'!AC4)","v":5},{"$f":"IF('lectures and seminars'!AD4=\"\",\"\",'lectures and seminars'!AD4)","v":5},null,null,"Safety",4.9285714285714288]
["3 Rs",{"$f":"IF('lectures and seminars'!AA5=\"\",\"\",'lectures and seminars'!AA5)","v":4},{"$f":"IF('lectures and seminars'!AB5=\"\",\"\",'lectures and seminars'!AB5)","v":3},{"$f":"IF('lectures and seminars'!AC5=\"\",\"\",'lectures and seminars'!AC5)","v":4},{"$f":"IF('lectures and seminars'!AD5=\"\",\"\",'lectures and seminars'!AD5)","v":4},null,null,"Sample size",4.9285714285714288]
["3 Rs",{"$f":"IF('lectures and seminars'!AA6=\"\",\"\",'lectures and seminars'!AA6)","v":5},{"$f":"IF('lectures and seminars'!AB6=\"\",\"\",'lectures and seminars'!AB6)","v":5},{"$f":"IF('lectures and seminars'!AC6=\"\",\"\",'lectures and seminars'!AC6)","v":5},{"$f":"IF('lectures and seminars'!AD6=\"\",\"\",'lectures and seminars'!AD6)","v":5},null,null,"Small animal biology",4.4000000000000004]
["3 Rs",{"$f":"IF('lectures and seminars'!AA7=\"\",\"\",'lectures and seminars'!AA7)","v":5},{"$f":"IF('lectures and seminars'!AB7=\"\",\"\",'lectures and seminars'!AB7)","v":5},{"$f":"IF('lectures and seminars'!AC7=\"\",\"\",'lectures and seminars'!AC7)","v":5},{"$f":"IF('lectures and seminars'!AD7=\"\",\"\",'lectures and seminars'!AD7)","v":5},null,null,"Translation",5]
["3 Rs",{"$f":"IF('lectures and seminars'!AA8=\"\",\"\",'lectures and seminars'!AA8)","v":5},{"$f":"IF('lectures and seminars'!AB8=\"\",\"\",'lectures and seminars'!AB8)","v":5},{"$f":"IF('lectures and seminars'!AC8=\"\",\"\",'lectures and seminars'!AC8)","v":5},{"$f":"IF('lectures and seminars'!AD8=\"\",\"\",'lectures and seminars'!AD8)","v":5},null,null,"Zebrafish",4.5714285714285712]
["3 Rs",{"$f":"IF('lectures and seminars'!AA9=\"\",\"\",'lectures and seminars'!AA9)","v":5},{"$f":"IF('lectures and seminars'!AB9=\"\",\"\",'lectures and seminars'!AB9)","v":5},{"$f":"IF('lectures and seminars'!AC9=\"\",\"\",'lectures and seminars'!AC9)","v":5},{"$f":"IF('lectures and seminars'!AD9=\"\",\"\",'lectures and seminars'!AD9)","v":5},null,null,"Végösszeg",4.7790973871733966]
["3 Rs",{"$f":"IF('lectures and seminars'!AA10=\"\",\"\",'lectures and seminars'!AA10)","v":5},{"$f":"IF('lectures and seminars'!AB10=\"\",\"\",'lectures and seminars'!AB10)","v":5},{"$f":"IF('lectures and seminars'!AC10=\"\",\"\",'lectures and seminars'!AC10)","v":5},{"$f":"IF('lectures and seminars'!AD10=\"\",\"\",'lectures and seminars'!AD10)","v":5}]
["3 Rs",{"$f":"IF('lectures and seminars'!AA11=\"\",\"\",'lectures and seminars'!AA11)","v":5},{"$f":"IF('lectures and seminars'!AB11=\"\",\"\",'lectures and seminars'!AB11)","v":5},{"$f":"IF('lectures and seminars'!AC11=\"\",\"\",'lectures and seminars'!AC11)","v":5},{"$f":"IF('lectures and seminars'!AD11=\"\",\"\",'lectures and seminars'!AD11)","v":5}]
["3 Rs",{"$f":"IF('lectures and seminars'!AA12=\"\",\"\",'lectures and seminars'!AA12)","v":5},{"$f":"IF('lectures and seminars'!AB12=\"\",\"\",'lectures and seminars'!AB12)","v":5},{"$f":"IF('lectures and seminars'!AC12=\"\",\"\",'lectures and seminars'!AC12)","v":5},{"$f":"IF('lectures and seminars'!AD12=\"\",\"\",'lectures and seminars'!AD12)","v":5}]
["3 Rs",{"$f":"IF('lectures and seminars'!AA13=\"\",\"\",'lectures and seminars'!AA13)","v":5},{"$f":"IF('lectures and seminars'!AB13=\"\",\"\",'lectures and seminars'!AB13)","v":5},{"$f":"IF('lectures and seminars'!AC13=\"\",\"\",'lectures and seminars'!AC13)","v":5},{"$f":"IF('lectures and seminars'!AD13=\"\",\"\",'lectures and seminars'!AD13)","v":5},null,null,"Sorcímkék","Átlag / Choice of subject"]
["3 Rs",{"$f":"IF('lectures and seminars'!AA14=\"\",\"\",'lectures and seminars'!AA14)","v":5},{"$f":"IF('lectures and seminars'!AB14=\"\",\"\",'lectures and seminars'!AB14)","v":4},{"$f":"IF('lectures and seminars'!AC14=\"\",\"\",'lectures and seminars'!AC14)","v":4},{"$f":"IF('lectures and seminars'!AD14=\"\",\"\",'lectures and seminars'!AD14)","v":5},null,null,"3 Rs",4.8666666666666663]
["3 Rs",{"$f":"IF('lectures and seminars'!AA15=\"\",\"\",'lectures and seminars'!AA15)","v":5},{"$f":"IF('lectures and seminars'!AB15=\"\",\"\",'lectures and seminars'!AB15)","v":5},{"$f":"IF('lectures and seminars'!AC15=\"\",\"\",'lectures and seminars'!AC15)","v":5},{"$f":"IF('lectures and seminars'!AD15=\"\",\"\",'lectures and seminars'!AD15)","v":5},null,null,"Advanced anaesthesia",4.9285714285714288]
["3 Rs",{"$f":"IF('lectures and seminars'!AA16=\"\",\"\",'lectures and seminars'!AA16)","v":5},{"$f":"IF('lectures and seminars'!AB16=\"\",\"\",'lectures and seminars'!AB16)","v":5},{"$f":"IF('lectures and seminars'!AC16=\"\",\"\",'lectures and seminars'!AC16)","v":5},{"$f":"IF('lectures and seminars'!AD16=\"\",\"\",'lectures and seminars'!AD16)","v":5},null,null,"Alternatives",4.9230769230769234]
["Licensing",{"$f":"IF('lectures and seminars'!AG2=\"\",\"\",'lectures and seminars'!AG2)","v":5},{"$f":"IF('lectures and seminars'!AH2=\"\",\"\",'lectures and seminars'!AH2)","v":5},{"$f":"IF('lectures and seminars'!AI2=\"\",\"\",'lectures and seminars'!AI2)","v":5},{"$f":"IF('lectures and seminars'!AJ2=\"\",\"\",'lectures and seminars'!AJ2)","v":5},null,null,"Anaesthesia",4.9285714285714288]
["Licensing",{"$f":"IF('lectures and seminars'!AG3=\"\",\"\",'lectures and seminars'!AG3)","v":5},{"$f":"IF('lectures and seminars'!AH3=\"\",\"\",'lectures and seminars'!AH3)","v":5},{"$f":"IF('lectures and seminars'!AI3=\"\",\"\",'lectures and seminars'!AI3)","v":5},{"$f":"IF('lectures and seminars'!AJ3=\"\",\"\",'lectures and seminars'!AJ3)","v":5},null,null,"Basic surgical procedures",4.9285714285714288]
["Licensing",{"$f":"IF('lectures and seminars'!AG4=\"\",\"\",'lectures and seminars'!AG4)","v":5},{"$f":"IF('lectures and seminars'!AH4=\"\",\"\",'lectures and seminars'!AH4)","v":5},{"$f":"IF('lectures and seminars'!AI4=\"\",\"\",'lectures and seminars'!AI4)","v":5},{"$f":"IF('lectures and seminars'!AJ4=\"\",\"\",'lectures and seminars'!AJ4)","v":5},null,null,"Basics of statistics",5]
["Licensing",{"$f":"IF('lectures and seminars'!AG5=\"\",\"\",'lectures and seminars'!AG5)","v":4},{"$f":"IF('lectures and seminars'!AH5=\"\",\"\",'lectures and seminars'!AH5)","v":3},{"$f":"IF('lectures and seminars'!AI5=\"\",\"\",'lectures and seminars'!AI5)","v":4},{"$f":"IF('lectures and seminars'!AJ5=\"\",\"\",'lectures and seminars'!AJ5)","v":4},null,null,"Behaviour",4.7857142857142856]
["Licensing",{"$f":"IF('lectures and seminars'!AG6=\"\",\"\",'lectures and seminars'!AG6)","v":5},{"$f":"IF('lectures and seminars'!AH6=\"\",\"\",'lectures and seminars'!AH6)","v":5},{"$f":"IF('lectures and seminars'!AI6=\"\",\"\",'lectures and seminars'!AI6)","v":5},{"$f":"IF('lectures and seminars'!AJ6=\"\",\"\",'lectures and seminars'!AJ6)","v":5},null,null,"Bibliometrics",4.7142857142857144]
["Licensing",{"$f":"IF('lectures and seminars'!AG7=\"\",\"\",'lectures and seminars'!AG7)","v":5},{"$f":"IF('lectures and seminars'!AH7=\"\",\"\",'lectures and seminars'!AH7)","v":5},{"$f":"IF('lectures and seminars'!AI7=\"\",\"\",'lectures and seminars'!AI7)","v":5},{"$f":"IF('lectures and seminars'!AJ7=\"\",\"\",'lectures and seminars'!AJ7)","v":5},null,null,"Environmental enrichment",4.9285714285714288]
["Licensing",{"$f":"IF('lectures and seminars'!AG8=\"\",\"\",'lectures and seminars'!AG8)","v":5},{"$f":"IF('lectures and seminars'!AH8=\"\",\"\",'lectures and seminars'!AH8)","v":5},{"$f":"IF('lectures and seminars'!AI8=\"\",\"\",'lectures and seminars'!AI8)","v":5},{"$f":"IF('lectures and seminars'!AJ8=\"\",\"\",'lectures and seminars'!AJ8)","v":5},null,null,"Ethics",4.9333333333333336]
["Licensing",{"$f":"IF('lectures and seminars'!AG9=\"\",\"\",'lectures and seminars'!AG9)","v":5},{"$f":"IF('lectures and seminars'!AH9=\"\",\"\",'lectures and seminars'!AH9)","v":5},{"$f":"IF('lectures and seminars'!AI9=\"\",\"\",'lectures and seminars'!AI9)","v":5},{"$f":"IF('lectures and seminars'!AJ9=\"\",\"\",'lectures and seminars'!AJ9)","v":5},null,null,"Extrapolation",4.5333333333333332]
["Licensing",{"$f":"IF('lectures and seminars'!AG10=\"\",\"\",'lectures and seminars'!AG10)","v":5},{"$f":"IF('lectures and seminars'!AH10=\"\",\"\",'lectures and seminars'!AH10)","v":5},{"$f":"IF('lectures and seminars'!AI10=\"\",\"\",'lectures and seminars'!AI10)","v":5},{"$f":"IF('lectures and seminars'!AJ10=\"\",\"\",'lectures and seminars'!AJ10)","v":5},null,null,"History",4.8666666666666663]
["Licensing",{"$f":"IF('lectures and seminars'!AG11=\"\",\"\",'lectures and seminars'!AG11)","v":5},{"$f":"IF('lectures and seminars'!AH11=\"\",\"\",'lectures and seminars'!AH11)","v":4},{"$f":"IF('lectures and seminars'!AI11=\"\",\"\",'lectures and seminars'!AI11)","v":5},{"$f":"IF('lectures and seminars'!AJ11=\"\",\"\",'lectures and seminars'!AJ11)","v":4},null,null,"Housing",4.9285714285714288]
["Licensing",{"$f":"IF('lectures and seminars'!AG12=\"\",\"\",'lectures and seminars'!AG12)","v":5},{"$f":"IF('lectures and seminars'!AH12=\"\",\"\",'lectures and seminars'!AH12)","v":5},{"$f":"IF('lectures and seminars'!AI12=\"\",\"\",'lectures and seminars'!AI12)","v":5},{"$f":"IF('lectures and seminars'!AJ12=\"\",\"\",'lectures and seminars'!AJ12)","v":5},null,null,"In vitro, ex vivo",4.666666666666667]
["Licensing",{"$f":"IF('lectures and seminars'!AG13=\"\",\"\",'lectures and seminars'!AG13)","v":5},{"$f":"IF('lectures and seminars'!AH13=\"\",\"\",'lectures and seminars'!AH13)","v":5},{"$f":"IF('lectures and seminars'!AI13=\"\",\"\",'lectures and seminars'!AI13)","v":5},{"$f":"IF('lectures and seminars'!AJ13=\"\",\"\",'lectures and seminars'!AJ13)","v":5},null,null,"Inbred, outbred",4.8571428571428568]
["Licensing",{"$f":"IF('lectures and seminars'!AG14=\"\",\"\",'lectures and seminars'!AG14)","v":5},{"$f":"IF('lectures and seminars'!AH14=\"\",\"\",'lectures and seminars'!AH14)","v":5},{"$f":"IF('lectures and seminars'!AI14=\"\",\"\",'lectures and seminars'!AI14)","v":5},{"$f":"IF('lectures and seminars'!AJ14=\"\",\"\",'lectures and seminars'!AJ14)","v":5},null,null,"Large animal biology",4.7333333333333334]
["Licensing",{"$f":"IF('lectures and seminars'!AG15=\"\",\"\",'lectures and seminars'!AG15)","v":5},{"$f":"IF('lectures and seminars'!AH15=\"\",\"\",'lectures and seminars'!AH15)","v":5},{"$f":"IF('lectures and seminars'!AI15=\"\",\"\",'lectures and seminars'!AI15)","v":5},{"$f":"IF('lectures and seminars'!AJ15=\"\",\"\",'lectures and seminars'!AJ15)","v":5},null,null,"Law and 3 Rs",4.8666666666666663]
["Licensing",{"$f":"IF('lectures and seminars'!AG16=\"\",\"\",'lectures and seminars'!AG16)","v":5},{"$f":"IF('lectures and seminars'!AH16=\"\",\"\",'lectures and seminars'!AH16)","v":5},{"$f":"IF('lectures and seminars'!AI16=\"\",\"\",'lectures and seminars'!AI16)","v":5},{"$f":"IF('lectures and seminars'!AJ16=\"\",\"\",'lectures and seminars'!AJ16)","v":5},null,null,"Licensing",4.9333333333333336]
["Basics of statistics",{"$f":"IF('lectures and seminars'!AM2=\"\",\"\",'lectures and seminars'!AM2)","v":5},{"$f":"IF('lectures and seminars'!AN2=\"\",\"\",'lectures and seminars'!AN2)","v":5},{"$f":"IF('lectures and seminars'!AO2=\"\",\"\",'lectures and seminars'!AO2)","v":5},{"$f":"IF('lectures and seminars'!AP2=\"\",\"\",'lectures and seminars'!AP2)","v":5},null,null,"Licensing in practice",4.916666666666667]
["Basics of statistics",{"$f":"IF('lectures and seminars'!AM3=\"\",\"\",'lectures and seminars'!AM3)","v":5},{"$f":"IF('lectures and seminars'!AN3=\"\",\"\",'lectures and seminars'!AN3)","v":5},{"$f":"IF('lectures and seminars'!AO3=\"\",\"\",'lectures and seminars'!AO3)","v":5},{"$f":"IF('lectures and seminars'!AP3=\"\",\"\",'lectures and seminars'!AP3)","v":5},null,null,"Microbiology",4.2857142857142856]
["Basics of statistics",{"$f":"IF('lectures and seminars'!AM4=\"\",\"\",'lectures and seminars'!AM4)","v":5},{"$f":"IF('lectures and seminars'!AN4=\"\",\"\",'lectures and seminars'!AN4)","v":5},{"$f":"IF('lectures and seminars'!AO4=\"\",\"\",'lectures and seminars'!AO4)","v":5},{"$f":"IF('lectures and seminars'!AP4=\"\",\"\",'lectures and seminars'!AP4)","v":5},null,null,"Min. inv.",4.9230769230769234]
["Basics of statistics",{"$f":"IF('lectures and seminars'!AM5=\"\",\"\",'lectures and seminars'!AM5)","v":5},{"$f":"IF('lectures and seminars'!AN5=\"\",\"\",'lectures and seminars'!AN5)","v":5},{"$f":"IF('lectures and seminars'!AO5=\"\",\"\",'lectures and seminars'!AO5)","v":5},{"$f":"IF('lectures and seminars'!AP5=\"\",\"\",'lectures and seminars'!AP5)","v":5},null,null,"Monitoring",4.8571428571428568]
["Basics of statistics",{"$f":"IF('lectures and seminars'!AM6=\"\",\"\",'lectures and seminars'!AM6)","v":5},{"$f":"IF('lectures and seminars'!AN6=\"\",\"\",'lectures and seminars'!AN6)","v":5},{"$f":"IF('lectures and seminars'!AO6=\"\",\"\",'lectures and seminars'!AO6)","v":5},{"$f":"IF('lectures and seminars'!AP6=\"\",\"\",'lectures and seminars'!AP6)","v":5},null,null,"Pain, suffering",4.9285714285714288]
["Basics of statistics",{"$f":"IF('lectures and seminars'!AM7=\"\",\"\",'lectures and seminars'!AM7)","v":5},{"$f":"IF('lectures and seminars'!AN7=\"\",\"\",'lectures and seminars'!AN7)","v":4},{"$f":"IF('lectures and seminars'!AO7=\"\",\"\",'lectures and seminars'!AO7)","v":5},{"$f":"IF('lectures and seminars'!AP7=\"\",\"\",'lectures and seminars'!AP7)","v":4},null,null,"Protocol design",4.916666666666667]
["Basics of statistics",{"$f":"IF('lectures and seminars'!AM8=\"\",\"\",'lectures and seminars'!AM8)","v":5},{"$f":"IF('lectures and seminars'!AN8=\"\",\"\",'lectures and seminars'!AN8)","v":5},{"$f":"IF('lectures and seminars'!AO8=\"\",\"\",'lectures and seminars'!AO8)","v":5},{"$f":"IF('lectures and seminars'!AP8=\"\",\"\",'lectures and seminars'!AP8)","v":5},null,null,"Restraint",4.8571428571428568]
["Basics of statistics",{"$f":"IF('lectures and seminars'!AM9=\"\",\"\",'lectures and seminars'!AM9)","v":5},{"$f":"IF('lectures and seminars'!AN9=\"\",\"\",'lectures and seminars'!AN9)","v":5},{"$f":"IF('lectures and seminars'!AO9=\"\",\"\",'lectures and seminars'!AO9)","v":5},{"$f":"IF('lectures and seminars'!AP9=\"\",\"\",'lectures and seminars'!AP9)","v":5},null,null,"Safety",5]
["Basics of statistics",{"$f":"IF('lectures and seminars'!AM10=\"\",\"\",'lectures and seminars'!AM10)","v":5},{"$f":"IF('lectures and seminars'!AN10=\"\",\"\",'lectures and seminars'!AN10)","v":5},{"$f":"IF('lectures and seminars'!AO10=\"\",\"\",'lectures and seminars'!AO10)","v":5},{"$f":"IF('lectures and seminars'!AP10=\"\",\"\",'lectures and seminars'!AP10)","v":5},null,null,"Sample size",4.9285714285714288]
["Basics of statistics",{"$f":"IF('lectures and seminars'!AM11=\"\",\"\",'lectures and seminars'!AM11)","v":5},{"$f":"IF('lectures and seminars'!AN11=\"\",\"\",'lectures and seminars'!AN11)","v":5},{"$f":"IF('lectures and seminars'!AO11=\"\",\"\",'lectures and seminars'!AO11)","v":5},{"$f":"IF('lectures and seminars'!AP11=\"\",\"\",'lectures and seminars'!AP11)","v":5},null,null,"Small animal biology",4.8666666666666663]
["Basics of statistics",{"$f":"IF('lectures and seminars'!AM12=\"\",\"\",'lectures and seminars'!AM12)","v":5},{"$f":"IF('lectures and seminars'!AN12=\"\",\"\",'lectures and seminars'!AN12)","v":5},{"$f":"IF('lectures and seminars'!AO12=\"\",\"\",'lectures and seminars'!AO12)","v":5},{"$f":"IF('lectures and seminars'!AP12=\"\",\"\",'lectures and seminars'!AP12)","v":5},null,null,"Translation",5]
["Basics of statistics",{"$f":"IF('lectures and seminars'!AM13=\"\",\"\",'lectures and seminars'!AM13)","v":5},{"$f":"IF('lectures and seminars'!AN13=\"\",\"\",'lectures and seminars'!AN13)","v":5},{"$f":"IF('lectures and seminars'!AO13=\"\",\"\",'lectures and seminars'!AO13)","v":5},{"$f":"IF('lectures and seminars'!AP13=\"\",\"\",'lectures and seminars'!AP13)","v":5},null,null,"Zebrafish",4.7857142857142856]
["Basics of statistics",{"$f":"IF('lectures and seminars'!AM14=\"\",\"\",'lectures and seminars'!AM14)","v":5},{"$f":"IF('lectures and seminars'!AN14=\"\",\"\",'lectures and seminars'!AN14)","v":5},{"$f":"IF('lectures and seminars'!AO14=\"\",\"\",'lectures and seminars'!AO14)","v":5},{"$f":"IF('lectures and seminars'!AP14=\"\",\"\",'lectures and seminars'!AP14)","v":5},null,null,"Végösszeg",4.8527315914489311]
["Basics of statistics",{"$f":"IF('lectures and seminars'!AM15=\"\",\"\",'lectures and seminars'!AM15)","v":5},{"$f":"IF('lectures and seminars'!AN15=\"\",\"\",'lectures and seminars'!AN15)","v":5},{"$f":"IF('lectures and seminars'!AO15=\"\",\"\",'lectures and seminars'!AO15)","v":5},{"$f":"IF('lectures and seminars'!AP15=\"\",\"\",'lectures and seminars'!AP15)","v":5}]
["Basics of statistics",{"$f":"IF('lectures and seminars'!AM16=\"\",\"\",'lectures and seminars'!AM16)","v":5},{"$f":"IF('lectures and seminars'!AN16=\"\",\"\",'lectures and seminars'!AN16)","v":5},{"$f":"IF('lectures and seminars'!AO16=\"\",\"\",'lectures and seminars'!AO16)","v":5},{"$f":"IF('lectures and seminars'!AP16=\"\",\"\",'lectures and seminars'!AP16)","v":5}]
["Small animal biology",{"$f":"IF('lectures and seminars'!AS2=\"\",\"\",'lectures and seminars'!AS2)","v":5},{"$f":"IF('lectures and seminars'!AT2=\"\",\"\",'lectures and seminars'!AT2)","v":4},{"$f":"IF('lectures and seminars'!AU2=\"\",\"\",'lectures and seminars'!AU2)","v":5},{"$f":"IF('lectures and seminars'!AV2=\"\",\"\",'lectures and seminars'!AV2)","v":4}]
["Small animal biology",{"$f":"IF('lectures and seminars'!AS3=\"\",\"\",'lectures and seminars'!AS3)","v":5},{"$f":"IF('lectures and seminars'!AT3=\"\",\"\",'lectures and seminars'!AT3)","v":5},{"$f":"IF('lectures and seminars'!AU3=\"\",\"\",'lectures and seminars'!AU3)","v":5},{"$f":"IF('lectures and seminars'!AV3=\"\",\"\",'lectures and seminars'!AV3)","v":5},null,null,"Sorcímkék","Átlag / Handouts"]
["Small animal biology",{"$f":"IF('lectures and seminars'!AS4=\"\",\"\",'lectures and seminars'!AS4)","v":4},{"$f":"IF('lectures and seminars'!AT4=\"\",\"\",'lectures and seminars'!AT4)","v":4},{"$f":"IF('lectures and seminars'!AU4=\"\",\"\",'lectures and seminars'!AU4)","v":5},{"$f":"IF('lectures and seminars'!AV4=\"\",\"\",'lectures and seminars'!AV4)","v":4},null,null,"3 Rs",4.9333333333333336]
["Small animal biology",{"$f":"IF('lectures and seminars'!AS5=\"\",\"\",'lectures and seminars'!AS5)","v":3},{"$f":"IF('lectures and seminars'!AT5=\"\",\"\",'lectures and seminars'!AT5)","v":2},{"$f":"IF('lectures and seminars'!AU5=\"\",\"\",'lectures and seminars'!AU5)","v":3},{"$f":"IF('lectures and seminars'!AV5=\"\",\"\",'lectures and seminars'!AV5)","v":3},null,null,"Advanced anaesthesia",4.9230769230769234]
["Small animal biology",{"$f":"IF('lectures and seminars'!AS6=\"\",\"\",'lectures and seminars'!AS6)","v":5},{"$f":"IF('lectures and seminars'!AT6=\"\",\"\",'lectures and seminars'!AT6)","v":5},{"$f":"IF('lectures and seminars'!AU6=\"\",\"\",'lectures and seminars'!AU6)","v":5},{"$f":"IF('lectures and seminars'!AV6=\"\",\"\",'lectures and seminars'!AV6)","v":5},null,null,"Alternatives",4.7692307692307692]
["Small animal biology",{"$f":"IF('lectures and seminars'!AS7=\"\",\"\",'lectures and seminars'!AS7)","v":5},{"$f":"IF('lectures and seminars'!AT7=\"\",\"\",'lectures and seminars'!AT7)","v":5},{"$f":"IF('lectures and seminars'!AU7=\"\",\"\",'lectures and seminars'!AU7)","v":5},{"$f":"IF('lectures and seminars'!AV7=\"\",\"\",'lectures and seminars'!AV7)","v":5},null,null,"Anaesthesia",4.9230769230769234]
["Small animal biology",{"$f":"IF('lectures and seminars'!AS8=\"\",\"\",'lectures and seminars'!AS8)","v":5},{"$f":"IF('lectures and seminars'!AT8=\"\",\"\",'lectures and seminars'!AT8)","v":5},{"$f":"IF('lectures and seminars'!AU8=\"\",\"\",'lectures and seminars'!AU8)","v":5},{"$f":"IF('lectures and seminars'!AV8=\"\",\"\",'lectures and seminars'!AV8)","v":5},null,null,"Basic surgical procedures",4.9230769230769234]
["Small animal biology",{"$f":"IF('lectures and seminars'!AS9=\"\",\"\",'lectures and seminars'!AS9)","v":5},{"$f":"IF('lectures and seminars'!AT9=\"\",\"\",'lectures and seminars'!AT9)","v":5},{"$f":"IF('lectures and seminars'!AU9=\"\",\"\",'lectures and seminars'!AU9)","v":5},{"$f":"IF('lectures and seminars'!AV9=\"\",\"\",'lectures and seminars'!AV9)","v":5},null,null,"Basics of statistics",4.9333333333333336]
["Small animal biology",{"$f":"IF('lectures and seminars'!AS10=\"\",\"\",'lectures and seminars'!AS10)","v":5},{"$f":"IF('lectures and seminars'!AT10=\"\",\"\",'lectures and seminars'!AT10)","v":5},{"$f":"IF('lectures and seminars'!AU10=\"\",\"\",'lectures and seminars'!AU10)","v":5},{"$f":"IF('lectures and seminars'!AV10=\"\",\"\",'lectures and seminars'!AV10)","v":5},null,null,"Behaviour",4.4285714285714288]
["Small animal biology",{"$f":"IF('lectures and seminars'!AS11=\"\",\"\",'lectures and seminars'!AS11)","v":5},{"$f":"IF('lectures and seminars'!AT11=\"\",\"\",'lectures and seminars'!AT11)","v":5},{"$f":"IF('lectures and seminars'!AU11=\"\",\"\",'lectures and seminars'!AU11)","v":5},{"$f":"IF('lectures and seminars'!AV11=\"\",\"\",'lectures and seminars'!AV11)","v":5},null,null,"Bibliometrics",4.8571428571428568]
["Small animal biology",{"$f":"IF('lectures and seminars'!AS12=\"\",\"\",'lectures and seminars'!AS12)","v":5},{"$f":"IF('lectures and seminars'!AT12=\"\",\"\",'lectures and seminars'!AT12)","v":2},{"$f":"IF('lectures and seminars'!AU12=\"\",\"\",'lectures and seminars'!AU12)","v":5},{"$f":"IF('lectures and seminars'!AV12=\"\",\"\",'lectures and seminars'!AV12)","v":5},null,null,"Environmental enrichment",4.9230769230769234]
["Small animal biology",{"$f":"IF('lectures and seminars'!AS13=\"\",\"\",'lectures and seminars'!AS13)","v":5},{"$f":"IF('lectures and seminars'!AT13=\"\",\"\",'lectures and seminars'!AT13)","v":4},{"$f":"IF('lectures and seminars'!AU13=\"\",\"\",'lectures and seminars'!AU13)","v":5},{"$f":"IF('lectures and seminars'!AV13=\"\",\"\",'lectures and seminars'!AV13)","v":4},null,null,"Ethics",4.9333333333333336]
["Small animal biology",{"$f":"IF('lectures and seminars'!AS14=\"\",\"\",'lectures and seminars'!AS14)","v":5},{"$f":"IF('lectures and seminars'!AT14=\"\",\"\",'lectures and seminars'!AT14)","v":5},{"$f":"IF('lectures and seminars'!AU14=\"\",\"\",'lectures and seminars'!AU14)","v":5},{"$f":"IF('lectures and seminars'!AV14=\"\",\"\",'lectures and seminars'!AV14)","v":4},null,null,"Extrapolation",4.7333333333333334]
["Small animal biology",{"$f":"IF('lectures and seminars'!AS15=\"\",\"\",'lectures and seminars'!AS15)","v":5},{"$f":"IF('lectures and seminars'!AT15=\"\",\"\",'lectures and seminars'!AT15)","v":5},{"$f":"IF('lectures and seminars'!AU15=\"\",\"\",'lectures and seminars'!AU15)","v":5},{"$f":"IF('lectures and seminars'!AV15=\"\",\"\",'lectures and seminars'!AV15)","v":5},null,null,"History",4.8666666666666663]
["Small animal biology",{"$f":"IF('lectures and seminars'!AS16=\"\",\"\",'lectures and seminars'!AS16)","v":5},{"$f":"IF('lectures and seminars'!AT16=\"\",\"\",'lectures and seminars'!AT16)","v":5},{"$f":"IF('lectures and seminars'!AU16=\"\",\"\",'lectures and seminars'!AU16)","v":5},{"$f":"IF('lectures and seminars'!AV16=\"\",\"\",'lectures and seminars'!AV16)","v":5},null,null,"Housing",4.8461538461538458]
["Large animal biology",{"$f":"IF('lectures and seminars'!AY2=\"\",\"\",'lectures and seminars'!AY2)","v":5},{"$f":"IF('lectures and seminars'!AZ2=\"\",\"\",'lectures and seminars'!AZ2)","v":4},{"$f":"IF('lectures and seminars'!BA2=\"\",\"\",'lectures and seminars'!BA2)","v":5},{"$f":"IF('lectures and seminars'!BB2=\"\",\"\",'lectures and seminars'!BB2)","v":3},null,null,"In vitro, ex vivo",4.833333333333333]
["Large animal biology",{"$f":"IF('lectures and seminars'!AY3=\"\",\"\",'lectures and seminars'!AY3)","v":5},{"$f":"IF('lectures and seminars'!AZ3=\"\",\"\",'lectures and seminars'!AZ3)","v":5},{"$f":"IF('lectures and seminars'!BA3=\"\",\"\",'lectures and seminars'!BA3)","v":5},{"$f":"IF('lectures and seminars'!BB3=\"\",\"\",'lectures and seminars'!BB3)","v":5},null,null,"Inbred, outbred",4.6428571428571432]
["Large animal biology",{"$f":"IF('lectures and seminars'!AY4=\"\",\"\",'lectures and seminars'!AY4)","v":5},{"$f":"IF('lectures and seminars'!AZ4=\"\",\"\",'lectures and seminars'!AZ4)","v":4},{"$f":"IF('lectures and seminars'!BA4=\"\",\"\",'lectures and seminars'!BA4)","v":4},{"$f":"IF('lectures and seminars'!BB4=\"\",\"\",'lectures and seminars'!BB4)","v":4},null,null,"Large animal biology",4.4666666666666668]
["Large animal biology",{"$f":"IF('lectures and seminars'!AY5=\"\",\"\",'lectures and seminars'!AY5)","v":4},{"$f":"IF('lectures and seminars'!AZ5=\"\",\"\",'lectures and seminars'!AZ5)","v":3},{"$f":"IF('lectures and seminars'!BA5=\"\",\"\",'lectures and seminars'!BA5)","v":3},{"$f":"IF('lectures and seminars'!BB5=\"\",\"\",'lectures and seminars'!BB5)","v":3},null,null,"Law and 3 Rs",4.8666666666666663]
["Large animal biology",{"$f":"IF('lectures and seminars'!AY6=\"\",\"\",'lectures and seminars'!AY6)","v":5},{"$f":"IF('lectures and seminars'!AZ6=\"\",\"\",'lectures and seminars'!AZ6)","v":5},{"$f":"IF('lectures and seminars'!BA6=\"\",\"\",'lectures and seminars'!BA6)","v":5},{"$f":"IF('lectures and seminars'!BB6=\"\",\"\",'lectures and seminars'!BB6)","v":5},null,null,"Licensing",4.8666666666666663]
["Large animal biology",{"$f":"IF('lectures and seminars'!AY7=\"\",\"\",'lectures and seminars'!AY7)","v":5},{"$f":"IF('lectures and seminars'!AZ7=\"\",\"\",'lectures and seminars'!AZ7)","v":5},{"$f":"IF('lectures and seminars'!BA7=\"\",\"\",'lectures and seminars'!BA7)","v":5},{"$f":"IF('lectures and seminars'!BB7=\"\",\"\",'lectures and seminars'!BB7)","v":5},null,null,"Licensing in practice",4.8181818181818183]
["Large animal biology",{"$f":"IF('lectures and seminars'!AY8=\"\",\"\",'lectures and seminars'!AY8)","v":5},{"$f":"IF('lectures and seminars'!AZ8=\"\",\"\",'lectures and seminars'!AZ8)","v":2},{"$f":"IF('lectures and seminars'!BA8=\"\",\"\",'lectures and seminars'!BA8)","v":4},{"$f":"IF('lectures and seminars'!BB8=\"\",\"\",'lectures and seminars'!BB8)","v":3},null,null,"Microbiology",4.1538461538461542]
["Large animal biology",{"$f":"IF('lectures and seminars'!AY9=\"\",\"\",'lectures and seminars'!AY9)","v":5},{"$f":"IF('lectures and seminars'!AZ9=\"\",\"\",'lectures and seminars'!AZ9)","v":5},{"$f":"IF('lectures and seminars'!BA9=\"\",\"\",'lectures and seminars'!BA9)","v":5},{"$f":"IF('lectures and seminars'!BB9=\"\",\"\",'lectures and seminars'!BB9)","v":5},null,null,"Min. inv.",4.916666666666667]
["Large animal biology",{"$f":"IF('lectures and seminars'!AY10=\"\",\"\",'lectures and seminars'!AY10)","v":5},{"$f":"IF('lectures and seminars'!AZ10=\"\",\"\",'lectures and seminars'!AZ10)","v":5},{"$f":"IF('lectures and seminars'!BA10=\"\",\"\",'lectures and seminars'!BA10)","v":5},{"$f":"IF('lectures and seminars'!BB10=\"\",\"\",'lectures and seminars'!BB10)","v":5},null,null,"Monitoring",4.8461538461538458]
["Large animal biology",{"$f":"IF('lectures and seminars'!AY11=\"\",\"\",'lectures and seminars'!AY11)","v":5},{"$f":"IF('lectures and seminars'!AZ11=\"\",\"\",'lectures and seminars'!AZ11)","v":5},{"$f":"IF('lectures and seminars'!BA11=\"\",\"\",'lectures and seminars'!BA11)","v":5},{"$f":"IF('lectures and seminars'!BB11=\"\",\"\",'lectures and seminars'!BB11)","v":5},null,null,"Pain, suffering",4.9230769230769234]
["Large animal biology",{"$f":"IF('lectures and seminars'!AY12=\"\",\"\",'lectures and seminars'!AY12)","v":5},{"$f":"IF('lectures and seminars'!AZ12=\"\",\"\",'lectures and seminars'!AZ12)","v":5},{"$f":"IF('lectures and seminars'!BA12=\"\",\"\",'lectures and seminars'!BA12)","v":5},{"$f":"IF('lectures and seminars'!BB12=\"\",\"\",'lectures and seminars'!BB12)","v":5},null,null,"Protocol design",4.8181818181818183]
["Large animal biology",{"$f":"IF('lectures and seminars'!AY13=\"\",\"\",'lectures and seminars'!AY13)","v":5},{"$f":"IF('lectures and seminars'!AZ13=\"\",\"\",'lectures and seminars'!AZ13)","v":4},{"$f":"IF('lectures and seminars'!BA13=\"\",\"\",'lectures and seminars'!BA13)","v":5},{"$f":"IF('lectures and seminars'!BB13=\"\",\"\",'lectures and seminars'!BB13)","v":4},null,null,"Restraint",4.6428571428571432]
["Large animal biology",{"$f":"IF('lectures and seminars'!AY14=\"\",\"\",'lectures and seminars'!AY14)","v":5},{"$f":"IF('lectures and seminars'!AZ14=\"\",\"\",'lectures and seminars'!AZ14)","v":5},{"$f":"IF('lectures and seminars'!BA14=\"\",\"\",'lectures and seminars'!BA14)","v":5},{"$f":"IF('lectures and seminars'!BB14=\"\",\"\",'lectures and seminars'!BB14)","v":5},null,null,"Safety",4.9230769230769234]
["Large animal biology",{"$f":"IF('lectures and seminars'!AY15=\"\",\"\",'lectures and seminars'!AY15)","v":5},{"$f":"IF('lectures and seminars'!AZ15=\"\",\"\",'lectures and seminars'!AZ15)","v":5},{"$f":"IF('lectures and seminars'!BA15=\"\",\"\",'lectures and seminars'!BA15)","v":5},{"$f":"IF('lectures and seminars'!BB15=\"\",\"\",'lectures and seminars'!BB15)","v":5},null,null,"Sample size",4.9285714285714288]
["Large animal biology",{"$f":"IF('lectures and seminars'!AY16=\"\",\"\",'lectures and seminars'!AY16)","v":5},{"$f":"IF('lectures and seminars'!AZ16=\"\",\"\",'lectures and seminars'!AZ16)","v":5},{"$f":"IF('lectures and seminars'!BA16=\"\",\"\",'lectures and seminars'!BA16)","v":5},{"$f":"IF('lectures and seminars'!BB16=\"\",\"\",'lectures and seminars'!BB16)","v":5},null,null,"Small animal biology",4.5999999999999996]
["Behaviour",{"$f":"IF('lectures and seminars'!BE2=\"\",\"\",'lectures and seminars'!BE2)","v":3},{"$f":"IF('lectures and seminars'!BF2=\"\",\"\",'lectures and seminars'!BF2)","v":3},{"$f":"IF('lectures and seminars'!BG2=\"\",\"\",'lectures and seminars'!BG2)","v":5},{"$f":"IF('lectures and seminars'!BH2=\"\",\"\",'lectures and seminars'!BH2)","v":4},null,null,"Translation",5]
["Behaviour",{"$f":"IF('lectures and seminars'!BE3=\"\",\"\",'lectures and seminars'!BE3)","v":""},{"$f":"IF('lectures and seminars'!BF3=\"\",\"\",'lectures and seminars'!BF3)","v":""},{"$f":"IF('lectures and seminars'!BG3=\"\",\"\",'lectures and seminars'!BG3)","v":""},{"$f":"IF('lectures and seminars'!BH3=\"\",\"\",'lectures and seminars'!BH3)","v":""},null,null,"Zebrafish",4.7142857142857144]
["Behaviour",{"$f":"IF('lectures and seminars'!BE4=\"\",\"\",'lectures and seminars'!BE4)","v":3},{"$f":"IF('lectures and seminars'!BF4=\"\",\"\",'lectures and seminars'!BF4)","v":3},{"$f":"IF('lectures and seminars'!BG4=\"\",\"\",'lectures and seminars'!BG4)","v":5},{"$f":"IF('lectures and seminars'!BH4=\"\",\"\",'lectures and seminars'!BH4)","v":4},null,null,"Végösszeg",4.7970660146699267]
["Behaviour",{"$f":"IF('lectures and seminars'!BE5=\"\",\"\",'lectures and seminars'!BE5)","v":2},{"$f":"IF('lectures and seminars'!BF5=\"\",\"\",'lectures and seminars'!BF5)","v":2},{"$f":"IF('lectures and seminars'!BG5=\"\",\"\",'lectures and seminars'!BG5)","v":2},{"$f":"IF('lectures and seminars'!BH5=\"\",\"\",'lectures and seminars'!BH5)","v":2}]
["Behaviour",{"$f":"IF('lectures and seminars'!BE6=\"\",\"\",'lectures and seminars'!BE6)","v":5},{"$f":"IF('lectures and seminars'!BF6=\"\",\"\",'lectures and seminars'!BF6)","v":5},{"$f":"IF('lectures and seminars'!BG6=\"\",\"\",'lectures and seminars'!BG6)","v":5},{"$f":"IF('lectures and seminars'!BH6=\"\",\"\",'lectures and seminars'!BH6)","v":5}]
["Behaviour",{"$f":"IF('lectures and seminars'!BE7=\"\",\"\",'lectures and seminars'!BE7)","v":5},{"$f":"IF('lectures and seminars'!BF7=\"\",\"\",'lectures and seminars'!BF7)","v":3},{"$f":"IF('lectures and seminars'!BG7=\"\",\"\",'lectures and seminars'!BG7)","v":5},{"$f":"IF('lectures and seminars'!BH7=\"\",\"\",'lectures and seminars'!BH7)","v":5}]
["Behaviour",{"$f":"IF('lectures and seminars'!BE8=\"\",\"\",'lectures and seminars'!BE8)","v":4},{"$f":"IF('lectures and seminars'!BF8=\"\",\"\",'lectures and seminars'!BF8)","v":3},{"$f":"IF('lectures and seminars'!BG8=\"\",\"\",'lectures and seminars'!BG8)","v":5},{"$f":"IF('lectures and seminars'!BH8=\"\",\"\",'lectures and seminars'!BH8)","v":3}]
["Behaviour",{"$f":"IF('lectures and seminars'!BE9=\"\",\"\",'lectures and seminars'!BE9)","v":5},{"$f":"IF('lectures and seminars'!BF9=\"\",\"\",'lectures and seminars'!BF9)","v":5},{"$f":"IF('lectures and seminars'!BG9=\"\",\"\",'lectures and seminars'!BG9)","v":5},{"$f":"IF('lectures and seminars'!BH9=\"\",\"\",'lectures and seminars'!BH9)","v":5}]
["Behaviour",{"$f":"IF('lectures and seminars'!BE10=\"\",\"\",'lectures and seminars'!BE10)","v":5},{"$f":"IF('lectures and seminars'!BF10=\"\",\"\",'lectures and seminars'!BF10)","v":5},{"$f":"IF('lectures and seminars'!BG10=\"\",\"\",'lectures and seminars'!BG10)","v":5},{"$f":"IF('lectures and seminars'!BH10=\"\",\"\",'lectures and seminars'!BH10)","v":5},null,null,"Sorcímkék","Átlag / Subject-specific expertise","Átlag / Style of performance","Átlag / Choice of subject","Átlag / Handouts"]
["Behaviour",{"$f":"IF('lectures and seminars'!BE11=\"\",\"\",'lectures and seminars'!BE11)","v":4},{"$f":"IF('lectures and seminars'!BF11=\"\",\"\",'lectures and seminars'!BF11)","v":5},{"$f":"IF('lectures and seminars'!BG11=\"\",\"\",'lectures and seminars'!BG11)","v":5},{"$f":"IF('lectures and seminars'!BH11=\"\",\"\",'lectures and seminars'!BH11)","v":5},null,null,"3 Rs",4.8666666666666663,4.7333333333333334,4.8666666666666663,4.9333333333333336]
["Behaviour",{"$f":"IF('lectures and seminars'!BE12=\"\",\"\",'lectures and seminars'!BE12)","v":5},{"$f":"IF('lectures and seminars'!BF12=\"\",\"\",'lectures and seminars'!BF12)","v":5},{"$f":"IF('lectures and seminars'!BG12=\"\",\"\",'lectures and seminars'!BG12)","v":5},{"$f":"IF('lectures and seminars'!BH12=\"\",\"\",'lectures and seminars'!BH12)","v":5},null,null,"Advanced anaesthesia",4.9285714285714288,4.9285714285714288,4.9285714285714288,4.9230769230769234]
["Behaviour",{"$f":"IF('lectures and seminars'!BE13=\"\",\"\",'lectures and seminars'!BE13)","v":5},{"$f":"IF('lectures and seminars'!BF13=\"\",\"\",'lectures and seminars'!BF13)","v":4},{"$f":"IF('lectures and seminars'!BG13=\"\",\"\",'lectures and seminars'!BG13)","v":5},{"$f":"IF('lectures and seminars'!BH13=\"\",\"\",'lectures and seminars'!BH13)","v":4},null,null,"Alternatives",4.6923076923076925,5,4.9230769230769234,4.7692307692307692]
["Behaviour",{"$f":"IF('lectures and seminars'!BE14=\"\",\"\",'lectures and seminars'!BE14)","v":5},{"$f":"IF('lectures and seminars'!BF14=\"\",\"\",'lectures and seminars'!BF14)","v":5},{"$f":"IF('lectures and seminars'!BG14=\"\",\"\",'lectures and seminars'!BG14)","v":5},{"$f":"IF('lectures and seminars'!BH14=\"\",\"\",'lectures and seminars'!BH14)","v":5},null,null,"Anaesthesia",4.9285714285714288,4.9285714285714288,4.9285714285714288,4.9230769230769234]
["Behaviour",{"$f":"IF('lectures and seminars'!BE15=\"\",\"\",'lectures and seminars'!BE15)","v":5},{"$f":"IF('lectures and seminars'!BF15=\"\",\"\",'lectures and seminars'!BF15)","v":5},{"$f":"IF('lectures and seminars'!BG15=\"\",\"\",'lectures and seminars'!BG15)","v":5},{"$f":"IF('lectures and seminars'!BH15=\"\",\"\",'lectures and seminars'!BH15)","v":5},null,null,"Basic surgical procedures",4.9285714285714288,4.9285714285714288,4.9285714285714288,4.9230769230769234]
["Behaviour",{"$f":"IF('lectures and seminars'!BE16=\"\",\"\",'lectures and seminars'!BE16)","v":5},{"$f":"IF('lectures and seminars'!BF16=\"\",\"\",'lectures and seminars'!BF16)","v":5},{"$f":"IF('lectures and seminars'!BG16=\"\",\"\",'lectures and seminars'!BG16)","v":5},{"$f":"IF('lectures and seminars'!BH16=\"\",\"\",'lectures and seminars'!BH16)","v":5},null,null,"Basics of statistics",5,4.9333333333333336,5,4.9333333333333336]
["Inbred, outbred",{"$f":"IF('lectures and seminars'!BK2=\"\",\"\",'lectures and seminars'!BK2)","v":4},{"$f":"IF('lectures and seminars'!BL2=\"\",\"\",'lectures and seminars'!BL2)","v":5},{"$f":"IF('lectures and seminars'!BM2=\"\",\"\",'lectures and seminars'!BM2)","v":5},{"$f":"IF('lectures and seminars'!BN2=\"\",\"\",'lectures and seminars'!BN2)","v":4},null,null,"Behaviour",4.3571428571428568,4.1428571428571432,4.7857142857142856,4.4285714285714288]
["Inbred, outbred",{"$f":"IF('lectures and seminars'!BK3=\"\",\"\",'lectures and seminars'!BK3)","v":""},{"$f":"IF('lectures and seminars'!BL3=\"\",\"\",'lectures and seminars'!BL3)","v":""},{"$f":"IF('lectures and seminars'!BM3=\"\",\"\",'lectures and seminars'!BM3)","v":""},{"$f":"IF('lectures and seminars'!BN3=\"\",\"\",'lectures and seminars'!BN3)","v":""},null,null,"Bibliometrics",5,5,4.7142857142857144,4.8571428571428568]
["Inbred, outbred",{"$f":"IF('lectures and seminars'!BK4=\"\",\"\",'lectures and seminars'!BK4)","v":4},{"$f":"IF('lectures and seminars'!BL4=\"\",\"\",'lectures and seminars'!BL4)","v":3},{"$f":"IF('lectures and seminars'!BM4=\"\",\"\",'lectures and seminars'!BM4)","v":5},{"$f":"IF('lectures and seminars'!BN4=\"\",\"\",'lectures and seminars'!BN4)","v":2},null,null,"Environmental enrichment",5,5,4.9285714285714288,4.9230769230769234]
["Inbred, outbred",{"$f":"IF('lectures and seminars'!BK5=\"\",\"\",'lectures and seminars'!BK5)","v":4},{"$f":"IF('lectures and seminars'!BL5=\"\",\"\",'lectures and seminars'!BL5)","v":4},{"$f":"IF('lectures and seminars'!BM5=\"\",\"\",'lectures and seminars'!BM5)","v":4},{"$f":"IF('lectures and seminars'!BN5=\"\",\"\",'lectures and seminars'!BN5)","v":4},null,null,"Ethics",5,4.9333333333333336,4.9333333333333336,4.9333333333333336]
["Inbred, outbred",{"$f":"IF('lectures and seminars'!BK6=\"\",\"\",'lectures and seminars'!BK6)","v":5},{"$f":"IF('lectures and seminars'!BL6=\"\",\"\",'lectures and seminars'!BL6)","v":5},{"$f":"IF('lectures and seminars'!BM6=\"\",\"\",'lectures and seminars'!BM6)","v":5},{"$f":"IF('lectures and seminars'!BN6=\"\",\"\",'lectures and seminars'!BN6)","v":5},null,null,"Extrapolation",4.8666666666666663,4.4000000000000004,4.5333333333333332,4.7333333333333334]
["Inbred, outbred",{"$f":"IF('lectures and seminars'!BK7=\"\",\"\",'lectures and seminars'!BK7)","v":5},{"$f":"IF('lectures and seminars'!BL7=\"\",\"\",'lectures and seminars'!BL7)","v":5},{"$f":"IF('lectures and seminars'!BM7=\"\",\"\",'lectures and seminars'!BM7)","v":5},{"$f":"IF('lectures and seminars'!BN7=\"\",\"\",'lectures and seminars'!BN7)","v":5},null,null,"History",4.8666666666666663,4.9333333333333336,4.8666666666666663,4.8666666666666663]
["Inbred, outbred",{"$f":"IF('lectures and seminars'!BK8=\"\",\"\",'lectures and seminars'!BK8)","v":5},{"$f":"IF('lectures and seminars'!BL8=\"\",\"\",'lectures and seminars'!BL8)","v":5},{"$f":"IF('lectures and seminars'!BM8=\"\",\"\",'lectures and seminars'!BM8)","v":5},{"$f":"IF('lectures and seminars'!BN8=\"\",\"\",'lectures and seminars'!BN8)","v":5},null,null,"Housing",4.9285714285714288,4.8571428571428568,4.9285714285714288,4.8461538461538458]
["Inbred, outbred",{"$f":"IF('lectures and seminars'!BK9=\"\",\"\",'lectures and seminars'!BK9)","v":5},{"$f":"IF('lectures and seminars'!BL9=\"\",\"\",'lectures and seminars'!BL9)","v":5},{"$f":"IF('lectures and seminars'!BM9=\"\",\"\",'lectures and seminars'!BM9)","v":5},{"$f":"IF('lectures and seminars'!BN9=\"\",\"\",'lectures and seminars'!BN9)","v":5},null,null,"In vitro, ex vivo",4.916666666666667,4.916666666666667,4.666666666666667,4.833333333333333]
["Inbred, outbred",{"$f":"IF('lectures and seminars'!BK10=\"\",\"\",'lectures and seminars'!BK10)","v":5},{"$f":"IF('lectures and seminars'!BL10=\"\",\"\",'lectures and seminars'!BL10)","v":5},{"$f":"IF('lectures and seminars'!BM10=\"\",\"\",'lectures and seminars'!BM10)","v":5},{"$f":"IF('lectures and seminars'!BN10=\"\",\"\",'lectures and seminars'!BN10)","v":5},null,null,"Inbred, outbred",4.7857142857142856,4.7857142857142856,4.8571428571428568,4.6428571428571432]
["Inbred, outbred",{"$f":"IF('lectures and seminars'!BK11=\"\",\"\",'lectures and seminars'!BK11)","v":5},{"$f":"IF('lectures and seminars'!BL11=\"\",\"\",'lectures and seminars'!BL11)","v":5},{"$f":"IF('lectures and seminars'!BM11=\"\",\"\",'lectures and seminars'!BM11)","v":4},{"$f":"IF('lectures and seminars'!BN11=\"\",\"\",'lectures and seminars'!BN11)","v":5},null,null,"Large animal biology",4.9333333333333336,4.4666666666666668,4.7333333333333334,4.4666666666666668]
["Inbred, outbred",{"$f":"IF('lectures and seminars'!BK12=\"\",\"\",'lectures and seminars'!BK12)","v":5},{"$f":"IF('lectures and seminars'!BL12=\"\",\"\",'lectures and seminars'!BL12)","v":5},{"$f":"IF('lectures and seminars'!BM12=\"\",\"\",'lectures and seminars'!BM12)","v":5},{"$f":"IF('lectures and seminars'!BN12=\"\",\"\",'lectures and seminars'!BN12)","v":5},null,null,"Law and 3 Rs",4.8666666666666663,4.8,4.8666666666666663,4.8666666666666663]
["Inbred, outbred",{"$f":"IF('lectures and seminars'!BK13=\"\",\"\",'lectures and seminars'!BK13)","v":5},{"$f":"IF('lectures and seminars'!BL13=\"\",\"\",'lectures and seminars'!BL13)","v":5},{"$f":"IF('lectures and seminars'!BM13=\"\",\"\",'lectures and seminars'!BM13)","v":5},{"$f":"IF('lectures and seminars'!BN13=\"\",\"\",'lectures and seminars'!BN13)","v":5},null,null,"Licensing",4.9333333333333336,4.8,4.9333333333333336,4.8666666666666663]
["Inbred, outbred",{"$f":"IF('lectures and seminars'!BK14=\"\",\"\",'lectures and seminars'!BK14)","v":5},{"$f":"IF('lectures and seminars'!BL14=\"\",\"\",'lectures and seminars'!BL14)","v":5},{"$f":"IF('lectures and seminars'!BM14=\"\",\"\",'lectures and seminars'!BM14)","v":5},{"$f":"IF('lectures and seminars'!BN14=\"\",\"\",'lectures and seminars'!BN14)","v":5},null,null,"Licensing in practice",4.916666666666667,4.916666666666667,4.916666666666667,4.8181818181818183]
["Inbred, outbred",{"$f":"IF('lectures and seminars'!BK15=\"\",\"\",'lectures and seminars'!BK15)","v":5},{"$f":"IF('lectures and seminars'!BL15=\"\",\"\",'lectures and seminars'!BL15)","v":5},{"$f":"IF('lectures and seminars'!BM15=\"\",\"\",'lectures and seminars'!BM15)","v":5},{"$f":"IF('lectures and seminars'!BN15=\"\",\"\",'lectures and seminars'!BN15)","v":5},null,null,"Microbiology",4.4285714285714288,3.9285714285714284,4.2857142857142856,4.1538461538461542]
["Inbred, outbred",{"$f":"IF('lectures and seminars'!BK16=\"\",\"\",'lectures and seminars'!BK16)","v":5},{"$f":"IF('lectures and seminars'!BL16=\"\",\"\",'lectures and seminars'!BL16)","v":5},{"$f":"IF('lectures and seminars'!BM16=\"\",\"\",'lectures and seminars'!BM16)","v":5},{"$f":"IF('lectures and seminars'!BN16=\"\",\"\",'lectures and seminars'!BN16)","v":5},null,null,"Min. inv.",4.8461538461538458,4.9230769230769234,4.9230769230769234,4.916666666666667]
["Restraint",{"$f":"IF('lectures and seminars'!BQ2=\"\",\"\",'lectures and seminars'!BQ2)","v":5},{"$f":"IF('lectures and seminars'!BR2=\"\",\"\",'lectures and seminars'!BR2)","v":5},{"$f":"IF('lectures and seminars'!BS2=\"\",\"\",'lectures and seminars'!BS2)","v":5},{"$f":"IF('lectures and seminars'!BT2=\"\",\"\",'lectures and seminars'!BT2)","v":5},null,null,"Monitoring",5,5,4.8571428571428568,4.8461538461538458]
["Restraint",{"$f":"IF('lectures and seminars'!BQ3=\"\",\"\",'lectures and seminars'!BQ3)","v":""},{"$f":"IF('lectures and seminars'!BR3=\"\",\"\",'lectures and seminars'!BR3)","v":""},{"$f":"IF('lectures and seminars'!BS3=\"\",\"\",'lectures and seminars'!BS3)","v":""},{"$f":"IF('lectures and seminars'!BT3=\"\",\"\",'lectures and seminars'!BT3)","v":""},null,null,"Pain, suffering",4.9285714285714288,4.7857142857142856,4.9285714285714288,4.9230769230769234]
["Restraint",{"$f":"IF('lectures and seminars'!BQ4=\"\",\"\",'lectures and seminars'!BQ4)","v":5},{"$f":"IF('lectures and seminars'!BR4=\"\",\"\",'lectures and seminars'!BR4)","v":4},{"$f":"IF('lectures and seminars'!BS4=\"\",\"\",'lectures and seminars'!BS4)","v":4},{"$f":"IF('lectures and seminars'!BT4=\"\",\"\",'lectures and seminars'!BT4)","v":4},null,null,"Protocol design",4.916666666666667,4.916666666666667,4.916666666666667,4.8181818181818183]
["Restraint",{"$f":"IF('lectures and seminars'!BQ5=\"\",\"\",'lectures and seminars'!BQ5)","v":4},{"$f":"IF('lectures and seminars'!BR5=\"\",\"\",'lectures and seminars'!BR5)","v":4},{"$f":"IF('lectures and seminars'!BS5=\"\",\"\",'lectures and seminars'!BS5)","v":4},{"$f":"IF('lectures and seminars'!BT5=\"\",\"\",'lectures and seminars'!BT5)","v":4},null,null,"Restraint",4.9285714285714288,4.7142857142857144,4.8571428571428568,4.6428571428571432]
["Restraint",{"$f":"IF('lectures and seminars'!BQ6=\"\",\"\",'lectures and seminars'!BQ6)","v":5},{"$f":"IF('lectures and seminars'!BR6=\"\",\"\",'lectures and seminars'!BR6)","v":5},{"$f":"IF('lectures and seminars'!BS6=\"\",\"\",'lectures and seminars'!BS6)","v":5},{"$f":"IF('lectures and seminars'!BT6=\"\",\"\",'lectures and seminars'!BT6)","v":5},null,null,"Safety",5,4.9285714285714288,5,4.9230769230769234]
["Restraint",{"$f":"IF('lectures and seminars'!BQ7=\"\",\"\",'lectures and seminars'!BQ7)","v":5},{"$f":"IF('lectures and seminars'!BR7=\"\",\"\",'lectures and seminars'!BR7)","v":5},{"$f":"IF('lectures and seminars'!BS7=\"\",\"\",'lectures and seminars'!BS7)","v":5},{"$f":"IF('lectures and seminars'!BT7=\"\",\"\",'lectures and seminars'!BT7)","v":5},null,null,"Sample size",4.9285714285714288,4.9285714285714288,4.9285714285714288,4.9285714285714288]
["Restraint",{"$f":"IF('lectures and seminars'!BQ8=\"\",\"\",'lectures and seminars'!BQ8)","v":5},{"$f":"IF('lectures and seminars'!BR8=\"\",\"\",'lectures and seminars'!BR8)","v":3},{"$f":"IF('lectures and seminars'!BS8=\"\",\"\",'lectures and seminars'!BS8)","v":5},{"$f":"IF('lectures and seminars'!BT8=\"\",\"\",'lectures and seminars'!BT8)","v":3},null,null,"Small animal biology",4.8,4.4000000000000004,4.8666666666666663,4.5999999999999996]
["Restraint",{"$f":"IF('lectures and seminars'!BQ9=\"\",\"\",'lectures and seminars'!BQ9)","v":5},{"$f":"IF('lectures and seminars'!BR9=\"\",\"\",'lectures and seminars'!BR9)","v":5},{"$f":"IF('lectures and seminars'!BS9=\"\",\"\",'lectures and seminars'!BS9)","v":5},{"$f":"IF('lectures and seminars'!BT9=\"\",\"\",'lectures and seminars'!BT9)","v":5},null,null,"Translation",5,5,5,5]
["Restraint",{"$f":"IF('lectures and seminars'!BQ10=\"\",\"\",'lectures and seminars'!BQ10)","v":5},{"$f":"IF('lectures and seminars'!BR10=\"\",\"\",'lectures and seminars'!BR10)","v":5},{"$f":"IF('lectures and seminars'!BS10=\"\",\"\",'lectures and seminars'!BS10)","v":5},{"$f":"IF('lectures and seminars'!BT10=\"\",\"\",'lectures and seminars'!BT10)","v":5},null,null,"Zebrafish",4.8571428571428568,4.5714285714285712,4.7857142857142856,4.7142857142857144]
["Restraint",{"$f":"IF('lectures and seminars'!BQ11=\"\",\"\",'lectures and seminars'!BQ11)","v":5},{"$f":"IF('lectures and seminars'!BR11=\"\",\"\",'lectures and seminars'!BR11)","v":5},{"$f":"IF('lectures and seminars'!BS11=\"\",\"\",'lectures and seminars'!BS11)","v":5},{"$f":"IF('lectures and seminars'!BT11=\"\",\"\",'lectures and seminars'!BT11)","v":5},null,null,"Végösszeg",4.8788598574821851,4.7790973871733966,4.8527315914489311,4.7970660146699267]
["Restraint",{"$f":"IF('lectures and seminars'!BQ12=\"\",\"\",'lectures and seminars'!BQ12)","v":5},{"$f":"IF('lectures and seminars'!BR12=\"\",\"\",'lectures and seminars'!BR12)","v":5},{"$f":"IF('lectures and seminars'!BS12=\"\",\"\",'lectures and seminars'!BS12)","v":5},{"$f":"IF('lectures and seminars'!BT12=\"\",\"\",'lectures and seminars'!BT12)","v":5}]
["Restraint",{"$f":"IF('lectures and seminars'!BQ13=\"\",\"\",'lectures and seminars'!BQ13)","v":5},{"$f":"IF('lectures and seminars'!BR13=\"\",\"\",'lectures and seminars'!BR13)","v":5},{"$f":"IF('lectures and seminars'!BS13=\"\",\"\",'lectures and seminars'!BS13)","v":5},{"$f":"IF('lectures and seminars'!BT13=\"\",\"\",'lectures and seminars'!BT13)","v":5}]
["Restraint",{"$f":"IF('lectures and seminars'!BQ14=\"\",\"\",'lectures and seminars'!BQ14)","v":5},{"$f":"IF('lectures and seminars'!BR14=\"\",\"\",'lectures and seminars'!BR14)","v":5},{"$f":"IF('lectures and seminars'!BS14=\"\",\"\",'lectures and seminars'!BS14)","v":5},{"$f":"IF('lectures and seminars'!BT14=\"\",\"\",'lectures and seminars'!BT14)","v":4}]
["Restraint",{"$f":"IF('lectures and seminars'!BQ15=\"\",\"\",'lectures and seminars'!BQ15)","v":5},{"$f":"IF('lectures and seminars'!BR15=\"\",\"\",'lectures and seminars'!BR15)","v":5},{"$f":"IF('lectures and seminars'!BS15=\"\",\"\",'lectures and seminars'!BS15)","v":5},{"$f":"IF('lectures and seminars'!BT15=\"\",\"\",'lectures and seminars'!BT15)","v":5}]
["Restraint",{"$f":"IF('lectures and seminars'!BQ16=\"\",\"\",'lectures and seminars'!BQ16)","v":5},{"$f":"IF('lectures and seminars'!BR16=\"\",\"\",'lectures and seminars'!BR16)","v":5},{"$f":"IF('lectures and seminars'!BS16=\"\",\"\",'lectures and seminars'!BS16)","v":5},{"$f":"IF('lectures and seminars'!BT16=\"\",\"\",'lectures and seminars'!BT16)","v":5}]
["Zebrafish",{"$f":"IF('lectures and seminars'!BW2=\"\",\"\",'lectures and seminars'!BW2)","v":5},{"$f":"IF('lectures and seminars'!BX2=\"\",\"\",'lectures and seminars'!BX2)","v":5},{"$f":"IF('lectures and seminars'!BY2=\"\",\"\",'lectures and seminars'!BY2)","v":5},{"$f":"IF('lectures and seminars'!BZ2=\"\",\"\",'lectures and seminars'!BZ2)","v":5}]
["Zebrafish",{"$f":"IF('lectures and seminars'!BW3=\"\",\"\",'lectures and seminars'!BW3)","v":""},{"$f":"IF('lectures and seminars'!BX3=\"\",\"\",'lectures and seminars'!BX3)","v":""},{"$f":"IF('lectures and seminars'!BY3=\"\",\"\",'lectures and seminars'!BY3)","v":""},{"$f":"IF('lectures and seminars'!BZ3=\"\",\"\",'lectures and seminars'!BZ3)","v":""}]
["Zebrafish",{"$f":"IF('lectures and seminars'!BW4=\"\",\"\",'lectures and seminars'!BW4)","v":5},{"$f":"IF('lectures and seminars'!BX4=\"\",\"\",'lectures and seminars'!BX4)","v":5},{"$f":"IF('lectures and seminars'!BY4=\"\",\"\",'lectures and seminars'!BY4)","v":5},{"$f":"IF('lectures and seminars'!BZ4=\"\",\"\",'lectures and seminars'!BZ4)","v":4}]
["Zebrafish",{"$f":"IF('lectures and seminars'!BW5=\"\",\"\",'lectures and seminars'!BW5)","v":4},{"$f":"IF('lectures and seminars'!BX5=\"\",\"\",'lectures and seminars'!BX5)","v":4},{"$f":"IF('lectures and seminars'!BY5=\"\",\"\",'lectures and seminars'!BY5)","v":4},{"$f":"IF('lectures and seminars'!BZ5=\"\",\"\",'lectures and seminars'!BZ5)","v":4}]
["Zebrafish",{"$f":"IF('lectures and seminars'!BW6=\"\",\"\",'lectures and seminars'!BW6)","v":5},{"$f":"IF('lectures and seminars'!BX6=\"\",\"\",'lectures and seminars'!BX6)","v":5},{"$f":"IF('lectures and seminars'!BY6=\"\",\"\",'lectures and seminars'!BY6)","v":5},{"$f":"IF('lectures and seminars'!BZ6=\"\",\"\",'lectures and seminars'!BZ6)","v":5}]
["Zebrafish",{"$f":"IF('lectures and seminars'!BW7=\"\",\"\",'lectures and seminars'!BW7)","v":5},{"$f":"IF('lectures and seminars'!BX7=\"\",\"\",'lectures and seminars'!BX7)","v":5},{"$f":"IF('lectures and seminars'!BY7=\"\",\"\",'lectures and seminars'!BY7)","v":5},{"$f":"IF('lectures and seminars'!BZ7=\"\",\"\",'lectures and seminars'!BZ7)","v":5}]
["Zebrafish",{"$f":"IF('lectures and seminars'!BW8=\"\",\"\",'lectures and seminars'!BW8)","v":4},{"$f":"IF('lectures and seminars'!BX8=\"\",\"\",'lectures and seminars'!BX8)","v":4},{"$f":"IF('lectures and seminars'!BY8=\"\",\"\",'lectures and seminars'!BY8)","v":4},{"$f":"IF('lectures and seminars'!BZ8=\"\",\"\",'lectures and seminars'!BZ8)","v":4}]
["Zebrafish",{"$f":"IF('lectures and seminars'!BW9=\"\",\"\",'lectures and seminars'!BW9)","v":5},{"$f":"IF('lectures and seminars'!BX9=\"\",\"\",'lectures and seminars'!BX9)","v":5},{"$f":"IF('lectures and seminars'!BY9=\"\",\"\",'lectures and seminars'!BY9)","v":5},{"$f":"IF('lectures and seminars'!BZ9=\"\",\"\",'lectures and seminars'!BZ9)","v":5}]
["Zebrafish",{"$f":"IF('lectures and seminars'!BW10=\"\",\"\",'lectures and seminars'!BW10)","v":5},{"$f":"IF('lectures and seminars'!BX10=\"\",\"\",'lectures and seminars'!BX10)","v":5},{"$f":"IF('lectures and seminars'!BY10=\"\",\"\",'lectures and seminars'!BY10)","v":5},{"$f":"IF('lectures and seminars'!BZ10=\"\",\"\",'lectures and seminars'!BZ10)","v":5}]
["Zebrafish",{"$f":"IF('lectures and seminars'!BW11=\"\",\"\",'lectures and seminars'!BW11)","v":5},{"$f":"IF('lectures and seminars'!BX11=\"\",\"\",'lectures and seminars'!BX11)","v":5},{"$f":"IF('lectures and seminars'!BY11=\"\",\"\",'lectures and seminars'!BY11)","v":5},{"$f":"IF('lectures and seminars'!BZ11=\"\",\"\",'lectures and seminars'!BZ11)","v":5}]
["Zebrafish",{"$f":"IF('lectures and seminars'!BW12=\"\",\"\",'lectures and seminars'!BW12)","v":5},{"$f":"IF('lectures and seminars'!BX12=\"\",\"\",'lectures and seminars'!BX12)","v":2},{"$f":"IF('lectures and seminars'!BY12=\"\",\"\",'lectures and seminars'!BY12)","v":5},{"$f":"IF('lectures and seminars'!BZ12=\"\",\"\",'lectures and seminars'!BZ12)","v":5}]
["Zebrafish",{"$f":"IF('lectures and seminars'!BW13=\"\",\"\",'lectures and seminars'!BW13)","v":5},{"$f":"IF('lectures and seminars'!BX13=\"\",\"\",'lectures and seminars'!BX13)","v":4},{"$f":"IF('lectures and seminars'!BY13=\"\",\"\",'lectures and seminars'!BY13)","v":5},{"$f":"IF('lectures and seminars'!BZ13=\"\",\"\",'lectures and seminars'!BZ13)","v":4}]
["Zebrafish",{"$f":"IF('lectures and seminars'!BW14=\"\",\"\",'lectures and seminars'!BW14)","v":5},{"$f":"IF('lectures and seminars'!BX14=\"\",\"\",'lectures and seminars'!BX14)","v":5},{"$f":"IF('lectures and seminars'!BY14=\"\",\"\",'lectures and seminars'!BY14)","v":5},{"$f":"IF('lectures and seminars'!BZ14=\"\",\"\",'lectures and seminars'!BZ14)","v":5}]
["Zebrafish",{"$f":"IF('lectures and seminars'!BW15=\"\",\"\",'lectures and seminars'!BW15)","v":5},{"$f":"IF('lectures and seminars'!BX15=\"\",\"\",'lectures and seminars'!BX15)","v":5},{"$f":"IF('lectures and seminars'!BY15=\"\",\"\",'lectures and seminars'!BY15)","v":5},{"$f":"IF('lectures and seminars'!BZ15=\"\",\"\",'lectures and seminars'!BZ15)","v":5}]
["Zebrafish",{"$f":"IF('lectures and seminars'!BW16=\"\",\"\",'lectures and seminars'!BW16)","v":5},{"$f":"IF('lectures and seminars'!BX16=\"\",\"\",'lectures and seminars'!BX16)","v":5},{"$f":"IF('lectures and seminars'!BY16=\"\",\"\",'lectures and seminars'!BY16)","v":4},{"$f":"IF('lectures and seminars'!BZ16=\"\",\"\",'lectures and seminars'!BZ16)","v":5}]
["Microbiology",{"$f":"IF('lectures and seminars'!CC2=\"\",\"\",'lectures and seminars'!CC2)","v":4},{"$f":"IF('lectures and seminars'!CD2=\"\",\"\",'lectures and seminars'!CD2)","v":3},{"$f":"IF('lectures and seminars'!CE2=\"\",\"\",'lectures and seminars'!CE2)","v":4},{"$f":"IF('lectures and seminars'!CF2=\"\",\"\",'lectures and seminars'!CF2)","v":3}]
["Microbiology",{"$f":"IF('lectures and seminars'!CC3=\"\",\"\",'lectures and seminars'!CC3)","v":""},{"$f":"IF('lectures and seminars'!CD3=\"\",\"\",'lectures and seminars'!CD3)","v":""},{"$f":"IF('lectures and seminars'!CE3=\"\",\"\",'lectures and seminars'!CE3)","v":""},{"$f":"IF('lectures and seminars'!CF3=\"\",\"\",'lectures and seminars'!CF3)","v":""}]
["Microbiology",{"$f":"IF('lectures and seminars'!CC4=\"\",\"\",'lectures and seminars'!CC4)","v":5},{"$f":"IF('lectures and seminars'!CD4=\"\",\"\",'lectures and seminars'!CD4)","v":3},{"$f":"IF('lectures and seminars'!CE4=\"\",\"\",'lectures and seminars'!CE4)","v":4},{"$f":"IF('lectures and seminars'!CF4=\"\",\"\",'lectures and seminars'!CF4)","v":4}]
["Microbiology",{"$f":"IF('lectures and seminars'!CC5=\"\",\"\",'lectures and seminars'!CC5)","v":2},{"$f":"IF('lectures and seminars'!CD5=\"\",\"\",'lectures and seminars'!CD5)","v":2},{"$f":"IF('lectures and seminars'!CE5=\"\",\"\",'lectures and seminars'!CE5)","v":3},{"$f":"IF('lectures and seminars'!CF5=\"\",\"\",'lectures and seminars'!CF5)","v":3}]
["Microbiology",{"$f":"IF('lectures and seminars'!CC6=\"\",\"\",'lectures and seminars'!CC6)","v":5},{"$f":"IF('lectures and seminars'!CD6=\"\",\"\",'lectures and seminars'!CD6)","v":5},{"$f":"IF('lectures and seminars'!CE6=\"\",\"\",'lectures and seminars'!CE6)","v":5},{"$f":"IF('lectures and seminars'!CF6=\"\",\"\",'lectures and seminars'!CF6)","v":5}]
["Microbiology",{"$f":"IF('lectures and seminars'!CC7=\"\",\"\",'lectures and seminars'!CC7)","v":4},{"$f":"IF('lectures and seminars'!CD7=\"\",\"\",'lectures and seminars'!CD7)","v":3},{"$f":"IF('lectures and seminars'!CE7=\"\",\"\",'lectures and seminars'!CE7)","v":4},{"$f":"IF('lectures and seminars'!CF7=\"\",\"\",'lectures and seminars'!CF7)","v":3}]
["Microbiology",{"$f":"IF('lectures and seminars'!CC8=\"\",\"\",'lectures and seminars'!CC8)","v":5},{"$f":"IF('lectures and seminars'!CD8=\"\",\"\",'lectures and seminars'!CD8)","v":4},{"$f":"IF('lectures and seminars'!CE8=\"\",\"\",'lectures and seminars'!CE8)","v":4},{"$f":"IF('lectures and seminars'!CF8=\"\",\"\",'lectures and seminars'!CF8)","v":4}]
["Microbiology",{"$f":"IF('lectures and seminars'!CC9=\"\",\"\",'lectures and seminars'!CC9)","v":5},{"$f":"IF('lectures and seminars'!CD9=\"\",\"\",'lectures and seminars'!CD9)","v":5},{"$f":"IF('lectures and seminars'!CE9=\"\",\"\",'lectures and seminars'!CE9)","v":5},{"$f":"IF('lectures and seminars'!CF9=\"\",\"\",'lectures and seminars'!CF9)","v":""}]
["Microbiology",{"$f":"IF('lectures and seminars'!CC10=\"\",\"\",'lectures and seminars'!CC10)","v":5},{"$f":"IF('lectures and seminars'!CD10=\"\",\"\",'lectures and seminars'!CD10)","v":5},{"$f":"IF('lectures and seminars'!CE10=\"\",\"\",'lectures and seminars'!CE10)","v":5},{"$f":"IF('lectures and seminars'!CF10=\"\",\"\",'lectures and seminars'!CF10)","v":5}]
["Microbiology",{"$f":"IF('lectures and seminars'!CC11=\"\",\"\",'lectures and seminars'!CC11)","v":4},{"$f":"IF('lectures and seminars'!CD11=\"\",\"\",'lectures and seminars'!CD11)","v":4},{"$f":"IF('lectures and seminars'!CE11=\"\",\"\",'lectures and seminars'!CE11)","v":5},{"$f":"IF('lectures and seminars'!CF11=\"\",\"\",'lectures and seminars'!CF11)","v":5}]
["Microbiology",{"$f":"IF('lectures and seminars'!CC12=\"\",\"\",'lectures and seminars'!CC12)","v":5},{"$f":"IF('lectures and seminars'!CD12=\"\",\"\",'lectures and seminars'!CD12)","v":5},{"$f":"IF('lectures and seminars'!CE12=\"\",\"\",'lectures and seminars'!CE12)","v":5},{"$f":"IF('lectures and seminars'!CF12=\"\",\"\",'lectures and seminars'!CF12)","v":5}]
["Microbiology",{"$f":"IF('lectures and seminars'!CC13=\"\",\"\",'lectures and seminars'!CC13)","v":3},{"$f":"IF('lectures and seminars'!CD13=\"\",\"\",'lectures and seminars'!CD13)","v":2},{"$f":"IF('lectures and seminars'!CE13=\"\",\"\",'lectures and seminars'!CE13)","v":1},{"$f":"IF('lectures and seminars'!CF13=\"\",\"\",'lectures and seminars'!CF13)","v":2}]
["Microbiology",{"$f":"IF('lectures and seminars'!CC14=\"\",\"\",'lectures and seminars'!CC14)","v":5},{"$f":"IF('lectures and seminars'!CD14=\"\",\"\",'lectures and seminars'!CD14)","v":5},{"$f":"IF('lectures and seminars'!CE14=\"\",\"\",'lectures and seminars'!CE14)","v":5},{"$f":"IF('lectures and seminars'!CF14=\"\",\"\",'lectures and seminars'!CF14)","v":5}]
["Microbiology",{"$f":"IF('lectures and seminars'!CC15=\"\",\"\",'lectures and seminars'!CC15)","v":5},{"$f":"IF('lectures and seminars'!CD15=\"\",\"\",'lectures and seminars'!CD15)","v":5},{"$f":"IF('lectures and seminars'!CE15=\"\",\"\",'lectures and seminars'!CE15)","v":5},{"$f":"IF('lectures and seminars'!CF15=\"\",\"\",'lectures and seminars'!CF15)","v":5}]
["Microbiology",{"$f":"IF('lectures and seminars'!CC16=\"\",\"\",'lectures and seminars'!CC16)","v":5},{"$f":"IF('lectures and seminars'!CD16=\"\",\"\",'lectures and seminars'!CD16)","v":4},{"$f":"IF('lectures and seminars'!CE16=\"\",\"\",'lectures and seminars'!CE16)","v":5},{"$f":"IF('lectures and seminars'!CF16=\"\",\"\",'lectures and seminars'!CF16)","v":5}]
["Environmental enrichment",{"$f":"IF('lectures and seminars'!CI2=\"\",\"\",'lectures and seminars'!CI2)","v":5},{"$f":"IF('lectures and seminars'!CJ2=\"\",\"\",'lectures and seminars'!CJ2)","v":5},{"$f":"IF('lectures and seminars'!CK2=\"\",\"\",'lectures and seminars'!CK2)","v":5},{"$f":"IF('lectures and seminars'!CL2=\"\",\"\",'lectures and seminars'!CL2)","v":5}]
["Environmental enrichment",{"$f":"IF('lectures and seminars'!CI3=\"\",\"\",'lectures and seminars'!CI3)","v":""},{"$f":"IF('lectures and seminars'!CJ3=\"\",\"\",'lectures and seminars'!CJ3)","v":""},{"$f":"IF('lectures and seminars'!CK3=\"\",\"\",'lectures and seminars'!CK3)","v":""},{"$f":"IF('lectures and seminars'!CL3=\"\",\"\",'lectures and seminars'!CL3)","v":""}]
["Environmental enrichment",{"$f":"IF('lectures and seminars'!CI4=\"\",\"\",'lectures and seminars'!CI4)","v":5},{"$f":"IF('lectures and seminars'!CJ4=\"\",\"\",'lectures and seminars'!CJ4)","v":5},{"$f":"IF('lectures and seminars'!CK4=\"\",\"\",'lectures and seminars'!CK4)","v":5},{"$f":"IF('lectures and seminars'!CL4=\"\",\"\",'lectures and seminars'!CL4)","v":5}]
["Environmental enrichment",{"$f":"IF('lectures and seminars'!CI5=\"\",\"\",'lectures and seminars'!CI5)","v":5},{"$f":"IF('lectures and seminars'!CJ5=\"\",\"\",'lectures and seminars'!CJ5)","v":5},{"$f":"IF('lectures and seminars'!CK5=\"\",\"\",'lectures and seminars'!CK5)","v":5},{"$f":"IF('lectures and seminars'!CL5=\"\",\"\",'lectures and seminars'!CL5)","v":5}]
["Environmental enrichment",{"$f":"IF('lectures and seminars'!CI6=\"\",\"\",'lectures and seminars'!CI6)","v":5},{"$f":"IF('lectures and seminars'!CJ6=\"\",\"\",'lectures and seminars'!CJ6)","v":5},{"$f":"IF('lectures and seminars'!CK6=\"\",\"\",'lectures and seminars'!CK6)","v":5},{"$f":"IF('lectures and seminars'!CL6=\"\",\"\",'lectures and seminars'!CL6)","v":5}]
["Environmental enrichment",{"$f":"IF('lectures and seminars'!CI7=\"\",\"\",'lectures and seminars'!CI7)","v":5},{"$f":"IF('lectures and seminars'!CJ7=\"\",\"\",'lectures and seminars'!CJ7)","v":5},{"$f":"IF('lectures and seminars'!CK7=\"\",\"\",'lectures and seminars'!CK7)","v":5},{"$f":"IF('lectures and seminars'!CL7=\"\",\"\",'lectures and seminars'!CL7)","v":5}]
["Environmental enrichment",{"$f":"IF('lectures and seminars'!CI8=\"\",\"\",'lectures and seminars'!CI8)","v":5},{"$f":"IF('lectures and seminars'!CJ8=\"\",\"\",'lectures and seminars'!CJ8)","v":5},{"$f":"IF('lectures and seminars'!CK8=\"\",\"\",'lectures and seminars'!CK8)","v":5},{"$f":"IF('lectures and seminars'!CL8=\"\",\"\",'lectures and seminars'!CL8)","v":5}]
["Environmental enrichment",{"$f":"IF('lectures and seminars'!CI9=\"\",\"\",'lectures and seminars'!CI9)","v":5},{"$f":"IF('lectures and seminars'!CJ9=\"\",\"\",'lectures and seminars'!CJ9)","v":5},{"$f":"IF('lectures and seminars'!CK9=\"\",\"\",'lectures and seminars'!CK9)","v":5},{"$f":"IF('lectures and seminars'!CL9=\"\",\"\",'lectures and seminars'!CL9)","v":""}]
["Environmental enrichment",{"$f":"IF('lectures and seminars'!CI10=\"\",\"\",'lectures and seminars'!CI10)","v":5},{"$f":"IF('lectures and seminars'!CJ10=\"\",\"\",'lectures and seminars'!CJ10)","v":5},{"$f":"IF('lectures and seminars'!CK10=\"\",\"\",'lectures and seminars'!CK10)","v":5},{"$f":"IF('lectures and seminars'!CL10=\"\",\"\",'lectures and seminars'!CL10)","v":5}]
["Environmental enrichment",{"$f":"IF('lectures and seminars'!CI11=\"\",\"\",'lectures and seminars'!CI11)","v":5},{"$f":"IF('lectures and seminars'!CJ11=\"\",\"\",'lectures and seminars'!CJ11)","v":5},{"$f":"IF('lectures and seminars'!CK11=\"\",\"\",'lectures and seminars'!CK11)","v":5},{"$f":"IF('lectures and seminars'!CL11=\"\",\"\",'lectures and seminars'!CL11)","v":5}]
["Environmental enrichment",{"$f":"IF('lectures and seminars'!CI12=\"\",\"\",'lectures and seminars'!CI12)","v":5},{"$f":"IF('lectures and seminars'!CJ12=\"\",\"\",'lectures and seminars'!CJ12)","v":5},{"$f":"IF('lectures and seminars'!CK12=\"\",\"\",'lectures and seminars'!CK12)","v":5},{"$f":"IF('lectures and seminars'!CL12=\"\",\"\",'lectures and seminars'!CL12)","v":5}]
["Environmental enrichment",{"$f":"IF('lectures and seminars'!CI13=\"\",\"\",'lectures and seminars'!CI13)","v":5},{"$f":"IF('lectures and seminars'!CJ13=\"\",\"\",'lectures and seminars'!CJ13)","v":5},{"$f":"IF('lectures and seminars'!CK13=\"\",\"\",'lectures and seminars'!CK13)","v":5},{"$f":"IF('lectures and seminars'!CL13=\"\",\"\",'lectures and seminars'!CL13)","v":4}]
["Environmental enrichment",{"$f":"IF('lectures and seminars'!CI14=\"\",\"\",'lectures and seminars'!CI14)","v":5},{"$f":"IF('lectures and seminars'!CJ14=\"\",\"\",'lectures and seminars'!CJ14)","v":5},{"$f":"IF('lectures and seminars'!CK14=\"\",\"\",'lectures and seminars'!CK14)","v":5},{"$f":"IF('lectures and seminars'!CL14=\"\",\"\",'lectures and seminars'!CL14)","v":5}]
["Environmental enrichment",{"$f":"IF('lectures and seminars'!CI15=\"\",\"\",'lectures and seminars'!CI15)","v":5},{"$f":"IF('lectures and seminars'!CJ15=\"\",\"\",'lectures and seminars'!CJ15)","v":5},{"$f":"IF('lectures and seminars'!CK15=\"\",\"\",'lectures and seminars'!CK15)","v":5},{"$f":"IF('lectures and seminars'!CL15=\"\",\"\",'lectures and seminars'!CL15)","v":5}]
["Environmental enrichment",{"$f":"IF('lectures and seminars'!CI16=\"\",\"\",'lectures and seminars'!CI16)","v":5},{"$f":"IF('lectures and seminars'!CJ16=\"\",\"\",'lectures and seminars'!CJ16)","v":5},{"$f":"IF('lectures and seminars'!CK16=\"\",\"\",'lectures and seminars'!CK16)","v":4},{"$f":"IF('lectures and seminars'!CL16=\"\",\"\",'lectures and seminars'!CL16)","v":5}]
["Housing",{"$f":"IF('lectures and seminars'!CO2=\"\",\"\",'lectures and seminars'!CO2)","v":5},{"$f":"IF('lectures and seminars'!CP2=\"\",\"\",'lectures and seminars'!CP2)","v":4},{"$f":"IF('lectures and seminars'!CQ2=\"\",\"\",'lectures and seminars'!CQ2)","v":5},{"$f":"IF('lectures and seminars'!CR2=\"\",\"\",'lectures and seminars'!CR2)","v":4}]
["Housing",{"$f":"IF('lectures and seminars'!CO3=\"\",\"\",'lectures and seminars'!CO3)","v":""},{"$f":"IF('lectures and seminars'!CP3=\"\",\"\",'lectures and seminars'!CP3)","v":""},{"$f":"IF('lectures and seminars'!CQ3=\"\",\"\",'lectures and seminars'!CQ3)","v":""},{"$f":"IF('lectures and seminars'!CR3=\"\",\"\",'lectures and seminars'!CR3)","v":""}]
["Housing",{"$f":"IF('lectures and seminars'!CO4=\"\",\"\",'lectures and seminars'!CO4)","v":5},{"$f":"IF('lectures and seminars'!CP4=\"\",\"\",'lectures and seminars'!CP4)","v":5},{"$f":"IF('lectures and seminars'!CQ4=\"\",\"\",'lectures and seminars'!CQ4)","v":5},{"$f":"IF('lectures and seminars'!CR4=\"\",\"\",'lectures and seminars'!CR4)","v":5}]
["Housing",{"$f":"IF('lectures and seminars'!CO5=\"\",\"\",'lectures and seminars'!CO5)","v":4},{"$f":"IF('lectures and seminars'!CP5=\"\",\"\",'lectures and seminars'!CP5)","v":4},{"$f":"IF('lectures and seminars'!CQ5=\"\",\"\",'lectures and seminars'!CQ5)","v":4},{"$f":"IF('lectures and seminars'!CR5=\"\",\"\",'lectures and seminars'!CR5)","v":4}]
["Housing",{"$f":"IF('lectures and seminars'!CO6=\"\",\"\",'lectures and seminars'!CO6)","v":5},{"$f":"IF('lectures and seminars'!CP6=\"\",\"\",'lectures and seminars'!CP6)","v":5},{"$f":"IF('lectures and seminars'!CQ6=\"\",\"\",'lectures and seminars'!CQ6)","v":5},{"$f":"IF('lectures and seminars'!CR6=\"\",\"\",'lectures and seminars'!CR6)","v":5}]
["Housing",{"$f":"IF('lectures and seminars'!CO7=\"\",\"\",'lectures and seminars'!CO7)","v":5},{"$f":"IF('lectures and seminars'!CP7=\"\",\"\",'lectures and seminars'!CP7)","v":5},{"$f":"IF('lectures and seminars'!CQ7=\"\",\"\",'lectures and seminars'!CQ7)","v":5},{"$f":"IF('lectures and seminars'!CR7=\"\",\"\",'lectures and seminars'!CR7)","v":5}]
["Housing",{"$f":"IF('lectures and seminars'!CO8=\"\",\"\",'lectures and seminars'!CO8)","v":5},{"$f":"IF('lectures and seminars'!CP8=\"\",\"\",'lectures and seminars'!CP8)","v":5},{"$f":"IF('lectures and seminars'!CQ8=\"\",\"\",'lectures and seminars'!CQ8)","v":5},{"$f":"IF('lectures and seminars'!CR8=\"\",\"\",'lectures and seminars'!CR8)","v":5}]
["Housing",{"$f":"IF('lectures and seminars'!CO9=\"\",\"\",'lectures and seminars'!CO9)","v":5},{"$f":"IF('lectures and seminars'!CP9=\"\",\"\",'lectures and seminars'!CP9)","v":5},{"$f":"IF('lectures and seminars'!CQ9=\"\",\"\",'lectures and seminars'!CQ9)","v":5},{"$f":"IF('lectures and seminars'!CR9=\"\",\"\",'lectures and seminars'!CR9)","v":""}]
["Housing",{"$f":"IF('lectures and seminars'!CO10=\"\",\"\",'lectures and seminars'!CO10)","v":5},{"$f":"IF('lectures and seminars'!CP10=\"\",\"\",'lectures and seminars'!CP10)","v":5},{"$f":"IF('lectures and seminars'!CQ10=\"\",\"\",'lectures and seminars'!CQ10)","v":5},{"$f":"IF('lectures and seminars'!CR10=\"\",\"\",'lectures and seminars'!CR10)","v":5}]
["Housing",{"$f":"IF('lectures and seminars'!CO11=\"\",\"\",'lectures and seminars'!CO11)","v":5},{"$f":"IF('lectures and seminars'!CP11=\"\",\"\",'lectures and seminars'!CP11)","v":5},{"$f":"IF('lectures and seminars'!CQ11=\"\",\"\",'lectures and seminars'!CQ11)","v":5},{"$f":"IF('lectures and seminars'!CR11=\"\",\"\",'lectures and seminars'!CR11)","v":5}]
["Housing",{"$f":"IF('lectures and seminars'!CO12=\"\",\"\",'lectures and seminars'!CO12)","v":5},{"$f":"IF('lectures and seminars'!CP12=\"\",\"\",'lectures and seminars'!CP12)","v":5},{"$f":"IF('lectures and seminars'!CQ12=\"\",\"\",'lectures and seminars'!CQ12)","v":5},{"$f":"IF('lectures and seminars'!CR12=\"\",\"\",'lectures and seminars'!CR12)","v":5}]
["Housing",{"$f":"IF('lectures and seminars'!CO13=\"\",\"\",'lectures and seminars'!CO13)","v":5},{"$f":"IF('lectures and seminars'!CP13=\"\",\"\",'lectures and seminars'!CP13)","v":5},{"$f":"IF('lectures and seminars'!CQ13=\"\",\"\",'lectures and seminars'!CQ13)","v":5},{"$f":"IF('lectures and seminars'!CR13=\"\",\"\",'lectures and seminars'!CR13)","v":5}]
["Housing",{"$f":"IF('lectures and seminars'!CO14=\"\",\"\",'lectures and seminars'!CO14)","v":5},{"$f":"IF('lectures and seminars'!CP14=\"\",\"\",'lectures and seminars'!CP14)","v":5},{"$f":"IF('lectures and seminars'!CQ14=\"\",\"\",'lectures and seminars'!CQ14)","v":5},{"$f":"IF('lectures and seminars'!CR14=\"\",\"\",'lectures and seminars'!CR14)","v":5}]
["Housing",{"$f":"IF('lectures and seminars'!CO15=\"\",\"\",'lectures and seminars'!CO15)","v":5},{"$f":"IF('lectures and seminars'!CP15=\"\",\"\",'lectures and seminars'!CP15)","v":5},{"$f":"IF('lectures and seminars'!CQ15=\"\",\"\",'lectures and seminars'!CQ15)","v":5},{"$f":"IF('lectures and seminars'!CR15=\"\",\"\",'lectures and seminars'!CR15)","v":5}]
["Housing",{"$f":"IF('lectures and seminars'!CO16=\"\",\"\",'lectures and seminars'!CO16)","v":5},{"$f":"IF('lectures and seminars'!CP16=\"\",\"\",'lectures and seminars'!CP16)","v":5},{"$f":"IF('lectures and seminars'!CQ16=\"\",\"\",'lectures and seminars'!CQ16)","v":5},{"$f":"IF('lectures and seminars'!CR16=\"\",\"\",'lectures and seminars'!CR16)","v":5}]
["Min. inv.",{"$f":"IF('lectures and seminars'!CU2=\"\",\"\",'lectures and seminars'!CU2)","v":5},{"$f":"IF('lectures and seminars'!CV2=\"\",\"\",'lectures and seminars'!CV2)","v":5},{"$f":"IF('lectures and seminars'!CW2=\"\",\"\",'lectures and seminars'!CW2)","v":5},{"$f":"IF('lectures and seminars'!CX2=\"\",\"\",'lectures and seminars'!CX2)","v":5}]
["Min. inv.",{"$f":"IF('lectures and seminars'!CU3=\"\",\"\",'lectures and seminars'!CU3)","v":""},{"$f":"IF('lectures and seminars'!CV3=\"\",\"\",'lectures and seminars'!CV3)","v":""},{"$f":"IF('lectures and seminars'!CW3=\"\",\"\",'lectures and seminars'!CW3)","v":""},{"$f":"IF('lectures and seminars'!CX3=\"\",\"\",'lectures and seminars'!CX3)","v":""}]
["Min. inv.",{"$f":"IF('lectures and seminars'!CU4=\"\",\"\",'lectures and seminars'!CU4)","v":5},{"$f":"IF('lectures and seminars'!CV4=\"\",\"\",'lectures and seminars'!CV4)","v":5},{"$f":"IF('lectures and seminars'!CW4=\"\",\"\",'lectures and seminars'!CW4)","v":5},{"$f":"IF('lectures and seminars'!CX4=\"\",\"\",'lectures and seminars'!CX4)","v":5}]
["Min. inv.",{"$f":"IF('lectures and seminars'!CU5=\"\",\"\",'lectures and seminars'!CU5)","v":5},{"$f":"IF('lectures and seminars'!CV5=\"\",\"\",'lectures and seminars'!CV5)","v":5},{"$f":"IF('lectures and seminars'!CW5=\"\",\"\",'lectures and seminars'!CW5)","v":5},{"$f":"IF('lectures and seminars'!CX5=\"\",\"\",'lectures and seminars'!CX5)","v":5}]
["Min. inv.",{"$f":"IF('lectures and seminars'!CU6=\"\",\"\",'lectures and seminars'!CU6)","v":5},{"$f":"IF('lectures and seminars'!CV6=\"\",\"\",'lectures and seminars'!CV6)","v":5},{"$f":"IF('lectures and seminars'!CW6=\"\",\"\",'lectures and seminars'!CW6)","v":5},{"$f":"IF('lectures and seminars'!CX6=\"\",\"\",'lectures and seminars'!CX6)","v":5}]
["Min. inv.",{"$f":"IF('lectures and seminars'!CU7=\"\",\"\",'lectures and seminars'!CU7)","v":5},{"$f":"IF('lectures and seminars'!CV7=\"\",\"\",'lectures and seminars'!CV7)","v":5},{"$f":"IF('lectures and seminars'!CW7=\"\",\"\",'lectures and seminars'!CW7)","v":5},{"$f":"IF('lectures and seminars'!CX7=\"\",\"\",'lectures and seminars'!CX7)","v":5}]
["Min. inv.",{"$f":"IF('lectures and seminars'!CU8=\"\",\"\",'lectures and seminars'!CU8)","v":5},{"$f":"IF('lectures and seminars'!CV8=\"\",\"\",'lectures and seminars'!CV8)","v":5},{"$f":"IF('lectures and seminars'!CW8=\"\",\"\",'lectures and seminars'!CW8)","v":5},{"$f":"IF('lectures and seminars'!CX8=\"\",\"\",'lectures and seminars'!CX8)","v":5}]
["Min. inv.",{"$f":"IF('lectures and seminars'!CU9=\"\",\"\",'lectures and seminars'!CU9)","v":5},{"$f":"IF('lectures and seminars'!CV9=\"\",\"\",'lectures and seminars'!CV9)","v":5},{"$f":"IF('lectures and seminars'!CW9=\"\",\"\",'lectures and seminars'!CW9)","v":5},{"$f":"IF('lectures and seminars'!CX9=\"\",\"\",'lectures and seminars'!CX9)","v":""}]
["Min. inv.",{"$f":"IF('lectures and seminars'!CU10=\"\",\"\",'lectures and seminars'!CU10)","v":5},{"$f":"IF('lectures and seminars'!CV10=\"\",\"\",'lectures and seminars'!CV10)","v":5},{"$f":"IF('lectures and seminars'!CW10=\"\",\"\",'lectures and seminars'!CW10)","v":5},{"$f":"IF('lectures and seminars'!CX10=\"\",\"\",'lectures and seminars'!CX10)","v":5}]
["Min. inv.",{"$f":"IF('lectures and seminars'!CU11=\"\",\"\",'lectures and seminars'!CU11)","v":4},{"$f":"IF('lectures and seminars'!CV11=\"\",\"\",'lectures and seminars'!CV11)","v":5},{"$f":"IF('lectures and seminars'!CW11=\"\",\"\",'lectures and seminars'!CW11)","v":5},{"$f":"IF('lectures and seminars'!CX11=\"\",\"\",'lectures and seminars'!CX11)","v":5}]
["Min. inv.",{"$f":"IF('lectures and seminars'!CU12=\"\",\"\",'lectures and seminars'!CU12)","v":5},{"$f":"IF('lectures and seminars'!CV12=\"\",\"\",'lectures and seminars'!CV12)","v":5},{"$f":"IF('lectures and seminars'!CW12=\"\",\"\",'lectures and seminars'!CW12)","v":5},{"$f":"IF('lectures and seminars'!CX12=\"\",\"\",'lectures and seminars'!CX12)","v":5}]
["Min. inv.",{"$f":"IF('lectures and seminars'!CU13=\"\",\"\",'lectures and seminars'!CU13)","v":4},{"$f":"IF('lectures and seminars'!CV13=\"\",\"\",'lectures and seminars'!CV13)","v":4},{"$f":"IF('lectures and seminars'!CW13=\"\",\"\",'lectures and seminars'!CW13)","v":4},{"$f":"IF('lectures and seminars'!CX13=\"\",\"\",'lectures and seminars'!CX13)","v":4}]
["Min. inv.",{"$f":"IF('lectures and seminars'!CU14=\"\",\"\",'lectures and seminars'!CU14)","v":5},{"$f":"IF('lectures and seminars'!CV14=\"\",\"\",'lectures and seminars'!CV14)","v":5},{"$f":"IF('lectures and seminars'!CW14=\"\",\"\",'lectures and seminars'!CW14)","v":5},{"$f":"IF('lectures and seminars'!CX14=\"\",\"\",'lectures and seminars'!CX14)","v":5}]
["Min. inv.",{"$f":"IF('lectures and seminars'!CU15=\"\",\"\",'lectures and seminars'!CU15)","v":5},{"$f":"IF('lectures and seminars'!CV15=\"\",\"\",'lectures and seminars'!CV15)","v":5},{"$f":"IF('lectures and seminars'!CW15=\"\",\"\",'lectures and seminars'!CW15)","v":5},{"$f":"IF('lectures and seminars'!CX15=\"\",\"\",'lectures and seminars'!CX15)","v":5}]
["Min. inv.",{"$f":"IF('lectures and seminars'!CU16=\"\",\"\",'lectures and seminars'!CU16)","v":""},{"$f":"IF('lectures and seminars'!CV16=\"\",\"\",'lectures and seminars'!CV16)","v":""},{"$f":"IF('lectures and seminars'!CW16=\"\",\"\",'lectures and seminars'!CW16)","v":""},{"$f":"IF('lectures and seminars'!CX16=\"\",\"\",'lectures and seminars'!CX16)","v":""}]
["Pain, suffering",{"$f":"IF('lectures and seminars'!DA2=\"\",\"\",'lectures and seminars'!DA2)","v":5},{"$f":"IF('lectures and seminars'!DB2=\"\",\"\",'lectures and seminars'!DB2)","v":4},{"$f":"IF('lectures and seminars'!DC2=\"\",\"\",'lectures and seminars'!DC2)","v":5},{"$f":"IF('lectures and seminars'!DD2=\"\",\"\",'lectures and seminars'!DD2)","v":5}]
["Pain, suffering",{"$f":"IF('lectures and seminars'!DA3=\"\",\"\",'lectures and seminars'!DA3)","v":""},{"$f":"IF('lectures and seminars'!DB3=\"\",\"\",'lectures and seminars'!DB3)","v":""},{"$f":"IF('lectures and seminars'!DC3=\"\",\"\",'lectures and seminars'!DC3)","v":""},{"$f":"IF('lectures and seminars'!DD3=\"\",\"\",'lectures and seminars'!DD3)","v":""}]
["Pain, suffering",{"$f":"IF('lectures and seminars'!DA4=\"\",\"\",'lectures and seminars'!DA4)","v":5},{"$f":"IF('lectures and seminars'!DB4=\"\",\"\",'lectures and seminars'!DB4)","v":5},{"$f":"IF('lectures and seminars'!DC4=\"\",\"\",'lectures and seminars'!DC4)","v":5},{"$f":"IF('lectures and seminars'!DD4=\"\",\"\",'lectures and seminars'!DD4)","v":5}]
["Pain, suffering",{"$f":"IF('lectures and seminars'!DA5=\"\",\"\",'lectures and seminars'!DA5)","v":4},{"$f":"IF('lectures and seminars'!DB5=\"\",\"\",'lectures and seminars'!DB5)","v":4},{"$f":"IF('lectures and seminars'!DC5=\"\",\"\",'lectures and seminars'!DC5)","v":4},{"$f":"IF('lectures and seminars'!DD5=\"\",\"\",'lectures and seminars'!DD5)","v":4}]
["Pain, suffering",{"$f":"IF('lectures and seminars'!DA6=\"\",\"\",'lectures and seminars'!DA6)","v":5},{"$f":"IF('lectures and seminars'!DB6=\"\",\"\",'lectures and seminars'!DB6)","v":5},{"$f":"IF('lectures and seminars'!DC6=\"\",\"\",'lectures and seminars'!DC6)","v":5},{"$f":"IF('lectures and seminars'!DD6=\"\",\"\",'lectures and seminars'!DD6)","v":5}]
["Pain, suffering",{"$f":"IF('lectures and seminars'!DA7=\"\",\"\",'lectures and seminars'!DA7)","v":5},{"$f":"IF('lectures and seminars'!DB7=\"\",\"\",'lectures and seminars'!DB7)","v":4},{"$f":"IF('lectures and seminars'!DC7=\"\",\"\",'lectures and seminars'!DC7)","v":5},{"$f":"IF('lectures and seminars'!DD7=\"\",\"\",'lectures and seminars'!DD7)","v":5}]
["Pain, suffering",{"$f":"IF('lectures and seminars'!DA8=\"\",\"\",'lectures and seminars'!DA8)","v":5},{"$f":"IF('lectures and seminars'!DB8=\"\",\"\",'lectures and seminars'!DB8)","v":5},{"$f":"IF('lectures and seminars'!DC8=\"\",\"\",'lectures and seminars'!DC8)","v":5},{"$f":"IF('lectures and seminars'!DD8=\"\",\"\",'lectures and seminars'!DD8)","v":5}]
["Pain, suffering",{"$f":"IF('lectures and seminars'!DA9=\"\",\"\",'lectures and seminars'!DA9)","v":5},{"$f":"IF('lectures and seminars'!DB9=\"\",\"\",'lectures and seminars'!DB9)","v":5},{"$f":"IF('lectures and seminars'!DC9=\"\",\"\",'lectures and seminars'!DC9)","v":5},{"$f":"IF('lectures and seminars'!DD9=\"\",\"\",'lectures and seminars'!DD9)","v":""}]
["Pain, suffering",{"$f":"IF('lectures and seminars'!DA10=\"\",\"\",'lectures and seminars'!DA10)","v":5},{"$f":"IF('lectures and seminars'!DB10=\"\",\"\",'lectures and seminars'!DB10)","v":5},{"$f":"IF('lectures and seminars'!DC10=\"\",\"\",'lectures and seminars'!DC10)","v":5},{"$f":"IF('lectures and seminars'!DD10=\"\",\"\",'lectures and seminars'!DD10)","v":5}]
["Pain, suffering",{"$f":"IF('lectures and seminars'!DA11=\"\",\"\",'lectures and seminars'!DA11)","v":5},{"$f":"IF('lectures and seminars'!DB11=\"\",\"\",'lectures and seminars'!DB11)","v":5},{"$f":"IF('lectures and seminars'!DC11=\"\",\"\",'lectures and seminars'!DC11)","v":5},{"$f":"IF('lectures and seminars'!DD11=\"\",\"\",'lectures and seminars'!DD11)","v":5}]
["Pain, suffering",{"$f":"IF('lectures and seminars'!DA12=\"\",\"\",'lectures and seminars'!DA12)","v":5},{"$f":"IF('lectures and seminars'!DB12=\"\",\"\",'lectures and seminars'!DB12)","v":5},{"$f":"IF('lectures and seminars'!DC12=\"\",\"\",'lectures and seminars'!DC12)","v":5},{"$f":"IF('lectures and seminars'!DD12=\"\",\"\",'lectures and seminars'!DD12)","v":5}]
["Pain, suffering",{"$f":"IF('lectures and seminars'!DA13=\"\",\"\",'lectures and seminars'!DA13)","v":5},{"$f":"IF('lectures and seminars'!DB13=\"\",\"\",'lectures and seminars'!DB13)","v":5},{"$f":"IF('lectures and seminars'!DC13=\"\",\"\",'lectures and seminars'!DC13)","v":5},{"$f":"IF('lectures and seminars'!DD13=\"\",\"\",'lectures and seminars'!DD13)","v":5}]
["Pain, suffering",{"$f":"IF('lectures and seminars'!DA14=\"\",\"\",'lectures and seminars'!DA14)","v":5},{"$f":"IF('lectures and seminars'!DB14=\"\",\"\",'lectures and seminars'!DB14)","v":5},{"$f":"IF('lectures and seminars'!DC14=\"\",\"\",'lectures and seminars'!DC14)","v":5},{"$f":"IF('lectures and seminars'!DD14=\"\",\"\",'lectures and seminars'!DD14)","v":5}]
["Pain, suffering",{"$f":"IF('lectures and seminars'!DA15=\"\",\"\",'lectures and seminars'!DA15)","v":5},{"$f":"IF('lectures and seminars'!DB15=\"\",\"\",'lectures and seminars'!DB15)","v":5},{"$f":"IF('lectures and seminars'!DC15=\"\",\"\",'lectures and seminars'!DC15)","v":5},{"$f":"IF('lectures and seminars'!DD15=\"\",\"\",'lectures and seminars'!DD15)","v":5}]
["Pain, suffering",{"$f":"IF('lectures and seminars'!DA16=\"\",\"\",'lectures and seminars'!DA16)","v":5},{"$f":"IF('lectures and seminars'!DB16=\"\",\"\",'lectures and seminars'!DB16)","v":5},{"$f":"IF('lectures and seminars'!DC16=\"\",\"\",'lectures and seminars'!DC16)","v":5},{"$f":"IF('lectures and seminars'!DD16=\"\",\"\",'lectures and seminars'!DD16)","v":5}]
["Anaesthesia",{"$f":"IF('lectures and seminars'!DG2=\"\",\"\",'lectures and seminars'!DG2)","v":5},{"$f":"IF('lectures and seminars'!DH2=\"\",\"\",'lectures and seminars'!DH2)","v":5},{"$f":"IF('lectures and seminars'!DI2=\"\",\"\",'lectures and seminars'!DI2)","v":5},{"$f":"IF('lectures and seminars'!DJ2=\"\",\"\",'lectures and seminars'!DJ2)","v":5}]
["Anaesthesia",{"$f":"IF('lectures and seminars'!DG3=\"\",\"\",'lectures and seminars'!DG3)","v":""},{"$f":"IF('lectures and seminars'!DH3=\"\",\"\",'lectures and seminars'!DH3)","v":""},{"$f":"IF('lectures and seminars'!DI3=\"\",\"\",'lectures and seminars'!DI3)","v":""},{"$f":"IF('lectures and seminars'!DJ3=\"\",\"\",'lectures and seminars'!DJ3)","v":""}]
["Anaesthesia",{"$f":"IF('lectures and seminars'!DG4=\"\",\"\",'lectures and seminars'!DG4)","v":5},{"$f":"IF('lectures and seminars'!DH4=\"\",\"\",'lectures and seminars'!DH4)","v":5},{"$f":"IF('lectures and seminars'!DI4=\"\",\"\",'lectures and seminars'!DI4)","v":5},{"$f":"IF('lectures and seminars'!DJ4=\"\",\"\",'lectures and seminars'!DJ4)","v":5}]
["Anaesthesia",{"$f":"IF('lectures and seminars'!DG5=\"\",\"\",'lectures and seminars'!DG5)","v":5},{"$f":"IF('lectures and seminars'!DH5=\"\",\"\",'lectures and seminars'!DH5)","v":5},{"$f":"IF('lectures and seminars'!DI5=\"\",\"\",'lectures and seminars'!DI5)","v":5},{"$f":"IF('lectures and seminars'!DJ5=\"\",\"\",'lectures and seminars'!DJ5)","v":5}]
["Anaesthesia",{"$f":"IF('lectures and seminars'!DG6=\"\",\"\",'lectures and seminars'!DG6)","v":5},{"$f":"IF('lectures and seminars'!DH6=\"\",\"\",'lectures and seminars'!DH6)","v":5},{"$f":"IF('lectures and seminars'!DI6=\"\",\"\",'lectures and seminars'!DI6)","v":5},{"$f":"IF('lectures and seminars'!DJ6=\"\",\"\",'lectures and seminars'!DJ6)","v":5}]
["Anaesthesia",{"$f":"IF('lectures and seminars'!DG7=\"\",\"\",'lectures and seminars'!DG7)","v":5},{"$f":"IF('lectures and seminars'!DH7=\"\",\"\",'lectures and seminars'!DH7)","v":5},{"$f":"IF('lectures and seminars'!DI7=\"\",\"\",'lectures and seminars'!DI7)","v":5},{"$f":"IF('lectures and seminars'!DJ7=\"\",\"\",'lectures and seminars'!DJ7)","v":5}]
["Anaesthesia",{"$f":"IF('lectures and seminars'!DG8=\"\",\"\",'lectures and seminars'!DG8)","v":5},{"$f":"IF('lectures and seminars'!DH8=\"\",\"\",'lectures and seminars'!DH8)","v":5},{"$f":"IF('lectures and seminars'!DI8=\"\",\"\",'lectures and seminars'!DI8)","v":5},{"$f":"IF('lectures and seminars'!DJ8=\"\",\"\",'lectures and seminars'!DJ8)","v":5}]
["Anaesthesia",{"$f":"IF('lectures and seminars'!DG9=\"\",\"\",'lectures and seminars'!DG9)","v":5},{"$f":"IF('lectures and seminars'!DH9=\"\",\"\",'lectures and seminars'!DH9)","v":5},{"$f":"IF('lectures and seminars'!DI9=\"\",\"\",'lectures and seminars'!DI9)","v":5},{"$f":"IF('lectures and seminars'!DJ9=\"\",\"\",'lectures and seminars'!DJ9)","v":""}]
["Anaesthesia",{"$f":"IF('lectures and seminars'!DG10=\"\",\"\",'lectures and seminars'!DG10)","v":5},{"$f":"IF('lectures and seminars'!DH10=\"\",\"\",'lectures and seminars'!DH10)","v":5},{"$f":"IF('lectures and seminars'!DI10=\"\",\"\",'lectures and seminars'!DI10)","v":5},{"$f":"IF('lectures and seminars'!DJ10=\"\",\"\",'lectures and seminars'!DJ10)","v":5}]
["Anaesthesia",{"$f":"IF('lectures and seminars'!DG11=\"\",\"\",'lectures and seminars'!DG11)","v":5},{"$f":"IF('lectures and seminars'!DH11=\"\",\"\",'lectures and seminars'!DH11)","v":5},{"$f":"IF('lectures and seminars'!DI11=\"\",\"\",'lectures and seminars'!DI11)","v":5},{"$f":"IF('lectures and seminars'!DJ11=\"\",\"\",'lectures and seminars'!DJ11)","v":5}]
["Anaesthesia",{"$f":"IF('lectures and seminars'!DG12=\"\",\"\",'lectures and seminars'!DG12)","v":5},{"$f":"IF('lectures and seminars'!DH12=\"\",\"\",'lectures and seminars'!DH12)","v":5},{"$f":"IF('lectures and seminars'!DI12=\"\",\"\",'lectures and seminars'!DI12)","v":5},{"$f":"IF('lectures and seminars'!DJ12=\"\",\"\",'lectures and seminars'!DJ12)","v":5}]
["Anaesthesia",{"$f":"IF('lectures and seminars'!DG13=\"\",\"\",'lectures and seminars'!DG13)","v":4},{"$f":"IF('lectures and seminars'!DH13=\"\",\"\",'lectures and seminars'!DH13)","v":4},{"$f":"IF('lectures and seminars'!DI13=\"\",\"\",'lectures and seminars'!DI13)","v":4},{"$f":"IF('lectures and seminars'!DJ13=\"\",\"\",'lectures and seminars'!DJ13)","v":4}]
["Anaesthesia",{"$f":"IF('lectures and seminars'!DG14=\"\",\"\",'lectures and seminars'!DG14)","v":5},{"$f":"IF('lectures and seminars'!DH14=\"\",\"\",'lectures and seminars'!DH14)","v":5},{"$f":"IF('lectures and seminars'!DI14=\"\",\"\",'lectures and seminars'!DI14)","v":5},{"$f":"IF('lectures and seminars'!DJ14=\"\",\"\",'lectures and seminars'!DJ14)","v":5}]
["Anaesthesia",{"$f":"IF('lectures and seminars'!DG15=\"\",\"\",'lectures and seminars'!DG15)","v":5},{"$f":"IF('lectures and seminars'!DH15=\"\",\"\",'lectures and seminars'!DH15)","v":5},{"$f":"IF('lectures and seminars'!DI15=\"\",\"\",'lectures and seminars'!DI15)","v":5},{"$f":"IF('lectures and seminars'!DJ15=\"\",\"\",'lectures and seminars'!DJ15)","v":5}]
["Anaesthesia",{"$f":"IF('lectures and seminars'!DG16=\"\",\"\",'lectures and seminars'!DG16)","v":5},{"$f":"IF('lectures and seminars'!DH16=\"\",\"\",'lectures and seminars'!DH16)","v":5},{"$f":"IF('lectures and seminars'!DI16=\"\",\"\",'lectures and seminars'!DI16)","v":5},{"$f":"IF('lectures and seminars'!DJ16=\"\",\"\",'lectures and seminars'!DJ16)","v":5}]
["Advanced anaesthesia",{"$f":"IF('lectures and seminars'!DM2=\"\",\"\",'lectures and seminars'!DM2)","v":5},{"$f":"IF('lectures and seminars'!DN2=\"\",\"\",'lectures and seminars'!DN2)","v":5},{"$f":"IF('lectures and seminars'!DO2=\"\",\"\",'lectures and seminars'!DO2)","v":5},{"$f":"IF('lectures and seminars'!DP2=\"\",\"\",'lectures and seminars'!DP2)","v":5}]
["Advanced anaesthesia",{"$f":"IF('lectures and seminars'!DM3=\"\",\"\",'lectures and seminars'!DM3)","v":""},{"$f":"IF('lectures and seminars'!DN3=\"\",\"\",'lectures and seminars'!DN3)","v":""},{"$f":"IF('lectures and seminars'!DO3=\"\",\"\",'lectures and seminars'!DO3)","v":""},{"$f":"IF('lectures and seminars'!DP3=\"\",\"\",'lectures and seminars'!DP3)","v":""}]
["Advanced anaesthesia",{"$f":"IF('lectures and seminars'!DM4=\"\",\"\",'lectures and seminars'!DM4)","v":5},{"$f":"IF('lectures and seminars'!DN4=\"\",\"\",'lectures and seminars'!DN4)","v":5},{"$f":"IF('lectures and seminars'!DO4=\"\",\"\",'lectures and seminars'!DO4)","v":5},{"$f":"IF('lectures and seminars'!DP4=\"\",\"\",'lectures and seminars'!DP4)","v":5}]
["Advanced anaesthesia",{"$f":"IF('lectures and seminars'!DM5=\"\",\"\",'lectures and seminars'!DM5)","v":5},{"$f":"IF('lectures and seminars'!DN5=\"\",\"\",'lectures and seminars'!DN5)","v":5},{"$f":"IF('lectures and seminars'!DO5=\"\",\"\",'lectures and seminars'!DO5)","v":5},{"$f":"IF('lectures and seminars'!DP5=\"\",\"\",'lectures and seminars'!DP5)","v":5}]
["Advanced anaesthesia",{"$f":"IF('lectures and seminars'!DM6=\"\",\"\",'lectures and seminars'!DM6)","v":5},{"$f":"IF('lectures and seminars'!DN6=\"\",\"\",'lectures and seminars'!DN6)","v":5},{"$f":"IF('lectures and seminars'!DO6=\"\",\"\",'lectures and seminars'!DO6)","v":5},{"$f":"IF('lectures and seminars'!DP6=\"\",\"\",'lectures and seminars'!DP6)","v":5}]
["Advanced anaesthesia",{"$f":"IF('lectures and seminars'!DM7=\"\",\"\",'lectures and seminars'!DM7)","v":5},{"$f":"IF('lectures and seminars'!DN7=\"\",\"\",'lectures and seminars'!DN7)","v":5},{"$f":"IF('lectures and seminars'!DO7=\"\",\"\",'lectures and seminars'!DO7)","v":5},{"$f":"IF('lectures and seminars'!DP7=\"\",\"\",'lectures and seminars'!DP7)","v":5}]
["Advanced anaesthesia",{"$f":"IF('lectures and seminars'!DM8=\"\",\"\",'lectures and seminars'!DM8)","v":5},{"$f":"IF('lectures and seminars'!DN8=\"\",\"\",'lectures and seminars'!DN8)","v":5},{"$f":"IF('lectures and seminars'!DO8=\"\",\"\",'lectures and seminars'!DO8)","v":5},{"$f":"IF('lectures and seminars'!DP8=\"\",\"\",'lectures and seminars'!DP8)","v":5}]
["Advanced anaesthesia",{"$f":"IF('lectures and seminars'!DM9=\"\",\"\",'lectures and seminars'!DM9)","v":5},{"$f":"IF('lectures and seminars'!DN9=\"\",\"\",'lectures and seminars'!DN9)","v":5},{"$f":"IF('lectures and seminars'!DO9=\"\",\"\",'lectures and seminars'!DO9)","v":5},{"$f":"IF('lectures and seminars'!DP9=\"\",\"\",'lectures and seminars'!DP9)","v":""}]
["Advanced anaesthesia",{"$f":"IF('lectures and seminars'!DM10=\"\",\"\",'lectures and seminars'!DM10)","v":5},{"$f":"IF('lectures and seminars'!DN10=\"\",\"\",'lectures and seminars'!DN10)","v":5},{"$f":"IF('lectures and seminars'!DO10=\"\",\"\",'lectures and seminars'!DO10)","v":5},{"$f":"IF('lectures and seminars'!DP10=\"\",\"\",'lectures and seminars'!DP10)","v":5}]
["Advanced anaesthesia",{"$f":"IF('lectures and seminars'!DM11=\"\",\"\",'lectures and seminars'!DM11)","v":5},{"$f":"IF('lectures and seminars'!DN11=\"\",\"\",'lectures and seminars'!DN11)","v":5},{"$f":"IF('lectures and seminars'!DO11=\"\",\"\",'lectures and seminars'!DO11)","v":5},{"$f":"IF('lectures and seminars'!DP11=\"\",\"\",'lectures and seminars'!DP11)","v":5}]
["Advanced anaesthesia",{"$f":"IF('lectures and seminars'!DM12=\"\",\"\",'lectures and seminars'!DM12)","v":5},{"$f":"IF('lectures and seminars'!DN12=\"\",\"\",'lectures and seminars'!DN12)","v":5},{"$f":"IF('lectures and seminars'!DO12=\"\",\"\",'lectures and seminars'!DO12)","v":5},{"$f":"IF('lectures and seminars'!DP12=\"\",\"\",'lectures and seminars'!DP12)","v":5}]
["Advanced anaesthesia",{"$f":"IF('lectures and seminars'!DM13=\"\",\"\",'lectures and seminars'!DM13)","v":4},{"$f":"IF('lectures and seminars'!DN13=\"\",\"\",'lectures and seminars'!DN13)","v":4},{"$f":"IF('lectures and seminars'!DO13=\"\",\"\",'lectures and seminars'!DO13)","v":4},{"$f":"IF('lectures and seminars'!DP13=\"\",\"\",'lectures and seminars'!DP13)","v":4}]
["Advanced anaesthesia",{"$f":"IF('lectures and seminars'!DM14=\"\",\"\",'lectures and seminars'!DM14)","v":5},{"$f":"IF('lectures and seminars'!DN14=\"\",\"\",'lectures and seminars'!DN14)","v":5},{"$f":"IF('lectures and seminars'!DO14=\"\",\"\",'lectures and seminars'!DO14)","v":5},{"$f":"IF('lectures and seminars'!DP14=\"\",\"\",'lectures and seminars'!DP14)","v":5}]
["Advanced anaesthesia",{"$f":"IF('lectures and seminars'!DM15=\"\",\"\",'lectures and seminars'!DM15)","v":5},{"$f":"IF('lectures and seminars'!DN15=\"\",\"\",'lectures and seminars'!DN15)","v":5},{"$f":"IF('lectures and seminars'!DO15=\"\",\"\",'lectures and seminars'!DO15)","v":5},{"$f":"IF('lectures and seminars'!DP15=\"\",\"\",'lectures and seminars'!DP15)","v":5}]
["Advanced anaesthesia",{"$f":"IF('lectures and seminars'!DM16=\"\",\"\",'lectures and seminars'!DM16)","v":5},{"$f":"IF('lectures and seminars'!DN16=\"\",\"\",'lectures and seminars'!DN16)","v":5},{"$f":"IF('lectures and seminars'!DO16=\"\",\"\",'lectures and seminars'!DO16)","v":5},{"$f":"IF('lectures and seminars'!DP16=\"\",\"\",'lectures and seminars'!DP16)","v":5}]
["Safety",{"$f":"IF('lectures and seminars'!DS2=\"\",\"\",'lectures and seminars'!DS2)","v":5},{"$f":"IF('lectures and seminars'!DT2=\"\",\"\",'lectures and seminars'!DT2)","v":5},{"$f":"IF('lectures and seminars'!DU2=\"\",\"\",'lectures and seminars'!DU2)","v":5},{"$f":"IF('lectures and seminars'!DV2=\"\",\"\",'lectures and seminars'!DV2)","v":5}]
["Safety",{"$f":"IF('lectures and seminars'!DS3=\"\",\"\",'lectures and seminars'!DS3)","v":""},{"$f":"IF('lectures and seminars'!DT3=\"\",\"\",'lectures and seminars'!DT3)","v":""},{"$f":"IF('lectures and seminars'!DU3=\"\",\"\",'lectures and seminars'!DU3)","v":""},{"$f":"IF('lectures and seminars'!DV3=\"\",\"\",'lectures and seminars'!DV3)","v":""}]
["Safety",{"$f":"IF('lectures and seminars'!DS4=\"\",\"\",'lectures and seminars'!DS4)","v":5},{"$f":"IF('lectures and seminars'!DT4=\"\",\"\",'lectures and seminars'!DT4)","v":5},{"$f":"IF('lectures and seminars'!DU4=\"\",\"\",'lectures and seminars'!DU4)","v":5},{"$f":"IF('lectures and seminars'!DV4=\"\",\"\",'lectures and seminars'!DV4)","v":5}]
["Safety",{"$f":"IF('lectures and seminars'!DS5=\"\",\"\",'lectures and seminars'!DS5)","v":5},{"$f":"IF('lectures and seminars'!DT5=\"\",\"\",'lectures and seminars'!DT5)","v":5},{"$f":"IF('lectures and seminars'!DU5=\"\",\"\",'lectures and seminars'!DU5)","v":5},{"$f":"IF('lectures and seminars'!DV5=\"\",\"\",'lectures and seminars'!DV5)","v":5}]
["Safety",{"$f":"IF('lectures and seminars'!DS6=\"\",\"\",'lectures and seminars'!DS6)","v":5},{"$f":"IF('lectures and seminars'!DT6=\"\",\"\",'lectures and seminars'!DT6)","v":5},{"$f":"IF('lectures and seminars'!DU6=\"\",\"\",'lectures and seminars'!DU6)","v":5},{"$f":"IF('lectures and seminars'!DV6=\"\",\"\",'lectures and seminars'!DV6)","v":5}]
["Safety",{"$f":"IF('lectures and seminars'!DS7=\"\",\"\",'lectures and seminars'!DS7)","v":5},{"$f":"IF('lectures and seminars'!DT7=\"\",\"\",'lectures and seminars'!DT7)","v":5},{"$f":"IF('lectures and seminars'!DU7=\"\",\"\",'lectures and seminars'!DU7)","v":5},{"$f":"IF('lectures and seminars'!DV7=\"\",\"\",'lectures and seminars'!DV7)","v":5}]
["Safety",{"$f":"IF('lectures and seminars'!DS8=\"\",\"\",'lectures and seminars'!DS8)","v":5},{"$f":"IF('lectures and seminars'!DT8=\"\",\"\",'lectures and seminars'!DT8)","v":5},{"$f":"IF('lectures and seminars'!DU8=\"\",\"\",'lectures and seminars'!DU8)","v":5},{"$f":"IF('lectures and seminars'!DV8=\"\",\"\",'lectures and seminars'!DV8)","v":5}]
["Safety",{"$f":"IF('lectures and seminars'!DS9=\"\",\"\",'lectures and seminars'!DS9)","v":5},{"$f":"IF('lectures and seminars'!DT9=\"\",\"\",'lectures and seminars'!DT9)","v":5},{"$f":"IF('lectures and seminars'!DU9=\"\",\"\",'lectures and seminars'!DU9)","v":5},{"$f":"IF('lectures and seminars'!DV9=\"\",\"\",'lectures and seminars'!DV9)","v":""}]
["Safety",{"$f":"IF('lectures and seminars'!DS10=\"\",\"\",'lectures and seminars'!DS10)","v":5},{"$f":"IF('lectures and seminars'!DT10=\"\",\"\",'lectures and seminars'!DT10)","v":5},{"$f":"IF('lectures and seminars'!DU10=\"\",\"\",'lectures and seminars'!DU10)","v":5},{"$f":"IF('lectures and seminars'!DV10=\"\",\"\",'lectures and seminars'!DV10)","v":5}]
["Safety",{"$f":"IF('lectures and seminars'!DS11=\"\",\"\",'lectures and seminars'!DS11)","v":5},{"$f":"IF('lectures and seminars'!DT11=\"\",\"\",'lectures and seminars'!DT11)","v":4},{"$f":"IF('lectures and seminars'!DU11=\"\",\"\",'lectures and seminars'!DU11)","v":5},{"$f":"IF('lectures and seminars'!DV11=\"\",\"\",'lectures and seminars'!DV11)","v":4}]
["Safety",{"$f":"IF('lectures and seminars'!DS12=\"\",\"\",'lectures and seminars'!DS12)","v":5},{"$f":"IF('lectures and seminars'!DT12=\"\",\"\",'lectures and seminars'!DT12)","v":5},{"$f":"IF('lectures and seminars'!DU12=\"\",\"\",'lectures and seminars'!DU12)","v":5},{"$f":"IF('lectures and seminars'!DV12=\"\",\"\",'lectures and seminars'!DV12)","v":5}]
["Safety",{"$f":"IF('lectures and seminars'!DS13=\"\",\"\",'lectures and seminars'!DS13)","v":5},{"$f":"IF('lectures and seminars'!DT13=\"\",\"\",'lectures and seminars'!DT13)","v":5},{"$f":"IF('lectures and seminars'!DU13=\"\",\"\",'lectures and seminars'!DU13)","v":5},{"$f":"IF('lectures and seminars'!DV13=\"\",\"\",'lectures and seminars'!DV13)","v":5}]
["Safety",{"$f":"IF('lectures and seminars'!DS14=\"\",\"\",'lectures and seminars'!DS14)","v":5},{"$f":"IF('lectures and seminars'!DT14=\"\",\"\",'lectures and seminars'!DT14)","v":5},{"$f":"IF('lectures and seminars'!DU14=\"\",\"\",'lectures and seminars'!DU14)","v":5},{"$f":"IF('lectures and seminars'!DV14=\"\",\"\",'lectures and seminars'!DV14)","v":5}]
["Safety",{"$f":"IF('lectures and seminars'!DS15=\"\",\"\",'lectures and seminars'!DS15)","v":5},{"$f":"IF('lectures and seminars'!DT15=\"\",\"\",'lectures and seminars'!DT15)","v":5},{"$f":"IF('lectures and seminars'!DU15=\"\",\"\",'lectures and seminars'!DU15)","v":5},{"$f":"IF('lectures and seminars'!DV15=\"\",\"\",'lectures and seminars'!DV15)","v":5}]
["Safety",{"$f":"IF('lectures and seminars'!DS16=\"\",\"\",'lectures and seminars'!DS16)","v":5},{"$f":"IF('lectures and seminars'!DT16=\"\",\"\",'lectures and seminars'!DT16)","v":5},{"$f":"IF('lectures and seminars'!DU16=\"\",\"\",'lectures and seminars'!DU16)","v":5},{"$f":"IF('lectures and seminars'!DV16=\"\",\"\",'lectures and seminars'!DV16)","v":5}]
["Basic surgical procedures",{"$f":"IF('lectures and seminars'!DY2=\"\",\"\",'lectures and seminars'!DY2)","v":5},{"$f":"IF('lectures and seminars'!DZ2=\"\",\"\",'lectures and seminars'!DZ2)","v":5},{"$f":"IF('lectures and seminars'!EA2=\"\",\"\",'lectures and seminars'!EA2)","v":5},{"$f":"IF('lectures and seminars'!EB2=\"\",\"\",'lectures and seminars'!EB2)","v":5}]
["Basic surgical procedures",{"$f":"IF('lectures and seminars'!DY3=\"\",\"\",'lectures and seminars'!DY3)","v":""},{"$f":"IF('lectures and seminars'!DZ3=\"\",\"\",'lectures and seminars'!DZ3)","v":""},{"$f":"IF('lectures and seminars'!EA3=\"\",\"\",'lectures and seminars'!EA3)","v":""},{"$f":"IF('lectures and seminars'!EB3=\"\",\"\",'lectures and seminars'!EB3)","v":""}]
["Basic surgical procedures",{"$f":"IF('lectures and seminars'!DY4=\"\",\"\",'lectures and seminars'!DY4)","v":5},{"$f":"IF('lectures and seminars'!DZ4=\"\",\"\",'lectures and seminars'!DZ4)","v":5},{"$f":"IF('lectures and seminars'!EA4=\"\",\"\",'lectures and seminars'!EA4)","v":5},{"$f":"IF('lectures and seminars'!EB4=\"\",\"\",'lectures and seminars'!EB4)","v":5}]
["Basic surgical procedures",{"$f":"IF('lectures and seminars'!DY5=\"\",\"\",'lectures and seminars'!DY5)","v":4},{"$f":"IF('lectures and seminars'!DZ5=\"\",\"\",'lectures and seminars'!DZ5)","v":4},{"$f":"IF('lectures and seminars'!EA5=\"\",\"\",'lectures and seminars'!EA5)","v":4},{"$f":"IF('lectures and seminars'!EB5=\"\",\"\",'lectures and seminars'!EB5)","v":4}]
["Basic surgical procedures",{"$f":"IF('lectures and seminars'!DY6=\"\",\"\",'lectures and seminars'!DY6)","v":5},{"$f":"IF('lectures and seminars'!DZ6=\"\",\"\",'lectures and seminars'!DZ6)","v":5},{"$f":"IF('lectures and seminars'!EA6=\"\",\"\",'lectures and seminars'!EA6)","v":5},{"$f":"IF('lectures and seminars'!EB6=\"\",\"\",'lectures and seminars'!EB6)","v":5}]
["Basic surgical procedures",{"$f":"IF('lectures and seminars'!DY7=\"\",\"\",'lectures and seminars'!DY7)","v":5},{"$f":"IF('lectures and seminars'!DZ7=\"\",\"\",'lectures and seminars'!DZ7)","v":5},{"$f":"IF('lectures and seminars'!EA7=\"\",\"\",'lectures and seminars'!EA7)","v":5},{"$f":"IF('lectures and seminars'!EB7=\"\",\"\",'lectures and seminars'!EB7)","v":5}]
["Basic surgical procedures",{"$f":"IF('lectures and seminars'!DY8=\"\",\"\",'lectures and seminars'!DY8)","v":5},{"$f":"IF('lectures and seminars'!DZ8=\"\",\"\",'lectures and seminars'!DZ8)","v":5},{"$f":"IF('lectures and seminars'!EA8=\"\",\"\",'lectures and seminars'!EA8)","v":5},{"$f":"IF('lectures and seminars'!EB8=\"\",\"\",'lectures and seminars'!EB8)","v":5}]
["Basic surgical procedures",{"$f":"IF('lectures and seminars'!DY9=\"\",\"\",'lectures and seminars'!DY9)","v":5},{"$f":"IF('lectures and seminars'!DZ9=\"\",\"\",'lectures and seminars'!DZ9)","v":5},{"$f":"IF('lectures and seminars'!EA9=\"\",\"\",'lectures and seminars'!EA9)","v":5},{"$f":"IF('lectures and seminars'!EB9=\"\",\"\",'lectures and seminars'!EB9)","v":""}]
["Basic surgical procedures",{"$f":"IF('lectures and seminars'!DY10=\"\",\"\",'lectures and seminars'!DY10)","v":5},{"$f":"IF('lectures and seminars'!DZ10=\"\",\"\",'lectures and seminars'!DZ10)","v":5},{"$f":"IF('lectures and seminars'!EA10=\"\",\"\",'lectures and seminars'!EA10)","v":5},{"$f":"IF('lectures and seminars'!EB10=\"\",\"\",'lectures and seminars'!EB10)","v":5}]
["Basic surgical procedures",{"$f":"IF('lectures and seminars'!DY11=\"\",\"\",'lectures and seminars'!DY11)","v":5},{"$f":"IF('lectures and seminars'!DZ11=\"\",\"\",'lectures and seminars'!DZ11)","v":5},{"$f":"IF('lectures and seminars'!EA11=\"\",\"\",'lectures and seminars'!EA11)","v":5},{"$f":"IF('lectures and seminars'!EB11=\"\",\"\",'lectures and seminars'!EB11)","v":5}]
["Basic surgical procedures",{"$f":"IF('lectures and seminars'!DY12=\"\",\"\",'lectures and seminars'!DY12)","v":5},{"$f":"IF('lectures and seminars'!DZ12=\"\",\"\",'lectures and seminars'!DZ12)","v":5},{"$f":"IF('lectures and seminars'!EA12=\"\",\"\",'lectures and seminars'!EA12)","v":5},{"$f":"IF('lectures and seminars'!EB12=\"\",\"\",'lectures and seminars'!EB12)","v":5}]
["Basic surgical procedures",{"$f":"IF('lectures and seminars'!DY13=\"\",\"\",'lectures and seminars'!DY13)","v":5},{"$f":"IF('lectures and seminars'!DZ13=\"\",\"\",'lectures and seminars'!DZ13)","v":5},{"$f":"IF('lectures and seminars'!EA13=\"\",\"\",'lectures and seminars'!EA13)","v":5},{"$f":"IF('lectures and seminars'!EB13=\"\",\"\",'lectures and seminars'!EB13)","v":5}]
["Basic surgical procedures",{"$f":"IF('lectures and seminars'!DY14=\"\",\"\",'lectures and seminars'!DY14)","v":5},{"$f":"IF('lectures and seminars'!DZ14=\"\",\"\",'lectures and seminars'!DZ14)","v":5},{"$f":"IF('lectures and seminars'!EA14=\"\",\"\",'lectures and seminars'!EA14)","v":5},{"$f":"IF('lectures and seminars'!EB14=\"\",\"\",'lectures and seminars'!EB14)","v":5}]
["Basic surgical procedures",{"$f":"IF('lectures and seminars'!DY15=\"\",\"\",'lectures and seminars'!DY15)","v":5},{"$f":"IF('lectures and seminars'!DZ15=\"\",\"\",'lectures and seminars'!DZ15)","v":5},{"$f":"IF('lectures and seminars'!EA15=\"\",\"\",'lectures and seminars'!EA15)","v":5},{"$f":"IF('lectures and seminars'!EB15=\"\",\"\",'lectures and seminars'!EB15)","v":5}]
["Basic surgical procedures",{"$f":"IF('lectures and seminars'!DY16=\"\",\"\",'lectures and seminars'!DY16)","v":5},{"$f":"IF('lectures and seminars'!DZ16=\"\",\"\",'lectures and seminars'!DZ16)","v":5},{"$f":"IF('lectures and seminars'!EA16=\"\",\"\",'lectures and seminars'!EA16)","v":5},{"$f":"IF('lectures and seminars'!EB16=\"\",\"\",'lectures and seminars'!EB16)","v":5}]
["Monitoring",{"$f":"IF('lectures and seminars'!EE2=\"\",\"\",'lectures and seminars'!EE2)","v":5},{"$f":"IF('lectures and seminars'!EF2=\"\",\"\",'lectures and seminars'!EF2)","v":5},{"$f":"IF('lectures and seminars'!EG2=\"\",\"\",'lectures and seminars'!EG2)","v":5},{"$f":"IF('lectures and seminars'!EH2=\"\",\"\",'lectures and seminars'!EH2)","v":5}]
["Monitoring",{"$f":"IF('lectures and seminars'!EE3=\"\",\"\",'lectures and seminars'!EE3)","v":""},{"$f":"IF('lectures and seminars'!EF3=\"\",\"\",'lectures and seminars'!EF3)","v":""},{"$f":"IF('lectures and seminars'!EG3=\"\",\"\",'lectures and seminars'!EG3)","v":""},{"$f":"IF('lectures and seminars'!EH3=\"\",\"\",'lectures and seminars'!EH3)","v":""}]
["Monitoring",{"$f":"IF('lectures and seminars'!EE4=\"\",\"\",'lectures and seminars'!EE4)","v":5},{"$f":"IF('lectures and seminars'!EF4=\"\",\"\",'lectures and seminars'!EF4)","v":5},{"$f":"IF('lectures and seminars'!EG4=\"\",\"\",'lectures and seminars'!EG4)","v":4},{"$f":"IF('lectures and seminars'!EH4=\"\",\"\",'lectures and seminars'!EH4)","v":5}]
["Monitoring",{"$f":"IF('lectures and seminars'!EE5=\"\",\"\",'lectures and seminars'!EE5)","v":5},{"$f":"IF('lectures and seminars'!EF5=\"\",\"\",'lectures and seminars'!EF5)","v":5},{"$f":"IF('lectures and seminars'!EG5=\"\",\"\",'lectures and seminars'!EG5)","v":5},{"$f":"IF('lectures and seminars'!EH5=\"\",\"\",'lectures and seminars'!EH5)","v":5}]
["Monitoring",{"$f":"IF('lectures and seminars'!EE6=\"\",\"\",'lectures and seminars'!EE6)","v":5},{"$f":"IF('lectures and seminars'!EF6=\"\",\"\",'lectures and seminars'!EF6)","v":5},{"$f":"IF('lectures and seminars'!EG6=\"\",\"\",'lectures and seminars'!EG6)","v":5},{"$f":"IF('lectures and seminars'!EH6=\"\",\"\",'lectures and seminars'!EH6)","v":5}]
["Monitoring",{"$f":"IF('lectures and seminars'!EE7=\"\",\"\",'lectures and seminars'!EE7)","v":5},{"$f":"IF('lectures and seminars'!EF7=\"\",\"\",'lectures and seminars'!EF7)","v":5},{"$f":"IF('lectures and seminars'!EG7=\"\",\"\",'lectures and seminars'!EG7)","v":4},{"$f":"IF('lectures and seminars'!EH7=\"\",\"\",'lectures and seminars'!EH7)","v":4}]
["Monitoring",{"$f":"IF('lectures and seminars'!EE8=\"\",\"\",'lectures and seminars'!EE8)","v":5},{"$f":"IF('lectures and seminars'!EF8=\"\",\"\",'lectures and seminars'!EF8)","v":5},{"$f":"IF('lectures and seminars'!EG8=\"\",\"\",'lectures and seminars'!EG8)","v":5},{"$f":"IF('lectures and seminars'!EH8=\"\",\"\",'lectures and seminars'!EH8)","v":5}]
["Monitoring",{"$f":"IF('lectures and seminars'!EE9=\"\",\"\",'lectures and seminars'!EE9)","v":5},{"$f":"IF('lectures and seminars'!EF9=\"\",\"\",'lectures and seminars'!EF9)","v":5},{"$f":"IF('lectures and seminars'!EG9=\"\",\"\",'lectures and seminars'!EG9)","v":5},{"$f":"IF('lectures and seminars'!EH9=\"\",\"\",'lectures and seminars'!EH9)","v":""}]
["Monitoring",{"$f":"IF('lectures and seminars'!EE10=\"\",\"\",'lectures and seminars'!EE10)","v":5},{"$f":"IF('lectures and seminars'!EF10=\"\",\"\",'lectures and seminars'!EF10)","v":5},{"$f":"IF('lectures and seminars'!EG10=\"\",\"\",'lectures and seminars'!EG10)","v":5},{"$f":"IF('lectures and seminars'!EH10=\"\",\"\",'lectures and seminars'!EH10)","v":5}]
["Monitoring",{"$f":"IF('lectures and seminars'!EE11=\"\",\"\",'lectures and seminars'!EE11)","v":5},{"$f":"IF('lectures and seminars'!EF11=\"\",\"\",'lectures and seminars'!EF11)","v":5},{"$f":"IF('lectures and seminars'!EG11=\"\",\"\",'lectures and seminars'!EG11)","v":5},{"$f":"IF('lectures and seminars'!EH11=\"\",\"\",'lectures and seminars'!EH11)","v":4}]
["Monitoring",{"$f":"IF('lectures and seminars'!EE12=\"\",\"\",'lectures and seminars'!EE12)","v":5},{"$f":"IF('lectures and seminars'!EF12=\"\",\"\",'lectures and seminars'!EF12)","v":5},{"$f":"IF('lectures and seminars'!EG12=\"\",\"\",'lectures and seminars'!EG12)","v":5},{"$f":"IF('lectures and seminars'!EH12=\"\",\"\",'lectures and seminars'!EH12)","v":5}]
["Monitoring",{"$f":"IF('lectures and seminars'!EE13=\"\",\"\",'lectures and seminars'!EE13)","v":5},{"$f":"IF('lectures and seminars'!EF13=\"\",\"\",'lectures and seminars'!EF13)","v":5},{"$f":"IF('lectures and seminars'!EG13=\"\",\"\",'lectures and seminars'!EG13)","v":5},{"$f":"IF('lectures and seminars'!EH13=\"\",\"\",'lectures and seminars'!EH13)","v":5}]
["Monitoring",{"$f":"IF('lectures and seminars'!EE14=\"\",\"\",'lectures and seminars'!EE14)","v":5},{"$f":"IF('lectures and seminars'!EF14=\"\",\"\",'lectures and seminars'!EF14)","v":5},{"$f":"IF('lectures and seminars'!EG14=\"\",\"\",'lectures and seminars'!EG14)","v":5},{"$f":"IF('lectures and seminars'!EH14=\"\",\"\",'lectures and seminars'!EH14)","v":5}]
["Monitoring",{"$f":"IF('lectures and seminars'!EE15=\"\",\"\",'lectures and seminars'!EE15)","v":5},{"$f":"IF('lectures and seminars'!EF15=\"\",\"\",'lectures and seminars'!EF15)","v":5},{"$f":"IF('lectures and seminars'!EG15=\"\",\"\",'lectures and seminars'!EG15)","v":5},{"$f":"IF('lectures and seminars'!EH15=\"\",\"\",'lectures and seminars'!EH15)","v":5}]
["Monitoring",{"$f":"IF('lectures and seminars'!EE16=\"\",\"\",'lectures and seminars'!EE16)","v":5},{"$f":"IF('lectures and seminars'!EF16=\"\",\"\",'lectures and seminars'!EF16)","v":5},{"$f":"IF('lectures and seminars'!EG16=\"\",\"\",'lectures and seminars'!EG16)","v":5},{"$f":"IF('lectures and seminars'!EH16=\"\",\"\",'lectures and seminars'!EH16)","v":5}]
["Alternatives",{"$f":"IF('lectures and seminars'!EK2=\"\",\"\",'lectures and seminars'!EK2)","v":5},{"$f":"IF('lectures and seminars'!EL2=\"\",\"\",'lectures and seminars'!EL2)","v":5},{"$f":"IF('lectures and seminars'!EM2=\"\",\"\",'lectures and seminars'!EM2)","v":5},{"$f":"IF('lectures and seminars'!EN2=\"\",\"\",'lectures and seminars'!EN2)","v":5}]
["Alternatives",{"$f":"IF('lectures and seminars'!EK3=\"\",\"\",'lectures and seminars'!EK3)","v":""},{"$f":"IF('lectures and seminars'!EL3=\"\",\"\",'lectures and seminars'!EL3)","v":""},{"$f":"IF('lectures and seminars'!EM3=\"\",\"\",'lectures and seminars'!EM3)","v":""},{"$f":"IF('lectures and seminars'!EN3=\"\",\"\",'lectures and seminars'!EN3)","v":""}]
["Alternatives",{"$f":"IF('lectures and seminars'!EK4=\"\",\"\",'lectures and seminars'!EK4)","v":4},{"$f":"IF('lectures and seminars'!EL4=\"\",\"\",'lectures and seminars'!EL4)","v":5},{"$f":"IF('lectures and seminars'!EM4=\"\",\"\",'lectures and seminars'!EM4)","v":5},{"$f":"IF('lectures and seminars'!EN4=\"\",\"\",'lectures and seminars'!EN4)","v":5}]
["Alternatives",{"$f":"IF('lectures and seminars'!EK5=\"\",\"\",'lectures and seminars'!EK5)","v":4},{"$f":"IF('lectures and seminars'!EL5=\"\",\"\",'lectures and seminars'!EL5)","v":5},{"$f":"IF('lectures and seminars'!EM5=\"\",\"\",'lectures and seminars'!EM5)","v":4},{"$f":"IF('lectures and seminars'!EN5=\"\",\"\",'lectures and seminars'!EN5)","v":4}]
["Alternatives",{"$f":"IF('lectures and seminars'!EK6=\"\",\"\",'lectures and seminars'!EK6)","v":5},{"$f":"IF('lectures and seminars'!EL6=\"\",\"\",'lectures and seminars'!EL6)","v":5},{"$f":"IF('lectures and seminars'!EM6=\"\",\"\",'lectures and seminars'!EM6)","v":5},{"$f":"IF('lectures and seminars'!EN6=\"\",\"\",'lectures and seminars'!EN6)","v":5}]
["Alternatives",{"$f":"IF('lectures and seminars'!EK7=\"\",\"\",'lectures and seminars'!EK7)","v":5},{"$f":"IF('lectures and seminars'!EL7=\"\",\"\",'lectures and seminars'!EL7)","v":5},{"$f":"IF('lectures and seminars'!EM7=\"\",\"\",'lectures and seminars'!EM7)","v":5},{"$f":"IF('lectures and seminars'!EN7=\"\",\"\",'lectures and seminars'!EN7)","v":5}]
["Alternatives",{"$f":"IF('lectures and seminars'!EK8=\"\",\"\",'lectures and seminars'!EK8)","v":4},{"$f":"IF('lectures and seminars'!EL8=\"\",\"\",'lectures and seminars'!EL8)","v":5},{"$f":"IF('lectures and seminars'!EM8=\"\",\"\",'lectures and seminars'!EM8)","v":5},{"$f":"IF('lectures and seminars'!EN8=\"\",\"\",'lectures and seminars'!EN8)","v":5}]
["Alternatives",{"$f":"IF('lectures and seminars'!EK9=\"\",\"\",'lectures and seminars'!EK9)","v":5},{"$f":"IF('lectures and seminars'!EL9=\"\",\"\",'lectures and seminars'!EL9)","v":5},{"$f":"IF('lectures and seminars'!EM9=\"\",\"\",'lectures and seminars'!EM9)","v":5},{"$f":"IF('lectures and seminars'!EN9=\"\",\"\",'lectures and seminars'!EN9)","v":5}]
["Alternatives",{"$f":"IF('lectures and seminars'!EK10=\"\",\"\",'lectures and seminars'!EK10)","v":5},{"$f":"IF('lectures and seminars'!EL10=\"\",\"\",'lectures and seminars'!EL10)","v":5},{"$f":"IF('lectures and seminars'!EM10=\"\",\"\",'lectures and seminars'!EM10)","v":5},{"$f":"IF('lectures and seminars'!EN10=\"\",\"\",'lectures and seminars'!EN10)","v":5}]
["Alternatives",{"$f":"IF('lectures and seminars'!EK11=\"\",\"\",'lectures and seminars'!EK11)","v":4},{"$f":"IF('lectures and seminars'!EL11=\"\",\"\",'lectures and seminars'!EL11)","v":5},{"$f":"IF('lectures and seminars'!EM11=\"\",\"\",'lectures and seminars'!EM11)","v":5},{"$f":"IF('lectures and seminars'!EN11=\"\",\"\",'lectures and seminars'!EN11)","v":4}]
["Alternatives",{"$f":"IF('lectures and seminars'!EK12=\"\",\"\",'lectures and seminars'!EK12)","v":""},{"$f":"IF('lectures and seminars'!EL12=\"\",\"\",'lectures and seminars'!EL12)","v":""},{"$f":"IF('lectures and seminars'!EM12=\"\",\"\",'lectures and seminars'!EM12)","v":""},{"$f":"IF('lectures and seminars'!EN12=\"\",\"\",'lectures and seminars'!EN12)","v":""}]
["Alternatives",{"$f":"IF('lectures and seminars'!EK13=\"\",\"\",'lectures and seminars'!EK13)","v":5},{"$f":"IF('lectures and seminars'!EL13=\"\",\"\",'lectures and seminars'!EL13)","v":5},{"$f":"IF('lectures and seminars'!EM13=\"\",\"\",'lectures and seminars'!EM13)","v":5},{"$f":"IF('lectures and seminars'!EN13=\"\",\"\",'lectures and seminars'!EN13)","v":4}]
["Alternatives",{"$f":"IF('lectures and seminars'!EK14=\"\",\"\",'lectures and seminars'!EK14)","v":5},{"$f":"IF('lectures and seminars'!EL14=\"\",\"\",'lectures and seminars'!EL14)","v":5},{"$f":"IF('lectures and seminars'!EM14=\"\",\"\",'lectures and seminars'!EM14)","v":5},{"$f":"IF('lectures and seminars'!EN14=\"\",\"\",'lectures and seminars'!EN14)","v":5}]
["Alternatives",{"$f":"IF('lectures and seminars'!EK15=\"\",\"\",'lectures and seminars'!EK15)","v":5},{"$f":"IF('lectures and seminars'!EL15=\"\",\"\",'lectures and seminars'!EL15)","v":5},{"$f":"IF('lectures and seminars'!EM15=\"\",\"\",'lectures and seminars'!EM15)","v":5},{"$f":"IF('lectures and seminars'!EN15=\"\",\"\",'lectures and seminars'!EN15)","v":5}]
["Alternatives",{"$f":"IF('lectures and seminars'!EK16=\"\",\"\",'lectures and seminars'!EK16)","v":5},{"$f":"IF('lectures and seminars'!EL16=\"\",\"\",'lectures and seminars'!EL16)","v":5},{"$f":"IF('lectures and seminars'!EM16=\"\",\"\",'lectures and seminars'!EM16)","v":5},{"$f":"IF('lectures and seminars'!EN16=\"\",\"\",'lectures and seminars'!EN16)","v":5}]
["Protocol design",{"$f":"IF('lectures and seminars'!EQ2=\"\",\"\",'lectures and seminars'!EQ2)","v":5},{"$f":"IF('lectures and seminars'!ER2=\"\",\"\",'lectures and seminars'!ER2)","v":5},{"$f":"IF('lectures and seminars'!ES2=\"\",\"\",'lectures and seminars'!ES2)","v":5},{"$f":"IF('lectures and seminars'!ET2=\"\",\"\",'lectures and seminars'!ET2)","v":5}]
["Protocol design",{"$f":"IF('lectures and seminars'!EQ3=\"\",\"\",'lectures and seminars'!EQ3)","v":""},{"$f":"IF('lectures and seminars'!ER3=\"\",\"\",'lectures and seminars'!ER3)","v":""},{"$f":"IF('lectures and seminars'!ES3=\"\",\"\",'lectures and seminars'!ES3)","v":""},{"$f":"IF('lectures and seminars'!ET3=\"\",\"\",'lectures and seminars'!ET3)","v":""}]
["Protocol design",{"$f":"IF('lectures and seminars'!EQ4=\"\",\"\",'lectures and seminars'!EQ4)","v":5},{"$f":"IF('lectures and seminars'!ER4=\"\",\"\",'lectures and seminars'!ER4)","v":5},{"$f":"IF('lectures and seminars'!ES4=\"\",\"\",'lectures and seminars'!ES4)","v":5},{"$f":"IF('lectures and seminars'!ET4=\"\",\"\",'lectures and seminars'!ET4)","v":5}]
["Protocol design",{"$f":"IF('lectures and seminars'!EQ5=\"\",\"\",'lectures and seminars'!EQ5)","v":4},{"$f":"IF('lectures and seminars'!ER5=\"\",\"\",'lectures and seminars'!ER5)","v":5},{"$f":"IF('lectures and seminars'!ES5=\"\",\"\",'lectures and seminars'!ES5)","v":4},{"$f":"IF('lectures and seminars'!ET5=\"\",\"\",'lectures and seminars'!ET5)","v":4}]
["Protocol design",{"$f":"IF('lectures and seminars'!EQ6=\"\",\"\",'lectures and seminars'!EQ6)","v":""},{"$f":"IF('lectures and seminars'!ER6=\"\",\"\",'lectures and seminars'!ER6)","v":""},{"$f":"IF('lectures and seminars'!ES6=\"\",\"\",'lectures and seminars'!ES6)","v":""},{"$f":"IF('lectures and seminars'!ET6=\"\",\"\",'lectures and seminars'!ET6)","v":""}]
["Protocol design",{"$f":"IF('lectures and seminars'!EQ7=\"\",\"\",'lectures and seminars'!EQ7)","v":5},{"$f":"IF('lectures and seminars'!ER7=\"\",\"\",'lectures and seminars'!ER7)","v":5},{"$f":"IF('lectures and seminars'!ES7=\"\",\"\",'lectures and seminars'!ES7)","v":5},{"$f":"IF('lectures and seminars'!ET7=\"\",\"\",'lectures and seminars'!ET7)","v":5}]
["Protocol design",{"$f":"IF('lectures and seminars'!EQ8=\"\",\"\",'lectures and seminars'!EQ8)","v":5},{"$f":"IF('lectures and seminars'!ER8=\"\",\"\",'lectures and seminars'!ER8)","v":5},{"$f":"IF('lectures and seminars'!ES8=\"\",\"\",'lectures and seminars'!ES8)","v":5},{"$f":"IF('lectures and seminars'!ET8=\"\",\"\",'lectures and seminars'!ET8)","v":5}]
["Protocol design",{"$f":"IF('lectures and seminars'!EQ9=\"\",\"\",'lectures and seminars'!EQ9)","v":5},{"$f":"IF('lectures and seminars'!ER9=\"\",\"\",'lectures and seminars'!ER9)","v":5},{"$f":"IF('lectures and seminars'!ES9=\"\",\"\",'lectures and seminars'!ES9)","v":5},{"$f":"IF('lectures and seminars'!ET9=\"\",\"\",'lectures and seminars'!ET9)","v":""}]
["Protocol design",{"$f":"IF('lectures and seminars'!EQ10=\"\",\"\",'lectures and seminars'!EQ10)","v":5},{"$f":"IF('lectures and seminars'!ER10=\"\",\"\",'lectures and seminars'!ER10)","v":5},{"$f":"IF('lectures and seminars'!ES10=\"\",\"\",'lectures and seminars'!ES10)","v":5},{"$f":"IF('lectures and seminars'!ET10=\"\",\"\",'lectures and seminars'!ET10)","v":5}]
["Protocol design",{"$f":"IF('lectures and seminars'!EQ11=\"\",\"\",'lectures and seminars'!EQ11)","v":5},{"$f":"IF('lectures and seminars'!ER11=\"\",\"\",'lectures and seminars'!ER11)","v":5},{"$f":"IF('lectures and seminars'!ES11=\"\",\"\",'lectures and seminars'!ES11)","v":5},{"$f":"IF('lectures and seminars'!ET11=\"\",\"\",'lectures and seminars'!ET11)","v":4}]
["Protocol design",{"$f":"IF('lectures and seminars'!EQ12=\"\",\"\",'lectures and seminars'!EQ12)","v":""},{"$f":"IF('lectures and seminars'!ER12=\"\",\"\",'lectures and seminars'!ER12)","v":""},{"$f":"IF('lectures and seminars'!ES12=\"\",\"\",'lectures and seminars'!ES12)","v":""},{"$f":"IF('lectures and seminars'!ET12=\"\",\"\",'lectures and seminars'!ET12)","v":""}]
["Protocol design",{"$f":"IF('lectures and seminars'!EQ13=\"\",\"\",'lectures and seminars'!EQ13)","v":5},{"$f":"IF('lectures and seminars'!ER13=\"\",\"\",'lectures and seminars'!ER13)","v":4},{"$f":"IF('lectures and seminars'!ES13=\"\",\"\",'lectures and seminars'!ES13)","v":5},{"$f":"IF('lectures and seminars'!ET13=\"\",\"\",'lectures and seminars'!ET13)","v":5}]
["Protocol design",{"$f":"IF('lectures and seminars'!EQ14=\"\",\"\",'lectures and seminars'!EQ14)","v":5},{"$f":"IF('lectures and seminars'!ER14=\"\",\"\",'lectures and seminars'!ER14)","v":5},{"$f":"IF('lectures and seminars'!ES14=\"\",\"\",'lectures and seminars'!ES14)","v":5},{"$f":"IF('lectures and seminars'!ET14=\"\",\"\",'lectures and seminars'!ET14)","v":5}]
["Protocol design",{"$f":"IF('lectures and seminars'!EQ15=\"\",\"\",'lectures and seminars'!EQ15)","v":5},{"$f":"IF('lectures and seminars'!ER15=\"\",\"\",'lectures and seminars'!ER15)","v":5},{"$f":"IF('lectures and seminars'!ES15=\"\",\"\",'lectures and seminars'!ES15)","v":5},{"$f":"IF('lectures and seminars'!ET15=\"\",\"\",'lectures and seminars'!ET15)","v":5}]
["Protocol design",{"$f":"IF('lectures and seminars'!EQ16=\"\",\"\",'lectures and seminars'!EQ16)","v":5},{"$f":"IF('lectures and seminars'!ER16=\"\",\"\",'lectures and seminars'!ER16)","v":5},{"$f":"IF('lectures and seminars'!ES16=\"\",\"\",'lectures and seminars'!ES16)","v":5},{"$f":"IF('lectures and seminars'!ET16=\"\",\"\",'lectures and seminars'!ET16)","v":5}]
["Licensing in practice",{"$f":"IF('lectures and seminars'!EW2=\"\",\"\",'lectures and seminars'!EW2)","v":5},{"$f":"IF('lectures and seminars'!EX2=\"\",\"\",'lectures and seminars'!EX2)","v":5},{"$f":"IF('lectures and seminars'!EY2=\"\",\"\",'lectures and seminars'!EY2)","v":5},{"$f":"IF('lectures and seminars'!EZ2=\"\",\"\",'lectures and seminars'!EZ2)","v":5}]
["Licensing in practice",{"$f":"IF('lectures and seminars'!EW3=\"\",\"\",'lectures and seminars'!EW3)","v":""},{"$f":"IF('lectures and seminars'!EX3=\"\",\"\",'lectures and seminars'!EX3)","v":""},{"$f":"IF('lectures and seminars'!EY3=\"\",\"\",'lectures and seminars'!EY3)","v":""},{"$f":"IF('lectures and seminars'!EZ3=\"\",\"\",'lectures and seminars'!EZ3)","v":""}]
["Licensing in practice",{"$f":"IF('lectures and seminars'!EW4=\"\",\"\",'lectures and seminars'!EW4)","v":5},{"$f":"IF('lectures and seminars'!EX4=\"\",\"\",'lectures and seminars'!EX4)","v":5},{"$f":"IF('lectures and seminars'!EY4=\"\",\"\",'lectures and seminars'!EY4)","v":5},{"$f":"IF('lectures and seminars'!EZ4=\"\",\"\",'lectures and seminars'!EZ4)","v":5}]
["Licensing in practice",{"$f":"IF('lectures and seminars'!EW5=\"\",\"\",'lectures and seminars'!EW5)","v":4},{"$f":"IF('lectures and seminars'!EX5=\"\",\"\",'lectures and seminars'!EX5)","v":5},{"$f":"IF('lectures and seminars'!EY5=\"\",\"\",'lectures and seminars'!EY5)","v":4},{"$f":"IF('lectures and seminars'!EZ5=\"\",\"\",'lectures and seminars'!EZ5)","v":4}]
["Licensing in practice",{"$f":"IF('lectures and seminars'!EW6=\"\",\"\",'lectures and seminars'!EW6)","v":""},{"$f":"IF('lectures and seminars'!EX6=\"\",\"\",'lectures and seminars'!EX6)","v":""},{"$f":"IF('lectures and seminars'!EY6=\"\",\"\",'lectures and seminars'!EY6)","v":""},{"$f":"IF('lectures and seminars'!EZ6=\"\",\"\",'lectures and seminars'!EZ6)","v":""}]
["Licensing in practice",{"$f":"IF('lectures and seminars'!EW7=\"\",\"\",'lectures and seminars'!EW7)","v":5},{"$f":"IF('lectures and seminars'!EX7=\"\",\"\",'lectures and seminars'!EX7)","v":4},{"$f":"IF('lectures and seminars'!EY7=\"\",\"\",'lectures and seminars'!EY7)","v":5},{"$f":"IF('lectures and seminars'!EZ7=\"\",\"\",'lectures and seminars'!EZ7)","v":5}]
["Licensing in practice",{"$f":"IF('lectures and seminars'!EW8=\"\",\"\",'lectures and seminars'!EW8)","v":5},{"$f":"IF('lectures and seminars'!EX8=\"\",\"\",'lectures and seminars'!EX8)","v":5},{"$f":"IF('lectures and seminars'!EY8=\"\",\"\",'lectures and seminars'!EY8)","v":5},{"$f":"IF('lectures and seminars'!EZ8=\"\",\"\",'lectures and seminars'!EZ8)","v":5}]
["Licensing in practice",{"$f":"IF('lectures and seminars'!EW9=\"\",\"\",'lectures and seminars'!EW9)","v":5},{"$f":"IF('lectures and seminars'!EX9=\"\",\"\",'lectures and seminars'!EX9)","v":5},{"$f":"IF('lectures and seminars'!EY9=\"\",\"\",'lectures and seminars'!EY9)","v":5},{"$f":"IF('lectures and seminars'!EZ9=\"\",\"\",'lectures and seminars'!EZ9)","v":""}]
["Licensing in practice",{"$f":"IF('lectures and seminars'!EW10=\"\",\"\",'lectures and seminars'!EW10)","v":5},{"$f":"IF('lectures and seminars'!EX10=\"\",\"\",'lectures and seminars'!EX10)","v":5},{"$f":"IF('lectures and seminars'!EY10=\"\",\"\",'lectures and seminars'!EY10)","v":5},{"$f":"IF('lectures and seminars'!EZ10=\"\",\"\",'lectures and seminars'!EZ10)","v":5}]
["Licensing in practice",{"$f":"IF('lectures and seminars'!EW11=\"\",\"\",'lectures and seminars'!EW11)","v":5},{"$f":"IF('lectures and seminars'!EX11=\"\",\"\",'lectures and seminars'!EX11)","v":5},{"$f":"IF('lectures and seminars'!EY11=\"\",\"\",'lectures and seminars'!EY11)","v":5},{"$f":"IF('lectures and seminars'!EZ11=\"\",\"\",'lectures and seminars'!EZ11)","v":4}]
["Licensing in practice",{"$f":"IF('lectures and seminars'!EW12=\"\",\"\",'lectures and seminars'!EW12)","v":""},{"$f":"IF('lectures and seminars'!EX12=\"\",\"\",'lectures and seminars'!EX12)","v":""},{"$f":"IF('lectures and seminars'!EY12=\"\",\"\",'lectures and seminars'!EY12)","v":""},{"$f":"IF('lectures and seminars'!EZ12=\"\",\"\",'lectures and seminars'!EZ12)","v":""}]
["Licensing in practice",{"$f":"IF('lectures and seminars'!EW13=\"\",\"\",'lectures and seminars'!EW13)","v":5},{"$f":"IF('lectures and seminars'!EX13=\"\",\"\",'lectures and seminars'!EX13)","v":5},{"$f":"IF('lectures and seminars'!EY13=\"\",\"\",'lectures and seminars'!EY13)","v":5},{"$f":"IF('lectures and seminars'!EZ13=\"\",\"\",'lectures and seminars'!EZ13)","v":5}]
["Licensing in practice",{"$f":"IF('lectures and seminars'!EW14=\"\",\"\",'lectures and seminars'!EW14)","v":5},{"$f":"IF('lectures and seminars'!EX14=\"\",\"\",'lectures and seminars'!EX14)","v":5},{"$f":"IF('lectures and seminars'!EY14=\"\",\"\",'lectures and seminars'!EY14)","v":5},{"$f":"IF('lectures and seminars'!EZ14=\"\",\"\",'lectures and seminars'!EZ14)","v":5}]
["Licensing in practice",{"$f":"IF('lectures and seminars'!EW15=\"\",\"\",'lectures and seminars'!EW15)","v":5},{"$f":"IF('lectures and seminars'!EX15=\"\",\"\",'lectures and seminars'!EX15)","v":5},{"$f":"IF('lectures and seminars'!EY15=\"\",\"\",'lectures and seminars'!EY15)","v":5},{"$f":"IF('lectures and seminars'!EZ15=\"\",\"\",'lectures and seminars'!EZ15)","v":5}]
["Licensing in practice",{"$f":"IF('lectures and seminars'!EW16=\"\",\"\",'lectures and seminars'!EW16)","v":5},{"$f":"IF('lectures and seminars'!EX16=\"\",\"\",'lectures and seminars'!EX16)","v":5},{"$f":"IF('lectures and seminars'!EY16=\"\",\"\",'lectures and seminars'!EY16)","v":5},{"$f":"IF('lectures and seminars'!EZ16=\"\",\"\",'lectures and seminars'!EZ16)","v":5}]
["Sample size",{"$f":"IF('lectures and seminars'!FC2=\"\",\"\",'lectures and seminars'!FC2)","v":5},{"$f":"IF('lectures and seminars'!FD2=\"\",\"\",'lectures and seminars'!FD2)","v":5},{"$f":"IF('lectures and seminars'!FE2=\"\",\"\",'lectures and seminars'!FE2)","v":5},{"$f":"IF('lectures and seminars'!FF2=\"\",\"\",'lectures and seminars'!FF2)","v":5}]
["Sample size",{"$f":"IF('lectures and seminars'!FC3=\"\",\"\",'lectures and seminars'!FC3)","v":""},{"$f":"IF('lectures and seminars'!FD3=\"\",\"\",'lectures and seminars'!FD3)","v":""},{"$f":"IF('lectures and seminars'!FE3=\"\",\"\",'lectures and seminars'!FE3)","v":""},{"$f":"IF('lectures and seminars'!FF3=\"\",\"\",'lectures and seminars'!FF3)","v":""}]
["Sample size",{"$f":"IF('lectures and seminars'!FC4=\"\",\"\",'lectures and seminars'!FC4)","v":5},{"$f":"IF('lectures and seminars'!FD4=\"\",\"\",'lectures and seminars'!FD4)","v":5},{"$f":"IF('lectures and seminars'!FE4=\"\",\"\",'lectures and seminars'!FE4)","v":5},{"$f":"IF('lectures and seminars'!FF4=\"\",\"\",'lectures and seminars'!FF4)","v":5}]
["Sample size",{"$f":"IF('lectures and seminars'!FC5=\"\",\"\",'lectures and seminars'!FC5)","v":5},{"$f":"IF('lectures and seminars'!FD5=\"\",\"\",'lectures and seminars'!FD5)","v":5},{"$f":"IF('lectures and seminars'!FE5=\"\",\"\",'lectures and seminars'!FE5)","v":5},{"$f":"IF('lectures and seminars'!FF5=\"\",\"\",'lectures and seminars'!FF5)","v":5}]
["Sample size",{"$f":"IF('lectures and seminars'!FC6=\"\",\"\",'lectures and seminars'!FC6)","v":5},{"$f":"IF('lectures and seminars'!FD6=\"\",\"\",'lectures and seminars'!FD6)","v":5},{"$f":"IF('lectures and seminars'!FE6=\"\",\"\",'lectures and seminars'!FE6)","v":5},{"$f":"IF('lectures and seminars'!FF6=\"\",\"\",'lectures and seminars'!FF6)","v":5}]
["Sample size",{"$f":"IF('lectures and seminars'!FC7=\"\",\"\",'lectures and seminars'!FC7)","v":5},{"$f":"IF('lectures and seminars'!FD7=\"\",\"\",'lectures and seminars'!FD7)","v":4},{"$f":"IF('lectures and seminars'!FE7=\"\",\"\",'lectures and seminars'!FE7)","v":4},{"$f":"IF('lectures and seminars'!FF7=\"\",\"\",'lectures and seminars'!FF7)","v":4}]
["Sample size",{"$f":"IF('lectures and seminars'!FC8=\"\",\"\",'lectures and seminars'!FC8)","v":4},{"$f":"IF('lectures and seminars'!FD8=\"\",\"\",'lectures and seminars'!FD8)","v":5},{"$f":"IF('lectures and seminars'!FE8=\"\",\"\",'lectures and seminars'!FE8)","v":5},{"$f":"IF('lectures and seminars'!FF8=\"\",\"\",'lectures and seminars'!FF8)","v":5}]
["Sample size",{"$f":"IF('lectures and seminars'!FC9=\"\",\"\",'lectures and seminars'!FC9)","v":5},{"$f":"IF('lectures and seminars'!FD9=\"\",\"\",'lectures and seminars'!FD9)","v":5},{"$f":"IF('lectures and seminars'!FE9=\"\",\"\",'lectures and seminars'!FE9)","v":5},{"$f":"IF('lectures and seminars'!FF9=\"\",\"\",'lectures and seminars'!FF9)","v":5}]
["Sample size",{"$f":"IF('lectures and seminars'!FC10=\"\",\"\",'lectures and seminars'!FC10)","v":5},{"$f":"IF('lectures and seminars'!FD10=\"\",\"\",'lectures and seminars'!FD10)","v":5},{"$f":"IF('lectures and seminars'!FE10=\"\",\"\",'lectures and seminars'!FE10)","v":5},{"$f":"IF('lectures and seminars'!FF10=\"\",\"\",'lectures and seminars'!FF10)","v":5}]
["Sample size",{"$f":"IF('lectures and seminars'!FC11=\"\",\"\",'lectures and seminars'!FC11)","v":5},{"$f":"IF('lectures and seminars'!FD11=\"\",\"\",'lectures and seminars'!FD11)","v":5},{"$f":"IF('lectures and seminars'!FE11=\"\",\"\",'lectures and seminars'!FE11)","v":5},{"$f":"IF('lectures and seminars'!FF11=\"\",\"\",'lectures and seminars'!FF11)","v":5}]
["Sample size",{"$f":"IF('lectures and seminars'!FC12=\"\",\"\",'lectures and seminars'!FC12)","v":5},{"$f":"IF('lectures and seminars'!FD12=\"\",\"\",'lectures and seminars'!FD12)","v":5},{"$f":"IF('lectures and seminars'!FE12=\"\",\"\",'lectures and seminars'!FE12)","v":5},{"$f":"IF('lectures and seminars'!FF12=\"\",\"\",'lectures and seminars'!FF12)","v":5}]
["Sample size",{"$f":"IF('lectures and seminars'!FC13=\"\",\"\",'lectures and seminars'!FC13)","v":5},{"$f":"IF('lectures and seminars'!FD13=\"\",\"\",'lectures and seminars'!FD13)","v":5},{"$f":"IF('lectures and seminars'!FE13=\"\",\"\",'lectures and seminars'!FE13)","v":5},{"$f":"IF('lectures and seminars'!FF13=\"\",\"\",'lectures and seminars'!FF13)","v":5}]
["Sample size",{"$f":"IF('lectures and seminars'!FC14=\"\",\"\",'lectures and seminars'!FC14)","v":5},{"$f":"IF('lectures and seminars'!FD14=\"\",\"\",'lectures and seminars'!FD14)","v":5},{"$f":"IF('lectures and seminars'!FE14=\"\",\"\",'lectures and seminars'!FE14)","v":5},{"$f":"IF('lectures and seminars'!FF14=\"\",\"\",'lectures and seminars'!FF14)","v":5}]
["Sample size",{"$f":"IF('lectures and seminars'!FC15=\"\",\"\",'lectures and seminars'!FC15)","v":5},{"$f":"IF('lectures and seminars'!FD15=\"\",\"\",'lectures and seminars'!FD15)","v":5},{"$f":"IF('lectures and seminars'!FE15=\"\",\"\",'lectures and seminars'!FE15)","v":5},{"$f":"IF('lectures and seminars'!FF15=\"\",\"\",'lectures and seminars'!FF15)","v":5}]
["Sample size",{"$f":"IF('lectures and seminars'!FC16=\"\",\"\",'lectures and seminars'!FC16)","v":5},{"$f":"IF('lectures and seminars'!FD16=\"\",\"\",'lectures and seminars'!FD16)","v":5},{"$f":"IF('lectures and seminars'!FE16=\"\",\"\",'lectures and seminars'!FE16)","v":5},{"$f":"IF('lectures and seminars'!FF16=\"\",\"\",'lectures and seminars'!FF16)","v":5}]
["Bibliometrics",{"$f":"IF('lectures and seminars'!FI2=\"\",\"\",'lectures and seminars'!FI2)","v":5},{"$f":"IF('lectures and seminars'!FJ2=\"\",\"\",'lectures and seminars'!FJ2)","v":5},{"$f":"IF('lectures and seminars'!FK2=\"\",\"\",'lectures and seminars'!FK2)","v":5},{"$f":"IF('lectures and seminars'!FL2=\"\",\"\",'lectures and seminars'!FL2)","v":5}]
["Bibliometrics",{"$f":"IF('lectures and seminars'!FI3=\"\",\"\",'lectures and seminars'!FI3)","v":""},{"$f":"IF('lectures and seminars'!FJ3=\"\",\"\",'lectures and seminars'!FJ3)","v":""},{"$f":"IF('lectures and seminars'!FK3=\"\",\"\",'lectures and seminars'!FK3)","v":""},{"$f":"IF('lectures and seminars'!FL3=\"\",\"\",'lectures and seminars'!FL3)","v":""}]
["Bibliometrics",{"$f":"IF('lectures and seminars'!FI4=\"\",\"\",'lectures and seminars'!FI4)","v":5},{"$f":"IF('lectures and seminars'!FJ4=\"\",\"\",'lectures and seminars'!FJ4)","v":5},{"$f":"IF('lectures and seminars'!FK4=\"\",\"\",'lectures and seminars'!FK4)","v":3},{"$f":"IF('lectures and seminars'!FL4=\"\",\"\",'lectures and seminars'!FL4)","v":5}]
["Bibliometrics",{"$f":"IF('lectures and seminars'!FI5=\"\",\"\",'lectures and seminars'!FI5)","v":5},{"$f":"IF('lectures and seminars'!FJ5=\"\",\"\",'lectures and seminars'!FJ5)","v":5},{"$f":"IF('lectures and seminars'!FK5=\"\",\"\",'lectures and seminars'!FK5)","v":5},{"$f":"IF('lectures and seminars'!FL5=\"\",\"\",'lectures and seminars'!FL5)","v":5}]
["Bibliometrics",{"$f":"IF('lectures and seminars'!FI6=\"\",\"\",'lectures and seminars'!FI6)","v":5},{"$f":"IF('lectures and seminars'!FJ6=\"\",\"\",'lectures and seminars'!FJ6)","v":5},{"$f":"IF('lectures and seminars'!FK6=\"\",\"\",'lectures and seminars'!FK6)","v":5},{"$f":"IF('lectures and seminars'!FL6=\"\",\"\",'lectures and seminars'!FL6)","v":5}]
["Bibliometrics",{"$f":"IF('lectures and seminars'!FI7=\"\",\"\",'lectures and seminars'!FI7)","v":5},{"$f":"IF('lectures and seminars'!FJ7=\"\",\"\",'lectures and seminars'!FJ7)","v":5},{"$f":"IF('lectures and seminars'!FK7=\"\",\"\",'lectures and seminars'!FK7)","v":3},{"$f":"IF('lectures and seminars'!FL7=\"\",\"\",'lectures and seminars'!FL7)","v":3}]
["Bibliometrics",{"$f":"IF('lectures and seminars'!FI8=\"\",\"\",'lectures and seminars'!FI8)","v":5},{"$f":"IF('lectures and seminars'!FJ8=\"\",\"\",'lectures and seminars'!FJ8)","v":5},{"$f":"IF('lectures and seminars'!FK8=\"\",\"\",'lectures and seminars'!FK8)","v":5},{"$f":"IF('lectures and seminars'!FL8=\"\",\"\",'lectures and seminars'!FL8)","v":5}]
["Bibliometrics",{"$f":"IF('lectures and seminars'!FI9=\"\",\"\",'lectures and seminars'!FI9)","v":5},{"$f":"IF('lectures and seminars'!FJ9=\"\",\"\",'lectures and seminars'!FJ9)","v":5},{"$f":"IF('lectures and seminars'!FK9=\"\",\"\",'lectures and seminars'!FK9)","v":5},{"$f":"IF('lectures and seminars'!FL9=\"\",\"\",'lectures and seminars'!FL9)","v":5}]
["Bibliometrics",{"$f":"IF('lectures and seminars'!FI10=\"\",\"\",'lectures and seminars'!FI10)","v":5},{"$f":"IF('lectures and seminars'!FJ10=\"\",\"\",'lectures and seminars'!FJ10)","v":5},{"$f":"IF('lectures and seminars'!FK10=\"\",\"\",'lectures and seminars'!FK10)","v":5},{"$f":"IF('lectures and seminars'!FL10=\"\",\"\",'lectures and seminars'!FL10)","v":5}]
["Bibliometrics",{"$f":"IF('lectures and seminars'!FI11=\"\",\"\",'lectures and seminars'!FI11)","v":5},{"$f":"IF('lectures and seminars'!FJ11=\"\",\"\",'lectures and seminars'!FJ11)","v":5},{"$f":"IF('lectures and seminars'!FK11=\"\",\"\",'lectures and seminars'!FK11)","v":5},{"$f":"IF('lectures and seminars'!FL11=\"\",\"\",'lectures and seminars'!FL11)","v":5}]
["Bibliometrics",{"$f":"IF('lectures and seminars'!FI12=\"\",\"\",'lectures and seminars'!FI12)","v":5},{"$f":"IF('lectures and seminars'!FJ12=\"\",\"\",'lectures and seminars'!FJ12)","v":5},{"$f":"IF('lectures and seminars'!FK12=\"\",\"\",'lectures and seminars'!FK12)","v":5},{"$f":"IF('lectures and seminars'!FL12=\"\",\"\",'lectures and seminars'!FL12)","v":5}]
["Bibliometrics",{"$f":"IF('lectures and seminars'!FI13=\"\",\"\",'lectures and seminars'!FI13)","v":5},{"$f":"IF('lectures and seminars'!FJ13=\"\",\"\",'lectures and seminars'!FJ13)","v":5},{"$f":"IF('lectures and seminars'!FK13=\"\",\"\",'lectures and seminars'!FK13)","v":5},{"$f":"IF('lectures and seminars'!FL13=\"\",\"\",'lectures and seminars'!FL13)","v":5}]
["Bibliometrics",{"$f":"IF('lectures and seminars'!FI14=\"\",\"\",'lectures and seminars'!FI14)","v":5},{"$f":"IF('lectures and seminars'!FJ14=\"\",\"\",'lectures and seminars'!FJ14)","v":5},{"$f":"IF('lectures and seminars'!FK14=\"\",\"\",'lectures and seminars'!FK14)","v":5},{"$f":"IF('lectures and seminars'!FL14=\"\",\"\",'lectures and seminars'!FL14)","v":5}]
["Bibliometrics",{"$f":"IF('lectures and seminars'!FI15=\"\",\"\",'lectures and seminars'!FI15)","v":5},{"$f":"IF('lectures and seminars'!FJ15=\"\",\"\",'lectures and seminars'!FJ15)","v":5},{"$f":"IF('lectures and seminars'!FK15=\"\",\"\",'lectures and seminars'!FK15)","v":5},{"$f":"IF('lectures and seminars'!FL15=\"\",\"\",'lectures and seminars'!FL15)","v":5}]
["Bibliometrics",{"$f":"IF('lectures and seminars'!FI16=\"\",\"\",'lectures and seminars'!FI16)","v":5},{"$f":"IF('lectures and seminars'!FJ16=\"\",\"\",'lectures and seminars'!FJ16)","v":5},{"$f":"IF('lectures and seminars'!FK16=\"\",\"\",'lectures and seminars'!FK16)","v":5},{"$f":"IF('lectures and seminars'!FL16=\"\",\"\",'lectures and seminars'!FL16)","v":5}]
["Translation",{"$f":"IF('lectures and seminars'!FO2=\"\",\"\",'lectures and seminars'!FO2)","v":5},{"$f":"IF('lectures and seminars'!FP2=\"\",\"\",'lectures and seminars'!FP2)","v":5},{"$f":"IF('lectures and seminars'!FQ2=\"\",\"\",'lectures and seminars'!FQ2)","v":5},{"$f":"IF('lectures and seminars'!FR2=\"\",\"\",'lectures and seminars'!FR2)","v":5}]
["Translation",{"$f":"IF('lectures and seminars'!FO3=\"\",\"\",'lectures and seminars'!FO3)","v":""},{"$f":"IF('lectures and seminars'!FP3=\"\",\"\",'lectures and seminars'!FP3)","v":""},{"$f":"IF('lectures and seminars'!FQ3=\"\",\"\",'lectures and seminars'!FQ3)","v":""},{"$f":"IF('lectures and seminars'!FR3=\"\",\"\",'lectures and seminars'!FR3)","v":""}]
["Translation",{"$f":"IF('lectures and seminars'!FO4=\"\",\"\",'lectures and seminars'!FO4)","v":5},{"$f":"IF('lectures and seminars'!FP4=\"\",\"\",'lectures and seminars'!FP4)","v":5},{"$f":"IF('lectures and seminars'!FQ4=\"\",\"\",'lectures and seminars'!FQ4)","v":5},{"$f":"IF('lectures and seminars'!FR4=\"\",\"\",'lectures and seminars'!FR4)","v":5}]
["Translation",{"$f":"IF('lectures and seminars'!FO5=\"\",\"\",'lectures and seminars'!FO5)","v":5},{"$f":"IF('lectures and seminars'!FP5=\"\",\"\",'lectures and seminars'!FP5)","v":5},{"$f":"IF('lectures and seminars'!FQ5=\"\",\"\",'lectures and seminars'!FQ5)","v":5},{"$f":"IF('lectures and seminars'!FR5=\"\",\"\",'lectures and seminars'!FR5)","v":5}]
["Translation",{"$f":"IF('lectures and seminars'!FO6=\"\",\"\",'lectures and seminars'!FO6)","v":5},{"$f":"IF('lectures and seminars'!FP6=\"\",\"\",'lectures and seminars'!FP6)","v":5},{"$f":"IF('lectures and seminars'!FQ6=\"\",\"\",'lectures and seminars'!FQ6)","v":5},{"$f":"IF('lectures and seminars'!FR6=\"\",\"\",'lectures and seminars'!FR6)","v":5}]
["Translation",{"$f":"IF('lectures and seminars'!FO7=\"\",\"\",'lectures and seminars'!FO7)","v":5},{"$f":"IF('lectures and seminars'!FP7=\"\",\"\",'lectures and seminars'!FP7)","v":5},{"$f":"IF('lectures and seminars'!FQ7=\"\",\"\",'lectures and seminars'!FQ7)","v":5},{"$f":"IF('lectures and seminars'!FR7=\"\",\"\",'lectures and seminars'!FR7)","v":5}]
["Translation",{"$f":"IF('lectures and seminars'!FO8=\"\",\"\",'lectures and seminars'!FO8)","v":5},{"$f":"IF('lectures and seminars'!FP8=\"\",\"\",'lectures and seminars'!FP8)","v":5},{"$f":"IF('lectures and seminars'!FQ8=\"\",\"\",'lectures and seminars'!FQ8)","v":5},{"$f":"IF('lectures and seminars'!FR8=\"\",\"\",'lectures and seminars'!FR8)","v":5}]
["Translation",{"$f":"IF('lectures and seminars'!FO9=\"\",\"\",'lectures and seminars'!FO9)","v":5},{"$f":"IF('lectures and seminars'!FP9=\"\",\"\",'lectures and seminars'!FP9)","v":5},{"$f":"IF('lectures and seminars'!FQ9=\"\",\"\",'lectures and seminars'!FQ9)","v":5},{"$f":"IF('lectures and seminars'!FR9=\"\",\"\",'lectures and seminars'!FR9)","v":5}]
["Translation",{"$f":"IF('lectures and seminars'!FO10=\"\",\"\",'lectures and seminars'!FO10)","v":5},{"$f":"IF('lectures and seminars'!FP10=\"\",\"\",'lectures and seminars'!FP10)","v":5},{"$f":"IF('lectures and seminars'!FQ10=\"\",\"\",'lectures and seminars'!FQ10)","v":5},{"$f":"IF('lectures and seminars'!FR10=\"\",\"\",'lectures and seminars'!FR10)","v":5}]
["Translation",{"$f":"IF('lectures and seminars'!FO11=\"\",\"\",'lectures and seminars'!FO11)","v":5},{"$f":"IF('lectures and seminars'!FP11=\"\",\"\",'lectures and seminars'!FP11)","v":5},{"$f":"IF('lectures and seminars'!FQ11=\"\",\"\",'lectures and seminars'!FQ11)","v":5},{"$f":"IF('lectures and seminars'!FR11=\"\",\"\",'lectures and seminars'!FR11)","v":5}]
["Translation",{"$f":"IF('lectures and seminars'!FO12=\"\",\"\",'lectures and seminars'!FO12)","v":5},{"$f":"IF('lectures and seminars'!FP12=\"\",\"\",'lectures and seminars'!FP12)","v":5},{"$f":"IF('lectures and seminars'!FQ12=\"\",\"\",'lectures and seminars'!FQ12)","v":5},{"$f":"IF('lectures and seminars'!FR12=\"\",\"\",'lectures and seminars'!FR12)","v":5}]
["Translation",{"$f":"IF('lectures and seminars'!FO13=\"\",\"\",'lectures and seminars'!FO13)","v":5},{"$f":"IF('lectures and seminars'!FP13=\"\",\"\",'lectures and seminars'!FP13)","v":5},{"$f":"IF('lectures and seminars'!FQ13=\"\",\"\",'lectures and seminars'!FQ13)","v":5},{"$f":"IF('lectures and seminars'!FR13=\"\",\"\",'lectures and seminars'!FR13)","v":5}]
["Translation",{"$f":"IF('lectures and seminars'!FO14=\"\",\"\",'lectures and seminars'!FO14)","v":5},{"$f":"IF('lectures and seminars'!FP14=\"\",\"\",'lectures and seminars'!FP14)","v":5},{"$f":"IF('lectures and seminars'!FQ14=\"\",\"\",'lectures and seminars'!FQ14)","v":5},{"$f":"IF('lectures and seminars'!FR14=\"\",\"\",'lectures and seminars'!FR14)","v":5}]
["Translation",{"$f":"IF('lectures and seminars'!FO15=\"\",\"\",'lectures and seminars'!FO15)","v":5},{"$f":"IF('lectures and seminars'!FP15=\"\",\"\",'lectures and seminars'!FP15)","v":5},{"$f":"IF('lectures and seminars'!FQ15=\"\",\"\",'lectures and seminars'!FQ15)","v":5},{"$f":"IF('lectures and seminars'!FR15=\"\",\"\",'lectures and seminars'!FR15)","v":5}]
["Translation",{"$f":"IF('lectures and seminars'!FO16=\"\",\"\",'lectures and seminars'!FO16)","v":5},{"$f":"IF('lectures and seminars'!FP16=\"\",\"\",'lectures and seminars'!FP16)","v":5},{"$f":"IF('lectures and seminars'!FQ16=\"\",\"\",'lectures and seminars'!FQ16)","v":5},{"$f":"IF('lectures and seminars'!FR16=\"\",\"\",'lectures and seminars'!FR16)","v":5}]
["In vitro, ex vivo",{"$f":"IF('lectures and seminars'!FU2=\"\",\"\",'lectures and seminars'!FU2)","v":5},{"$f":"IF('lectures and seminars'!FV2=\"\",\"\",'lectures and seminars'!FV2)","v":5},{"$f":"IF('lectures and seminars'!FW2=\"\",\"\",'lectures and seminars'!FW2)","v":5},{"$f":"IF('lectures and seminars'!FX2=\"\",\"\",'lectures and seminars'!FX2)","v":5}]
["In vitro, ex vivo",{"$f":"IF('lectures and seminars'!FU3=\"\",\"\",'lectures and seminars'!FU3)","v":""},{"$f":"IF('lectures and seminars'!FV3=\"\",\"\",'lectures and seminars'!FV3)","v":""},{"$f":"IF('lectures and seminars'!FW3=\"\",\"\",'lectures and seminars'!FW3)","v":""},{"$f":"IF('lectures and seminars'!FX3=\"\",\"\",'lectures and seminars'!FX3)","v":""}]
["In vitro, ex vivo",{"$f":"IF('lectures and seminars'!FU4=\"\",\"\",'lectures and seminars'!FU4)","v":5},{"$f":"IF('lectures and seminars'!FV4=\"\",\"\",'lectures and seminars'!FV4)","v":5},{"$f":"IF('lectures and seminars'!FW4=\"\",\"\",'lectures and seminars'!FW4)","v":4},{"$f":"IF('lectures and seminars'!FX4=\"\",\"\",'lectures and seminars'!FX4)","v":5}]
["In vitro, ex vivo",{"$f":"IF('lectures and seminars'!FU5=\"\",\"\",'lectures and seminars'!FU5)","v":4},{"$f":"IF('lectures and seminars'!FV5=\"\",\"\",'lectures and seminars'!FV5)","v":4},{"$f":"IF('lectures and seminars'!FW5=\"\",\"\",'lectures and seminars'!FW5)","v":4},{"$f":"IF('lectures and seminars'!FX5=\"\",\"\",'lectures and seminars'!FX5)","v":4}]
["In vitro, ex vivo",{"$f":"IF('lectures and seminars'!FU6=\"\",\"\",'lectures and seminars'!FU6)","v":""},{"$f":"IF('lectures and seminars'!FV6=\"\",\"\",'lectures and seminars'!FV6)","v":""},{"$f":"IF('lectures and seminars'!FW6=\"\",\"\",'lectures and seminars'!FW6)","v":""},{"$f":"IF('lectures and seminars'!FX6=\"\",\"\",'lectures and seminars'!FX6)","v":""}]
["In vitro, ex vivo",{"$f":"IF('lectures and seminars'!FU7=\"\",\"\",'lectures and seminars'!FU7)","v":5},{"$f":"IF('lectures and seminars'!FV7=\"\",\"\",'lectures and seminars'!FV7)","v":5},{"$f":"IF('lectures and seminars'!FW7=\"\",\"\",'lectures and seminars'!FW7)","v":3},{"$f":"IF('lectures and seminars'!FX7=\"\",\"\",'lectures and seminars'!FX7)","v":4}]
["In vitro, ex vivo",{"$f":"IF('lectures and seminars'!FU8=\"\",\"\",'lectures and seminars'!FU8)","v":5},{"$f":"IF('lectures and seminars'!FV8=\"\",\"\",'lectures and seminars'!FV8)","v":5},{"$f":"IF('lectures and seminars'!FW8=\"\",\"\",'lectures and seminars'!FW8)","v":5},{"$f":"IF('lectures and seminars'!FX8=\"\",\"\",'lectures and seminars'!FX8)","v":5}]
["In vitro, ex vivo",{"$f":"IF('lectures and seminars'!FU9=\"\",\"\",'lectures and seminars'!FU9)","v":5},{"$f":"IF('lectures and seminars'!FV9=\"\",\"\",'lectures and seminars'!FV9)","v":5},{"$f":"IF('lectures and seminars'!FW9=\"\",\"\",'lectures and seminars'!FW9)","v":5},{"$f":"IF('lectures and seminars'!FX9=\"\",\"\",'lectures and seminars'!FX9)","v":5}]
["In vitro, ex vivo",{"$f":"IF('lectures and seminars'!FU10=\"\",\"\",'lectures and seminars'!FU10)","v":5},{"$f":"IF('lectures and seminars'!FV10=\"\",\"\",'lectures and seminars'!FV10)","v":5},{"$f":"IF('lectures and seminars'!FW10=\"\",\"\",'lectures and seminars'!FW10)","v":5},{"$f":"IF('lectures and seminars'!FX10=\"\",\"\",'lectures and seminars'!FX10)","v":5}]
["In vitro, ex vivo",{"$f":"IF('lectures and seminars'!FU11=\"\",\"\",'lectures and seminars'!FU11)","v":5},{"$f":"IF('lectures and seminars'!FV11=\"\",\"\",'lectures and seminars'!FV11)","v":5},{"$f":"IF('lectures and seminars'!FW11=\"\",\"\",'lectures and seminars'!FW11)","v":5},{"$f":"IF('lectures and seminars'!FX11=\"\",\"\",'lectures and seminars'!FX11)","v":5}]
["In vitro, ex vivo",{"$f":"IF('lectures and seminars'!FU12=\"\",\"\",'lectures and seminars'!FU12)","v":5},{"$f":"IF('lectures and seminars'!FV12=\"\",\"\",'lectures and seminars'!FV12)","v":5},{"$f":"IF('lectures and seminars'!FW12=\"\",\"\",'lectures and seminars'!FW12)","v":5},{"$f":"IF('lectures and seminars'!FX12=\"\",\"\",'lectures and seminars'!FX12)","v":5}]
["In vitro, ex vivo",{"$f":"IF('lectures and seminars'!FU13=\"\",\"\",'lectures and seminars'!FU13)","v":""},{"$f":"IF('lectures and seminars'!FV13=\"\",\"\",'lectures and seminars'!FV13)","v":""},{"$f":"IF('lectures and seminars'!FW13=\"\",\"\",'lectures and seminars'!FW13)","v":""},{"$f":"IF('lectures and seminars'!FX13=\"\",\"\",'lectures and seminars'!FX13)","v":""}]
["In vitro, ex vivo",{"$f":"IF('lectures and seminars'!FU14=\"\",\"\",'lectures and seminars'!FU14)","v":5},{"$f":"IF('lectures and seminars'!FV14=\"\",\"\",'lectures and seminars'!FV14)","v":5},{"$f":"IF('lectures and seminars'!FW14=\"\",\"\",'lectures and seminars'!FW14)","v":5},{"$f":"IF('lectures and seminars'!FX14=\"\",\"\",'lectures and seminars'!FX14)","v":5}]
["In vitro, ex vivo",{"$f":"IF('lectures and seminars'!FU15=\"\",\"\",'lectures and seminars'!FU15)","v":5},{"$f":"IF('lectures and seminars'!FV15=\"\",\"\",'lectures and seminars'!FV15)","v":5},{"$f":"IF('lectures and seminars'!FW15=\"\",\"\",'lectures and seminars'!FW15)","v":5},{"$f":"IF('lectures and seminars'!FX15=\"\",\"\",'lectures and seminars'!FX15)","v":5}]
["In vitro, ex vivo",{"$f":"IF('lectures and seminars'!FU16=\"\",\"\",'lectures and seminars'!FU16)","v":5},{"$f":"IF('lectures and seminars'!FV16=\"\",\"\",'lectures and seminars'!FV16)","v":5},{"$f":"IF('lectures and seminars'!FW16=\"\",\"\",'lectures and seminars'!FW16)","v":5},{"$f":"IF('lectures and seminars'!FX16=\"\",\"\",'lectures and seminars'!FX16)","v":5}]